{"text_format":"3","workbook":"xlsx","n_sheets":37,"sheets":["HOME","DATA","ID GURU","COVER","PKKM_GMP","PKKM_BK","PKKM-GTIK","PKKM-WKKur","PKKM-WKSis","PKKM-WKSarpras","PKKM-WKHumas","PKKM-LAB","PKKM-PUS","REKAP NGR","REKAP NGR BK","REKAP NGR TIK","REKWKUR","REKWKSIS","REKWKSAR","REKWKHUM","REKAPLAB","REKAPPUS","N-GR","PRIORITAS","INDIKATOR GMP","INDIKATOR GBK","PROSES PKB GBK","INDIKATOR GTIK","KH","REKAP_RES","RUN","PKB","IdentImport","NilaiImport","PKBImport","AKKImport","Sheet1"],"not_rendered":{"images":8,"macros":1,"external_links":3,"defined_names":1192},"read":"whole","date_system":"1900"}

{"sheet":"HOME","index":0,"n_rows":32,"n_cols":21,"rows_kept":32,"merged":[[3,4,3,10],[4,4,4,10],[8,12,22,12],[11,4,21,4],[24,4,28,4],[26,12,26,13],[27,12,29,13],[31,3,31,14],[32,1,32,16]]}
[{"$nulls":20},1]
[]
[]
[{"$nulls":4},"APLIKASI PENILAIAN KINERJA GURU (PKG) "]
[{"$nulls":4},"BERDASARKAN SK DIRJEN PENDIS No. 1843 TAHUN 2021"]
[]
[]
[]
[{"$nulls":12},"1. Isilah/ Input Data Guru dan Penilai dengan lengkap\n2. Lakukan penilaian pada Instrumen PKG dengan cara tombol Klik pada kolom Skor\n3. Lanjutkan pada pengisian Prioritas PKB\n4. Pencetakan pada menu yg berlogo Print"]
[]
[{"$nulls":6},"Guru Mapel/Kelas",null,"Wk. Kurikulum",null,"Wk. Humas"]
[]
[{"$nulls":6},"Guru BK",null,"Wk. Kesiswaan",null,"Kepala Lab."]
[]
[{"$nulls":6},"Guru TIK",null,"Wk. Sarpras",null,"Kepala Perpus"]
{"$rows_empty":9}
[{"$nulls":4},"Prioritas \nPKB",null,"Guru Mapel/Kls",null,"Wk Kurikulum",null,"Wk Humas"]
[]
[{"$nulls":6},"Guru BK",null,"Wk Kesiswaan",null,"Kepala Lab.",null,{"$f":"TODAY()","v":"2024-10-31"}]
[{"$nulls":12},{"$f":"NOW()","v":45596.322121875}]
[{"$nulls":6},"GTIK",null,"Wk Sarpras",null,"Kepala Perpus"]
[]
[]
[{"$nulls":3},".: Copyright©Pokjawas Kemenag Gresik :."]

{"sheet":"DATA","index":1,"n_rows":53,"n_cols":24,"rows_kept":53,"merged":[[0,3,0,4],[1,1,1,9],[2,2,2,4],[2,7,2,9],[3,2,3,4],[3,7,3,9],[4,2,4,4],[4,7,4,8],[5,2,5,4],[5,7,5,9],[6,2,6,4],[6,7,6,9],[7,2,7,4],[7,7,7,9],[8,2,8,4],[8,7,8,9],[9,2,9,4],[9,7,9,9],[10,7,10,9],[11,7,11,9],[12,7,12,9],[13,7,13,9],[16,2,16,4],[16,7,16,9],[17,2,17,4],[17,7,17,9],[18,2,18,4],[18,7,18,9],[19,2,19,4],[19,7,19,9],[20,2,20,4],[20,7,20,9],[21,2,21,4],[21,7,21,9]]}
[null,"PKG AWAL : ",null,"PKG : ",null,"V",{"$nulls":6},"Guru Mapel/Kelas",{"$f":"IF(H3=M1,1,IF(H3=M2,2,IF(H3=M3,3,\"\")))","v":1}]
[null,"A. IDENTITAS GURU KELAS, MAPEL, GURU TIK DAN BIMBINGAN KONSELING",{"$nulls":10},"Guru BK"]
[null,"Nama Guru","NINA HERLINA, S.Pd",{"$nulls":3},"Jenis Guru","Guru Mapel/Kelas",{"$nulls":4},"Guru TIK",null,null,"Januari",1,null,1980,"JENIS KELAMIN","PANGKAT/GOL","JENIS GURU","TUGAS TAMBAHAN","MAPEL"]
[null,"NIP","-",{"$nulls":3},"NUPTK/NRG","12345678987",{"$nulls":4},"Tanggal Penilaian",null,null,"Februari",2,null,1981,"Laki-laki","Penata Muda, III/a","Guru Mapel/Kelas","Kepala Madrasah","Qur'an Hadis"]
[null,"Nomor Seri Karpeg",{"$nulls":4},"Mata Pelajaran / Kelas","SKI",null,"VII",null,null,{"$f":"$C$13&\" \"&$D$13&\" \"&$E$13","v":"16 Oktober 2024"},null,null,"Maret",3,null,1982,"Perempuan","Penata Muda Tk. I, III/b","Guru BK","Waka Kurikulum/Akademik","Akidah Akhlak"]
[null,"Jenis Kelamin","Perempuan",{"$nulls":3},"Jumlah Jam Mengajar","24",{"$nulls":7},"April",4,null,1983,null,"Penata, III/c","Guru TIK","Waka Kesiswaan","Fikih"]
[null,"Tempat Lahir","SERANG",{"$nulls":3},"Tugas Tambahan 1",{"$nulls":8},"Mei",5,null,1984,null,"Penata Tk. I, III/d",null,"Waka Humas","SKI"]
[null,"Tanggal Lahir","1988-03-25","1993-09-24","1993-09-24",null,"Tugas Tambahan 2","-",{"$nulls":4},"AK Komulatif minimal",{"$f":"IF($C$10=\"Penata Muda, III/a\",50,IF($C$10=\"Penata Muda Tk. I, III/b\",50,IF($C$10=\"Penata, III/c\",100,IF($C$10=\"Penata Tk. I, III/d\",100,IF($C$10=\"Pembina, IV/a\",150,IF($C$10=\"Pembina Tk. I, IV/b\",150,IF($C$10=\"Pembina Utama Muda, IV/c\",150,IF($C$10=\"Pembina Utama Madya, IV/d\",200,IF($C$10=\"Pembina Utama, IV/e\",200,\"\")))))))))","v":100},null,"Juni",6,null,1985,null,"Pembina, IV/a",null,"Waka Sarpras","PPKn"]
[null,"Pendidikan Terakhir","S-1",{"$nulls":3},"Tugas Tambahan 3","-",{"$nulls":4},"AK Pengembangan Diri",{"$f":"IF($C$10=\"Penata Muda, III/a\",3,IF($C$10=\"Penata Muda Tk. I, III/b\",3,IF($C$10=\"Penata, III/c\",3,IF($C$10=\"Penata Tk. I, III/d\",4,IF($C$10=\"Pembina, IV/a\",4,IF($C$10=\"Pembina Tk. I, IV/b\",4,IF($C$10=\"Pembina Utama Muda, IV/c\",5,IF($C$10=\"Pembina Utama Madya, IV/d\",5,IF($C$10=\"Pembina Utama, IV/e\",5,\"\")))))))))","v":3},null,"Juli",7,null,1986,null,"Pembina Tk. I, IV/b",null,"Kepala Perpustakaan","Bahasa Indonesia"]
[null,"Pangkat/\nGolongan","Penata, III/c",{"$nulls":3},"Tugas di Lembaga Lain","-",{"$nulls":4},"AK Publikasi Ilmiah/Karya InovatIf",{"$f":"IF($C$10=\"Penata Muda, III/a\",0,IF($C$10=\"Penata Muda Tk. I, III/b\",4,IF($C$10=\"Penata, III/c\",6,IF($C$10=\"Penata Tk. I, III/d\",8,IF($C$10=\"Pembina, IV/a\",12,IF($C$10=\"Pembina Tk. I, IV/b\",12,IF($C$10=\"Pembina Utama Muda, IV/c\",14,IF($C$10=\"Pembina Utama Madya, IV/d\",14,IF($C$10=\"Pembina Utama, IV/e\",14,\"\")))))))))","v":6},null,"Agustus",8,null,1987,null,"Pembina Utama Muda, IV/c",null,"Kepala Laboratorium","Bahasa & Sastra Indonesia"]
[null,"TMT Golongan",9,"Juli",2021,null,"Jumlah Jam di Lembaga Lain","0",{"$nulls":4},"AK Unsur Penunjang",{"$f":"IF($C$10=\"Penata Muda, III/a\",5,IF($C$10=\"Penata Muda Tk. I, III/b\",5,IF($C$10=\"Penata, III/c\",10,IF($C$10=\"Penata Tk. I, III/d\",10,IF($C$10=\"Pembina, IV/a\",15,IF($C$10=\"Pembina Tk. I, IV/b\",15,IF($C$10=\"Pembina Utama Muda, IV/c\",15,IF($C$10=\"Pembina Utama Madya, IV/d\",20,IF($C$10=\"Pembina Utama, IV/e\",20,\"\")))))))))","v":10},null,"September",9,null,1988,null,"Pembina Utama Madya, IV/d",null,null,"Bahasa Arab"]
[null,"TMT sebagai Guru",9,"Juli",2021,null,"Nama Penilai","Nasuhi, S.Pd.I",{"$nulls":7},"Oktober",10,null,1989,null,"Pembina Utama, IV/e",null,null,"Bahasa Inggris"]
[null,"Tanggal Penilaian",16,"Oktober",2024,null,"NIP Penilai ","lake",{"$nulls":4},"Jml Jam Tgs Tambahan 1",{"$f":"IF(H7=\"Kepala Madrasah\",24,IF(H7=\"Waka Kurikulum/Akademik\",12,IF(H7=\"Waka Kesiswaan\",12,IF(H7=\"Waka Humas\",12,IF(H7=\"Waka Sarpras\",12,IF(H7=\"Kepala Perpustakaan\",12,IF(H7=\"Kepala Perpustakaan\",12,IF(H7=\"Kepala Laboratorium\",12,\"\"))))))))","v":""},null,"November",11,null,1990,{"$nulls":4},"Matematika"]
[null,"TMT Tugas Tambahan",17,"Juli",2024,null,"Pangkat/Gol. Penilai",{"$nulls":5},"Jml Jam Tgs Tambahan 2",{"$f":"IF(H8=\"Kepala Madrasah\",24,IF(H8=\"Waka Kurikulum/Akademik\",12,IF(H8=\"Waka Kesiswaan\",12,IF(H8=\"Waka Humas\",12,IF(H8=\"Waka Sarpras\",12,IF(H8=\"Kepala Perpustakaan\",12,IF(H8=\"Kepala Perpustakaan\",12,IF(H8=\"Kepala Laboratorium\",12,\"\"))))))))","v":""},null,"Desember",12,null,1991,{"$nulls":4},"IPA"]
[null,"Tanggal laporan",23,"Oktober",2024,null,"Periode penilaian","1 Januari 2024","s.d.","31 Desember 2024",null,null,"Jml Jam Tgs Tambahan 3","",null,null,13,null,1992,{"$nulls":4},"Fisika"]
[null,"B. IDENTITAS KEPALA DAN PENGAWAS MADRASAH ",{"$nulls":10},"Jumlah",{"$f":"SUM(N13:N15)","v":0},null,null,14,null,1993,{"$nulls":4},"Biologi"]
[null,"Nama Madrasah","MTs An-Nawa",{"$nulls":3},"Alamat Madrasah (Jl/RT/RW)","Kp. Pengoreng RT.03/02",{"$nulls":8},15,null,1994,{"$nulls":4},"Kimia"]
[null,"Telp/Fax Madrasah","082274788884",{"$nulls":3},"Kelurahan/Desa","Mangunreja",{"$nulls":8},16,null,1995,{"$nulls":4},"IPS"]
[null,"Nama Kepala Madrasah","NASUHI, S.Pd.I",{"$nulls":3},"Kecamatan","Pulo Ampel",{"$nulls":8},17,null,1996,{"$nulls":4},"Sejarah"]
[null,"NIP Kepala Madrasah","-",{"$nulls":3},"Kabupaten/Kota","Serang",{"$nulls":8},18,null,1997,{"$nulls":4},"Geografi"]
[null,"Nama Pengawas Madrasah","Hj. Lila Rohilah, S.Ag., M.Pd.",{"$nulls":3},"Provinsi","Banten",{"$nulls":8},19,null,1998,{"$nulls":4},"Ekonomi"]
[null,"NIP Pengawas Madrasah","197202061998032004",{"$nulls":3},"Tahun","2024",{"$nulls":8},20,null,1999,{"$nulls":4},"Sosiologi"]
[{"$nulls":16},21,null,2000,{"$nulls":4},"Antropologi"]
[{"$nulls":16},22,null,2001,{"$nulls":4},"Bahasa Jepang"]
[{"$nulls":16},23,null,2002,{"$nulls":4},"Bahasa Mandarin"]
[{"$nulls":16},24,null,2003,{"$nulls":4},"Bahasa Jerman"]
[{"$nulls":16},25,null,2004,{"$nulls":4},"Bahasa Korea"]
[{"$nulls":16},26,null,2005,{"$nulls":4},"Tafsir - Ilmu Tafsir"]
[{"$nulls":16},27,null,2006,{"$nulls":4},"Fikih - Ilmu Fikih"]
[{"$nulls":16},28,null,2007,{"$nulls":4},"Ilmu Kalam"]
[{"$nulls":16},29,null,2008,{"$nulls":4},"Akhlak"]
[{"$nulls":16},30,null,2009,{"$nulls":4},"Seni Budaya"]
[{"$nulls":16},31,null,2010,{"$nulls":4},"PJOK"]
[{"$nulls":18},2011,{"$nulls":4},"Teknologi Informasi dan Komunikasi"]
[{"$nulls":18},2012,{"$nulls":4},"Prakarya"]
[{"$nulls":18},2013,{"$nulls":4},"Prakarya dan Kewirausahaan"]
[{"$nulls":18},2014,{"$nulls":4},"Bimbingan dan Konseling "]
[{"$nulls":18},2015,{"$nulls":4},"Tekbud Peternakan"]
[{"$nulls":18},2016,{"$nulls":4},"Tekbud Pertanian"]
[{"$nulls":18},2017,{"$nulls":4},"Tata Busana"]
[{"$nulls":18},2018,{"$nulls":4},"Tata Boga"]
[{"$nulls":18},2019,{"$nulls":4},"Bahasa Jawa"]
[{"$nulls":18},2020,{"$nulls":4},"Elektronika"]
[{"$nulls":18},2021,{"$nulls":4},"Aswaja"]
[{"$nulls":18},2022,{"$nulls":4},"Kemuhammadiyahan"]
[{"$nulls":18},2023,{"$nulls":4},"Nahwu Shorof"]
[{"$nulls":18},2024,{"$nulls":4},"Tahfidzul Qur'an"]
[{"$nulls":18},2025,{"$nulls":4},"Tematik"]
[{"$nulls":18},2026]
[{"$nulls":18},2027]
[{"$nulls":18},2028]
[{"$nulls":18},2029]
[{"$nulls":18},2030]

{"sheet":"ID GURU","index":2,"n_rows":47,"n_cols":11,"rows_kept":47,"merged":[[0,0,0,4],[1,1,1,3],[2,1,2,3],[11,8,11,10]]}
["KEMENTERIAN AGAMA KABUPATEN GRESIK"]
[null,"IDENTITAS DIRI"]
[null,"A. IDENTITAS GURU YANG DINILAI"]
[]
[null,"a.  Nama Guru",":",{"$f":"DATA!$C$3","v":"NINA HERLINA, S.Pd"},{"$nulls":3},"PENILAIAN",{"$f":"DATA!$C$13","v":16},{"$f":"DATA!$D$13","v":"Oktober"},{"$f":"DATA!$E$13","v":2024}]
[null,"NIP/No.Seri Karpeg",":",{"$f":"DATA!$C$4&\" / \"&DATA!$C$5","v":"- / "},{"$nulls":5},{"$f":"VLOOKUP($J$5,DATA!$P$3:$Q$14,2,0)","v":10}]
[null,"Tempat/Tanggal Lahir                    ",":",{"$f":"PROPER(DATA!$C$7)&\", \"&DATA!$C$8","v":"Serang, 32227"},{"$nulls":3},"TMT",{"$f":"DATA!$C$12","v":9},{"$f":"DATA!$D$12","v":"Juli"},{"$f":"DATA!$E$12","v":2021}]
[null,"Pangkat/Jabatan/Golongan",":",{"$f":"DATA!$C$10","v":"Penata, III/c"},{"$nulls":5},{"$f":"VLOOKUP($J$7,DATA!$P$3:$Q$14,2,0)","v":7}]
[null,"TMT Golongan",":",{"$f":"DATA!$C$11&\" \"&DATA!$D$11&\" \"&DATA!$E$11","v":"9 Juli 2021"},{"$nulls":4},"P-T",{"$f":"J6-J8","v":3},{"$f":"K5-K7","v":3}]
[null,"TMT sebagai guru",":",{"$f":"DATA!$C$12&\" \"&DATA!$D$12&\" \"&DATA!$E$12","v":"9 Juli 2021"},{"$nulls":4},"P<T",{"$f":"IF(J9=0,0,IF(J9<0,SUM(J9+12),IF(J9>0,J9,\"\")))","v":3},{"$f":"IF(K9=0,0,IF(J9<0,SUM(K9-1),IF(J9>=0,K9,\"\")))","v":3}]
[null,"NUPTK/NRG                                     ",":",{"$f":"DATA!$H$4","v":"12345678987"}]
[null,"Masa Kerja                                       ",":",{"$f":"I12","v":"3 Tahun 3 Bulan"},{"$nulls":3},"MASA",{"$f":"K10&\" Tahun \"&J10&\" Bulan\"","v":"3 Tahun 3 Bulan"}]
[null,"Jenis Kelamin                                   ",":",{"$f":"DATA!$C$6","v":"Perempuan"}]
[null,"Pendidikan Terakhir/Spesialisasi  ",":",{"$f":"DATA!$C$9","v":"S-1"}]
[null,"Mata Pelajaran yang diampu (Satmingkal)",":",{"$f":"DATA!$H$5","v":"SKI"}]
[null,"Jumlah Jam Mengajar per Minggu",":",{"$f":"DATA!$H$6&\" Jam Tatap Muka\"","v":"24 Jam Tatap Muka"}]
[null,"Nama Lembaga Lain untuk jam tambahan",":",{"$f":"DATA!$H$10","v":"-"}]
[null,"Jumlah Jam Tambahan di Lembaga lain",":",{"$f":"DATA!$H$11&\" Jam Tatap Muka\"","v":"0 Jam Tatap Muka"}]
[null,"Tugas Tambahan sebagai",":",{"$f":"DATA!$H$7","v":0}]
[{"$nulls":3},{"$f":"DATA!$H$8","v":"-"}]
[{"$nulls":3},{"$f":"DATA!$H$9","v":"-"}]
[null,"Jumlah Jam Total",":",{"$f":"DATA!$H$6+DATA!$H$11+DATA!$N$16&\" Jam Tatap Muka\"","v":"24 Jam Tatap Muka"}]
[null,"TMT Tugas Tambahan",":",{"$f":"DATA!$C$14&\" \"&DATA!$D$14&\" \"&DATA!$E$14","v":"17 Juli 2024"}]
[null,"b.  Nama Instansi/Madrasah",":",{"$f":"DATA!$C$17","v":"MTs An-Nawa"}]
[null,"Telp / Fax                                           ",":",{"$f":"DATA!$C$18","v":"082274788884"}]
[null,"Desa",":",{"$f":"PROPER(DATA!$H$18)","v":"Mangunreja"}]
[null,"Kecamatan  ",":",{"$f":"PROPER(DATA!$H$19)","v":"Pulo Ampel"}]
[null,"Kabupaten",":",{"$f":"PROPER(DATA!$H$20)","v":"Serang"}]
[null,"Provinsi  ",":",{"$f":"PROPER(DATA!$H$21)","v":"Banten"}]
[]
[null,"B. IDENTITAS PENILAI"]
[]
[null,"Nama Penilai",":",{"$f":"DATA!$H$12","v":"Nasuhi, S.Pd.I"}]
[null,"NIP Penilai",":",{"$f":"DATA!$H$13","v":"lake"}]
[null,"Pangkat/Jabatan/Golongan",":",{"$f":"DATA!$H$14","v":0}]
[null,"Periode Penilaian",":",{"$f":"DATA!$H$15&\"  s.d.  \"&DATA!$J$15","v":"1 Januari 2024  s.d.  31 Desember 2024"}]
[null,"Tanggal Penilaian Guru",":",{"$f":"DATA!$C$13&\" \"&DATA!$D$13&\" \"&DATA!$E$13","v":"16 Oktober 2024"}]
[]
[]
[{"$nulls":3},{"$f":"PROPER(DATA!$H$20)&\", \"&'REKAP NGR BK'!$S$10","v":"Serang, 23 Oktober 2024"}]
[null,"Penilai,",null,"Guru yang dinilai,"]
[]
[]
[]
[]
[null,{"$f":"DATA!$H$12","v":"Nasuhi, S.Pd.I"},null,{"$f":"DATA!$C$3","v":"NINA HERLINA, S.Pd"}]
[null,{"$f":"\"NIP. \"&DATA!$H$13","v":"NIP. lake"},null,{"$f":"\"NIP. \"&DATA!$C$4","v":"NIP. -"}]

{"sheet":"COVER","index":3,"n_rows":32,"n_cols":8,"rows_kept":32,"merged":[[0,0,0,12],[2,1,3,11],[20,1,20,11],[21,1,21,11],[22,1,22,11],[29,1,29,11],[30,1,30,11],[31,1,31,11],[32,1,32,11]]}
["KEMENTERIAN AGAMA KABUPATEN GRESIK"]
[]
[null,"PENILAIAN KINERJA GURU\n( PKG )"]
{"$rows_empty":9}
[null,null,"Nama",null,null,": ",{"$f":"DATA!$C$3","v":"NINA HERLINA, S.Pd"}]
[null,null,"Mata Pelajaran",null,null,":",{"$f":"DATA!$H$5","v":"SKI"}]
[null,null,"Tugas Tambahan",null,null,":","1.",{"$f":"DATA!$H$7","v":0}]
[{"$nulls":6},"2.",{"$f":"DATA!$H$8","v":"-"}]
[{"$nulls":6},"3.",{"$f":"DATA!$H$9","v":"-"}]
[]
[]
[]
[null,{"$f":"UPPER(DATA!$C$17)","v":"MTS AN-NAWA"}]
[null,{"$f":"\"KABUPATEN \"&UPPER(DATA!$H$20)","v":"KABUPATEN SERANG"}]
[null,{"$f":"\"Periode Penilaian : \"&DATA!$H$15&\"  s.d.  \"&DATA!$J$15","v":"Periode Penilaian : 1 Januari 2024  s.d.  31 Desember 2024"}]
[]
[]
[]
[]
[]
[]
[null,"MADRASAH TSANAWIYAH AN-NAWA"]
[null,"KABUPATEN SERANG"]
[null,"TAHUN 2024"]

{"sheet":"PKKM_GMP","index":4,"n_rows":146,"n_cols":14,"rows_kept":146,"merged":[[0,1,0,7],[2,2,2,6],[3,2,3,6],[4,2,4,6],[5,2,7,3],[5,4,5,6],[8,2,8,6],[15,2,15,3],[15,4,15,6],[16,2,16,3],[16,4,16,6],[17,2,17,3],[17,4,17,6],[18,2,18,6],[25,2,25,3],[25,4,25,6],[26,2,26,3],[26,4,26,6],[27,2,27,3],[27,4,27,6],[28,2,28,6],[34,2,34,3],[34,4,34,6],[35,2,35,3],[35,4,35,6],[36,2,36,3],[36,4,36,6],[37,2,37,6],[47,2,47,3],[47,4,47,6],[48,2,48,3],[48,4,48,6],[49,2,49,3],[49,4,49,6],[50,2,50,6],[56,2,56,3],[56,4,56,6],[57,2,57,3],[57,4,57,6],[58,2,58,3],[58,4,58,6],[59,2,59,6],[65,2,65,3],[65,4,65,6],[66,2,66,3],[66,4,66,6],[67,2,67,3],[67,4,67,6],[68,2,68,6],[73,2,73,3],[73,4,73,6],[74,2,74,3],[74,4,74,6],[75,2,75,3],[75,4,75,6],[76,2,77,6],[83,2,83,3],[83,4,83,6],[84,2,84,3],[84,4,84,6],[85,2,85,3],[85,4,85,6],[86,2,86,6],[92,2,92,3],[92,4,92,6],[93,2,93,3],[93,4,93,6],[94,2,94,3],[94,4,94,6],[95,2,96,6],[105,2,105,3],[105,4,105,6],[106,2,106,3],[106,4,106,6],[107,2,107,3],[107,4,107,6],[108,2,108,6],[112,2,112,3],[112,4,112,6],[113,2,113,3],[113,4,113,6],[114,2,114,3],[114,4,114,6],[115,2,115,6],[118,2,118,3],[118,4,118,6],[119,2,119,3],[119,4,119,6],[120,2,120,3],[120,4,120,6],[121,2,121,6],[125,2,125,3],[125,4,125,6],[126,2,126,3],[126,4,126,6],[127,2,127,3],[127,4,127,6],[128,2,128,6],[135,2,135,3],[135,4,135,6],[136,2,136,3],[136,4,136,6],[137,2,137,3],[137,4,137,6]]}
[null,"KEMENTERIAN AGAMA KABUPATEN GRESIK",{"$nulls":6},{"$f":"'N-GR'!C21","v":{"v":0,"d":"0.00"}}]
[{"$nulls":8},{"$f":"IF(I1=0,\"\",IF(I1>=91,\"Amat Baik\",IF(I1>=76,\"Baik\",IF(I1>=61,\"Cukup\",IF(I1>=51,\"Sedang\",IF(I1<=50,\"Kurang\"))))))","v":""}]
[null,null,"INSTRUMEN PENILAIAN KINERJA GURU"]
[null,null,{"$f":"\"Nama guru yang dinilai  : \"&DATA!$C$3","v":"Nama guru yang dinilai  : NINA HERLINA, S.Pd"}]
[null,null,{"$f":"\"Tanggal Penilaian             : \"&DATA!$C$13&\" \"&DATA!$D$13&\" \"&DATA!$E$13","v":"Tanggal Penilaian             : 16 Oktober 2024"}]
[null,null,"INDIKATOR",null,"SKOR"]
[{"$nulls":4},"Tidak ada bukti (Tidak  terpenuhi)","Terpenuhi sebagian","Seluruhnya terpenuhi"]
[{"$nulls":4},0,1,2]
[null,null,"Kompetensi 1 : Mengenal karakteristik peserta didik"]
[null,null,1,"Guru dapat mengidentifikasi karakteristik belajar setiap peserta didik di kelasnya.",{"$nulls":6},{"$f":"IF(E10=\"X\",0,\"\")","v":""},{"$f":"IF(F10=\"X\",1,\"\")","v":""},{"$f":"IF(G10=\"X\",2,\"\")","v":""},{"$f":"(SUM(K10:M10)/2)*100","v":0}]
[null,null,2,"Guru memastikan bahwa semua peserta didik mendapatkan kesempatan yang sama untuk berpartisipasi aktif dalam kegiatan pembelajaran.",{"$nulls":6},{"$f":"IF(E11=\"X\",0,\"\")","v":""},{"$f":"IF(F11=\"X\",1,\"\")","v":""},{"$f":"IF(COUNTA(E10:G10)=0,0,IF(G11=\"X\",2,\"\"))","v":0},{"$f":"(SUM(K11:M11)/2)*100","v":0}]
[null,null,3,"Guru mencoba mengetahui penyebab penyimpangan perilaku peserta didik untuk mencegah agar perilaku tersebut tidak merugikan peserta didik lainnya.",{"$nulls":6},"","","",{"$f":"(SUM(K12:M12)/2)*100","v":0}]
[{"$nulls":10},"","","",0]
[{"$nulls":10},"","","",0]
[{"$nulls":10},"","","",0]
[null,null,"Total skor untuk kompetensi 1",null,{"$f":"SUM(K10:M15)","v":0}]
[null,null,"Skor maksimum kompetensi 1 = jumlah indikator × 2",null,{"$f":"3*2","v":6}]
[null,null,"Nilai = (total skor/12) × 100%",null,{"$f":"(E16/E17)*100","v":{"v":0,"d":"0.00"}}]
[null,null,"Kompetensi 2 :  Menguasai teori belajar dan prinsip-prinsip pembelajaran"]
[null,null,1,"Guru memberi kesempatan kepada peserta didik untuk menguasai materi pembelajaran sesuai usia dan kemampuan belajarnya melalui pengaturan proses pembelajaran dan aktivitas yang bervariasi.",{"$nulls":6},{"$f":"IF(E20=\"X\",0,\"\")","v":""},{"$f":"IF(F20=\"X\",1,\"\")","v":""},{"$f":"IF(G20=\"X\",2,\"\")","v":""},0]
[null,null,2,"Guru selalu memastikan tingkat pemahaman peserta didik terhadap materi pembelajaran tertentu dan menyesuaikan aktivitas pembelajaran berikutnya berdasarkan tingkat pemahaman tersebut.",{"$nulls":6},"","","",0]
[null,null,3,"Guru dapat menjelaskan alasan pelaksanaan kegiatan/aktivitas yang dilakukannya, baik yang sesuai maupun yang berbeda dengan rencana, terkait keberhasilan pembelajaran.",{"$nulls":6},"","","",0]
[null,null,4,"Guru menggunakan berbagai teknik untuk memotiviasi kemauan belajar peserta didik.",{"$nulls":6},"","","",0]
[null,null,5,"Guru merencanakan kegiatan pembelajaran yang saling terkait satu sama lain, dengan memperhatikan tujuan pembelajaran maupun proses belajar peserta didik.",{"$nulls":6},"","","",0]
[null,null,6,"Guru memperhatikan respon peserta didik yang belum/kurang memahami materi pembelajaran yang diajarkan dan menggunakannya untuk memperbaiki rancangan pembelajaran berikutnya. ",{"$nulls":6},"","","",0]
[null,null,"Total skor untuk kompetensi 2",null,{"$f":"SUM(K20:M25)","v":0}]
[null,null,"Skor maksimum kompetensi 2 = jumlah indikator × 2",null,{"$f":"6*2","v":12}]
[null,null,"Nilai = (total skor/12) × 100%",null,{"$f":"(E26/E27)*100","v":{"v":0,"d":"0.00"}}]
[null,null,"Kompetensi 3 : Pengembangan kurikulum"]
[null,null,1,"Guru dapat menyusun silabus yang sesuai dengan kurikulum.",{"$nulls":6},{"$f":"IF(E30=\"X\",0,\"\")","v":""},{"$f":"IF(F30=\"X\",1,\"\")","v":""},{"$f":"IF(G30=\"X\",2,\"\")","v":""},{"$f":"(SUM(K30:M30)/2)*100","v":0}]
[null,null,2,"Guru merancang rencana pembelajaran yang sesuai dengan silabus untuk membahas materi ajar tertentu agar peserta didik dapat mencapai kompetensi dasar yang ditetapkan.",{"$nulls":6},{"$f":"IF(E31=\"X\",0,\"\")","v":""},{"$f":"IF(F31=\"X\",1,\"\")","v":""},{"$f":"IF(G31=\"X\",2,\"\")","v":""},0]
[null,null,3,"Guru mengembangkan materi pembelajaran untuk mencapai kompetensi dasar",{"$nulls":6},{"$f":"IF(E32=\"X\",0,\"\")","v":""},{"$f":"IF(F32=\"X\",1,\"\")","v":""},{"$f":"IF(G32=\"X\",2,\"\")","v":""},{"$f":"(SUM(K32:M32)/2)*100","v":0}]
[null,null,4,"Guru mengikuti urutan materi pembelajaran dengan memperhatikan tujuan pembelajaran.",{"$nulls":6},{"$f":"IF(E33=\"X\",0,\"\")","v":""},{"$f":"IF(F33=\"X\",1,\"\")","v":""},{"$f":"IF(G33=\"X\",2,\"\")","v":""},0]
[null,null,5,"Guru memilih materi pembelajaran yang: a) sesuai dengan tujuan pembelajaran, b) tepat dan mutakhir, c) sesuai dengan usia dan tingkat kemampuan belajar peserta didik, dan d) dapat dilaksanakan di kelas e) sesuai dengan konteks kehidupan sehari-hari peserta didik.",{"$nulls":6},{"$f":"IF(E34=\"X\",0,\"\")","v":""},{"$f":"IF(F34=\"X\",1,\"\")","v":""},{"$f":"IF(G34=\"X\",2,\"\")","v":""},0]
[null,null,"Total skor untuk kompetensi 3",null,{"$f":"SUM(K30:M34)","v":0}]
[null,null,"Skor maksimum kompetensi 3 = jumlah indikator × 2",null,{"$f":"5*2","v":10}]
[null,null,"Nilai = (total skor/8) × 100%",null,{"$f":"(E35/E36)*100","v":{"v":0,"d":"0.00"}}]
[null,null,"Kompetensi 4 : Kegiatan Pembelajaran yang Mendidik"]
[null,null,1,"Guru melaksanakan aktivitas pembelajaran sesuai dengan rancangan yang telah disusun secara lengkap (termasuk pemberian informasi baru) yang mengindikasikan bahwa guru mengerti tentang tujuannya.",{"$nulls":6},{"$f":"IF(E39=\"X\",0,\"\")","v":""},{"$f":"IF(F39=\"X\",1,\"\")","v":""},{"$f":"IF(G39=\"X\",2,\"\")","v":""},0]
[null,null,2,"Guru melaksanakan aktivitas pembelajaran yang bertujuan untuk membantu proses belajar peserta didik, bukan untuk menguji sehingga membuat peserta didik merasa tertekan.",{"$nulls":6},"","","",0]
[null,null,3,"Guru menyikapi kesalahan yang dilakukan peserta didik sebagai tahapan proses pembelajaran, bukan semata-mata kesalahan yang harus dikoreksi. Misalnya: dengan mengetahui terlebih dahulu peserta didik lain yang setuju/tidak setuju dengan jawaban tersebut, sebelum memberikan penjelasan tentang jawaban yang benar",{"$nulls":6},{"$f":"IF(E41=\"X\",0,\"\")","v":""},{"$f":"IF(F41=\"X\",1,\"\")","v":""},{"$f":"IF(G41=\"X\",2,\"\")","v":""},{"$f":"(SUM(K41:M41)/2)*100","v":0}]
[null,null,4,"Guru melaksanakan kegiatan pembelajaran sesuai isi kurikulum dan mengkaitkannya dengan konteks kehidupan sehari-hari peserta didik.",{"$nulls":6},"","","",0]
[null,null,5,"Guru melakukan aktivitas pembelajaran secara bervariasi dengan mempertimbangkan waktu, kondisi kelas, usia dan tingkat kemampuan belajar dan mempertahankan perhatian peserta didik.",{"$nulls":6},"","","",0]
[null,null,6,"Guru mengelola kelas dengan efektif tanpa mendominasi atau sibuk dengan kegiatannya sendiri agar semua waktu peserta dapat dimanfaatkan secara produktif.",{"$nulls":6},"","","",0]
[null,null,7,"Guru memberikan banyak kesempatan kepada peserta didik untuk bertanya, mempraktikkan dan berinteraksi dengan peserta didik lain",{"$nulls":6},"","","",0]
[null,null,8,"Guru mengatur pelaksanaan aktivitas pembelajaran secara sistematis untuk membantu proses belajar peserta didik. Sebagai contoh: guru menambah informasi baru setelah mengevaluasi pemahaman peserta didik terhadap materi sebelumnya",{"$nulls":6},"","","",0]
[null,null,9,"Guru menggunakan alat bantu mengajar, dan/atau audio-visual (termasuk TIK) untuk meningkatkan motivasi belajar peserta didik dalam mencapai tujuan pembelajaran.",{"$nulls":6},"","","",0]
[null,null,"Total skor untuk kompetensi 4",null,{"$f":"SUM(K39:M47)","v":0}]
[null,null,"Skor maksimum kompetensi 4 = jumlah indikator × 2",null,{"$f":"9*2","v":18}]
[null,null,"Nilai = (total skor/22) × 100%",null,{"$f":"(E48/E49)*100","v":{"v":0,"d":"0.00"}}]
[null,null,"Kompetensi 5 :  Memahami dan mengembangkan potensi "]
[null,null,1,"Guru menganalisis hasil belajar berdasarkan segala bentuk penilaian terhadap setiap peserta didik untuk mengetahui tingkat kemajuan masing-masing.",{"$nulls":6},{"$f":"IF(E52=\"X\",0,\"\")","v":""},{"$f":"IF(F52=\"X\",1,\"\")","v":""},{"$f":"IF(G52=\"X\",2,\"\")","v":""},0]
[null,null,2,"Guru merancang dan melaksanakan aktivitas pembelajaran yang mendorong peserta didik untuk belajar sesuai dengan kecakapan dan pola belajar masing-masing.",{"$nulls":6},"","","",0]
[null,null,3,"Guru merancang dan melaksanakan aktivitas pembelajaran untuk memunculkan daya kreativitas dan kemampuan berfikir kritis peserta didik.",{"$nulls":6},"","","",0]
[null,null,4,"Guru secara aktif membantu peserta didik dalam proses pembelajaran dengan memberikan perhatian kepada setiap individu.",{"$nulls":6},"","","",0]
[null,null,5,"Guru dapat mengidentifikasi dengan benar tentang bakat, minat, potensi, dan kesulitan belajar",{"$nulls":6},"","","",0]
[null,null,"Total skor untuk kompetensi 5",null,{"$f":"SUM(K52:M56)","v":0}]
[null,null,"Skor maksimum kompetensi 5 = jumlah indikator × 2",null,{"$f":"5*2","v":10}]
[null,null,"Nilai = (total skor/14) × 100%",null,{"$f":"(E57/E58)*100","v":{"v":0,"d":"0.00"}}]
[null,null,"Kompetensi 6 :  Komunikasi dengan peserta didik "]
[null,null,1," Guru menggunakan pertanyaan untuk mengetahui pemahaman dan menjaga partisipasi peserta didik, termasuk memberikan pertanyaan terbuka yang menuntut peserta didik untuk menjawab dengan ide dan pengetahuan mereka.",{"$nulls":6},{"$f":"IF(E61=\"X\",0,\"\")","v":""},{"$f":"IF(F61=\"X\",1,\"\")","v":""},{"$f":"IF(G61=\"X\",2,\"\")","v":""},0]
[null,null,2,"Guru memberikan perhatian dan mendengarkan semua pertanyaan dan tanggapan peserta didik, tanpa menginterupsi, kecuali jika diperlukan untuk membantu atau mengklarifikasi pertanyaan/tanggapan tersebut.",{"$nulls":6},"","","",0]
[null,null,3,"Guru menanggapi pertanyaan peserta didik secara tepat, benar, dan mutakhir, sesuai tujuan pembelajaran dan isi kurikulum, tanpa mempermalukannya.",{"$nulls":6},"","","",0]
[null,null,4,"Guru menyajikan kegiatan pembelajaran yang dapat menumbuhkan kerja sama yang baik antar pesertadidik.",{"$nulls":6},"","","",0]
[null,null,5,"Guru mendengarkan dan memberikan perhatian terhadap semua jawaban peserta didik ",{"$nulls":6},"","","",0]
[null,null,"Total skor untuk kompetensi 6",null,{"$f":"SUM(K61:M65)","v":0}]
[null,null,"Skor maksimum kompetensi 6 = jumlah indikator × 2",null,{"$f":"5*2","v":10}]
[null,null,"Nilai = (total skor/12) × 100%",null,{"$f":"(E66/E67)*100","v":{"v":0,"d":"0.00"}}]
[null,null,"Kompetensi 7 : Penilaian dan evaluasi"]
[null,null,1,"Guru menyusun alat penilaian yang sesuai dengan tujuan pembelajaran untuk mencapai kompetensi tertentu seperti yang tertulis dalam RPP.",{"$nulls":6},{"$f":"IF(E70=\"X\",0,\"\")","v":""},{"$f":"IF(F70=\"X\",1,\"\")","v":""},{"$f":"IF(G70=\"X\",2,\"\")","v":""},0]
[null,null,2,"Guru melaksanakan penilaian dengan berbagai teknik dan jenis penilaian, selain penilaian formal yang dilaksanakan sekolah, dan mengumumkan hasil serta implikasinya kepada peserta didik, tentang tingkat pemahaman terhadap materi pembelajaran yang telah dan akan dipelajari.",{"$nulls":6},{"$f":"IF(E71=\"X\",0,\"\")","v":""},{"$f":"IF(F71=\"X\",1,\"\")","v":""},{"$f":"IF(G71=\"X\",2,\"\")","v":""},{"$f":"(SUM(K71:M71)/2)*100","v":0}]
[null,null,3,"Guru menganalisis hasil penilaian untuk mengidentifikasi topik/kompetensi dasar yang sulit sehingga diketahui kekuatan dan kelemahan masing-masing peserta didik untuk keperluan remedial dan pengayaan.",{"$nulls":6},{"$f":"IF(E72=\"X\",0,\"\")","v":""},{"$f":"IF(F72=\"X\",1,\"\")","v":""},{"$f":"IF(G72=\"X\",2,\"\")","v":""},0]
[null,null,4,"Guru memanfaatkan masukan dari peserta didik dan merefleksikannya untuk meningkatkan pembelajaran selanjutnya, dan dapat membuktikannya melalui catatan, jurnal pembelajaran, rancangan pembelajaran, materi tambahan, dan sebagainya.",{"$nulls":6},{"$f":"IF(E73=\"X\",0,\"\")","v":""},{"$f":"IF(F73=\"X\",1,\"\")","v":""},{"$f":"IF(G73=\"X\",2,\"\")","v":""},0]
[null,null,"Total skor untuk kompetensi 7",null,{"$f":"SUM(K70:M73)","v":0}]
[null,null,"Skor maksimum kompetensi 7 = jumlah indikator × 2",null,{"$f":"4*2","v":8}]
[null,null,"Nilai = (total skor/10) × 100%",null,{"$f":"(E74/E75)*100","v":{"v":0,"d":"0.00"}}]
[null,null,"Kompetensi 8 : Bertindak sesuai dengan norma agama, hukum, sosial dan kebudayaan nasional\n                              Indonesia"]
[]
[null,null,1,"Guru menghargai dan mempromosikan prinsip-prinsip Pancasila sebagai dasar ideologi dan etika bagi semua warga Indonesia.",{"$nulls":6},{"$f":"IF(E79=\"X\",0,\"\")","v":""},{"$f":"IF(F79=\"X\",1,\"\")","v":""},{"$f":"IF(G79=\"X\",2,\"\")","v":""},0]
[null,null,2,"Guru mengembangkan kerjasama dan membina kebersamaan dengan teman sejawat tanpa memperhatikan perbedaan yang ada (misalnya: suku, agama, dan gender).",{"$nulls":6},{"$f":"IF(E80=\"X\",0,\"\")","v":""},{"$f":"IF(F80=\"X\",1,\"\")","v":""},{"$f":"IF(G80=\"X\",2,\"\")","v":""},0]
[]
[]
[]
[null,null,"Total skor untuk kompetensi 8",null,{"$f":"SUM(K79:M83)","v":0}]
[null,null,"Skor maksimum kompetensi 8 = jumlah indikator × 2",null,{"$f":"2*2","v":4}]
[null,null,"Nilai = (total skor/10) × 100%",null,{"$f":"(E84/E85)*100","v":{"v":0,"d":"0.00"}}]
[null,null,"Kompetensi 9 : Menunjukkan pribadi yang dewasa dan teladan"]
[null,null,1,"Guru bertingkah laku sopan dalam berbicara, berpenampilan, dan berbuat terhadap semua peserta didik, orang tua, dan teman sejawat.",{"$nulls":6},{"$f":"IF(E88=\"X\",0,\"\")","v":""},{"$f":"IF(F88=\"X\",1,\"\")","v":""},{"$f":"IF(G88=\"X\",2,\"\")","v":""},0]
[null,null,2,"Guru mau membagi pengalamannya dengan teman sejawat, termasuk mengundang mereka untuk mengobservasi cara mengajarnya dan memberikan masukan.",{"$nulls":6},{"$f":"IF(E89=\"X\",0,\"\")","v":""},{"$f":"IF(F89=\"X\",1,\"\")","v":""},{"$f":"IF(G89=\"X\",2,\"\")","v":""},0]
[null,null,3,"Guru mampu mengelola pembelajaran yang membuktikan bahwa guru dihormati oleh peserta didik, sehingga semua peserta didik selalu memperhatikan guru dan berpartisipasi aktif dalam proses pembelajaran.",{"$nulls":6},{"$f":"IF(E90=\"X\",0,\"\")","v":""},{"$f":"IF(F90=\"X\",1,\"\")","v":""},{"$f":"IF(G90=\"X\",2,\"\")","v":""},0]
[null,null,4,"Guru bersikap dewasa dalam menerima masukan dari peserta didik dan memberikan kesempatan kepada peserta didik untuk berpartisipasi dalam proses pembelajaran.",{"$nulls":6},{"$f":"IF(E91=\"X\",0,\"\")","v":""},{"$f":"IF(F91=\"X\",1,\"\")","v":""},{"$f":"IF(G91=\"X\",2,\"\")","v":""},0]
[null,null,5,"Guru berperilaku baik untuk mencitrakan nama baik madrasah.",{"$nulls":6},{"$f":"IF(E92=\"X\",0,\"\")","v":""},{"$f":"IF(F92=\"X\",1,\"\")","v":""},{"$f":"IF(G92=\"X\",2,\"\")","v":""},0]
[null,null,"Total skor untuk kompetensi 9",null,{"$f":"SUM(K88:M92)","v":0}]
[null,null,"Skor maksimum kompetensi 9 = jumlah indikator × 2",null,{"$f":"5*2","v":10}]
[null,null,"Nilai = (total skor/10) × 100%",null,{"$f":"(E93/E94)*100","v":{"v":0,"d":"0.00"}}]
[null,null,"Kompetensi 10 : Etos kerja, tanggung jawab yang tinggi, dan rasa bangga menjadi guru"]
[]
[null,null,1,"Guru mengawali dan mengakhiri pembelajaran dengan tepat waktu.",{"$nulls":6},{"$f":"IF(E98=\"X\",0,\"\")","v":""},{"$f":"IF(F98=\"X\",1,\"\")","v":""},{"$f":"IF(G98=\"X\",2,\"\")","v":""},0]
[null,null,2,"Jika guru harus meninggalkan kelas, guru mengaktifkan siswa dengan melakukan hal-hal produktif terkait dengan mata pelajaran, dan meminta guru piket atau guru lain untuk mengawasi kelas.",{"$nulls":6},"","","",0]
[null,null,3,"Guru memenuhi jam mengajar dan dapat melakukan semua kegiatan lain di luar jam mengajar berdasarkan ijin dan persetujuan pengelola madrasah.",{"$nulls":6},"","","",0]
[null,null,4,"Guru meminta ijin dan memberitahu lebih awal, dengan memberikan alasan dan bukti yang sah jika tidak menghadiri kegiatan yang telah direncanakan, termasuk proses pembelajaran di kelas.",{"$nulls":6},"","","",0]
[null,null,5,"Guru menyelesaikan semua tugas administratif dan non-pembelajaran dengan tepat waktu sesuai standar yang ditetapkan.",{"$nulls":6},"","","",0]
[null,null,6,"Guru memanfaatkan waktu luang selain mengajar untuk kegiatan yang produktif terkait dengan tugasnya.",{"$nulls":6},"","","",0]
[null,null,7,"Guru memberikan kontribusi terhadap pengembangan sekolah dan mempunyai prestasi yang berdampak positif terhadap nama baik sekolah.",{"$nulls":6},"","","",0]
[null,null,8,"Guru merasa bangga dengan profesinya sebagai guru.",{"$nulls":6},"","","",0]
[null,null,"Total skor untuk kompetensi 10",null,{"$f":"SUM(K98:M105)","v":0}]
[null,null,"Skor maksimum kompetensi 10 = jumlah indikator × 2",null,{"$f":"8*2","v":16}]
[null,null,"Nilai = (total skor/16) × 100%",null,{"$f":"(E106/E107)*100","v":{"v":0,"d":"0.00"}}]
[null,null,"Kompetensi 11 : Bersikap inklusif, bertindak objektif, serta tidak diskriminatif."]
[null,null,1,"Guru memperlakukan semua peserta didik secara adil, memberikan perhatian dan bantuan sesuai kebutuhan masing-masing, tanpa memperdulikan faktor personal.",{"$nulls":6},{"$f":"IF(E110=\"X\",0,\"\")","v":""},{"$f":"IF(F110=\"X\",1,\"\")","v":""},{"$f":"IF(G110=\"X\",2,\"\")","v":""},0]
[null,null,2,"Guru menjaga hubungan baik dan peduli dengan teman sejawat (bersifat inklusif), serta berkontribusi positif terhadap semua diskusi formal dan informal terkait dengan pekerjaannya.",{"$nulls":6},{"$f":"IF(E111=\"X\",0,\"\")","v":""},{"$f":"IF(F111=\"X\",1,\"\")","v":""},{"$f":"IF(G111=\"X\",2,\"\")","v":""},0]
[null,null,3," Guru sering berinteraksi dengan peserta didik dan tidak membatasi perhatiannya hanya pada kelompok tertentu (misalnya: peserta didik yang pandai, kaya, berasal dari daerah yang sama dengan guru).",{"$nulls":6},{"$f":"IF(E112=\"X\",0,\"\")","v":""},{"$f":"IF(F112=\"X\",1,\"\")","v":""},{"$f":"IF(G112=\"X\",2,\"\")","v":""},0]
[null,null,"Total skor untuk kompetensi 11",null,{"$f":"SUM(K110:M112)","v":0}]
[null,null,"Skor maksimum kompetensi 11 = jumlah indikator × 2",null,{"$f":"3*2","v":6}]
[null,null,"Nilai = (total skor/ 6) × 100%",null,{"$f":"(E113/E114)*100","v":{"v":0,"d":"0.00"}}]
[null,null,"Kompetensi 12 : Komunikasi dengan sesama guru, tenaga pendidikan, orang tua peserta didik, dan\n                                 masyarakat"]
[null,null,1,"Guru menyampaikan informasi tentang kemajuan, kesulitan, dan potensi peserta didik kepada orang tuanya, baik dalam pertemuan formal maupun tidak formal antara guru dan orang tua, teman sejawat, dan dapat menunjukkan buktinya.",{"$nulls":6},{"$f":"IF(E117=\"X\",0,\"\")","v":""},{"$f":"IF(F117=\"X\",1,\"\")","v":""},{"$f":"IF(G117=\"X\",2,\"\")","v":""},0]
[null,null,2,"Guru ikut berperan aktif dalam kegiatan di luar pembelajaran yang diselenggarakan oleh sekolah dan masyarakat dan dapat memberikan bukti keikutsertaannya.",{"$nulls":6},{"$f":"IF(E118=\"X\",0,\"\")","v":""},{"$f":"IF(F118=\"X\",1,\"\")","v":""},{"$f":"IF(G118=\"X\",2,\"\")","v":""},0]
[null,null,"Total skor untuk kompetensi 12",null,{"$f":"SUM(K117:M118)","v":0}]
[null,null,"Skor maksimum kompetensi 12 = jumlah indikator × 2",null,{"$f":"2*2","v":4}]
[null,null,"Nilai = (total skor/ 6) × 100%",null,{"$f":"(E119/E120)*100","v":{"v":0,"d":"0.00"}}]
[null,null,"Kompetensi 13 : Penguasaan materi struktur konsep dan pola pikir keilmuan yang  mendukung mata\n                                 pelajaran yang diampu."]
[null,null,1,"Guru mengintegrasikan materi pembelajaran dengan konsep- konsep yang terdapat di dalam Al Qur’an dan Hadits.",{"$nulls":6},{"$f":"IF(E123=\"X\",0,\"\")","v":""},{"$f":"IF(F123=\"X\",1,\"\")","v":""},{"$f":"IF(G123=\"X\",2,\"\")","v":""},0]
[null,null,2,"Guru melakukan pemetaan standar kompetensi dan kompetensi dasar untuk mata pelajaran yang diampunya, untuk mengidentifikasi materi pembelajaran yang dianggap sulit, melakukan perencanaan dan pelaksanaan pembelajaran, dan memperkirakan alokasi waktu yang diperlukan.",{"$nulls":6},{"$f":"IF(E124=\"X\",0,\"\")","v":""},{"$f":"IF(F124=\"X\",1,\"\")","v":""},{"$f":"IF(G124=\"X\",2,\"\")","v":""},0]
[null,null,3,"Guru menyusun materi, perencanaan dan pelaksanaan pembelajaran yang berisi informasi yang tepat, mutakhir, dan yang membantu peserta didik untuk memahami konsep materi pembelajaran.",{"$nulls":6},{"$f":"IF(E125=\"X\",0,\"\")","v":""},{"$f":"IF(F125=\"X\",1,\"\")","v":""},{"$f":"IF(G125=\"X\",2,\"\")","v":""},0]
[null,null,"Total skor untuk kompetensi 13",null,{"$f":"SUM(K123:M125)","v":0}]
[null,null,"Skor maksimum kompetensi 13 = jumlah indikator × 2",null,{"$f":"3*2","v":6}]
[null,null,"Nilai = (total skor/ 6) × 100%",null,{"$f":"(E126/E127)*100","v":{"v":0,"d":"0.00"}}]
[null,null,"Kompetensi 14 : Mengembangkan keprofesian melalui tindakan reflektif"]
[null,null,1,"Guru melakukan evaluasi diri secara spesifik, lengkap, dan  didukung dengan contoh pengalaman diri sendiri.",{"$nulls":6},{"$f":"IF(E130=\"X\",0,\"\")","v":""},{"$f":"IF(F130=\"X\",1,\"\")","v":""},{"$f":"IF(G130=\"X\",2,\"\")","v":""},0]
[null,null,2,"Guru memiliki jurnal pembelajaran, catatan masukan dari kolega atau hasil penilaian proses pembelajaran sebagai bukti yang menggambarkan kinerjanya.",{"$nulls":6},"","","",0]
[null,null,3,"Guru memanfaatkan bukti gambaran kinerjanya untuk mengembangkan  perencanaan dan pelaksanaan pembelajaran selanjutnya dalam program Pengembangan Keprofesian Berkelanjutan (PKB).",{"$nulls":6},"","","",0]
[null,null,4,"Guru dapat mengaplikasikan pengalaman PKB dalam perencanaan, pelaksanaan, penilaian pembelajaran dan tindak lanjutnya.",{"$nulls":6},"","","",{"$f":"(SUM(K133:M133)/2)*100","v":0}]
[null,null,5,"Guru melakukan penelitian, mengembangkan karya inovasi, mengikuti kegiatan ilmiah (misalnya seminar, konferensi), dan aktif dalam melaksanakan PKB.",{"$nulls":6},"","","",{"$f":"(SUM(K134:M134)/2)*100","v":0}]
[null,null,6,"Guru dapat memanfaatkan TIK dalam berkomunikasi dan pelaksanaan PKB.",{"$nulls":6},"","","",{"$f":"(SUM(K135:M135)/2)*100","v":0}]
[null,null,"Total skor untuk kompetensi 14",null,{"$f":"SUM(K130:M135)","v":0}]
[null,null,"Skor maksimum kompetensi 14 = jumlah indikator × 2",null,{"$f":"6*2","v":12},{"$nulls":8},{"$f":"COUNTA(N10:N135)","v":69}]
[null,null,"Nilai = (total skor/ 12) × 100%",null,{"$f":"(E136/E137)*100","v":{"v":0,"d":"0.00"}}]
[]
[{"$nulls":4},{"$f":"DATA!$H$20&\", \"&DATA!$C$13&\" \"&DATA!$D$13&\" \"&DATA!$E$13","v":"Serang, 16 Oktober 2024"}]
[{"$nulls":3},"Penilai,","Guru yang dinilai,"]
[]
[]
[]
[{"$nulls":3},{"$f":"DATA!$H$12","v":"Nasuhi, S.Pd.I"},{"$f":"DATA!$C$3","v":"NINA HERLINA, S.Pd"}]
[{"$nulls":3},{"$f":"\"NIP. \"&DATA!$H$13","v":"NIP. lake"},{"$f":"\"NIP. \"&DATA!$C$4","v":"NIP. -"}]

{"sheet":"PKKM_BK","index":5,"n_rows":166,"n_cols":14,"rows_kept":166,"merged":[[0,1,0,7],[2,2,2,6],[3,2,3,6],[4,2,4,6],[5,2,7,3],[5,4,5,6],[8,2,8,6],[12,2,12,3],[12,4,12,6],[13,2,13,3],[13,4,13,6],[14,2,14,3],[14,4,14,6],[15,2,15,6],[19,2,19,3],[19,4,19,6],[20,2,20,3],[20,4,20,6],[21,2,21,3],[21,4,21,6],[22,2,22,6],[26,2,26,3],[26,4,26,6],[27,2,27,3],[27,4,27,6],[28,2,28,3],[28,4,28,6],[29,2,29,6],[34,2,34,3],[34,4,34,6],[35,2,35,3],[35,4,35,6],[36,2,36,3],[36,4,36,6],[37,2,37,6],[42,2,42,3],[42,4,42,6],[43,2,43,3],[43,4,43,6],[44,2,44,3],[44,4,44,6],[45,2,45,6],[49,2,49,3],[49,4,49,6],[50,2,50,3],[50,4,50,6],[51,2,51,3],[51,4,51,6],[52,2,52,6],[56,2,56,3],[56,4,56,6],[57,2,57,3],[57,4,57,6],[58,2,58,3],[58,4,58,6],[59,2,59,6],[64,2,64,3],[64,4,64,6],[65,2,65,3],[65,4,65,6],[66,2,66,3],[66,4,66,6],[67,2,67,6],[70,2,70,3],[70,4,70,6],[71,2,71,3],[71,4,71,6],[72,2,72,3],[72,4,72,6],[73,2,73,6],[77,2,77,3],[77,4,77,6],[78,2,78,3],[78,4,78,6],[79,2,79,3],[79,4,79,6],[80,2,80,6],[88,2,88,3],[88,4,88,6],[89,2,89,3],[89,4,89,6],[90,2,90,3],[90,4,90,6],[91,2,91,6],[98,2,98,3],[98,4,98,6],[99,2,99,3],[99,4,99,6],[100,2,100,3],[100,4,100,6],[101,2,101,6],[106,2,106,3],[106,4,106,6],[107,2,107,3],[107,4,107,6],[108,2,108,3],[108,4,108,6],[109,2,109,6],[114,2,114,3],[114,4,114,6],[115,2,115,3],[115,4,115,6],[116,2,116,3],[116,4,116,6],[117,2,117,6],[122,2,122,3],[122,4,122,6],[123,2,123,3],[123,4,123,6],[124,2,124,3],[124,4,124,6],[125,2,125,6],[133,2,133,3],[133,4,133,6],[134,2,134,3],[134,4,134,6],[135,2,135,3],[135,4,135,6],[136,2,136,6],[141,2,141,3],[141,4,141,6],[142,2,142,3],[142,4,142,6],[143,2,143,3],[143,4,143,6]]}
[null,"KEMENTERIAN AGAMA KABUPATEN GRESIK",{"$nulls":6},{"$f":"'N-GR'!D21","v":{"v":0,"d":"0.00"}}]
[{"$nulls":8},{"$f":"IF(I1=0,\"\",IF(I1>=91,\"Amat Baik\",IF(I1>=76,\"Baik\",IF(I1>=61,\"Cukup\",IF(I1>=51,\"Sedang\",IF(I1<=50,\"Kurang\"))))))","v":""}]
[null,null,"INSTRUMEN PENILAIAN KINERJA GURU BK"]
[null,null,{"$f":"\"Nama guru yang dinilai : \"&DATA!$C$3","v":"Nama guru yang dinilai : NINA HERLINA, S.Pd"}]
[null,null,{"$f":"\"Tanggal Penilaian           : \"&DATA!$C$13&\" \"&DATA!$D$13&\" \"&DATA!$E$13","v":"Tanggal Penilaian           : 16 Oktober 2024"}]
[null,null,"INDIKATOR",null,"SKOR"]
[{"$nulls":4},"Tidak ada bukti (Tidak  terpenuhi)","Terpenuhi sebagian","Seluruhnya terpenuhi"]
[{"$nulls":4},0,1,2]
[null,null,"Kompetensi 1 : Menguasai teori dan praksis pendidikan"]
[null,null,1,"Guru BK/Konselor dapat menunjukkan dalam perencanaan layanan BK, sesuai dengan landasan dan prinsip-prinsip pendidikan serta pembelajaran yang aktif, kreatif, mandiri, dan berpusat pada peserta didik/konseli.",{"$nulls":6},{"$f":"IF(E10=\"X\",0,\"\")","v":""},{"$f":"IF(F10=\"X\",1,\"\")","v":""},{"$f":"IF(G10=\"X\",2,\"\")","v":""},{"$f":"(SUM(K10:M10)/2)*100","v":0}]
[null,null,2,"Guru BK/Konselor dapat menunjukkan dalam perencanaan layanan BK, sesuai dengan usia, tahap perkembangan, dan kebutuhan peserta didik/ konseli.",{"$nulls":6},{"$f":"IF(E11=\"X\",0,\"\")","v":""},{"$f":"IF(F11=\"X\",1,\"\")","v":""},{"$f":"IF(G11=\"X\",2,\"\")","v":""},{"$f":"(SUM(K11:M11)/2)*100","v":0}]
[null,null,3,"Guru BK/Konselor dapat menunjukkan dalam perencanaan layanan BK, sesuai dengan keragaman latar belakang budaya, ekonomi, dan sosial peserta didik/konseli.",{"$nulls":6},{"$f":"IF(E12=\"X\",0,\"\")","v":""},{"$f":"IF(F12=\"X\",1,\"\")","v":""},{"$f":"IF(G12=\"X\",2,\"\")","v":""},{"$f":"(SUM(K12:M12)/2)*100","v":0}]
[null,null,"Total skor untuk kompetensi 1",null,{"$f":"SUM(K10:M12)","v":0}]
[null,null,"Skor maksimum kompetensi 1 = jumlah indikator × 2",null,6]
[null,null,"Persentase = (total skor/6) × 100%",null,{"$f":"(E13/E14)*100","v":{"v":0,"d":"0.00"}}]
[null,null,"Kompetensi 2 : Mengaplikasikan perkembangan fisiologis dan psikologis serta perilaku konseli"]
[null,null,1,"Peserta didik/konseli diberi kesempatan dalam memperoleh layanan BK sesuai dengan jalur satuan pendidikan formal di lingkup kementerian agama",{"$nulls":5}," ",{"$f":"IF(E17=\"X\",0,\"\")","v":""},{"$f":"IF(F17=\"X\",1,\"\")","v":""},{"$f":"IF(G17=\"X\",2,\"\")","v":""},{"$f":"(SUM(K17:M17)/2)*100","v":0}]
[null,null,2,"Peserta didik/konseli diberi kesempatan dalam memperoleh layanan BK sesuai dengan kebutuhan bakat, minat, dan potensi pribadi.",{"$nulls":6},"","","",0]
[null,null,3,"Peserta didik/konseli diberi kesempatan dalam memperoleh layanan BK sesuai dengan harapan untuk melanjutkan pendidikan dan pilihan karier.",{"$nulls":6},"","","",0]
[null,null,"Total skor untuk kompetensi 2",null,{"$f":"SUM(K17:M19)","v":0}]
[null,null,"Skor maksimum kompetensi 2 = jumlah indikator × 2",null,6]
[null,null,"Nilai = (total skor/6) × 100%",null,{"$f":"(E20/E21)*100","v":{"v":0,"d":"0.00"}}]
[null,null,"Kompetensi 3 : Menguasai esensi layanan BK dalam jalur, jenis, dan jenjang satuan pendidikan"]
[null,null,1,"Layanan BK yang diprogramkan oleh guru BK/ Konselor telah memenuhi esensi layanan pada jalur satuan pendidikan formal, nonformal dan informal.",{"$nulls":6},{"$f":"IF(E24=\"X\",0,\"\")","v":""},{"$f":"IF(F24=\"X\",1,\"\")","v":""},{"$f":"IF(G24=\"X\",2,\"\")","v":""},{"$f":"(SUM(K24:M24)/2)*100","v":0}]
[null,null,2,"Layanan BK yang diprogramkan oleh guru BK/ Konselor telah memenuhi esensi layanan pada jenis satuan pendidikan umum, kejuruan, keagamaan, dan kekhususan",{"$nulls":5}," ","","","",0]
[null,null,3," Layanan BK yang diprogramkan oleh guru BK/ Konselor telah memenuhi esensi layanan pada jenjang Ibtidaiyah, Tsanawiyah, dan Aliyah",{"$nulls":6},"","","",0]
[null,null,"Total skor untuk kompetensi 3",null,{"$f":"SUM(K24:M26)","v":0}]
[null,null,"Skor maksimum kompetensi 3 = jumlah indikator × 2",null,6]
[null,null,"Nilai = (total skor/12) × 100%",null,{"$f":"(E27/E28)*100","v":{"v":0,"d":"0.00"}}]
[null,null,"Kompetensi 4 : Beriman dan bertakwa kepada Tuhan Yang Maha Esa"]
[null,null,1,"Guru BK/Konselor berpenampilan rapih dan bersih.",{"$nulls":6},{"$f":"IF(E31=\"X\",0,\"\")","v":""},{"$f":"IF(F31=\"X\",1,\"\")","v":""},{"$f":"IF(G31=\"X\",2,\"\")","v":""},{"$f":"(SUM(K31:M31)/2)*100","v":0}]
[null,null,2,"Guru BK/Konselor berbicara dengan santun dan jujur kepada peserta didik/konseli.",{"$nulls":5}," ","","","",0]
[null,null,3,"Guru BK/Konselor bersikap dan mendorong kepada peserta didik/konseli untuk bersikap toleran.",{"$nulls":6},"","","",0]
[null,null,4,"Guru BK/Konselor memperlihatkan konsistensi dan memotivasi peserta didik/konseli dalam melaksanakan ibadah.",{"$nulls":6},"","","",0]
[null,null,"Total skor untuk kompetensi 4",null,{"$f":"SUM(K31:M34)","v":0}]
[null,null,"Skor maksimum kompetensi 4 = jumlah indikator × 2",null,8]
[null,null,"Nilai = (total skor/12) × 100%",null,{"$f":"(E35/E36)*100","v":{"v":0,"d":"0.00"}}]
[null,null,"Kompetensi 5 : Menghargai dan menjunjung tinggi nilai-nilai kemanusiaan, individualitas dan\n                              kebebasan memilih"]
[null,null,1,"Guru BK/Konselor merencanakan layanan BK yang mengacu kepada pengaplikasian pandangan dinamis tentang manusia sebagai mahluk bermoral spiritual, sosial, & individu.",{"$nulls":6},{"$f":"IF(E39=\"X\",0,\"\")","v":""},{"$f":"IF(F39=\"X\",1,\"\")","v":""},{"$f":"IF(G39=\"X\",2,\"\")","v":""},{"$f":"(SUM(K39:M39)/2)*100","v":0}]
[null,null,2," Pelayanan BK yang dirancang oleh Guru BK/Konselor mendorong kepada pengembangan potensi positif individu.",{"$nulls":6},"","","",0]
[null,null,3,"Rancangan pelayanan BK mengacu kepada kebutuhan dan masukan balik peserta didik/konseli.",{"$nulls":6},"","","",0]
[null,null,4,"Pelayanan BK dirancang untuk mengembangkan sikap toleran dalam menjunjung hak azasi manusia pada peserta didik/konseli.",{"$nulls":6},"","","",0]
[null,null,"Total skor untuk kompetensi 5",null,{"$f":"SUM(K39:M42)","v":0}]
[null,null,"Skor maksimum kompetensi 5 = jumlah indikator × 2",null,8]
[null,null,"Nilai = (total skor/12) × 100%",null,{"$f":"(E43/E44)*100","v":{"v":0,"d":"0.00"}}]
[null,null,"Kompetensi 6 : Menunjukkan integritas dan stabilitas kepribadian yang kuat"]
[null,null,1,"Guru BK/Konselor menunjukkan kepribadian, kestabilan emosi dan perilaku yang terpuji, jujur, sabar, ramah, dan konsisten.",{"$nulls":6},{"$f":"IF(E47=\"X\",0,\"\")","v":""},{"$f":"IF(F47=\"X\",1,\"\")","v":""},{"$f":"IF(G47=\"X\",2,\"\")","v":""},{"$f":"(SUM(K47:M47)/2)*100","v":0}]
[null,null,2,"Guru BK/Konselor menunjukkan kepekaan dan bersikap empati terhadap keragaman dan perubahan.",{"$nulls":6},{"$f":"IF(E48=\"X\",0,\"\")","v":""},{"$f":"IF(F48=\"X\",1,\"\")","v":""},{"$f":"IF(G48=\"X\",2,\"\")","v":""},{"$f":"(SUM(K48:M48)/2)*100","v":0}]
[null,null,3,"Guru BK/Konselor menampilkan toleransi tinggi terhadap peserta didik/konseli yang menghadapi tress dan frustasi.",{"$nulls":6},"","","",0]
[null,null,"Total skor untuk kompetensi 6",null,{"$f":"SUM(K47:M49)","v":0}]
[null,null,"Skor maksimum kompetensi 6 = jumlah indikator × 2",null,6]
[null,null,"Nilai = (total skor/12) × 100%",null,{"$f":"(E50/E51)*100","v":{"v":0,"d":"0.00"}}]
[null,null,"Kompetensi 7 : Menampilkan kinerja berkualitas tinggi"]
[null,null,1,"Guru BK/Konselor memotivasi peserta didik/konseli untuk berpartisipasi aktif dalam layanan BK yang diberikan.",{"$nulls":6},{"$f":"IF(E54=\"X\",0,\"\")","v":""},{"$f":"IF(F54=\"X\",1,\"\")","v":""},{"$f":"IF(G54=\"X\",2,\"\")","v":""},{"$f":"(SUM(K54:M54)/2)*100","v":0}]
[null,null,2,"Guru BK/Konselor melaksanakan pelayanan BK yang efektif sesuai dengan rancangan untuk mencapai tujuan pelayanan BK dalam waktu yang tersedia.",{"$nulls":6},{"$f":"IF(E55=\"X\",0,\"\")","v":""},{"$f":"IF(F55=\"X\",1,\"\")","v":""},{"$f":"IF(G55=\"X\",2,\"\")","v":""},{"$f":"(SUM(K55:M55)/2)*100","v":0}]
[null,null,3,"Guru BK/Konselor melaksanakan tugas layanan BK secara mandiri, disiplin, dan semangat agar peserta didik/konseli berpartisipasi secara aktif.",{"$nulls":6},"","","",0]
[null,null,"Total skor untuk kompetensi 7",null,{"$f":"SUM(K54:M56)","v":0}]
[null,null,"Skor maksimum kompetensi 7 = jumlah indikator × 2",null,6]
[null,null,"Nilai = (total skor/12) × 100%",null,{"$f":"(E57/E58)*100","v":{"v":0,"d":"0.00"}}]
[null,null,"Kompetensi 8 : Mengimplementasikan kolaborasi internal di tempat bekerja"]
[null,null,1,"Guru BK/Konselor merencanakan pelayanan BK dengan menyertakan pihak-pihak terkait di madrasah.",{"$nulls":6},{"$f":"IF(E61=\"X\",0,\"\")","v":""},{"$f":"IF(F61=\"X\",1,\"\")","v":""},{"$f":"IF(G61=\"X\",2,\"\")","v":""},{"$f":"(SUM(K61:M61)/2)*100","v":0}]
[null,null,2,"Guru BK/Konselor melakukan kerjasama dengan pihak pihak terkait dalam melaksanakan pelayanan BK di madrasah.",{"$nulls":6},{"$f":"IF(E62=\"X\",0,\"\")","v":""},{"$f":"IF(F62=\"X\",1,\"\")","v":""},{"$f":"IF(G62=\"X\",2,\"\")","v":""},{"$f":"(SUM(K62:M62)/2)*100","v":0}]
[null,null,3,"Guru BK/Konselor dapat menunjukkan bukti bagaimana menjelaskan program dan hasil layanan BK kepada pihak-pihak terkait di sekolah.",{"$nulls":6},"","","",0]
[null,null,4,"Guru BK/Konselor dapat menunjukkan bukti permintaan guru lain untuk membantu penyelesaian permasalahan layanan.",{"$nulls":6},{"$f":"IF(E64=\"X\",0,\"\")","v":""},{"$f":"IF(F64=\"X\",1,\"\")","v":""},{"$f":"IF(G64=\"X\",2,\"\")","v":""},{"$f":"(SUM(K64:M64)/2)*100","v":0}]
[null,null,"Total skor untuk kompetensi 8",null,{"$f":"SUM(K61:M64)","v":0}]
[null,null,"Skor maksimum kompetensi 8 = jumlah indikator × 2",null,8]
[null,null,"Nilai = (total skor/12) × 100%",null,{"$f":"(E65/E66)*100","v":{"v":0,"d":"0.00"}}]
[null,null,"Kompetensi 9 :  Berperan dalam organisasi dan kegiatan profesi BK"]
[null,null,1,"Guru BK/Konselor berpartisipasi aktif dalam proses pengembangan diri melalui organisasi profesi guru BK/Konselor.",{"$nulls":6},{"$f":"IF(E69=\"X\",0,\"\")","v":""},{"$f":"IF(F69=\"X\",1,\"\")","v":""},{"$f":"IF(G69=\"X\",2,\"\")","v":""},{"$f":"(SUM(K69:M69)/2)*100","v":0}]
[null,null,2,"Guru BK/Konselor dapat memanfaatkan organisasi profesi BK/Konselor untuk membangun kolaborasi dalam pengembangan program BK.",{"$nulls":6},"","","",0]
[null,null,"Total skor untuk kompetensi 9",null,{"$f":"SUM(K69:M70)","v":0}]
[null,null,"Skor maksimum kompetensi 9 = jumlah indikator × 2",null,4]
[null,null,"Nilai = (total skor/12) × 100%",null,{"$f":"(E71/E72)*100","v":{"v":0,"d":"0.00"}}]
[null,null,"Kompetensi 10 : Mengimplementasikan kolaborasi antarprofesi"]
[null,null,1,"Guru BK/Konselor dapat menunjukkan bukti melakukan interaksi dengan organisasi profesi lain.",{"$nulls":6},{"$f":"IF(E75=\"X\",0,\"\")","v":""},{"$f":"IF(F75=\"X\",1,\"\")","v":""},{"$f":"IF(G75=\"X\",2,\"\")","v":""},{"$f":"(SUM(K75:M75)/2)*100","v":0}]
[null,null,2,"Guru BK/Konselor dapat berkolaborasi dengan institusi atau profesi lain untuk mencapai tujuan pelayanan BK.",{"$nulls":6},"","","",0]
[null,null,3,"Guru BK/Konselor dapat melakukan referal kepada ahli lain untuk membantu penyelesaian permasalahan peserta didik/konseli sesuai kebutuhan",{"$nulls":6},"","","",0]
[null,null,"Total skor untuk kompetensi 10",null,{"$f":"SUM(K75:M77)","v":0}]
[null,null,"Skor maksimum kompetensi 10 = jumlah indikator × 2",null,6]
[null,null,"Nilai = (total skor/12) × 100%",null,{"$f":"(E78/E79)*100","v":{"v":0,"d":"0.00"}}]
[null,null,"Kompetensi 11 : Menguasai konsep dan praksis penilaian (assessment) untuk memahami kondisi, \n                                 kebutuhan, dan masalah konseli"]
[null,null,1,"Guru BK/Konselor dapat mengembangkan instrumen non-tes (pedoman wawancara, angket, inventori, dll) untuk keperluan pelayanan BK.",{"$nulls":6},{"$f":"IF(E82=\"X\",0,\"\")","v":""},{"$f":"IF(F82=\"X\",1,\"\")","v":""},{"$f":"IF(G82=\"X\",2,\"\")","v":""},{"$f":"(SUM(K82:M82)/2)*100","v":0}]
[null,null,2,"Guru BK/Konselor dapat mengaplikasikan instrumen non-tes untuk mengungkapkan kondisi aktual peserta didik/konseli berkaitan dengan lingkungan.",{"$nulls":6},"","","",0]
[null,null,3,"Guru BK/Konselor dapat mendeskripsikan penilaian yang digunakan dalam pelayanan BK yang sesuai dengan kebutuhan peserta didik/konseli.",{"$nulls":6},"","","",0]
[null,null,4,"Guru BK/Konselor dapat memilih jenis penilaian (Instrumen Tugas Perkembangan/ITP, Alat Ungkap Masalah/AUM, Daftar Cek Masalah/DCM, atau instrumen non-tes lainnya) yang sesuai dengan kebutuhan layanan bimbingan dan konseling.",{"$nulls":6},"","","",0]
[null,null,5,"Guru BK/Konselor dapat mengadministrasikan penilaian (merencanakan, melaksanakan, mengolah data) untuk mengungkapkan kemampuan dasar dan  kecenderungan pribadi peserta didik/konseli.",{"$nulls":6},"","","",0]
[null,null,6,"Guru BK/Konselor dapat mengadministrasikan teknik  penilaian (data catatan pribadi, kemampuan akademik, hasil evaluasi belajar, dan hasil psikotes) untuk mengungkap   masalah peserta didik/konseli ",{"$nulls":6},"","","",0]
[null,null,7,"Guru BK/Konselor dapat menampilkan tanggung jawab profesional sesuai dengan azas BK (misalnya kerahasiaan, keterbukaan, kekinian.) dalam praktik penilaian dan penyampaian hasilnya",{"$nulls":6},"","","",0]
[null,null,"Total skor untuk kompetensi 11",null,{"$f":"SUM(K82:M88)","v":0}]
[null,null,"Skor maksimum kompetensi 11 = jumlah indikator × 2",null,14]
[null,null,"Nilai = (total skor/12) × 100%",null,{"$f":"(E89/E90)*100","v":{"v":0,"d":"0.00"}}]
[null,null,"Kompetensi 12 : Menguasai kerangka teoretik dan praksis BK"]
[null,null,1,"Guru BK/Konselor dapat mengaplikasikan hakikat pelayanan BK (tujuan, prinsip, azas, fungsi, dan landasan).",{"$nulls":6},{"$f":"IF(E93=\"X\",0,\"\")","v":""},{"$f":"IF(F93=\"X\",1,\"\")","v":""},{"$f":"IF(G93=\"X\",2,\"\")","v":""},{"$f":"(SUM(K93:M93)/2)*100","v":0}]
[null,null,2,"Guru BK/Konselor dapat menentukankan arah profesi BK (peran sebagai guru BK/konselor).",{"$nulls":6},"","","",0]
[null,null,3,"Guru BK/Konselor dapat mengaplikasikan dasar-dasar pelayanan BK.",{"$nulls":6},"","","",0]
[null,null,4,"Guru BK/Konselor dapat mengaplikasikan pelayanan BK sesuai kondisi dan tuntutan wilayah kerja.",{"$nulls":6},"","","",0]
[null,null,5,"Guru BK/Konselor dapat mengaplikasikan pendekatan /model/jenis pelayanan dan kegiatan pendukung bimbingan dan konseling. ",{"$nulls":6},"","","",0]
[null,null,6,"Guru BK/Konselor dapat mengaplikasikan praktik format  pelayanan BK (klasikal, kelompok dan individual)",{"$nulls":6},"","","",0]
[null,null,"Total skor untuk kompetensi 12",null,{"$f":"SUM(K93:M98)","v":0}]
[null,null,"Skor maksimum kompetensi 12 = jumlah indikator × 2",null,12]
[null,null,"Nilai = (total skor/12) × 100%",null,{"$f":"(E99/E100)*100","v":{"v":0,"d":"0.00"}}]
[null,null,"Kompetensi 13 : Merancang program BK"]
[null,null,1,"Guru BK/Konselor dapat menganalisis kebutuhan peserta didik/konseli.",{"$nulls":6},{"$f":"IF(E103=\"X\",0,\"\")","v":""},{"$f":"IF(F103=\"X\",1,\"\")","v":""},{"$f":"IF(G103=\"X\",2,\"\")","v":""},{"$f":"(SUM(K103:M103)/2)*100","v":0}]
[null,null,2,"Guru BK/Konselor dapat menyusun program pelayanan BK yang berkelanjutan berdasar kebutuhan peserta didik/konseli secara komprehensif dengan pendekatan perkembangan. ",{"$nulls":6},"","","",0]
[null,null,3,"Guru BK/Konselor dapat menyusun rencana pelaksanaan program pelayanan BK. ",{"$nulls":6},"","","",0]
[null,null,4,"Guru BK/Konselor dapat merencanakan sarana dan biaya penyelenggaraan program  pelayanan BK.",{"$nulls":6},"","","",0]
[null,null,"Total skor untuk kompetensi 13",null,{"$f":"SUM(K103:M106)","v":0}]
[null,null,"Skor maksimum kompetensi 13 = jumlah indikator × 2",null,8]
[null,null,"Nilai = (total skor/12) × 100%",null,{"$f":"(E107/E108)*100","v":{"v":0,"d":"0.00"}}]
[null,null,"Kompetensi 14 : Mengimplementasikan program BK yang komprehensif"]
[null,null,1,"Guru BK/Konselor dapat melaksanakan program pelayanan BK. ",{"$nulls":6},{"$f":"IF(E111=\"X\",0,\"\")","v":""},{"$f":"IF(F111=\"X\",1,\"\")","v":""},{"$f":"IF(G111=\"X\",2,\"\")","v":""},{"$f":"(SUM(K111:M111)/2)*100","v":0}]
[null,null,2,"Guru BK/Konselor dapat melaksanakan pendekatan kolaboratif dengan pihak terkait dalam pelayanan BK.",{"$nulls":6},"","","",0]
[null,null,3,"Guru BK/Konselor dapat memfasilitasi perkembangan akademik, karier, personal/ pribadi, dan sosial peserta didik/konseli.",{"$nulls":6},"","","",0]
[null,null,4,"Guru BK/Konselor dapat mengelola sarana dan biaya penyelenggaraan program pelayanan BK.",{"$nulls":6},"","","",0]
[null,null,"Total skor untuk kompetensi 14",null,{"$f":"SUM(K111:M114)","v":0}]
[null,null,"Skor maksimum kompetensi 14 = jumlah indikator × 2",null,8]
[null,null,"Nilai = (total skor/8) × 100%",null,{"$f":"(E115/E116)*100","v":{"v":0,"d":"0.00"}}]
[null,null,"Kompetensi 15 : Menilai proses dan hasil kegiatan BK"]
[null,null,1,"Guru BK/Konselor dapat melakukan evaluasi proses dan hasil program pelayanan BK. ",{"$nulls":6},{"$f":"IF(E119=\"X\",0,\"\")","v":""},{"$f":"IF(F119=\"X\",1,\"\")","v":""},{"$f":"IF(G119=\"X\",2,\"\")","v":""},{"$f":"(SUM(K119:M119)/2)*100","v":0}]
[null,null,2," Guru BK/Konselor dapat melakukan penyesuaian  proses pelayanan BK. ",{"$nulls":6},"","","",0]
[null,null,3,"Guru BK/Konselor dapat menginformasikan hasil pelaksanaan evaluasi pelayanan BK kepada pihak terkait. ",{"$nulls":6},"","","",0]
[null,null,4,"Guru BK/Konselor dapat menggunakan hasil pelaksanaan evaluasi untuk merevisi dan mengembangkan program pelayanan BK ",{"$nulls":6},"","","",0]
[null,null,"Total skor untuk kompetensi 15",null,{"$f":"SUM(K119:M122)","v":0}]
[null,null,"Skor maksimum kompetensi 15 = jumlah indikator × 2",null,8]
[null,null,"Nilai = (total skor/8) × 100%",null,{"$f":"(E123/E124)*100","v":{"v":0,"d":"0.00"}}]
[null,null,"Kompetensi 16 : Memiliki kesadaran dan komitmen terhadap etika profesional"]
[null,null,1,"Guru BK/Konselor dapat memberdayakan kekuatan pribadi, dan keprofesionalan guru BK/konselor.",{"$nulls":6},{"$f":"IF(E127=\"X\",0,\"\")","v":""},{"$f":"IF(F127=\"X\",1,\"\")","v":""},{"$f":"IF(G127=\"X\",2,\"\")","v":""},{"$f":"(SUM(K127:M127)/2)*100","v":0}]
[null,null,2,"Guru BK/Konselor dapat meminimalisir  keterbatasan pribadi dan faktor pendukung pelaksanaan pelayanan BK",{"$nulls":6},"","","",0]
[null,null,3,"Guru BK/Konselor dapat menyelenggarakan pelayanan BK sesuai dengan kewenangan dan kode etik profesional guru BK/konselor. ",{"$nulls":6},"","","",0]
[null,null,4,"Guru BK/Konselor dapat mempertahankan objektivitas dan menjaga agar tidak larut dengan masalah peserta didik/konseli. ",{"$nulls":6},"","","",0]
[null,null,5,"Guru BK/Konselor dapat melaksanakan layanan pendukung sesuai kebutuhan peserta didik/konseli (misalnya alih tangan kasus, kunjungan rumah, konferensi kasus, instrumen bimbingan, himpunan data). ",{"$nulls":6},"","","",0]
[null,null,6,"Guru BK/Konselor dapat menghargai identitas profesional dan pengembangan profesi.",{"$nulls":6},"","","",0]
[null,null,7,"Guru BK/Konselor dapat mendahulukan kepentingan peserta didik/konseli daripada kepentingan pribadi guru BK/konselor.",{"$nulls":6},"","","",0]
[null,null,"Total skor untuk kompetensi 16",null,{"$f":"SUM(K127:M133)","v":0}]
[null,null,"Skor maksimum kompetensi 16 = jumlah indikator × 2",null,14]
[null,null,"Nilai = (total skor/12) × 100%",null,{"$f":"(E134/E135)*100","v":{"v":0,"d":"0.00"}}]
[null,null,"Kompetensi 17 : Menguasai konsep dan praksis penelitian dalam BK"]
[null,null,1,"Guru BK/Konselor dapat mendeskripsikan jenis dan metode penelitian dalam BK.",{"$nulls":6},{"$f":"IF(E138=\"X\",0,\"\")","v":""},{"$f":"IF(F138=\"X\",1,\"\")","v":""},{"$f":"IF(G138=\"X\",2,\"\")","v":""},{"$f":"(SUM(K138:M138)/2)*100","v":0}]
[null,null,2,"Guru BK/Konselor mampu merancang penelitian dalam BK.",{"$nulls":6},"","","",0]
[null,null,3,"Guru BK/Konselor dapat melaksanakan penelitian dalam BK.",{"$nulls":6},"","","",0]
[null,null,4,"Guru BK/Konselor dapat memanfaatkan hasil penelitian dalam BK dengan mengakses jurnal yang relevan.",{"$nulls":6},"","","",0]
[null,null,"Total skor untuk kompetensi 17",null,{"$f":"SUM(K138:M141)","v":0}]
[null,null,"Skor maksimum kompetensi 17 = jumlah indikator × 2",null,8]
[null,null,"Nilai = (total skor/8) × 100%",null,{"$f":"(E142/E143)*100","v":{"v":0,"d":"0.00"}}]
[{"$nulls":4},{"$f":"DATA!$H$20&\", \"&DATA!$C$13&\" \"&DATA!$D$13&\" \"&DATA!$E$13","v":"Serang, 16 Oktober 2024"}]
[{"$nulls":3},"Penilai,","Guru yang dinilai,"]
[]
[]
[]
[{"$nulls":3},{"$f":"DATA!$H$12","v":"Nasuhi, S.Pd.I"},{"$f":"DATA!$C$3","v":"NINA HERLINA, S.Pd"}]
[{"$nulls":3},{"$f":"\"NIP. \"&DATA!$H$13","v":"NIP. lake"},{"$f":"\"NIP. \"&DATA!$C$4","v":"NIP. -"}]
{"$rows_empty":14}
[{"$nulls":3},{"$f":"DATA!$H$12","v":"Nasuhi, S.Pd.I"},{"$f":"DATA!$C$3","v":"NINA HERLINA, S.Pd"}]

{"sheet":"PKKM-GTIK","index":6,"n_rows":131,"n_cols":14,"rows_kept":131,"merged":[[0,1,0,7],[2,2,2,6],[3,2,3,6],[4,2,4,6],[5,2,7,3],[5,4,5,6],[8,2,8,6],[14,2,14,3],[14,4,14,6],[15,2,15,3],[15,4,15,6],[16,2,16,3],[16,4,16,6],[17,2,17,6],[22,2,22,3],[22,4,22,6],[23,2,23,3],[23,4,23,6],[24,2,24,3],[24,4,24,6],[25,2,25,6],[33,2,33,3],[33,4,33,6],[34,2,34,3],[34,4,34,6],[35,2,35,3],[35,4,35,6],[36,2,36,6],[44,2,44,3],[44,4,44,6],[45,2,45,3],[45,4,45,6],[46,2,46,3],[46,4,46,6],[47,2,47,6],[52,2,52,3],[52,4,52,6],[53,2,53,3],[53,4,53,6],[54,2,54,3],[54,4,54,6],[55,2,55,6],[59,2,59,3],[59,4,59,6],[60,2,60,3],[60,4,60,6],[61,2,61,3],[61,4,61,6],[62,2,62,6],[66,2,66,3],[66,4,66,6],[67,2,67,3],[67,4,67,6],[68,2,68,3],[68,4,68,6],[69,2,70,6],[79,2,79,3],[79,4,79,6],[80,2,80,3],[80,4,80,6],[81,2,81,3],[81,4,81,6],[82,2,82,6],[90,2,90,3],[90,4,90,6],[91,2,91,3],[91,4,91,6],[92,2,92,3],[92,4,92,6],[93,2,94,6],[102,2,102,3],[102,4,102,6],[103,2,103,3],[103,4,103,6],[104,2,104,3],[104,4,104,6],[105,2,105,6],[110,2,110,3],[110,4,110,6],[111,2,111,3],[111,4,111,6],[112,2,112,3],[112,4,112,6],[113,2,113,6],[120,2,120,3],[120,4,120,6],[121,2,121,3],[121,4,121,6],[122,2,122,3],[122,4,122,6]]}
[null,"KEMENTERIAN AGAMA KABUPATEN GRESIK",{"$nulls":6},{"$f":"'N-GR'!E21","v":{"v":0,"d":"0.00"}}]
[{"$nulls":8},{"$f":"IF(I1=0,\"\",IF(I1>=91,\"Amat Baik\",IF(I1>=76,\"Baik\",IF(I1>=61,\"Cukup\",IF(I1>=51,\"Sedang\",IF(I1<=50,\"Kurang\"))))))","v":""}]
[null,null,"INSTRUMEN PENILAIAN KINERJA GURU TIK"]
[null,null,{"$f":"\"Nama guru yang dinilai : \"&DATA!$C$3","v":"Nama guru yang dinilai : NINA HERLINA, S.Pd"}]
[null,null,{"$f":"\"Tanggal Penilaian           : \"&DATA!$C$13&\" \"&DATA!$D$13&\" \"&DATA!$E$13","v":"Tanggal Penilaian           : 16 Oktober 2024"}]
[null,null,"INDIKATOR",null,"SKOR"]
[{"$nulls":4},"Tidak ada bukti (Tidak  terpenuhi)","Terpenuhi sebagian","Seluruhnya terpenuhi"]
[{"$nulls":4},0,1,2]
[null,null,"Kompetensi 1 : Mengenal karakteristik peserta didik"]
[null,null,1,"Guru TIK dapat mengidentifikasi karakteristik belajar setiap peserta didik yang dibimbingnya.",{"$nulls":6},{"$f":"IF(E10=\"X\",0,\"\")","v":""},{"$f":"IF(F10=\"X\",1,\"\")","v":""},{"$f":"IF(G10=\"X\",2,\"\")","v":""},{"$f":"(SUM(K10:M10)/2)*100","v":0}]
[null,null,2,"Guru TIK dapat mengelola kelas agar semua Siswa mendapatkan kesempatan yang sama untuk berpartisipasi aktif dalam kegiatan bimbingan TIK.",{"$nulls":6},{"$f":"IF(E11=\"X\",0,\"\")","v":""},{"$f":"IF(F11=\"X\",1,\"\")","v":""},{"$f":"IF(G11=\"X\",2,\"\")","v":""},{"$f":"(SUM(K11:M11)/2)*100","v":0}]
[null,null,3,"Guru TIK membantu mengembangkan potensi dan mengatasi kekurangan peserta didik",{"$nulls":6},"","","",0]
[null,null,4,"Guru TIK memperhatikan peserta didik agar dapat mengikuti aktivitas bimbingan, sehingga peserta didik tersebut tidak termarginalkan (tersisihkan/diolok-olok/ minder).",{"$nulls":6},"","","",0]
[null,null,5,"Guru TIK dapat mengidentifikasi karakteristik belajar setiap peserta didik yang dibimbingnya.",{"$nulls":6},"","","",0]
[null,null,"Total skor untuk kompetensi 1",null,{"$f":"SUM(K10:M14)","v":0}]
[null,null,"Skor maksimum kompetensi 1 = jumlah indikator × 2",null,{"$f":"5*2","v":10}]
[null,null,"Nilai = (total skor/12) × 100%",null,{"$f":"(E15/E16)*100","v":{"v":0,"d":"0.00"}}]
[null,null,"Kompetensi 2 :  Merancang Program Guru TIK"]
[null,null,1,"Guru TIK merancang program bimbingan TIK (analisis kebutuhan, program tahunan, program semester, silabus, dan rencana pelaksanaan bimbingan TIK, rancangan evaluasi)",{"$nulls":6},{"$f":"IF(E19=\"X\",0,\"\")","v":""},{"$f":"IF(F19=\"X\",1,\"\")","v":""},{"$f":"IF(G19=\"X\",2,\"\")","v":""},{"$f":"(SUM(K19:M19)/2)*100","v":0}]
[null,null,2,"Guru TIK merancang program fasilitasi TIK untuk guru (analisis kebutuhan guru, penjadwalan, bentuk kegiatan)",{"$nulls":6},"","","",0]
[null,null,3,"Guru TIK merancang program fasilitasi TIK untuk tenaga kependidikan (analisis kebutuhan guru, penjadwalan, bentuk kegiatan)",{"$nulls":6},"","","",0]
[null,null,4,"Guru TIK merancang program fasilitasi TIK untuk Madrasah mengenai pembelajaran, penilaian, dan Ujian Berbasis Komputer dalam Jaringan",{"$nulls":6},"","","",0]
[null,null,"Total skor untuk kompetensi 2",null,{"$f":"SUM(K19:M22)","v":0}]
[null,null,"Skor maksimum kompetensi 2 = jumlah indikator × 2",null,{"$f":"4*2","v":8}]
[null,null,"Nilai = (total skor/12) × 100%",null,{"$f":"(E23/E24)*100","v":{"v":0,"d":"0.00"}}]
[null,null,"Kompetensi 3 : .Melaksanakan Kegiatan Pembimbingan TIK"]
[null,null,1,"Guru TIK melaksanakan pembimbingan dengan menyenangkan peserta didik",{"$nulls":6},{"$f":"IF(E27=\"X\",0,\"\")","v":""},{"$f":"IF(F27=\"X\",1,\"\")","v":""},{"$f":"IF(G27=\"X\",2,\"\")","v":""},{"$f":"(SUM(K27:M27)/2)*100","v":0}]
[null,null,2,"Guru TIK melaksanakan pembimbingan yang menantang keingintahuan peserta didik.",{"$nulls":6},"","","",0]
[null,null,3,"Guru TIK melaksanakan pembimbingan TIK secara klasikal/kelompok atau individu.",{"$nulls":6},"","","",0]
[null,null,4,"Guru TIK mengecek kemajuan pemahaman dan keterampilan peserta didik terhadap materi pembimbingan TIK sebelum melanjutkan ke tahap/topik berikutnya.",{"$nulls":6},"","","",0]
[null,null,5,"Guru TIK melaksanakan pembimbingan untuk mencari, mengolah, menyimpan, menyajikan, serta menyebarkan data dan informasi dalam berbagai cara untuk mendukung kelancaran proses belajar Siswa.",{"$nulls":6},"","","",0]
[null,null,6,"Guru TIK memperhatikan setiap pertanyaan /jawaban peserta didik serta mengarahkannya untuk memaksimalkan pemahaman materi bimbingan.",{"$nulls":6},"","","",0]
[null,null,7,"Guru TIK melaksanakan penilaian proses dan/atau penilaian hasil pembimbingan TIK.",{"$nulls":6},"","","",0]
[null,null,"Total skor untuk kompetensi 3",null,{"$f":"SUM(K27:M33)","v":0}]
[null,null,"Skor maksimum kompetensi 3 = jumlah indikator × 2",null,{"$f":"7*2","v":14}]
[null,null,"Nilai = (total skor/8) × 100%",null,{"$f":"(E34/E35)*100","v":{"v":0,"d":"0.00"}}]
[null,null,"Kompetensi 4 : Bertindak sesuai dengan norma agama, hukum, sosial dan\nkebudayaan nasional."]
[null,null,1,"Guru TIK menghargai, mengamalkan, dan mengembangkan nilai-nilai Pancasila sebagai dasar ideologi dan etika serta norma agama bagi semua warga Indonesia",{"$nulls":6},{"$f":"IF(E38=\"X\",0,\"\")","v":""},{"$f":"IF(F38=\"X\",1,\"\")","v":""},{"$f":"IF(G38=\"X\",2,\"\")","v":""},{"$f":"(SUM(K38:M38)/2)*100","v":0}]
[null,null,2,"Guru TIK memiliki rasa persatuan dan kesatuan sebagai bangsa Indonesia",{"$nulls":6},{"$f":"IF(E39=\"X\",0,\"\")","v":""},{"$f":"IF(F39=\"X\",1,\"\")","v":""},{"$f":"IF(G39=\"X\",2,\"\")","v":""},{"$f":"(SUM(K39:M39)/2)*100","v":0}]
[null,null,3,"Guru TIK Mengembangkan kerja sama dan membina kebersamaan dengan teman sejawat sesuai dengan kondisi dan keberadaan masing-masing.",{"$nulls":6},"","","",0]
[null,null,4,"Guru TIK saling menghormati dan menghargai teman sejawat sesuai dengan kondisi dan keberadaan masing-masing.",{"$nulls":6},"","","",0]
[null,null,5,"Guru TIK bertingkah laku sopan dalam berbicara, berpenampilan, dan berbuat terhadap semua peserta didik, orang tua, dan teman sejawat",{"$nulls":6},"","","",0]
[null,null,6,"Guru TIK bersikap dewasa dalam menerima masukan dari peserta didik dan memberikan kesempatan kepada peserta didik untuk berpartisipasi dalam proses bimbingan.",{"$nulls":6},"","","",0]
[null,null,7,"Guru TIK berperilaku baik sejalan dengan norma agama untuk mencitrakan nama baik Madrasah.",{"$nulls":6},"","","",0]
[null,null,"Total skor untuk kompetensi 4",null,{"$f":"SUM(K38:M44)","v":0}]
[null,null,"Skor maksimum kompetensi 4 = jumlah indikator × 2",null,{"$f":"7*2","v":14}]
[null,null,"Nilai = (total skor/22) × 100%",null,{"$f":"(E45/E46)*100","v":{"v":0,"d":"0.00"}}]
[null,null,"Kompetensi 5 :  Memiliki etos kerja, tanggung jawab yang tinggi, rasa bangga menjadi guru."]
[null,null,1,"Guru TIK menyelesaikan semua tugas administratif pembimbingan TIK dan atau tugas non- pembimbingan TIK dengan tepat waktu sesuai standar yang ditetapkan.",{"$nulls":6},{"$f":"IF(E49=\"X\",0,\"\")","v":""},{"$f":"IF(F49=\"X\",1,\"\")","v":""},{"$f":"IF(G49=\"X\",2,\"\")","v":""},{"$f":"(SUM(K49:M49)/2)*100","v":0}]
[null,null,2,"Guru TIK memanfaatkan waktu luang selain mengajar untuk kegiatan yang produktif terkait dengan tugasnya",{"$nulls":6},{"$f":"IF(E50=\"X\",0,\"\")","v":""},{"$f":"IF(F50=\"X\",1,\"\")","v":""},{"$f":"IF(G50=\"X\",2,\"\")","v":""},{"$f":"(SUM(K50:M50)/2)*100","v":0}]
[null,null,3,"Guru TIK memberikan kontribusi terhadap pengembangan madrasah dan mempunyai prestasi yang berdampak positif terhadap nama baik madrasah",{"$nulls":6},"","","",0]
[null,null,4,"Guru TIK merasa bangga dengan profesinya sebagai guru",{"$nulls":6},"","","",0]
[null,null,"Total skor untuk kompetensi 5",null,{"$f":"SUM(K49:M52)","v":0}]
[null,null,"Skor maksimum kompetensi 5 = jumlah indikator × 2",null,{"$f":"4*2","v":8}]
[null,null,"Nilai = (total skor/14) × 100%",null,{"$f":"(E53/E54)*100","v":{"v":0,"d":"0.00"}}]
[null,null,"Kompetensi 6 : Bersikap inklusif, bertindak obyektif, serta tidak diskriminatif."]
[null,null,1," Guru TIK memperlakukan semua peserta didik secara adil, memberikan perhatian dan bantuan sesuai kebutuhan masing-masing secara objektif",{"$nulls":6},{"$f":"IF(E57=\"X\",0,\"\")","v":""},{"$f":"IF(F57=\"X\",1,\"\")","v":""},{"$f":"IF(G57=\"X\",2,\"\")","v":""},{"$f":"(SUM(K57:M57)/2)*100","v":0}]
[null,null,2,"Guru TIK sering berinteraksi dengan peserta didik dan tidak membatasi perhatiannya hanya pada kelompok tertentu (misalnya: peserta didik yang pandai, kaya, berasal dari daerah yang sama dengan guru).",{"$nulls":6},"","","",0]
[null,null,3,"Guru TIK menjaga hubungan baik dan peduli dengan teman sejawat (bersifat inklusif), serta berkontribusi positif terhadap semua diskusi formal dan informal terkait dengan pekerjaannya",{"$nulls":6},"","","",0]
[null,null,"Total skor untuk kompetensi 6",null,{"$f":"SUM(K57:M59)","v":0}]
[null,null,"Skor maksimum kompetensi 6 = jumlah indikator × 2",null,{"$f":"3*2","v":6}]
[null,null,"Nilai = (total skor/12) × 100%",null,{"$f":"(E60/E61)*100","v":{"v":0,"d":"0.00"}}]
[null,null,"Kompetensi 7 : Komunikasi dan kolaborasi dengan sesama guru, tenaga kependidikan, orang tua peserta didik, dan masyarakat."]
[null,null,1,"Guru TIK menyampaikan informasi tentang kemajuan, kesulitan, dan potensi peserta didik kepada orang tuanya",{"$nulls":6},{"$f":"IF(E64=\"X\",0,\"\")","v":""},{"$f":"IF(F64=\"X\",1,\"\")","v":""},{"$f":"IF(G64=\"X\",2,\"\")","v":""},{"$f":"(SUM(K64:M64)/2)*100","v":0}]
[null,null,2,"Guru TIK ikut berperan aktif dalam kegiatan di luar pembimbingan TIK yang diselenggarakan oleh madrasah, komunitas profesi dan masyarakat serta dapat memberikan bukti keikutsertaannya.",{"$nulls":6},"","","",0]
[null,null,3,"Guru TIK memperhatikan madrasah sebagai bagian dari masyarakat, berkomunikasi dengan masyarakat sekitar.",{"$nulls":6},"","","",0]
[null,null,"Total skor untuk kompetensi 7",null,{"$f":"SUM(K64:M66)","v":0}]
[null,null,"Skor maksimum kompetensi 7 = jumlah indikator × 2",null,{"$f":"3*2","v":6}]
[null,null,"Nilai = (total skor/10) × 100%",null,{"$f":"(E67/E68)*100","v":{"v":0,"d":"0.00"}}]
[null,null,"Kompetensi 8 : Menguasai konsep, kompetensi, materi TIK, dan pembimbingan TIK."]
[]
[null,null,1,"Guru TIK melakukan analisis/pemetaan kompetensi TIK untuk mengidentifikasi materi TIK sesuai kebutuhan peserta didik",{"$nulls":6},{"$f":"IF(E72=\"X\",0,\"\")","v":""},{"$f":"IF(F72=\"X\",1,\"\")","v":""},{"$f":"IF(G72=\"X\",2,\"\")","v":""},{"$f":"(SUM(K72:M72)/2)*100","v":0}]
[null,null,2,"Guru mengembangkan kerjasama dan membina kebersamaan dengan teman sejawat tanpa memperhatikan perbedaan yang ada (misalnya: suku, agama, dan gender).",{"$nulls":6},"","","",0]
[null,null,3,"Guru TIK memberikan materi bimbingan sesuai dengan sistematika keilmuan yang benar (konkret ke abstrak, sederhana ke kompleks, mudah ke sulit).",{"$nulls":6},"","","",0]
[null,null,4,"Guru TIK mengembangkan dan menyajikan materi pembimbingan untuk mencari, mengolah, menyimpan, menyajikan, serta menyebarkan data dan informasi dalam berbagai cara untuk mendukung kelancaran proses belajar peserta didik.",{"$nulls":6},"","","",0]
[null,null,5,"Guru TIK menjawab atau merespons pertanyaan secara tepat dan benar sesuai dengan konsep keilmuan TIK",{"$nulls":6},"","","",0]
[null,null,6,"Guru TIK mengaitkan materi bimbingan TIK dengan lingkungan dan kehidupan sehari-hari peserta didik serta kecakapan abad 21.",{"$nulls":6},"","","",0]
[null,null,7,"Guru TIK menyertakan informasi yang tepat dan mutakhir di dalam perencanaan dan pelaksanaan bimbingan TIK.",{"$nulls":6},"","","",0]
[null,null,8,"Guru TIK menguasai teknologi dan literasi digital, pendalaman pengetahuan dan kreasi pengetahuan TIK.",{"$nulls":6},"","","",0]
[null,null,"Total skor untuk kompetensi 8",null,{"$f":"SUM(K72:M79)","v":0}]
[null,null,"Skor maksimum kompetensi 8 = jumlah indikator × 2",null,{"$f":"8*2","v":16}]
[null,"","Nilai = (total skor/10) × 100%",null,{"$f":"(E80/E81)*100","v":{"v":0,"d":"0.00"}},null,null,""]
[null,"","Kompetensi 9 : Fasilitas guru untuk pembelajaran berbasis TIK",{"$nulls":4},""]
[null,"",1,"Guru TIK melaksanakan fasilitasi terhadap guru sesuai dengan kebutuhan atau tujuan fasilitasi yang direncanakan.",{"$nulls":3},"",null,null,{"$f":"IF(E84=\"X\",0,\"\")","v":""},{"$f":"IF(F84=\"X\",1,\"\")","v":""},{"$f":"IF(G84=\"X\",2,\"\")","v":""},{"$f":"(SUM(K84:M84)/2)*100","v":0}]
[null,"",2,"Guru TIK menyajikan materi TIK yang memenuhi kebutuhan guru lainnya dalam perencanaan pembelajaran, dalam penggunaan media pembelajaran dan sumber belajar, atau pengelolaan data dan laporan penilaian berbasis TIK.",{"$nulls":3},"",null,null,"","","",0]
[null,"",3,"Guru TIK memberikan fasilitasi sesuai dengan sistematika keilmuan (konkret ke abstrak, sederhana ke kompleks, mudah ke sulit).",{"$nulls":3},"",null,null,"","","",0]
[null,"",4,"Guru TIK menggunakan kegiatan belajar yang bervariasi selama proses fasilitasi.",{"$nulls":3},"",null,null,"","","",0]
[null,"",5,"Guru TIK menggunakan pendekatan pembelajaran orang dewasa selama proses fasilitasi.",{"$nulls":3},"",null,null,"","","",0]
[null,null,6,"Guru TIK melaksanakan fasilitasi secara individu atau kelompok",{"$nulls":6},"","","",0]
[null,null,7,"Guru TIK mengecek tingkat penguasaan materi oleh peserta fasilitasi sebelum melanjutkan ke pokok materi berikutnya",{"$nulls":6},"","","",0]
[null,null,"Total skor untuk kompetensi 9",null,{"$f":"SUM(K84:M90)","v":0}]
[null,null,"Skor maksimum kompetensi 9 = jumlah indikator × 2",null,{"$f":"7*2","v":14}]
[null,"","Nilai = (total skor/10) × 100%",null,{"$f":"(E91/E92)*100","v":{"v":0,"d":"0.00"}},null,null,""]
[null,"","Kompetensi 10 : Fasilitasi tenaga kependidikan untuk pengelolaan informasi",{"$nulls":4},""]
[null,"",{"$nulls":5},""]
[null,"",1,"Guru TIK melaksanakan fasilitasi terhadap guru sesuai dengan kebutuhan atau tujuan fasilitasi yang direncanakan.",{"$nulls":3},"",null,null,{"$f":"IF(E96=\"X\",0,\"\")","v":""},{"$f":"IF(F96=\"X\",1,\"\")","v":""},{"$f":"IF(G96=\"X\",2,\"\")","v":""},{"$f":"(SUM(K96:M96)/2)*100","v":0}]
[null,"",2,"Guru TIK menyajikan materi TIK yang memenuhi kebutuhan guru lainnya dalam perencanaan pembelajaran, dalam penggunaan media pembelajaran dan sumber belajar, atau pengelolaan data dan laporan penilaian berbasis TIK.",{"$nulls":3},"",null,null,"","","",0]
[null,"",3,"Guru TIK memberikan fasilitasi sesuai dengan sistematika keilmuan (konkret ke abstrak, sederhana ke kompleks, mudah ke sulit).",{"$nulls":3},"",null,null,"","","",0]
[null,"",4,"Guru TIK menggunakan kegiatan belajar yang bervariasi selama proses fasilitasi",{"$nulls":3},"",null,null,"","","",0]
[null,"",5,"Guru TIK menggunakan pendekatan pembelajaran orang dewasa selama proses fasilitasi",{"$nulls":3},"",null,null,"","","",0]
[null,"",6,"Guru TIK melaksanakan fasilitasi secara individu atau kelompok",{"$nulls":3},"",null,null,"","","",0]
[null,"",7,"Guru TIK mengecek tingkat penguasaan materi oleh peserta fasilitasi sebelum melanjutkan ke pokok materi berikutnya.",{"$nulls":3},"",null,null,"","","",0]
[null,null,"Total skor untuk kompetensi 10",null,{"$f":"SUM(K96:M102)","v":0}]
[null,null,"Skor maksimum kompetensi 10 = jumlah indikator × 2",null,{"$f":"7*2","v":14}]
[null,null,"Nilai = (total skor/16) × 100%",null,{"$f":"(E103/E104)*100","v":{"v":0,"d":"0.00"}}]
[null,null,"Kompetensi 11 : Melakukan dan melaporkan Evaluasi Program Pembimbingan dan Fasilitasi"]
[null,"",1,"Guru TIK melakukan evaluasi dan membuat laporan kegiatan pembimbingan TIK bagi peserta didik.",{"$nulls":3},"",null,null,{"$f":"IF(E107=\"X\",0,\"\")","v":""},{"$f":"IF(F107=\"X\",1,\"\")","v":""},{"$f":"IF(G107=\"X\",2,\"\")","v":""},{"$f":"(SUM(K107:M107)/2)*100","v":0}]
[null,"",2,"Guru TIK melakukan evaluasi dan membuat laporan kegiatan fasilitasi TIK bagi guru lain",{"$nulls":3},"",null,null,"","","",0]
[null,"",3,"Guru TIK melakukan evaluasi dan membuat laporan kegiatan fasilitasi tenaga kependidikan",{"$nulls":3},"",null,null,{"$f":"IF(E109=\"X\",0,\"\")","v":""},{"$f":"IF(F109=\"X\",1,\"\")","v":""},{"$f":"IF(G109=\"X\",2,\"\")","v":""},{"$f":"(SUM(K109:M109)/2)*100","v":0}]
[null,"",4,"Guru TIK menyusun program tindak lanjut berdasarkan hasil evaluasi",{"$nulls":3},"",null,null,"","","",0]
[null,"","Total skor untuk kompetensi 11",null,{"$f":"SUM(K107:M110)","v":0},null,null,""]
[null,"","Skor maksimum kompetensi 11 = jumlah indikator × 2",null,{"$f":"4*2","v":8},null,null,""]
[null,"","Nilai = (total skor/ 6) × 100%",null,{"$f":"(E111/E112)*100","v":{"v":0,"d":"0.00"}},null,null,""]
[null,null,"Kompetensi 12 : Mengembangkan keprofesionalan secara berkelanjutan dengan melakukan kegiatan yang refleksi"]
[null,null,1,"Guru TIK melakukan evaluasi diri di awal tahun pelajaran.",{"$nulls":6},{"$f":"IF(E115=\"X\",0,\"\")","v":""},{"$f":"IF(F115=\"X\",1,\"\")","v":""},{"$f":"IF(G115=\"X\",2,\"\")","v":""},{"$f":"(SUM(K115:M115)/2)*100","v":0}]
[null,null,2,"Guru T IK memiliki Catatan Pelaksanaan Pembimbingan TIK bagi peserta didik.",{"$nulls":6},{"$f":"IF(E116=\"X\",0,\"\")","v":""},{"$f":"IF(F116=\"X\",1,\"\")","v":""},{"$f":"IF(G116=\"X\",2,\"\")","v":""},{"$f":"(SUM(K116:M116)/2)*100","v":0}]
[null,null,3,"Guru TIK memiliki Catatan Pelaksanaan Fasilitasi bagi guru lain dan tenaga kependidikan.",{"$nulls":6},"","","",0]
[null,"",4,"Guru TI K memanfaatkan hasil penilaian kinerjanya sebagai dasar untuk merencanakan peningkatan mutu proses pembimbingan dan fasilitasi TIK terhadap peserta didik, guru dan tenaga kependidikan.",{"$nulls":3},"",null,null,"","","",0]
[null,"",5,"Guru TIK mengaplikasikan pengalaman PKB dalam perencanaan, pelaksanaan, penilaian pembimbingan dan fasilitasi, dan tindak lanjutnya.",{"$nulls":3},"",null,null,"","","",0]
[null,"",6,"Guru TIK aktif meningkatkan dan mengembangkan kompetensinya melalui berbagai kegiatan Pengembangan Keprofesian Berkelanjutan.",{"$nulls":3},"",null,null,"","","",0]
[null,"","Total skor untuk kompetensi 12",null,{"$f":"SUM(K115:M120)","v":0},null,null,""]
[null,"","Skor maksimum kompetensi 12 = jumlah indikator × 2",null,{"$f":"6*2","v":12},null,null,""]
[null,"","Nilai = (total skor/ 6) × 100%",null,{"$f":"(E121/E122)*100","v":{"v":0,"d":"0.00"}},null,null,""]
[null,"",{"$nulls":5},""]
[null,"",null,null,{"$f":"DATA!$H$20&\", \"&DATA!$C$13&\" \"&DATA!$D$13&\" \"&DATA!$E$13","v":"Serang, 16 Oktober 2024"},null,null,""]
[{"$nulls":3},"Penilai,","Guru yang dinilai,"]
[]
[]
[]
[{"$nulls":3},{"$f":"DATA!$H$12","v":"Nasuhi, S.Pd.I"},{"$f":"DATA!$C$3","v":"NINA HERLINA, S.Pd"}]
[{"$nulls":3},{"$f":"\"NIP. \"&DATA!$H$13","v":"NIP. lake"},{"$f":"\"NIP. \"&DATA!$C$4","v":"NIP. -"}]

{"sheet":"PKKM-WKKur","index":7,"n_rows":64,"n_cols":15,"rows_kept":64,"merged":[[0,1,0,8],[2,2,2,7],[3,2,3,7],[4,2,4,7],[5,2,5,7],[6,2,7,3],[6,4,6,6],[15,2,15,3],[15,4,15,7],[16,2,16,3],[16,4,16,7],[17,2,17,7],[28,2,28,3],[28,4,28,7],[29,2,29,3],[29,4,29,7],[30,2,30,7],[38,2,38,3],[38,4,38,7],[39,2,39,3],[39,4,39,7],[40,2,40,7],[46,2,46,3],[46,4,46,7],[47,2,47,3],[47,4,47,7],[48,2,48,7],[54,2,54,3],[54,4,54,7],[55,2,55,3],[55,4,55,7]]}
[null,"KEMENTERIAN AGAMA KABUPATEN GRESIK",{"$nulls":7},{"$f":"'N-GR'!F21","v":{"v":0,"d":"0.00"}}]
[{"$nulls":9},{"$f":"IF(J1=0,\"\",IF(J1>=91,\"Amat Baik\",IF(J1>=76,\"Baik\",IF(J1>=61,\"Cukup\",IF(J1>=51,\"Sedang\",IF(J1<=50,\"Kurang\"))))))","v":""}]
[null,null,"INSTRUMEN PENILAIAN KINERJA WAKA KURIKULUM"]
[null,null,{"$f":"\"Nama guru yang dinilai : \"&DATA!$C$3","v":"Nama guru yang dinilai : NINA HERLINA, S.Pd"}]
[null,null,{"$f":"\"Tanggal Penilaian          : \"&DATA!$C$13&\" \"&DATA!$D$13&\" \"&DATA!$E$13","v":"Tanggal Penilaian          : 16 Oktober 2024"}]
[null,null,"1.   Kompetensi : Kepribadian dan Sosial"]
[null,null,"KRITERIA",null,"SKOR"]
[{"$nulls":4},0,1,2,4]
[null,null,1,"Berakhlak mulia, mengembangkan budaya dan tradisi akhlak mulia, dan menjadi teladan akhlak mulia bagi komunitas di sekolah/madrasah.",{"$nulls":7},{"$f":"IF(E9=\"X\",0,\"\")","v":""},{"$f":"IF(F9=\"X\",1,\"\")","v":""},{"$f":"IF(G9=\"X\",2,\"\")","v":""}]
[null,null,2,"Melaksanakan tugas pokok dan fungsi sebagai wakil kepala sekolah dengan penuh kejujuran, ketulusan, komitmen, dan integritas.",{"$nulls":7},{"$f":"IF(E10=\"X\",0,\"\")","v":""},{"$f":"IF(F10=\"X\",1,\"\")","v":""},{"$f":"IF(G10=\"X\",2,\"\")","v":""},{"$f":"IF(H10=\"X\",4,\"\")","v":""}]
[null,null,3,"Bersikap terbuka dalam melaksanakan tugas pokok dan fungsi sebagai wakil kepala sekolah/madrasah.",{"$nulls":7},"","","",""]
[null,null,4,"Mengendalikan diri dalam menghadapi masalah dan tantangan sebagai wakil kepala sekolah/madrasah.",{"$nulls":7},"","","",""]
[null,null,5,"Berpartisipasi dalam kegiatan social kemasyarakatan.",{"$nulls":7},"","","",""]
[null,null,6,"Tanggap dan peduli terhadap kepentingan orang atau kelompok lain.",{"$nulls":7},"","","",""]
[null,null,7,"Mengembangkan dan mengelola hubungan sekolah/madrasah dengan pihak lain di luar sekolah dalam rangka mendapatkan dukungan ide, sumber belajar, dan pembiayaan sekolah/madrasah.",{"$nulls":7},"","","",""]
[null,null,"Jumlah Skor",null,{"$f":"SUM(L9:O15)","v":0}]
[null,null,"NILAI KOMPOTENSI 1",null,{"$f":"(E16/(7*2))*100","v":{"v":0,"d":"0.00"}}]
[null,null,"2.   Kompetensi : Kepemimpinan"]
[null,null,1,"Bertindak sesuai dengan visi dan misi sekolah/madrasah.",{"$nulls":7},{"$f":"IF(E19=\"X\",0,\"\")","v":""},{"$f":"IF(F19=\"X\",1,\"\")","v":""},{"$f":"IF(G19=\"X\",2,\"\")","v":""},{"$f":"IF(H19=\"X\",4,\"\")","v":""}]
[null,null,2,"Merumuskan tujuan yang menantang diri sendiri dan orang lain untuk mencapai standard yang tinggi.",{"$nulls":7},"","","",""]
[null,null,3,"Mengembangkan sekolah/madrasah menuju organisasi pembelajaran (learning organization).",{"$nulls":7},"","","",""]
[null,null,4,"Menciptakan budaya dan iklim sekolah/madrasah yang kondusif dan inovatif bagi pembelajaran.",{"$nulls":7},"","","",""]
[null,null,5,"Memegang teguh tujuan sekolah dengan menjadi contoh dan bertindak sebagai pemimpin pembelajaran.",{"$nulls":7},"","","",""]
[null,null,6,"Melaksanakan kepemimpinan yang inspiratif.",{"$nulls":7},"","","",""]
[null,null,7,"Membangun rasa saling percaya dan memfasilitasi kerjasama dalam rangka untuk menciptakan kolaborasi yang kuat diantara warga sekolah/madrasah",{"$nulls":7},"","","",""]
[null,null,8,"Bekerja keras untuk mencapai keberhasilan sekolah/madrasah sebagai organisasi pembelajar yang efektif.",{"$nulls":7},"","","",""]
[null,null,9,"Mengembangan kurikulum dan kegiatan pembelajaran sesuai dengan visi, misi, dan tujuan sekolah.",{"$nulls":7},"","","",""]
[null,null,10,"Mengelola peserta didik dalam rangka pengembangan kapasitasnya secara optimal.",{"$nulls":7},"","","",""]
[null,null,"Jumlah Skor",null,{"$f":"SUM(L19:O28)","v":0}]
[null,null,"NILAI KOMPOTENSI 2",null,{"$f":"(E29/(10*2))*100","v":{"v":0,"d":"0.00"}}]
[null,null,"3.   Kompetensi : Pengembangan Sekolah"]
[null,null,1,"Menyusun rencana pengembangan sekolah/madrasah jangka panjang, menengah, dan pendek dalam rangka mencapai visi, misi, dan tujuan sekolah/madrasah.",{"$nulls":7},{"$f":"IF(E32=\"X\",0,\"\")","v":""},{"$f":"IF(F32=\"X\",1,\"\")","v":""},{"$f":"IF(G32=\"X\",2,\"\")","v":""},{"$f":"IF(H32=\"X\",4,\"\")","v":""}]
[null,null,2,"Mengembangkan struktur organisasi sekolah/madrasah yang efektif dan efisien sesuai dengan kebutuhan.",{"$nulls":7},"","","",""]
[null,null,3,"Melaksanakan pengembangan sekolah/ madrasah sesuai dengan rencana jangka panjang, menengah, dan jangka pendek sekolah menuju tercapainya visi, misi, dan tujuan sekolah.",{"$nulls":7},"","","",""]
[null,null,4,"Mewujudkan peningkatan kinerja sekolah yang signifikan sesuai dengan visi, misi, tujuan sekolah dan standard nasional pendidikan.",{"$nulls":7},"","","",""]
[null,null,5,"Melakukan monitoring, evaluasi, dan pelaporan pelaksanaan program kegiatan sekolah/madrasah dengan prosedur yang tepat.",{"$nulls":7},"","","",""]
[null,null,6,"Merencanakan dan menindaklanjuti hasil monitoring, evaluasi, dan pelaporan.",{"$nulls":7},"","","",""]
[null,null,7,"Melaksanakan penelitian tindakan sekolah dalam rangka meningkatkan kinerja sekolah/madrasah.",{"$nulls":7},"","","",""]
[null,null,"Jumlah Skor",null,{"$f":"SUM(L32:O38)","v":0}]
[null,null,"NILAI KOMPOTENSI 3",null,{"$f":"(E39/(7*2))*100","v":{"v":0,"d":"0.00"}}]
[null,null,"4.   Kompetensi : Kewirausahaan"]
[null,null,1,"Menciptakan inovasi yang bermanfaat bagi pengembangan sekolah/ madrasah.",{"$nulls":7},{"$f":"IF(E42=\"X\",0,\"\")","v":""},{"$f":"IF(F42=\"X\",1,\"\")","v":""},{"$f":"IF(G42=\"X\",2,\"\")","v":""},{"$f":"IF(H42=\"X\",4,\"\")","v":""}]
[null,null,2,"Memiliki motivasi yang kuat untuk sukses dalam melaksanakan tugas pokok dan fungsinya sebagai pemimpin pembelajaran.",{"$nulls":7},"","","",""]
[null,null,3,"Memotivasi warga sekolah untuk sukses dalam melaksanakan tugas pokok dan fungsinya masing‐ masing.",{"$nulls":7},"","","",""]
[null,null,4,"Pantang menyerah dan selalu mencari solusi terbaik dalam menghadapi kendala yang dihadapi madrasah.",{"$nulls":7},"","","",""]
[null,null,5,"Menerapkan nilai dan prinsip‐prinsip kewirausahaan dalam mengembangkan madrasah.",{"$nulls":7},"","","",""]
[null,null,"Jumlah Skor",null,{"$f":"SUM(L42:O46)","v":0}]
[null,null,"NILAI KOMPOTENSI 4",null,{"$f":"(E47/(5*2))*100","v":{"v":0,"d":"0.00"}}]
[null,null,"5.   Kompetensi  Bidang Tugas Wakasek Bidang Akademik/Kurikulum"]
[null,null,1,"Mengelola dan mendayagunakan guru dan tenaga kependidikan secara optimal.",{"$nulls":7},{"$f":"IF(E50=\"X\",0,\"\")","v":""},{"$f":"IF(F50=\"X\",1,\"\")","v":""},{"$f":"IF(G50=\"X\",2,\"\")","v":""},{"$f":"IF(H50=\"X\",4,\"\")","v":""}]
[null,null,2,"Menyusun program akademik dan mengelola pelaksanaannya secara efektif, efesien dan sesuai dengan visi dan misi madrasah.",{"$nulls":7},"","","",""]
[null,null,3,"Menyusun program, melaksanakan, menilai dan menindaklanjuti kegiatan supervisi akademik dengan menggunakan pendekatan dan teknik supervisi yang tepat. dalam rangka peningkatan profesionalisme guru",{"$nulls":7},"","","",""]
[]
[]
[null,null,"Jumlah Skor",null,{"$f":"SUM(L50:O54)","v":0}]
[null,null,"NILAI KOMPOTENSI 5",null,{"$f":"(E55/(3*2))*100","v":{"v":0,"d":"0.00"}}]
[]
[{"$nulls":4},{"$f":"DATA!$H$20&\", \"&DATA!$C$13&\" \"&DATA!$D$13&\" \"&DATA!$E$13","v":"Serang, 16 Oktober 2024"}]
[{"$nulls":3},"Penilai,","Guru yang dinilai,"]
[]
[]
[]
[{"$nulls":3},{"$f":"DATA!$H$12","v":"Nasuhi, S.Pd.I"},{"$f":"DATA!$C$3","v":"NINA HERLINA, S.Pd"}]
[{"$nulls":3},{"$f":"\"NIP. \"&DATA!$H$13","v":"NIP. lake"},{"$f":"\"NIP. \"&DATA!$C$4","v":"NIP. -"}]

{"sheet":"PKKM-WKSis","index":8,"n_rows":63,"n_cols":14,"rows_kept":63,"merged":[[0,1,0,8],[2,2,2,7],[3,2,3,7],[4,2,4,7],[5,2,5,7],[6,2,7,3],[6,4,6,6],[15,2,15,3],[15,4,15,7],[16,2,16,3],[16,4,16,7],[17,2,17,7],[28,2,28,3],[28,4,28,7],[29,2,29,3],[29,4,29,7],[30,2,30,7],[38,2,38,3],[38,4,38,7],[39,2,39,3],[39,4,39,7],[40,2,40,7],[46,2,46,3],[46,4,46,7],[47,2,47,3],[47,4,47,7],[48,2,48,7],[53,2,53,3],[53,4,53,7],[54,2,54,3],[54,4,54,7]]}
[null,"KEMENTERIAN AGAMA KABUPATEN GRESIK",{"$nulls":7},{"$f":"'N-GR'!G21","v":{"v":0,"d":"0.00"}}]
[{"$nulls":9},{"$f":"IF(J1=0,\"\",IF(J1>=91,\"Amat Baik\",IF(J1>=76,\"Baik\",IF(J1>=61,\"Cukup\",IF(J1>=51,\"Sedang\",IF(J1<=50,\"Kurang\"))))))","v":""}]
[null,null,"INSTRUMEN PENILAIAN KINERJA WAKA KESISWAAN"]
[null,null,{"$f":"\"Nama guru yang dinilai : \"&DATA!$C$3","v":"Nama guru yang dinilai : NINA HERLINA, S.Pd"}]
[null,null,{"$f":"\"Tanggal Penilaian            : \"&DATA!$C$13&\" \"&DATA!$D$13&\" \"&DATA!$E$13","v":"Tanggal Penilaian            : 16 Oktober 2024"}]
[null,null,"1.   Kompetensi : Kepribadian dan Sosial"]
[null,null,"KRITERIA",null,"SKOR"]
[{"$nulls":4},0,1,2,4]
[null,null,1,"Berakhlak mulia, mengembangkan budaya dan tradisi akhlak mulia, dan menjadi teladan akhlak mulia bagi komunitas di sekolah/madrasah.",{"$nulls":7},{"$f":"IF(E9=\"X\",0,\"\")","v":""},{"$f":"IF(F9=\"X\",1,\"\")","v":""},{"$f":"IF(G9=\"X\",2,\"\")","v":""}]
[null,null,2,"Melaksanakan tugas pokok dan fungsi sebagai wakil kepala sekolah dengan penuh kejujuran, ketulusan, komitmen, dan integritas.",{"$nulls":7},{"$f":"IF(E10=\"X\",0,\"\")","v":""},{"$f":"IF(F10=\"X\",1,\"\")","v":""},{"$f":"IF(G10=\"X\",2,\"\")","v":""}]
[null,null,3,"Bersikap terbuka dalam melaksanakan tugas pokok dan fungsi sebagai wakil kepala sekolah/madrasah.",{"$nulls":7},"","",""]
[null,null,4,"Mengendalikan diri dalam menghadapi masalah dan tantangan sebagai wakil kepala sekolah/madrasah.",{"$nulls":7},"","",""]
[null,null,5,"Berpartisipasi dalam kegiatan social kemasyarakatan.",{"$nulls":7},"","",""]
[null,null,6,"Tanggap dan peduli terhadap kepentingan orang atau kelompok lain.",{"$nulls":7},"","",""]
[null,null,7,"Mengembangkan dan mengelola hubungan sekolah/madrasah dengan pihak lain di luar sekolah dalam rangka mendapatkan dukungan ide, sumber belajar, dan pembiayaan sekolah/madrasah.",{"$nulls":7},"","",""]
[null,null,"Jumlah Skor",null,{"$f":"SUM(L9:O15)","v":0}]
[null,null,"NILAI KOMPOTENSI 1",null,{"$f":"(E16/(7*2))*100","v":{"v":0,"d":"0.00"}}]
[null,null,"2.   Kompetensi : Kepemimpinan"]
[null,null,1,"Bertindak sesuai dengan visi dan misi sekolah/madrasah.",{"$nulls":7},{"$f":"IF(E19=\"X\",0,\"\")","v":""},{"$f":"IF(F19=\"X\",1,\"\")","v":""},{"$f":"IF(G19=\"X\",2,\"\")","v":""}]
[null,null,2,"Merumuskan tujuan yang menantang diri sendiri dan orang lain untuk mencapai standard yang tinggi.",{"$nulls":7},"","",""]
[null,null,3,"Mengembangkan sekolah/madrasah menuju organisasi pembelajaran (learning organization).",{"$nulls":7},"","",""]
[null,null,4,"Menciptakan budaya dan iklim sekolah/madrasah yang kondusif dan inovatif bagi pembelajaran.",{"$nulls":7},"","",""]
[null,null,5,"Memegang teguh tujuan sekolah dengan menjadi contoh dan bertindak sebagai pemimpin pembelajaran.",{"$nulls":7},"","",""]
[null,null,6,"Melaksanakan kepemimpinan yang inspiratif.",{"$nulls":7},"","",""]
[null,null,7,"Membangun rasa saling percaya dan memfasilitasi kerjasama dalam rangka untuk menciptakan kolaborasi yang kuat diantara warga sekolah/madrasah",{"$nulls":7},"","",""]
[null,null,8,"Bekerja keras untuk mencapai keberhasilan sekolah/madrasah sebagai organisasi pembelajar yang efektif.",{"$nulls":7},"","",""]
[null,null,9,"Mengembangan kurikulum dan kegiatan pembelajaran sesuai dengan visi, misi, dan tujuan sekolah.",{"$nulls":7},"","",""]
[null,null,10,"Mengelola peserta didik dalam rangka pengembangan kapasitasnya secara optimal.",{"$nulls":7},"","",""]
[null,null,"Jumlah Skor",null,{"$f":"SUM(L19:O28)","v":0}]
[null,null,"NILAI KOMPOTENSI 2",null,{"$f":"(E29/(10*2))*100","v":{"v":0,"d":"0.00"}}]
[null,null,"3.   Kompetensi : Pengembangan Sekolah"]
[null,null,1,"Menyusun rencana pengembangan sekolah/madrasah jangka panjang, menengah, dan pendek dalam rangka mencapai visi, misi, dan tujuan sekolah/madrasah.",{"$nulls":7},{"$f":"IF(E32=\"X\",0,\"\")","v":""},{"$f":"IF(F32=\"X\",1,\"\")","v":""},{"$f":"IF(G32=\"X\",2,\"\")","v":""}]
[null,null,2,"Mengembangkan struktur organisasi sekolah/madrasah yang efektif dan efisien sesuai dengan kebutuhan.",{"$nulls":7},{"$f":"IF(E33=\"X\",0,\"\")","v":""},{"$f":"IF(F33=\"X\",1,\"\")","v":""},{"$f":"IF(G33=\"X\",2,\"\")","v":""}]
[null,null,3,"Melaksanakan pengembangan sekolah/ madrasah sesuai dengan rencana jangka panjang, menengah, dan jangka pendek sekolah menuju tercapainya visi, misi, dan tujuan sekolah.",{"$nulls":7},"","",""]
[null,null,4,"Mewujudkan peningkatan kinerja sekolah yang signifikan sesuai dengan visi, misi, tujuan sekolah dan standard nasional pendidikan.",{"$nulls":7},"","",""]
[null,null,5,"Melakukan monitoring, evaluasi, dan pelaporan pelaksanaan program kegiatan sekolah/madrasah dengan prosedur yang tepat.",{"$nulls":7},"","",""]
[null,null,6,"Merencanakan dan menindaklanjuti hasil monitoring, evaluasi, dan pelaporan.",{"$nulls":7},"","",""]
[null,null,7,"Melaksanakan penelitian tindakan sekolah dalam rangka meningkatkan kinerja sekolah/madrasah.",{"$nulls":7},"","",""]
[null,null,"Jumlah Skor",null,{"$f":"SUM(L32:O38)","v":0}]
[null,null,"NILAI KOMPOTENSI 3",null,{"$f":"(E39/(7*2))*100","v":{"v":0,"d":"0.00"}}]
[null,null,"4.   Kompetensi : Kewirausahaan"]
[null,null,1,"Menciptakan inovasi yang bermanfaat bagi pengembangan sekolah/ madrasah.",{"$nulls":7},{"$f":"IF(E42=\"X\",0,\"\")","v":""},{"$f":"IF(F42=\"X\",1,\"\")","v":""},{"$f":"IF(G42=\"X\",2,\"\")","v":""}]
[null,null,2,"Memiliki motivasi yang kuat untuk sukses dalam melaksanakan tugas pokok dan fungsinya sebagai pemimpin pembelajaran.",{"$nulls":7},{"$f":"IF(E43=\"X\",0,\"\")","v":""},{"$f":"IF(F43=\"X\",1,\"\")","v":""},{"$f":"IF(G43=\"X\",2,\"\")","v":""}]
[null,null,3,"Memotivasi warga sekolah untuk sukses dalam melaksanakan tugas pokok dan fungsinya masing‐ masing.",{"$nulls":7},"","",""]
[null,null,4,"Pantang menyerah dan selalu mencari solusi terbaik dalam menghadapi kendala yang dihadapi sekolah/madrasah.",{"$nulls":7},"","",""]
[null,null,5,"Menerapkan nilai dan prinsip‐prinsip kewirausahaan dalam mengembangkan sekolah/madrasah.",{"$nulls":7},"","",""]
[null,null,"Jumlah Skor",null,{"$f":"SUM(L42:O46)","v":0}]
[null,null,"NILAI KOMPOTENSI 4",null,{"$f":"(E47/(5*2))*100","v":{"v":0,"d":"0.00"}}]
[null,null,"5.   Kompetensi  Bidang Tugas Wakasek bidang kesiswaan"]
[null,null,1,"Mengelola peserta didik dalam rangka pengembangan kapasitasnya secara optimal sesuai minat dan bakat masing-masing.",{"$nulls":7},{"$f":"IF(E50=\"X\",0,\"\")","v":""},{"$f":"IF(F50=\"X\",1,\"\")","v":""},{"$f":"IF(G50=\"X\",2,\"\")","v":""}]
[null,null,2,"Mengelola layanan-layanan khusus madrasah dalam mendukung kegiatan pembelajaran dan kegiatan peserta didik di madrasah.",{"$nulls":7},"","",""]
[null,null,3,"Melaksanakan bimbingan kegiatan kepeserta didikan, menegakan disiplin dan tata tertib peserta didik",{"$nulls":7},"","",""]
[]
[null,null,"Jumlah Skor",null,{"$f":"SUM(L50:O53)","v":0}]
[null,null,"NILAI KOMPOTENSI 5",null,{"$f":"(E54/(3*2))*100","v":{"v":0,"d":"0.00"}}]
[]
[{"$nulls":4},{"$f":"DATA!$H$20&\", \"&DATA!$C$13&\" \"&DATA!$D$13&\" \"&DATA!$E$13","v":"Serang, 16 Oktober 2024"}]
[{"$nulls":3},"Penilai,","Guru yang dinilai,"]
[]
[]
[]
[{"$nulls":3},{"$f":"DATA!$H$12","v":"Nasuhi, S.Pd.I"},{"$f":"DATA!$C$3","v":"NINA HERLINA, S.Pd"}]
[{"$nulls":3},{"$f":"\"NIP. \"&DATA!$H$13","v":"NIP. lake"},{"$f":"\"NIP. \"&DATA!$C$4","v":"NIP. -"}]

{"sheet":"PKKM-WKSarpras","index":9,"n_rows":62,"n_cols":14,"rows_kept":62,"merged":[[0,1,0,8],[2,2,2,7],[3,2,3,7],[4,2,4,7],[5,2,5,7],[6,2,7,3],[6,4,6,6],[15,2,15,3],[15,4,15,7],[16,2,16,3],[16,4,16,7],[17,2,17,7],[28,2,28,3],[28,4,28,7],[29,2,29,3],[29,4,29,7],[30,2,30,7],[38,2,38,3],[38,4,38,7],[39,2,39,3],[39,4,39,7],[40,2,40,7],[46,2,46,3],[46,4,46,7],[47,2,47,3],[47,4,47,7],[48,2,48,7],[52,2,52,3],[52,4,52,7],[53,2,53,3],[53,4,53,7]]}
[null,"KEMENTERIAN AGAMA KABUPATEN GRESIK",{"$nulls":7},{"$f":"'N-GR'!H21","v":{"v":0,"d":"0.00"}}]
[{"$nulls":9},{"$f":"IF(J1=0,\"\",IF(J1>=91,\"Amat Baik\",IF(J1>=76,\"Baik\",IF(J1>=61,\"Cukup\",IF(J1>=51,\"Sedang\",IF(J1<=50,\"Kurang\"))))))","v":""}]
[null,null,"INSTRUMEN PENILAIAN KINERJA WAKA SARPRAS"]
[null,null,{"$f":"\"Nama guru yang dinilai : \"&DATA!$C$3","v":"Nama guru yang dinilai : NINA HERLINA, S.Pd"}]
[null,null,{"$f":"\"Tanggal Penilaian           : \"&DATA!$C$13&\" \"&DATA!$D$13&\" \"&DATA!$E$13","v":"Tanggal Penilaian           : 16 Oktober 2024"}]
[null,null,"1.   Kompetensi : Kepribadian dan Sosial"]
[null,null,"KRITERIA",null,"SKOR"]
[{"$nulls":4},0,1,2,4]
[null,null,1,"Berakhlak mulia, mengembangkan budaya dan tradisi akhlak mulia, dan menjadi teladan akhlak mulia bagi komunitas di sekolah/madrasah.","X",{"$nulls":6},{"$f":"IF(E9=\"X\",0,\"\")","v":0},{"$f":"IF(F9=\"X\",1,\"\")","v":""},{"$f":"IF(G9=\"X\",2,\"\")","v":""}]
[null,null,2,"Melaksanakan tugas pokok dan fungsi sebagai wakil kepala sekolah dengan penuh kejujuran, ketulusan, komitmen, dan integritas.",{"$nulls":7},{"$f":"IF(E10=\"X\",0,\"\")","v":""},{"$f":"IF(F10=\"X\",1,\"\")","v":""},{"$f":"IF(G10=\"X\",2,\"\")","v":""}]
[null,null,3,"Bersikap terbuka dalam melaksanakan tugas pokok dan fungsi sebagai wakil kepala sekolah/madrasah.",{"$nulls":7},"","",""]
[null,null,4,"Mengendalikan diri dalam menghadapi masalah dan tantangan sebagai wakil kepala sekolah/madrasah.",{"$nulls":7},"","",""]
[null,null,5,"Berpartisipasi dalam kegiatan social kemasyarakatan.",{"$nulls":7},"","",""]
[null,null,6,"Tanggap dan peduli terhadap kepentingan orang atau kelompok lain.",{"$nulls":7},"","",""]
[null,null,7,"Mengembangkan dan mengelola hubungan sekolah/madrasah dengan pihak lain di luar sekolah dalam rangka mendapatkan dukungan ide, sumber belajar, dan pembiayaan sekolah/madrasah.",{"$nulls":7},"","",""]
[null,null,"Jumlah Skor",null,{"$f":"SUM(L9:O15)","v":0}]
[null,null,"NILAI KOMPOTENSI 1",null,{"$f":"(E16/(7*2))*100","v":{"v":0,"d":"0.00"}}]
[null,null,"2.   Kompetensi : Kepemimpinan"]
[null,null,1,"Bertindak sesuai dengan visi dan misi sekolah/madrasah.",{"$nulls":7},{"$f":"IF(E19=\"X\",0,\"\")","v":""},{"$f":"IF(F19=\"X\",1,\"\")","v":""},{"$f":"IF(G19=\"X\",2,\"\")","v":""}]
[null,null,2,"Merumuskan tujuan yang menantang diri sendiri dan orang lain untuk mencapai standard yang tinggi.",{"$nulls":7},"","",""]
[null,null,3,"Mengembangkan sekolah/madrasah menuju organisasi pembelajaran (learning organization).",{"$nulls":7},{"$f":"IF(E21=\"X\",0,\"\")","v":""},{"$f":"IF(F21=\"X\",1,\"\")","v":""},{"$f":"IF(G21=\"X\",2,\"\")","v":""}]
[null,null,4,"Menciptakan budaya dan iklim sekolah/madrasah yang kondusif dan inovatif bagi pembelajaran.",{"$nulls":7},"","",""]
[null,null,5,"Memegang teguh tujuan sekolah dengan menjadi contoh dan bertindak sebagai pemimpin pembelajaran.",{"$nulls":7},"","",""]
[null,null,6,"Melaksanakan kepemimpinan yang inspiratif.",{"$nulls":7},"","",""]
[null,null,7,"Membangun rasa saling percaya dan memfasilitasi kerjasama dalam rangka untuk menciptakan kolaborasi yang kuat diantara warga sekolah/madrasah",{"$nulls":7},"","",""]
[null,null,8,"Bekerja keras untuk mencapai keberhasilan sekolah/madrasah sebagai organisasi pembelajar yang efektif.",{"$nulls":7},"","",""]
[null,null,9,"Mengembangan kurikulum dan kegiatan pembelajaran sesuai dengan visi, misi, dan tujuan sekolah.",{"$nulls":7},"","",""]
[null,null,10,"Mengelola peserta didik dalam rangka pengembangan kapasitasnya secara optimal.",{"$nulls":7},"","",""]
[null,null,"Jumlah Skor",null,{"$f":"SUM(L19:O28)","v":0}]
[null,null,"NILAI KOMPOTENSI 2",null,{"$f":"(E29/(10*2))*100","v":{"v":0,"d":"0.00"}}]
[null,null,"3.   Kompetensi : Pengembangan Sekolah"]
[null,null,1,"Menyusun rencana pengembangan sekolah/madrasah jangka panjang, menengah, dan pendek dalam rangka mencapai visi, misi, dan tujuan sekolah/madrasah.",{"$nulls":7},{"$f":"IF(E32=\"X\",0,\"\")","v":""},{"$f":"IF(F32=\"X\",1,\"\")","v":""},{"$f":"IF(G32=\"X\",2,\"\")","v":""}]
[null,null,2,"Mengembangkan struktur organisasi sekolah/madrasah yang efektif dan efisien sesuai dengan kebutuhan.",{"$nulls":7},"","",""]
[null,null,3,"Melaksanakan pengembangan sekolah/ madrasah sesuai dengan rencana jangka panjang, menengah, dan jangka pendek sekolah menuju tercapainya visi, misi, dan tujuan sekolah.",{"$nulls":7},"","",""]
[null,null,4,"Mewujudkan peningkatan kinerja sekolah yang signifikan sesuai dengan visi, misi, tujuan sekolah dan standard nasional pendidikan.",{"$nulls":7},"","",""]
[null,null,5,"Melakukan monitoring, evaluasi, dan pelaporan pelaksanaan program kegiatan sekolah/madrasah dengan prosedur yang tepat.",{"$nulls":7},"","",""]
[null,null,6,"Merencanakan dan menindaklanjuti hasil monitoring, evaluasi, dan pelaporan.",{"$nulls":7},"","",""]
[null,null,7,"Melaksanakan penelitian tindakan sekolah dalam rangka meningkatkan kinerja sekolah/madrasah.",{"$nulls":7},"","",""]
[null,null,"Jumlah Skor",null,{"$f":"SUM(L32:O38)","v":0}]
[null,null,"NILAI KOMPOTENSI 3",null,{"$f":"(E39/(7*2))*100","v":{"v":0,"d":"0.00"}}]
[null,null,"4.   Kompetensi : Kewirausahaan"]
[null,null,1,"Menciptakan inovasi yang bermanfaat bagi pengembangan sekolah/ madrasah.",{"$nulls":7},{"$f":"IF(E42=\"X\",0,\"\")","v":""},{"$f":"IF(F42=\"X\",1,\"\")","v":""},{"$f":"IF(G42=\"X\",2,\"\")","v":""}]
[null,null,2,"Memiliki motivasi yang kuat untuk sukses dalam melaksanakan tugas pokok dan fungsinya sebagai pemimpin pembelajaran.",{"$nulls":7},"","",""]
[null,null,3,"Memotivasi warga sekolah untuk sukses dalam melaksanakan tugas pokok dan fungsinya masing‐ masing.",{"$nulls":7},"","",""]
[null,null,4,"Pantang menyerah dan selalu mencari solusi terbaik dalam menghadapi kendala yang dihadapi sekolah/madrasah.",{"$nulls":7},"","",""]
[null,null,5,"Menerapkan nilai dan prinsip‐prinsip kewirausahaan dalam mengembangkan sekolah/madrasah.",{"$nulls":7},"","",""]
[null,null,"Jumlah Skor",null,{"$f":"SUM(L42:O46)","v":0}]
[null,null,"NILAI KOMPOTENSI 4",null,{"$f":"(E47/(5*2))*100","v":{"v":0,"d":"0.00"}}]
[null,null,"5.   Kompetensi  Bidang Tugas Wakasek bidang Sarana dan Prasarana"]
[null,null,1,"Mengelola dan mendayagunakan sarana dan prasarana madrasah secara optimal untuk kepentingan pembelajaran.",{"$nulls":7},{"$f":"IF(E50=\"X\",0,\"\")","v":""},{"$f":"IF(F50=\"X\",1,\"\")","v":""},{"$f":"IF(G50=\"X\",2,\"\")","v":""}]
[null,null,2,"Mengelola lingkungan madrasah yang menjamin keamanan, keselamatan, dan kesehatan.",{"$nulls":7},"","",""]
[null,null,3,"Mengelola sarana sistem informasi madrasah dalam mendukung penyusunan program dan pengambilan keputusan.",{"$nulls":7},"","",""]
[null,null,"Jumlah Skor",null,{"$f":"SUM(L50:O52)","v":0}]
[null,null,"NILAI KOMPOTENSI 5",null,{"$f":"(E53/(3*2))*100","v":{"v":0,"d":"0.00"}}]
[]
[{"$nulls":4},{"$f":"DATA!$H$20&\", \"&DATA!$C$13&\" \"&DATA!$D$13&\" \"&DATA!$E$13","v":"Serang, 16 Oktober 2024"}]
[{"$nulls":3},"Penilai,","Guru yang dinilai,"]
[]
[]
[]
[{"$nulls":3},{"$f":"DATA!$H$12","v":"Nasuhi, S.Pd.I"},{"$f":"DATA!$C$3","v":"NINA HERLINA, S.Pd"}]
[{"$nulls":3},{"$f":"\"NIP. \"&DATA!$H$13","v":"NIP. lake"},{"$f":"\"NIP. \"&DATA!$C$4","v":"NIP. -"}]

{"sheet":"PKKM-WKHumas","index":10,"n_rows":62,"n_cols":15,"rows_kept":62,"merged":[[0,1,0,8],[2,2,2,7],[3,2,3,7],[4,2,4,7],[5,2,5,7],[6,2,7,3],[6,4,6,6],[15,2,15,3],[15,4,15,7],[16,2,16,3],[16,4,16,7],[17,2,17,7],[28,2,28,3],[28,4,28,7],[29,2,29,3],[29,4,29,7],[30,2,30,7],[38,2,38,3],[38,4,38,7],[39,2,39,3],[39,4,39,7],[40,2,40,7],[46,2,46,3],[46,4,46,7],[47,2,47,3],[47,4,47,7],[48,2,48,7],[52,2,52,3],[52,4,52,7],[53,2,53,3],[53,4,53,7]]}
[null,"KEMENTERIAN AGAMA KABUPATEN GRESIK",{"$nulls":7},{"$f":"'N-GR'!I21","v":{"v":0,"d":"0.00"}}]
[{"$nulls":9},{"$f":"IF(J1=0,\"\",IF(J1>=91,\"Amat Baik\",IF(J1>=76,\"Baik\",IF(J1>=61,\"Cukup\",IF(J1>=51,\"Sedang\",IF(J1<=50,\"Kurang\"))))))","v":""}]
[null,null,"INSTRUMEN PENILAIAN KINERJA WAKA HUMAS"]
[null,null,{"$f":"\"Nama guru yang dinilai : \"&DATA!$C$3","v":"Nama guru yang dinilai : NINA HERLINA, S.Pd"}]
[null,null,{"$f":"\"Tanggal Penilaian           : \"&DATA!$C$13&\" \"&DATA!$D$13&\" \"&DATA!$E$13","v":"Tanggal Penilaian           : 16 Oktober 2024"}]
[null,null,"1.   Kompetensi : Kepribadian dan Sosial"]
[null,null,"KRITERIA",null,"SKOR"]
[{"$nulls":4},0,1,2]
[null,null,1,"Berakhlak mulia, mengembangkan budaya dan tradisi akhlak mulia, dan menjadi teladan akhlak mulia bagi komunitas di sekolah/madrasah.",{"$nulls":7},{"$f":"IF(E9=\"X\",0,\"\")","v":""},{"$f":"IF(F9=\"X\",1,\"\")","v":""},{"$f":"IF(G9=\"X\",2,\"\")","v":""},{"$f":"IF(H9=\"X\",4,\"\")","v":""}]
[null,null,2,"Melaksanakan tugas pokok dan fungsi sebagai wakil kepala sekolah dengan penuh kejujuran, ketulusan, komitmen, dan integritas.",{"$nulls":7},{"$f":"IF(E10=\"X\",0,\"\")","v":""},{"$f":"IF(F10=\"X\",1,\"\")","v":""},{"$f":"IF(G10=\"X\",2,\"\")","v":""},{"$f":"IF(H10=\"X\",4,\"\")","v":""}]
[null,null,3,"Bersikap terbuka dalam melaksanakan tugas pokok dan fungsi sebagai wakil kepala sekolah/madrasah.",{"$nulls":7},"","","",""]
[null,null,4,"Mengendalikan diri dalam menghadapi masalah dan tantangan sebagai wakil kepala sekolah/madrasah.",{"$nulls":7},"","","",""]
[null,null,5,"Berpartisipasi dalam kegiatan sosial kemasyarakatan.",{"$nulls":7},"","","",""]
[null,null,6,"Tanggap dan peduli terhadap kepentingan orang atau kelompok lain.",{"$nulls":7},"","","",""]
[null,null,7,"Mengembangkan dan mengelola hubungan sekolah/madrasah dengan pihak lain di luar sekolah dalam rangka mendapatkan dukungan ide, sumber belajar, dan pembiayaan sekolah/madrasah.",{"$nulls":7},"","","",""]
[null,null,"Jumlah Skor",null,{"$f":"SUM(L9:O15)","v":0}]
[null,null,"NILAI KOMPOTENSI 1",null,{"$f":"(E16/(7*2))*100","v":{"v":0,"d":"0.00"}}]
[null,null,"2.   Kompetensi : Kepemimpinan"]
[null,null,1,"Bertindak sesuai dengan visi dan misi sekolah/madrasah.",{"$nulls":7},{"$f":"IF(E19=\"X\",0,\"\")","v":""},{"$f":"IF(F19=\"X\",1,\"\")","v":""},{"$f":"IF(G19=\"X\",2,\"\")","v":""},{"$f":"IF(H19=\"X\",4,\"\")","v":""}]
[null,null,2,"Merumuskan tujuan yang menantang diri sendiri dan orang lain untuk mencapai standard yang tinggi.",{"$nulls":7},{"$f":"IF(E20=\"X\",0,\"\")","v":""},{"$f":"IF(F20=\"X\",1,\"\")","v":""},{"$f":"IF(G20=\"X\",2,\"\")","v":""},{"$f":"IF(H20=\"X\",4,\"\")","v":""}]
[null,null,3,"Mengembangkan sekolah/madrasah menuju organisasi pembelajaran (learning organization).",{"$nulls":7},"","","",""]
[null,null,4,"Menciptakan budaya dan iklim sekolah/madrasah yang kondusif dan inovatif bagi pembelajaran.",{"$nulls":7},"","","",""]
[null,null,5,"Memegang teguh tujuan sekolah dengan menjadi contoh dan bertindak sebagai pemimpin pembelajaran.",{"$nulls":7},"","","",""]
[null,null,6,"Melaksanakan kepemimpinan yang inspiratif.",{"$nulls":7},"","","",""]
[null,null,7,"Membangun rasa saling percaya dan memfasilitasi kerjasama dalam rangka untuk menciptakan kolaborasi yang kuat diantara warga sekolah/madrasah",{"$nulls":7},"","","",""]
[null,null,8,"Bekerja keras untuk mencapai keberhasilan sekolah/madrasah sebagai organisasi pembelajar yang efektif.",{"$nulls":7},"","","",""]
[null,null,9,"Mengembangan kurikulum dan kegiatan pembelajaran sesuai dengan visi, misi, dan tujuan sekolah.",{"$nulls":7},"","","",""]
[null,null,10,"Mengelola peserta didik dalam rangka pengembangan kapasitasnya secara optimal.",{"$nulls":7},"","","",""]
[null,null,"Jumlah Skor",null,{"$f":"SUM(L19:O28)","v":0}]
[null,null,"NILAI KOMPOTENSI 2",null,{"$f":"(E29/(10*2))*100","v":{"v":0,"d":"0.00"}}]
[null,null,"3.   Kompetensi : Pengembangan Sekolah"]
[null,null,1,"Menyusun rencana pengembangan sekolah/madrasah jangka panjang, menengah, dan pendek dalam rangka mencapai visi, misi, dan tujuan sekolah/madrasah.",{"$nulls":7},{"$f":"IF(E32=\"X\",0,\"\")","v":""},{"$f":"IF(F32=\"X\",1,\"\")","v":""},{"$f":"IF(G32=\"X\",2,\"\")","v":""},{"$f":"IF(H32=\"X\",4,\"\")","v":""}]
[null,null,2,"Mengembangkan struktur organisasi sekolah/madrasah yang efektif dan efisien sesuai dengan kebutuhan.",{"$nulls":7},"","","",""]
[null,null,3,"Melaksanakan pengembangan sekolah/ madrasah sesuai dengan rencana jangka panjang, menengah, dan jangka pendek sekolah menuju tercapainya visi, misi, dan tujuan sekolah.",{"$nulls":7},"","","",""]
[null,null,4,"Mewujudkan peningkatan kinerja sekolah yang signifikan sesuai dengan visi, misi, tujuan sekolah dan standard nasional pendidikan.",{"$nulls":7},"","","",""]
[null,null,5,"Melakukan monitoring, evaluasi, dan pelaporan pelaksanaan program kegiatan sekolah/madrasah dengan prosedur yang tepat.",{"$nulls":7},"","","",""]
[null,null,6,"Merencanakan dan menindaklanjuti hasil monitoring, evaluasi, dan pelaporan.",{"$nulls":7},"","","",""]
[null,null,7,"Melaksanakan penelitian tindakan sekolah dalam rangka meningkatkan kinerja sekolah/madrasah.",{"$nulls":7},"","","",""]
[null,null,"Jumlah Skor",null,{"$f":"SUM(L32:O38)","v":0}]
[null,null,"NILAI KOMPOTENSI 3",null,{"$f":"(E39/(7*2))*100","v":{"v":0,"d":"0.00"}}]
[null,null,"4.   Kompetensi : Kewirausahaan"]
[null,null,1,"Menciptakan inovasi yang bermanfaat bagi pengembangan sekolah/ madrasah.",{"$nulls":7},{"$f":"IF(E42=\"X\",0,\"\")","v":""},{"$f":"IF(F42=\"X\",1,\"\")","v":""},{"$f":"IF(G42=\"X\",2,\"\")","v":""},{"$f":"IF(H42=\"X\",4,\"\")","v":""}]
[null,null,2,"Memiliki motivasi yang kuat untuk sukses dalam melaksanakan tugas pokok dan fungsinya sebagai pemimpin pembelajaran.",{"$nulls":7},"","","",""]
[null,null,3,"Memotivasi warga sekolah untuk sukses dalam melaksanakan tugas pokok dan fungsinya masing‐ masing.",{"$nulls":7},"","","",""]
[null,null,4,"Pantang menyerah dan selalu mencari solusi terbaik dalam menghadapi kendala yang dihadapi sekolah/madrasah.",{"$nulls":7},"","","",""]
[null,null,5,"Menerapkan nilai dan prinsip‐prinsip kewirausahaan dalam mengembangkan sekolah/madrasah.",{"$nulls":7},"","","",""]
[null,null,"Jumlah Skor",null,{"$f":"SUM(L42:O46)","v":0}]
[null,null,"NILAI KOMPOTENSI 4",null,{"$f":"(E47/(5*2))*100","v":{"v":0,"d":"0.00"}}]
[null,null,"5.   Kompetensi  Bidang Tugas Wakasek bidang Humas"]
[null,null,1,"Membangun jejaring kerja sama dengan pihak luar.",{"$nulls":7},{"$f":"IF(E50=\"X\",0,\"\")","v":""},{"$f":"IF(F50=\"X\",1,\"\")","v":""},{"$f":"IF(G50=\"X\",2,\"\")","v":""},{"$f":"IF(H50=\"X\",4,\"\")","v":""}]
[null,null,2,"Mengelola hubungan madrasah dengan pihak lain di luar madrasah dalam rangka mendapatkan dukungan ide, sumber belajar, dan pembiayaan madrasah.",{"$nulls":7},"","","",""]
[null,null,3,"Mempublisasikan kebijakan, program Madrasah dan prestasi madrasah pada pihak diluar madrasah.",{"$nulls":7},"","","",""]
[null,null,"Jumlah Skor",null,{"$f":"SUM(L50:O52)","v":0}]
[null,null,"NILAI KOMPOTENSI 5",null,{"$f":"(E53/(3*2))*100","v":{"v":0,"d":"0.00"}}]
[]
[{"$nulls":4},{"$f":"DATA!$H$20&\", \"&DATA!$C$13&\" \"&DATA!$D$13&\" \"&DATA!$E$13","v":"Serang, 16 Oktober 2024"}]
[{"$nulls":3},"Penilai,","Guru yang dinilai,"]
[]
[]
[]
[{"$nulls":3},{"$f":"DATA!$H$12","v":"Nasuhi, S.Pd.I"},{"$f":"DATA!$C$3","v":"NINA HERLINA, S.Pd"}]
[{"$nulls":3},{"$f":"\"NIP. \"&DATA!$H$13","v":"NIP. lake"},{"$f":"\"NIP. \"&DATA!$C$4","v":"NIP. -"}]

{"sheet":"PKKM-LAB","index":11,"n_rows":74,"n_cols":15,"rows_kept":74,"merged":[[0,1,0,8],[2,2,2,7],[3,2,3,7],[4,2,4,7],[6,2,7,3],[6,4,6,6],[19,2,19,3],[19,4,19,7],[20,2,20,3],[20,4,20,7],[25,2,25,3],[25,4,25,7],[26,2,26,3],[26,4,26,7],[33,2,33,3],[33,4,33,7],[34,2,34,3],[34,4,34,7],[41,2,41,3],[41,4,41,7],[42,2,42,3],[42,4,42,7],[48,2,48,3],[48,4,48,7],[49,2,49,3],[49,4,49,7],[56,2,56,3],[56,4,56,7],[57,2,57,3],[57,4,57,7],[64,2,64,3],[64,4,64,7],[65,2,65,3],[65,4,65,7]]}
[null,"KEMENTERIAN AGAMA KABUPATEN GRESIK",{"$nulls":7},{"$f":"'N-GR'!J21","v":{"v":0,"d":"0.00"}}]
[{"$nulls":9},{"$f":"IF(J1=0,\"\",IF(J1>=91,\"Amat Baik\",IF(J1>=76,\"Baik\",IF(J1>=61,\"Cukup\",IF(J1>=51,\"Sedang\",IF(J1<=50,\"Kurang\"))))))","v":""}]
[null,null,"INSTRUMEN PENILAIAN KINERJA KEPALA LABORATORIUM"]
[null,null,{"$f":"\"Nama guru yang dinilai : \"&DATA!$C$3","v":"Nama guru yang dinilai : NINA HERLINA, S.Pd"}]
[null,null,{"$f":"\"Tanggal Penilaian            : \"&DATA!$C$13&\" \"&DATA!$D$13&\" \"&DATA!$E$13","v":"Tanggal Penilaian            : 16 Oktober 2024"}]
[null,null,"1. Kompetensi :  Kepribadian"]
[null,null,"KRITERIA",null,"SKOR"]
[{"$nulls":4},0,1,2]
[null,null,1,"Berperilaku arif dalam bertindak dan memecahkan masalah ",{"$nulls":7},{"$f":"IF(E9=\"X\",0,\"\")","v":""},{"$f":"IF(F9=\"X\",1,\"\")","v":""},{"$f":"IF(G9=\"X\",2,\"\")","v":""},{"$f":"(SUM(L9:N9)/2)*100","v":0}]
[null,null,2,"Berperilaku jujur atas semua informasi kedinasan ",{"$nulls":7},{"$f":"IF(E10=\"X\",0,\"\")","v":""},{"$f":"IF(F10=\"X\",1,\"\")","v":""},{"$f":"IF(G10=\"X\",2,\"\")","v":""},{"$f":"(SUM(L10:N10)/2)*100","v":0}]
[null,null,3,"Menunjukkan kemandirian dalam bekerja di bidangnya",{"$nulls":7},"","","",0]
[null,null,4,"Menunjukkan rasa percaya diri atas keputusan yang diambil ",{"$nulls":7},"","","",0]
[null,null,5,"Berupaya meningkatkan kemampuan diri di bidangnya",{"$nulls":7},"","","",0]
[null,null,6,"Bertindak secara konsisten sesuai dengan norma agama,hukum, sosial, dan budaya nasional Indonesia",{"$nulls":7},"","","",0]
[null,null,7,"Berperilaku disiplin atas waktu dan aturan",{"$nulls":7},"","","",0]
[null,null,8,"Bertanggung jawab terhadap tugas",{"$nulls":7},"","","",0]
[null,null,9,"Tekun, teliti, dan hati-hati dalam melaksanakan tugas",{"$nulls":7},"","","",0]
[null,null,10,"Kreatif dalam memecahkan masalah yang berkaitan dengan tugas profesinya",{"$nulls":7},"","","",0]
[null,null,11,"Berorientasi pada kualitas dan kepuasan layanan pemakai laboratorium",{"$nulls":7},"","","",0]
[null,null,"Jumlah Skor",null,{"$f":"SUM(L9:N19)","v":0}]
[null,null,"NILAI KOMPOTENSI 1",null,{"$f":"(E20/(11*2))*100","v":{"v":0,"d":"0.00"}}]
[null,null,"2.   Kompetensi :  Berperilaku jujur atas semua informasi kedinasan"]
[null,null,1,"Menyadari kekuatan dan kelemahan diri ",{"$nulls":7},{"$f":"IF(E23=\"X\",0,\"\")","v":""},{"$f":"IF(F23=\"X\",1,\"\")","v":""},{"$f":"IF(G23=\"X\",2,\"\")","v":""},{"$f":"(SUM(L23:N23)/2)*100","v":0}]
[null,null,2,"Bekerja sama dengan berbagai pihak secara efektif ",{"$nulls":7},"","","",0]
[null,null,3,"Berkomunikasi dengan berbagai pihak secara santun, empati,dan efektif.",{"$nulls":7},"","","",0]
[null,null,"Jumlah Skor",null,{"$f":"SUM(L23:N25)","v":0}]
[null,null,"NILAI KOMPOTENSI 2",null,{"$f":"(E26/(3*2))*100","v":{"v":0,"d":"0.00"}}]
[null,null,"3. Kompetensi : Pengelolaan Program dan Administrasi"]
[null,null,1,"Menyusun program pengelolaan laboratorium",{"$nulls":7},{"$f":"IF(E29=\"X\",0,\"\")","v":""},{"$f":"IF(F29=\"X\",1,\"\")","v":""},{"$f":"IF(G29=\"X\",2,\"\")","v":""},{"$f":"(SUM(L29:N29)/2)*100","v":0}]
[null,null,2,"Menyusun jadwal kegiatan laboratorium",{"$nulls":7},"","","",0]
[null,null,3,"Menyusun rencana pengembangan laboratorium",{"$nulls":7},"","","",0]
[null,null,4,"Menyusun prosedur operasi standar (POS) kerja laboratorium",{"$nulls":7},"","","",0]
[null,null,5,"Menyusun laporan kegiatan laboratorium",{"$nulls":7},"","","",0]
[null,null,"Jumlah Skor",null,{"$f":"SUM(L29:N33)","v":0}]
[null,null,"NILAI KOMPOTENSI 3",null,{"$f":"(E34/(5*2))*100","v":{"v":0,"d":"0.00"}}]
[null,null,"4. Kompetensi :  Pengelolaan Pemantauan dan Evaluasi"]
[null,null,1,"Memantau kondisi dan keamanan bahan serta alat laboratorium",{"$nulls":7},{"$f":"IF(E37=\"X\",0,\"\")","v":""},{"$f":"IF(F37=\"X\",1,\"\")","v":""},{"$f":"IF(G37=\"X\",2,\"\")","v":""},{"$f":"(SUM(L37:N37)/2)*100","v":0}]
[null,null,2,"Memantau pelaksanaan kegiatan laboratorium",{"$nulls":7},"","","",0]
[null,null,3,"Membuat laporan bulanan dan tahunan tentang kondisi dan pemanfaatan laboratorium",{"$nulls":7},"","","",0]
[null,null,4,"Membuat laporan kegiatan secara periodik setiap semester",{"$nulls":7},"","","",0]
[null,null,5,"Mengevaluasi program laboratorium untuk perbaikan selanjutnya",{"$nulls":7},"","","",0]
[null,null,"Jumlah Skor",null,{"$f":"SUM(L37:N41)","v":0}]
[null,null,"NILAI KOMPOTENSI 4",null,{"$f":"(E42/(5*2))*100","v":{"v":0,"d":"0.00"}}]
[null,null,"5. Kompetensi :  Pengembangan dan Inovasi"]
[null,null,1,"Mengikuti perkembangan tentang pemanfaatan kegiatan laboratorium sebagai wahana pendidikan",{"$nulls":7},{"$f":"IF(E45=\"X\",0,\"\")","v":""},{"$f":"IF(F45=\"X\",1,\"\")","v":""},{"$f":"IF(G45=\"X\",2,\"\")","v":""},{"$f":"(SUM(L45:N45)/2)*100","v":0}]
[null,null,2,"Menerapkan hasil inovasi atau kajian laboratorium",{"$nulls":7},"","","",0]
[null,null,3,"Merancang kegiatan laboratorium untuk pendidikan dan penelitian",{"$nulls":7},"","","",0]
[null,null,4,"Melaksanakan kegiatan laboratorium untuk kepentingan pendidikan dan penelitian.",{"$nulls":7},"","","",0]
[null,null,"Jumlah Skor",null,{"$f":"SUM(L45:N48)","v":0}]
[null,null,"NILAI KOMPOTENSI 5",null,{"$f":"(E49/(4*2))*100","v":{"v":0,"d":"0.00"}}]
[null,null,"6.   Kompetensi :  Pengelolaan Lingkungan dan K3"]
[null,null,1,"Menyusun panduan/petunjuk praktikum.",{"$nulls":7},{"$f":"IF(E52=\"X\",0,\"\")","v":""},{"$f":"IF(F52=\"X\",1,\"\")","v":""},{"$f":"IF(G52=\"X\",2,\"\")","v":""},{"$f":"(SUM(L52:N52)/2)*100","v":0}]
[null,null,2,"Menetapkan ketentuan mengenai kesehatan dan keselamatan kerja (K3)",{"$nulls":7},"","","",0]
[null,null,3,"Menerapkan ketentuan mengenai kesehatan dan keselamatan kerja (K3).",{"$nulls":7},"","","",0]
[null,null,4,"Menerapkan prosedur penanganan bahan berbahaya dan beracun.",{"$nulls":7},"","","",0]
[null,null,5,"Memantau bahan berbahaya dan beracun, serta peralatan keselamatan kerja.",{"$nulls":7},"","","",0]
[null,null,"Jumlah Skor",null,{"$f":"SUM(L52:N56)","v":0}]
[null,null,"NILAI KOMPOTENSI 6",null,{"$f":"(E57/(5*2))*100","v":{"v":0,"d":"0.00"}}]
[]
[]
[]
[]
[]
[{"$nulls":4},"X"]
[null,null,"Jumlah Skor",null,{"$f":"SUM(L60:O64)","v":0}]
[null,null,"NILAI KOMPOTENSI 7",null,{"$f":"(E65/(5*4))*100","v":{"v":0,"d":"0.00"}}]
[]
[{"$nulls":4},{"$f":"DATA!$H$20&\", \"&DATA!$C$13&\" \"&DATA!$D$13&\" \"&DATA!$E$13","v":"Serang, 16 Oktober 2024"}]
[{"$nulls":3},"Penilai,","Guru yang dinilai,"]
[]
[]
[]
[{"$nulls":3},{"$f":"DATA!$H$12","v":"Nasuhi, S.Pd.I"},{"$f":"DATA!$C$3","v":"NINA HERLINA, S.Pd"}]
[{"$nulls":3},{"$f":"\"NIP. \"&DATA!$H$13","v":"NIP. lake"},{"$f":"\"NIP. \"&DATA!$C$4","v":"NIP. -"}]

{"sheet":"PKKM-PUS","index":12,"n_rows":146,"n_cols":15,"rows_kept":146,"merged":[[0,1,0,8],[2,2,2,7],[3,2,3,7],[4,2,4,7],[5,2,5,3],[7,2,8,3],[7,4,7,6],[14,2,14,3],[14,4,14,7],[15,2,15,3],[15,4,15,7],[23,2,23,3],[23,4,23,7],[24,2,24,3],[24,4,24,7],[25,2,25,3],[32,2,32,3],[32,4,32,7],[33,2,33,3],[33,4,33,7],[39,2,39,3],[39,4,39,7],[40,2,40,3],[40,4,40,7],[41,2,41,3],[47,2,47,3],[47,4,47,7],[48,2,48,3],[48,4,48,7],[54,2,54,3],[54,4,54,7],[55,2,55,3],[55,4,55,7],[61,2,61,3],[61,4,61,7],[62,2,62,3],[62,4,62,7],[63,2,63,3],[68,2,68,3],[68,4,68,7],[69,2,69,3],[69,4,69,7],[74,2,74,3],[74,4,74,7],[75,2,75,3],[75,4,75,7],[80,2,80,3],[80,4,80,7],[81,2,81,3],[81,4,81,7],[86,2,86,3],[86,4,86,7],[87,2,87,3],[87,4,87,7],[97,2,97,3],[97,4,97,7],[98,2,98,3],[98,4,98,7],[104,2,104,3],[104,4,104,7],[105,2,105,3],[105,4,105,7],[111,2,111,3],[111,4,111,7],[112,2,112,3],[112,4,112,7],[118,2,118,3],[118,4,118,7],[119,2,119,3],[119,4,119,7],[129,2,129,3],[129,4,129,7],[130,2,130,3],[130,4,130,7],[136,2,136,3],[136,4,136,7],[137,2,137,3],[137,4,137,7]]}
[null,"KEMENTERIAN AGAMA KABUPATEN GRESIK",{"$nulls":7},{"$f":"'N-GR'!K21","v":{"v":0,"d":"0.00"}}]
[{"$nulls":9},{"$f":"IF(J1=0,\"\",IF(J1>=91,\"Amat Baik\",IF(J1>=76,\"Baik\",IF(J1>=61,\"Cukup\",IF(J1>=51,\"Sedang\",IF(J1<=50,\"Kurang\"))))))","v":""}]
[null,null,"INSTRUMEN PENILAIAN KINERJA KEPALA PERPUSTAKAAN"]
[null,null,{"$f":"\"Nama guru yang dinilai : \"&DATA!$C$3","v":"Nama guru yang dinilai : NINA HERLINA, S.Pd"}]
[null,null,{"$f":"\"Tanggal Penilaian            : \"&DATA!$C$13&\" \"&DATA!$D$13&\" \"&DATA!$E$13","v":"Tanggal Penilaian            : 16 Oktober 2024"}]
[null,null,"1. Pengelolaan Perpustakaan"]
[null,null,"1.1.  Kompetensi : Merencanakan penyelenggaraan kegiatan perpustakaan"]
[null,null,"KRITERIA",null,"SKOR"]
[{"$nulls":4},0,1,2]
[null,null,1,"Memiliki dokumen perumusan visi-misi perpustakaan sekolah/madrasah yang ditetapkan dengan Surat Keputusan Kepala Sekolah/madrasah",{"$nulls":7},{"$f":"IF(E10=\"X\",0,\"\")","v":""},{"$f":"IF(F10=\"X\",1,\"\")","v":""},{"$f":"IF(G10=\"X\",2,\"\")","v":""},{"$f":"(SUM(L10:N10)/2)*100","v":0}]
[null,null,2,"Memiliki naskah kebijakan pengembangan koleksi perpustakaan",{"$nulls":7},{"$f":"IF(E11=\"X\",0,\"\")","v":""},{"$f":"IF(F11=\"X\",1,\"\")","v":""},{"$f":"IF(G11=\"X\",2,\"\")","v":""},{"$f":"(SUM(L11:N11)/2)*100","v":0}]
[null,null,3,"Memiliki dokumen renstra penyelenggaraan kegiatan perpustakaan jangka menengah dan panjang",{"$nulls":7},"","","",0]
[null,null,4,"Memiliki naskah program kerja tahunan penyelenggaraan kegiatan perpustakaan",{"$nulls":7},"","","",0]
[null,null,5,"Memiliki naskah program literasi sekolah",{"$nulls":7},"","","",0]
[null,null,"Jumlah Skor",null,{"$f":"SUM(L10:N14)","v":0}]
[null,null,"NILAI KOMPOTENSI 1",null,{"$f":"(E15/(5*2))*100","v":{"v":0,"d":"0.00"}}]
[null,null,"1.2. Kompetensi :  Melaksanakan monitoring dan evaluasi penyelenggaraan kegiatan perpustakaan"]
[null,null,1,"Memiliki naskah instrumen monitoring dan evaluasi penyelenggaraan kegiatan perpustakaan",{"$nulls":7},{"$f":"IF(E18=\"X\",0,\"\")","v":""},{"$f":"IF(F18=\"X\",1,\"\")","v":""},{"$f":"IF(G18=\"X\",2,\"\")","v":""},{"$f":"(SUM(L18:N18)/2)*100","v":0}]
[null,null,2,"Memiliki laporan pelaksanaan monitoring dan evaluasi penyelenggaraan kegiatan perpustakaan",{"$nulls":7},"","","",0]
[null,null,3,"Memiliki naskah instrumen monitoring dan evaluasi pengembangan sumber daya perpustakaan",{"$nulls":7},"","","",0]
[null,null,4,"Memiliki laporan pelaksanaan monitoring dan evaluasi pengembangan sumber daya perpustakaan",{"$nulls":7},"","","",0]
[null,null,5,"Memiliki naskah instrumen monitoring dan evaluasi anggaran perpustakaan",{"$nulls":7},"","","",0]
[null,null,6,"Memiliki laporan pelaksanaan monitoring dan evaluasi anggaran perpustakaan",{"$nulls":7},"","","",0]
[null,null,"Jumlah Skor",null,{"$f":"SUM(L18:N23)","v":0}]
[null,null,"NILAI KOMPOTENSI 1",null,{"$f":"(E24/(6*2))*100","v":{"v":0,"d":"0.00"}},{"$nulls":9},{"$f":"AVERAGE(O10:O23)","v":0}]
[null,null,"2. Pengelolaan Perpustakaan"]
[null,null,"2.1. Kompetensi : Melaksanakan Pelayanan teknis"]
[null,null,1,"Memiliki laporan jumlah seleksi buku usulan pengadaan bahan perpustakaan pada tiga tahun terakhir",{"$nulls":7},{"$f":"IF(E28=\"X\",0,\"\")","v":""},{"$f":"IF(F28=\"X\",1,\"\")","v":""},{"$f":"IF(G28=\"X\",2,\"\")","v":""},{"$f":"(SUM(L28:N28)/2)*100","v":0}]
[null,null,2,"Memiliki laporan jumlah buku yang diklasifikasi tiga tahun terakhir",{"$nulls":7},"","","",0]
[null,null,3,"Memiliki laporan jumlah buku yang ditentukan tajuk subyek pada tiga tahun terakhir",{"$nulls":7},"","","",0]
[null,null,4,"Memiliki laporan jumlah penyusunan alat telusur/katalog pada tiga tahun terakhir",{"$nulls":7},"","","",0]
[null,null,5,"Memiliki laporan jumlah perawatan koleksi perpustakaan pada tiga tahun terakhir",{"$nulls":7},"","","",0]
[null,null,"Jumlah Skor",null,{"$f":"SUM(L28:N32)","v":0}]
[null,null,"NILAI KOMPOTENSI 1",null,{"$f":"(E33/(5*2))*100","v":{"v":0,"d":"0.00"}}]
[null,null,"2.2. Kompetensi : Melaksanakan Pelayanan pustaka"]
[null,null,1,"Memiliki laporan jumlah pengunjung manual dan online pada tiga tahun terakhir ",{"$nulls":7},{"$f":"IF(E36=\"X\",0,\"\")","v":""},{"$f":"IF(F36=\"X\",1,\"\")","v":""},{"$f":"IF(G36=\"X\",2,\"\")","v":""},{"$f":"(SUM(L36:N36)/2)*100","v":0}]
[null,null,2,"Memiliki laporan jumlah Peminjam dan buku yang dipinjam pada tiga tahun terakhir ",{"$nulls":7},"","","",0]
[null,null,3,"Memiliki laporan jumlah pemustaka yang dilayani jasa rujukan manual dan online pada tiga tahun terakhir ",{"$nulls":7},"","","",0]
[null,null,4,"Memiliki laporan kegiatan pendidikan pemakai pada tiga tahun terakhir",{"$nulls":7},"","","",0]
[null,null,"Jumlah Skor",null,{"$f":"SUM(L36:N39)","v":0}]
[null,null,"NILAI KOMPOTENSI 1",null,{"$f":"(E40/(4*2))*100","v":{"v":0,"d":"0.00"}},{"$nulls":9},{"$f":"AVERAGE(O28:O39)","v":0}]
[null,null,"3. Pengembangan Sistem Kepustakawanan"]
[null,null,"3.1. Kompetensi : Melaksanakan Pengkajian Kepustakawanan"]
[null,null,1,"Memiliki naskah kajian minat baca ",{"$nulls":7},{"$f":"IF(E44=\"X\",0,\"\")","v":""},{"$f":"IF(F44=\"X\",1,\"\")","v":""},{"$f":"IF(G44=\"X\",2,\"\")","v":""},{"$f":"(SUM(L44:N44)/2)*100","v":0}]
[null,null,2,"Memiliki naskah kajian kepuasan pemustaka ",{"$nulls":7},"","","",0]
[null,null,3,"Memiliki naskah kajian keterpakaian perpustakaan dalam pembelajaran ",{"$nulls":7},"","","",0]
[null,null,4,"Memiliki naskah kajian literasi sekolah",{"$nulls":7},"","","",0]
[null,null,"Jumlah Skor",null,{"$f":"SUM(L44:N47)","v":0}]
[null,null,"NILAI KOMPOTENSI 1",null,{"$f":"(E48/(4*2))*100","v":{"v":0,"d":"0.00"}}]
[null,null,"3.2.  Kompetensi : Melaksanakan Pengembangan Kepustakawanan"]
[null,null,1,"Memiliki dokumen promosi perpustakaan ",{"$nulls":7},{"$f":"IF(E51=\"X\",0,\"\")","v":""},{"$f":"IF(F51=\"X\",1,\"\")","v":""},{"$f":"IF(G51=\"X\",2,\"\")","v":""},{"$f":"(SUM(L51:N51)/2)*100","v":0}]
[null,null,2,"Memiliki laporan sosialisasi perpustakaan ",{"$nulls":7},"","","",0]
[null,null,3,"Memiliki laporan literasi perpustakaan ",{"$nulls":7},"","","",0]
[null,null,4,"Memiliki dokumen makalah/tulisan tentang perpustakaan",{"$nulls":7},"","","",0]
[null,null,"Jumlah Skor",null,{"$f":"SUM(L51:N54)","v":0}]
[null,null,"NILAI KOMPOTENSI 1",null,{"$f":"(E55/(4*2))*100","v":{"v":0,"d":"0.00"}}]
[null,null,"3.3. Kompetensi : Melaksanakan Pengembangan Profesi Kepustakawanan"]
[null,null,1,"Memiliki sertifikat kegiatan pendidikan dan pelatihan dan atau bimbingan teknis di bidang Kepustakawanan ",{"$nulls":7},{"$f":"IF(E58=\"X\",0,\"\")","v":""},{"$f":"IF(F58=\"X\",1,\"\")","v":""},{"$f":"IF(G58=\"X\",2,\"\")","v":""},{"$f":"(SUM(L58:N58)/2)*100","v":0}]
[null,null,2,"Memiliki sertifikat kegiatan seminar/lokakarya/konferensi di bidang Kepustakawanan ",{"$nulls":7},"","","",0]
[null,null,3,"Memiliki surat tugas/sertifikat kegiatan magang/studi banding perpustakaan ",{"$nulls":7},"","","",0]
[null,null,4,"Memiliki dokumen kepengurusan/anggota organisasi profesi di bidang Kepustakawanan",{"$nulls":7},"","","",0]
[null,null,"Jumlah Skor",null,{"$f":"SUM(L58:N61)","v":0}]
[null,null,"NILAI KOMPOTENSI 1",null,{"$f":"(E62/(4*2))*100","v":{"v":0,"d":"0.00"}},{"$nulls":9},{"$f":"AVERAGE(O44:O61)","v":0}]
[null,null,"4. Perilaku Kerja"]
[null,null,"4.1. Kompetensi : Melaksanakan Tugas Pelayanan"]
[null,null,1,"Berperilaku sopan ",{"$nulls":7},{"$f":"IF(E66=\"X\",0,\"\")","v":""},{"$f":"IF(F66=\"X\",1,\"\")","v":""},{"$f":"IF(G66=\"X\",2,\"\")","v":""},{"$f":"(SUM(L66:N66)/2)*100","v":0}]
[null,null,2,"Berpenampilan rapi ",{"$nulls":7},"","","",0]
[null,null,3,"Memberikan pelayanan sesuai kebutuhan pemustaka",{"$nulls":7},"","","",0]
[null,null,"Jumlah Skor",null,{"$f":"SUM(L66:N68)","v":0}]
[null,null,"NILAI KOMPOTENSI 1",null,{"$f":"(E69/(3*2))*100","v":{"v":0,"d":"0.00"}}]
[null,null,"4.2. Kompetensi : Memiliki Integritas"]
[null,null,1,"Berperilaku sesuai dengan kode etik pustakawan (mematuhi norma dan etika kepustakawanan) ",{"$nulls":7},{"$f":"IF(E72=\"X\",0,\"\")","v":""},{"$f":"IF(F72=\"X\",1,\"\")","v":""},{"$f":"IF(G72=\"X\",2,\"\")","v":""},{"$f":"(SUM(L72:N72)/2)*100","v":0}]
[null,null,2,"Bertanggungjawab dalam melaksanakan tugas ",{"$nulls":7},"","","",0]
[null,null,3,"Melaksanakan keputusan/kesepakatan yang telah dibuat",{"$nulls":7},"","","",0]
[null,null,"Jumlah Skor",null,{"$f":"SUM(L72:N74)","v":0}]
[null,null,"NILAI KOMPOTENSI 1",null,{"$f":"(E75/(4*2))*100","v":{"v":0,"d":"0.00"}}]
[null,null,"4.3. Kompetensi : Memiliki Kedisiplinan"]
[null,null,1,"Mematuhi aturan jam kerja pegawai ",{"$nulls":7},{"$f":"IF(E78=\"X\",0,\"\")","v":""},{"$f":"IF(F78=\"X\",1,\"\")","v":""},{"$f":"IF(G78=\"X\",2,\"\")","v":""},{"$f":"(SUM(L78:N78)/2)*100","v":0}]
[null,null,2,"Meminta ijin atasan bila meninggalkan tugas ",{"$nulls":7},"","","",0]
[null,null,3,"Melaksanakan tugas tepat waktu",{"$nulls":7},"","","",0]
[null,null,"Jumlah Skor",null,{"$f":"SUM(L78:N80)","v":0}]
[null,null,"NILAI KOMPOTENSI 1",null,{"$f":"(E81/(3*2))*100","v":{"v":0,"d":"0.00"}}]
[null,null,"4.4. Kompetensi : Melaksanakan Kerja sama"]
[null,null,1,"Menghargai atasan ",{"$nulls":7},{"$f":"IF(E84=\"X\",0,\"\")","v":""},{"$f":"IF(F84=\"X\",1,\"\")","v":""},{"$f":"IF(G84=\"X\",2,\"\")","v":""},{"$f":"(SUM(L84:N84)/2)*100","v":0}]
[null,null,2,"Menghargai teman sejawat ",{"$nulls":7},"","","",0]
[null,null,3,"Terlibat dalam aktivitas bersama",{"$nulls":7},"","","",0]
[null,null,"Jumlah Skor",null,{"$f":"SUM(L84:N86)","v":0}]
[null,null,"NILAI KOMPOTENSI 1",null,{"$f":"(E87/(3*2))*100","v":{"v":0,"d":"0.00"}},{"$nulls":9},{"$f":"AVERAGE(O66:O86)","v":0}]
[]
[]
[]
[]
[]
[null,null,5]
[null,null,6]
[null,null,7]
[null,null,8]
[null,null,"Jumlah Skor",null,{"$f":"SUM(L90:O97)","v":0}]
[null,null,"NILAI KOMPOTENSI 1",null,{"$f":"(E98/(4*4))*100","v":{"v":0,"d":"0.00"}}]
[]
[{"$nulls":11},{"$f":"IF(E101=\"X\",1,\"\")","v":""},{"$f":"IF(F101=\"X\",2,\"\")","v":""},{"$f":"IF(G101=\"X\",3,\"\")","v":""},{"$f":"IF(H101=\"X\",4,\"\")","v":""}]
[{"$nulls":11},{"$f":"IF(E102=\"X\",1,\"\")","v":""},{"$f":"IF(F102=\"X\",2,\"\")","v":""},{"$f":"IF(G102=\"X\",3,\"\")","v":""},{"$f":"IF(H102=\"X\",4,\"\")","v":""}]
[{"$nulls":11},{"$f":"IF(E103=\"X\",1,\"\")","v":""},{"$f":"IF(F103=\"X\",2,\"\")","v":""},{"$f":"IF(G103=\"X\",3,\"\")","v":""},{"$f":"IF(H103=\"X\",4,\"\")","v":""}]
[{"$nulls":11},{"$f":"IF(E104=\"X\",1,\"\")","v":""},{"$f":"IF(F104=\"X\",2,\"\")","v":""},{"$f":"IF(G104=\"X\",3,\"\")","v":""},{"$f":"IF(H104=\"X\",4,\"\")","v":""}]
[null,null,"Jumlah Skor",null,{"$f":"SUM(L101:O104)","v":0}]
[null,null,"NILAI KOMPOTENSI 1",null,{"$f":"(E105/(4*4))*100","v":{"v":0,"d":"0.00"}}]
[]
[]
[]
[]
[]
[null,null,"Jumlah Skor",null,{"$f":"SUM(L108:O111)","v":0}]
[null,null,"NILAI KOMPOTENSI 1",null,{"$f":"(E112/(4*4))*100","v":{"v":0,"d":"0.00"}}]
[]
[]
[]
[]
[]
[null,null,"Jumlah Skor",null,{"$f":"SUM(L115:O118)","v":0}]
[null,null,"NILAI KOMPOTENSI 1",null,{"$f":"(E119/(4*4))*100","v":{"v":0,"d":"0.00"}}]
{"$rows_empty":7}
[null,null,7]
[null,null,8]
[null,null,"Jumlah Skor",null,{"$f":"SUM(L122:O129)","v":0}]
[null,null,"NILAI KOMPOTENSI 1",null,{"$f":"(E130/(6*4))*100","v":{"v":0,"d":"0.00"}}]
[]
[]
[]
[]
[]
[null,null,"Jumlah Skor",null,{"$f":"SUM(L133:O136)","v":0}]
[null,null,"NILAI KOMPOTENSI 1",null,{"$f":"(E137/(3*4))*100","v":{"v":0,"d":"0.00"}}]
[]
[{"$nulls":4},{"$f":"DATA!$H$20&\", \"&DATA!$C$13&\" \"&DATA!$D$13&\" \"&DATA!$E$13","v":"Serang, 16 Oktober 2024"}]
[{"$nulls":3},"Penilai,","Guru yang dinilai,"]
[]
[]
[]
[{"$nulls":3},{"$f":"DATA!$H$12","v":"Nasuhi, S.Pd.I"},{"$f":"DATA!$C$3","v":"NINA HERLINA, S.Pd"}]
[{"$nulls":3},{"$f":"\"NIP. \"&DATA!$H$13","v":"NIP. lake"},{"$f":"\"NIP. \"&DATA!$C$4","v":"NIP. -"}]

{"sheet":"REKAP NGR","index":13,"n_rows":129,"n_cols":22,"rows_kept":129,"merged":[[0,1,0,9],[1,1,1,9],[20,1,20,5],[20,8,22,9],[21,1,22,5],[21,6,22,6],[21,7,22,7],[24,2,24,8],[25,1,25,9],[26,2,26,8],[27,2,27,8],[28,2,28,8],[29,2,29,8],[30,2,30,8],[31,2,31,8],[32,2,32,8],[33,2,33,8],[34,1,34,9],[35,2,35,8],[36,2,36,8],[37,2,37,8],[38,2,38,8],[39,1,39,9],[40,2,40,8],[41,2,41,8],[42,2,42,8],[43,1,43,9],[44,2,44,8],[45,2,45,8],[46,1,46,8],[47,1,47,8],[48,2,48,8],[54,4,54,5],[56,1,56,9],[75,1,75,6],[75,7,75,9],[76,1,76,6],[76,7,76,9],[77,1,78,6],[77,7,77,9],[78,7,78,9],[79,7,85,9],[83,1,83,6],[92,4,92,5],[95,1,95,9],[96,1,96,9],[107,4,107,7],[110,2,110,8],[111,2,111,8],[113,2,113,8],[131,2,131,8],[132,2,132,8],[133,2,133,8],[134,2,134,8],[135,2,135,8],[136,2,136,8],[137,2,137,8],[138,2,138,8],[139,2,139,8],[140,2,140,8],[141,2,141,8],[142,2,142,8]]}
[3,"KEMENTERIAN AGAMA KABUPATEN GRESIK"]
[null,"REKAP HASIL PENILAIAN KINERJA GURU KELAS/MATA PELAJARAN"]
[]
[null,"a.","Nama",null,{"$f":"\": \"&DATA!$C$3","v":": NINA HERLINA, S.Pd"}]
[null,null,"NIP",null,{"$f":"\": \"&DATA!$C$4","v":": -"}]
[null,null,"NUPTK",null,{"$f":"\": \"&DATA!$H$4","v":": 12345678987"}]
[null,null,"Tempat/Tanggal Lahir",null,{"$f":"\": \"&DATA!$C$7&\", \"&DATA!$C$8","v":": SERANG, 32227"}]
[null,null,"Pangkat/Jabatan/Golongan",null,{"$f":"\": \"&DATA!$C$10","v":": Penata, III/c"}]
[null,null,"TMT sebagai guru",null,{"$f":"\": \"&DATA!$C$12&\" \"&DATA!$D$12&\" \"&DATA!$E$12","v":": 9 Juli 2021"}]
[null,null,"Masa Kerja",null,{"$f":"\": \"&DATEDIF('REKAP NGR BK'!$S$8,'REKAP NGR BK'!$S$9,\"y\")&\"  Tahun  \"&DATEDIF('REKAP NGR BK'!$S$8,'REKAP NGR BK'!$S$9,\"ym\")&\"  Bulan\"","v":": 3  Tahun  3  Bulan"}]
[null,null,"Jenis Kelamin",null,{"$f":"\": \"&DATA!$C$6","v":": Perempuan"}]
[null,null,"Pendidikan Terakhir/Spesialisasi",null,{"$f":"\": \"&DATA!$C$9","v":": S-1"}]
[null,null,"Keahlian yang diampu",null,{"$f":"\": \"&DATA!$H$3&\" \"&\"(\"&DATA!$H$5&\")\"","v":": Guru Mapel/Kelas (SKI)"}]
[null,"b.","Nama Instansi/Sekolah",null,{"$f":"\": \"&DATA!$C$17","v":": MTs An-Nawa"}]
[null,null,"Telp/Fax",null,{"$f":"\": \"&DATA!$C$18","v":": 082274788884"}]
[null,null,"Kelurahan",null,{"$f":"\": \"&DATA!$H$18","v":": Mangunreja"}]
[null,null,"Kecamatan",null,{"$f":"\": \"&DATA!$H$19","v":": Pulo Ampel"}]
[null,null,"Kabupaten/Kota",null,{"$f":"\": \"&DATA!$H$20","v":": Serang"}]
[null,null,"Provinsi",null,{"$f":"\": \"&DATA!$H$21","v":": Banten"}]
[]
[null,"Periode Penilaian",{"$nulls":4},"PKG Awal",{"$f":"DATA!$C$1","v":0},{"$f":"\"Tahun \"&DATA!$H$22","v":"Tahun 2024"}]
[null,{"$f":"DATA!$H$15&\"  s.d.  \"&DATA!$J$15","v":"1 Januari 2024  s.d.  31 Desember 2024"},{"$nulls":4},"PKG",{"$f":"DATA!$F$1","v":"V"}]
[]
[]
[null,"NO","KOMPETENSI",{"$nulls":6},"NILAI"]
[null,"A.   Pedagogik"]
[null,1,"Mengenal karakteristik peserta didik.",{"$nulls":6},{"$f":"'N-GR'!C3","v":0},{"$nulls":11},{"$f":"VLOOKUP($O$1,INPUTGR,3)","v":{"$error":"#N/A"}}]
[null,2,"Menguasasi teori belajar dan prinsip- prinsip pembelajaran yang mendidik",{"$nulls":6},{"$f":"'N-GR'!C4","v":0},{"$nulls":11},{"$f":"VLOOKUP($O$1,INPUTGR,4)","v":{"$error":"#N/A"}}]
[null,3,"Pengembangan kurikulum.",{"$nulls":6},{"$f":"'N-GR'!C5","v":0},{"$nulls":11},{"$f":"VLOOKUP($O$1,INPUTGR,5)","v":{"$error":"#N/A"}}]
[null,4,"Kegiatan pembelajaran yang mendidik",{"$nulls":6},{"$f":"'N-GR'!C6","v":0},{"$nulls":11},{"$f":"VLOOKUP($O$1,INPUTGR,6)","v":{"$error":"#N/A"}}]
[null,5,"Pengembangan potensi peserta didik",{"$nulls":6},{"$f":"'N-GR'!C7","v":0},{"$nulls":11},{"$f":"VLOOKUP($O$1,INPUTGR,7)","v":{"$error":"#N/A"}}]
[null,6,"Komunikasi dengan peserta didik",{"$nulls":6},{"$f":"'N-GR'!C8","v":0},{"$nulls":11},{"$f":"VLOOKUP($O$1,INPUTGR,8)","v":{"$error":"#N/A"}}]
[null,7,"Penilaian dan evaluasi",{"$nulls":6},{"$f":"'N-GR'!C9","v":0},{"$nulls":11},{"$f":"VLOOKUP($O$1,INPUTGR,9)","v":{"$error":"#N/A"}}]
[]
[null,"B.   Kepribadian"]
[null,8,"Bertindak sesuai dengan norma agama, hukum, sosial dan kebudayaan nasional",{"$nulls":6},{"$f":"'N-GR'!C10","v":0},{"$nulls":11},{"$f":"VLOOKUP($O$1,INPUTGR,10)","v":{"$error":"#N/A"}}]
[null,9,"Menunjukkan pribadi yang dewasa dan teladan",{"$nulls":6},{"$f":"'N-GR'!C11","v":0},{"$nulls":11},{"$f":"VLOOKUP($O$1,INPUTGR,11)","v":{"$error":"#N/A"}}]
[null,10,"Etos kerja, tanggung jawab yang tinggi, rasa bangga menjadi guru",{"$nulls":6},{"$f":"'N-GR'!C12","v":0},{"$nulls":11},{"$f":"VLOOKUP($O$1,INPUTGR,12)","v":{"$error":"#N/A"}}]
[]
[null,"C.   Sosial"]
[null,11,"Bersikap inklusif, bertindak obyektif, serta tidak diskriminatif",{"$nulls":6},{"$f":"'N-GR'!C13","v":0},{"$nulls":11},{"$f":"VLOOKUP($O$1,INPUTGR,13)","v":{"$error":"#N/A"}}]
[null,12,"Komunikasi dengan sesama guru, tenaga kependidikan, orang tua, peserta didik, dan masyarakat",{"$nulls":6},{"$f":"'N-GR'!C14","v":0},{"$nulls":11},{"$f":"VLOOKUP($O$1,INPUTGR,14)","v":{"$error":"#N/A"}}]
[]
[null,"D.   Profesional"]
[null,13,"Penguasaan materi, struktur, konsep dan pola pikir keilmuan yang mendukung mata pelajaran yang diampu",{"$nulls":6},{"$f":"'N-GR'!C15","v":0},{"$nulls":11},{"$f":"VLOOKUP($O$1,INPUTGR,15)","v":{"$error":"#N/A"}}]
[null,14,"Mengembangkan keprofesionalan melalui tindakan yang reflektif",{"$nulls":6},{"$f":"'N-GR'!C16","v":0},{"$nulls":11},{"$f":"VLOOKUP($O$1,INPUTGR,16)","v":{"$error":"#N/A"}}]
[null,"Jumlah (Hasil Penilaian Kinerja Guru)",{"$nulls":7},{"$f":"SUM(J45:J46,J41:J42,J36:J38,J27:J33)","v":0}]
[null,"Konversi nilai PKG ke dalam skala 0 - 100\nNilai PKG (100) = (Nilai PKG/nilai maksimum PKG x 100)",{"$nulls":7},{"$f":"(J47/56)*100","v":{"v":0,"d":"0.00"}}]
[{"$nulls":9},{"$f":"(J48/56)*100","v":{"v":0,"d":"0.00"}}]
[{"$nulls":7},{"$f":"DATA!$H$20&\", \"&'REKAP NGR BK'!$S$10","v":"Serang, 23 Oktober 2024"}]
[null,"Guru yang Dinilai",null,null,"Penilai",null,null,"Kepala Madrasah,"]
[]
[]
[]
[null,{"$f":"DATA!$C$3","v":"NINA HERLINA, S.Pd"},null,null,{"$f":"DATA!$H$12","v":"Nasuhi, S.Pd.I"},null,null,{"$f":"DATA!$C$19","v":"NASUHI, S.Pd.I"}]
[null,{"$f":"\"NIP. \"&DATA!$C$4","v":"NIP. -"},null,null,{"$f":"\"NIP. \"&DATA!$H$13","v":"NIP. lake"},null,null,{"$f":"\"NIP. \"&DATA!$C$20","v":"NIP. -"}]
[null,"FORMAT PENGHITUNGAN ANGKA KREDIT GURU MATA PELAJARAN/KELAS"]
[]
[null,"a.","Nama",null,{"$f":"\": \"&DATA!$C$3","v":": NINA HERLINA, S.Pd"}]
[null,null,"NIP",null,{"$f":"\": \"&DATA!$C$4","v":": -"}]
[null,null,"NUPTK",null,{"$f":"\": \"&DATA!$H$4","v":": 12345678987"}]
[null,null,"Tempat/Tanggal Lahir",null,{"$f":"\": \"&DATA!$C$7&\", \"&DATA!$C$8","v":": SERANG, 32227"}]
[null,null,"Pangkat/Jabatan/Golongan",null,{"$f":"\": \"&DATA!$C$10","v":": Penata, III/c"}]
[null,null,"TMT sebagai guru",null,{"$f":"\": \"&DATA!$C$12&\" \"&DATA!$D$12&\" \"&DATA!$E$12","v":": 9 Juli 2021"}]
[null,null,"Masa Kerja",null,{"$f":"\": \"&DATEDIF('REKAP NGR BK'!$S$8,'REKAP NGR BK'!$S$9,\"y\")&\"  Tahun  \"&DATEDIF('REKAP NGR BK'!$S$8,'REKAP NGR BK'!$S$9,\"ym\")&\"  Bulan\"","v":": 3  Tahun  3  Bulan"}]
[null,null,"Jenis Kelamin",null,{"$f":"\": \"&DATA!$C$6","v":": Perempuan"}]
[null,null,"Pendidikan Terakhir/Spesialisasi",null,{"$f":"\": \"&DATA!$C$9","v":": S-1"}]
[null,null,"Program Keahlian yang diampu",null,{"$f":"\": \"&DATA!$H$5","v":": SKI"}]
[null,"b.","Nama Instansi/Sekolah",null,{"$f":"\": \"&DATA!$C$17","v":": MTs An-Nawa"}]
[null,null,"Telp/Fax",null,{"$f":"\": \"&DATA!$C$18","v":": 082274788884"}]
[null,null,"Kelurahan",null,{"$f":"\": \"&DATA!$H$18","v":": Mangunreja"}]
[null,null,"Kecamatan",null,{"$f":"\": \"&DATA!$H$19","v":": Pulo Ampel"}]
[null,null,"Kabupaten/Kota",null,{"$f":"\": \"&DATA!$H$20","v":": Serang"}]
[null,null,"Provinsi",null,{"$f":"\": \"&DATA!$H$21","v":": Banten"}]
[]
[null,"Nilai PK Guru Kelas/ Mata Pelajaran",{"$nulls":5},{"$f":"J47","v":0}]
[null,"Konversi nilai PKG dalam skala 0-100 dengan Rumus :",{"$nulls":5},{"$f":"J48","v":0}]
[null,"Berdasarkan hasil konversi ke dalam skala nilai sesuai dengan Permenneg PAN dan RB No. 16 Tahun 2009, selanjutnya ditetapkan sebutan dan persentase angka kreditnya",{"$nulls":5},{"$f":"IF(H76=0,\"\",IF($H$77<=50,\"Buruk\",IF($H$77<=60,\"Kurang\",IF($H$77<=75,\"Cukup\",IF($H$77<=90,\"Baik\",IF($H$77<=100,\"Amat Baik\",\"\"))))))","v":""}]
[{"$nulls":7},{"$f":"IF($H$77=0,\"\",IF($H$77<=50,\"25%\",IF($H$77<=60,\"50%\",IF($H$77<=75,\"75%\",IF($H$77<=90,\"100%\",IF($H$77<=100,\"125%\",\"\"))))))","v":""}]
[{"$nulls":7},{"$f":"TRUNC(IF(ISERROR(((C82-D82-E82)*1*H79)/4),0,(C82-D82-E82)*1*H79)/4,2)","v":{"v":0,"d":"0.00"}}]
[null,null,"AKK Minimal Golongan","AKPKB Minimal","AKP Minimal"]
[null,null,{"$f":"DATA!$N$8","v":100},{"$f":"IF(ISERROR(DATA!$N$9+DATA!$N$10),0,DATA!$N$9+DATA!$N$10)","v":9},{"$f":"DATA!$N$11","v":10}]
[null,null,{"$f":"IF('REKAP NGR BK'!$S$11=\"Penata Muda, III/a\",\"III/a\",IF('REKAP NGR BK'!$S$11=\"Penata Muda Tk. I, III/b\",\"III/b\",IF('REKAP NGR BK'!$S$11=\"Penata, III/c\",\"III/c\",IF('REKAP NGR BK'!$S$11=\"Penata Tk. I, III/d\",\"III/d\",IF('REKAP NGR BK'!$S$11=\"Pembina, IV/a\",\"IV/a\",IF('REKAP NGR BK'!$S$11=\"Pembina Tk. I, IV/b\",\"IV/b\",IF('REKAP NGR BK'!$S$11=\"Pembina Utama Muda, IV/c\",\"IV/c\",IF('REKAP NGR BK'!$S$11=\"Pembina Utama Madya, IV/d\",\"IV/d\",IF('REKAP NGR BK'!$S$11=\"Pembina Utama, IV/e\",\"IV/e\",\"\")))))))))","v":"III/c"},"Ke",{"$f":"IF($C83=\"III/a\",\"III/b\",IF($C83=\"III/b\",\"III/c\",IF($C83=\"III/c\",\"III/d\",IF($C83=\"III/d\",\"IV/a\",IF($C83=\"IV/a\",\"IV/b\",IF($C83=\"IV/b\",\"IV/c\",IF($C83=\"IV/c\",\"IV/d\",IF($C83=\"IV/d\",\"IV/e\",\"\"))))))))","v":"III/d"}]
[null,"Perolehan angka kredit (untuk pembelajaran) yang dihitung berdasarkan rumus;"]
[]
[]
[]
[{"$nulls":7},{"$f":"DATA!$H$20&\", \"&'REKAP NGR BK'!$S$10","v":"Serang, 23 Oktober 2024"}]
[null,"Guru yang Dinilai",null,null,"Penilai",null,null,"Kepala Madrasah,"]
[]
[]
[]
[null,{"$f":"DATA!$C$3","v":"NINA HERLINA, S.Pd"},null,null,{"$f":"DATA!$H$12","v":"Nasuhi, S.Pd.I"},null,null,{"$f":"DATA!$C$19","v":"NASUHI, S.Pd.I"}]
[null,{"$f":"\"NIP. \"&DATA!$C$4","v":"NIP. -"},null,null,{"$f":"\"NIP. \"&DATA!$H$13","v":"NIP. lake"},null,null,{"$f":"\"NIP. \"&DATA!$C$20","v":"NIP. -"}]
[]
[null,"LAPORAN DAN EVALUASI"]
[null,"PENILAIAN KINERJA GURU KELAS / MATA PELAJARAN"]
[]
[null,null,"Nama Guru",null,{"$f":"\": \"&DATA!$C$3","v":": NINA HERLINA, S.Pd"}]
[null,null,"N I P / No. Seri Karpeg",null,{"$f":"\": \"&DATA!$C$4&\" / \"&DATA!$C$5","v":": - / "}]
[null,null,"Pangkat/Jab./Gol.",null,{"$f":"\": \"&DATA!$C$10","v":": Penata, III/c"}]
[null,null,"Terhitung Mulai Tanggal",null,{"$f":"\": \"&'ID GURU'!$D$9","v":": 9 Juli 2021"}]
[null,null,"NUPTK / NRG",null,{"$f":"\": \"&DATA!$H$4&\" \"","v":": 12345678987 "}]
[]
[null,null,"Nama Madrasah",null,{"$f":"\": \"&DATA!$C$17","v":": MTs An-Nawa"}]
[null,null,"Alamat Madrasah",null,{"$f":"\": \"&DATA!$H$17","v":": Kp. Pengoreng RT.03/02"}]
[null,null,"Tanggal Mulai bekerja",null,{"$f":"\": \"&DATA!$C$12&\" \"&DATA!$D$12&\" \"&DATA!$E$12","v":": 9 Juli 2021"}]
[null,null,"Periode Penilaian",null,{"$f":"\": \"&DATA!$H$15&\"  s.d.  \"&DATA!$J$15","v":": 1 Januari 2024  s.d.  31 Desember 2024"}]
[]
[]
[null,null,"PERSETUJUAN"]
[null,null,"(Persetujuan ini ditandatangani oleh penilai dan guru yang dinilai)"]
[]
[null,null,"Penilai dan guru yang dinilai menyatakan telah membaca dan memahami semua aspek yang ditulis / dilaporkan dalam format ini dan menyatakan setuju."]
[]
[null,null,"Nama Guru",{"$nulls":3},"Nama Penilai"]
[null,null,{"$f":"DATA!$C$3","v":"NINA HERLINA, S.Pd"},{"$nulls":3},{"$f":"DATA!$H$12","v":"Nasuhi, S.Pd.I"}]
[null,null,{"$f":"\"NIP. \"&DATA!$C$4","v":"NIP. -"},{"$nulls":3},{"$f":"\"NIP. \"&DATA!$H$13","v":"NIP. lake"}]
[]
[null,null,"Tanda tangan:",{"$nulls":3},"Tanda tangan:"]
[]
[]
[null,null,"……………………………",{"$nulls":3},"……………………………"]
[]
[{"$nulls":4},{"$f":"\"Tanggal : \"&'REKAP NGR BK'!$S$10","v":"Tanggal : 23 Oktober 2024"}]
[]
[]
[]
[null,null,{"$f":"B54&\"\"","v":""},null,null,{"$f":"E54&\"\"","v":""},null,{"$f":"G54&\"\"","v":""}]

{"sheet":"REKAP NGR BK","index":14,"n_rows":130,"n_cols":19,"rows_kept":130,"merged":[[0,1,0,9],[1,1,1,9],[20,1,20,5],[20,8,22,9],[21,1,22,5],[21,6,22,6],[21,7,22,7],[24,2,24,8],[25,1,25,9],[26,2,26,8],[27,2,27,8],[28,2,28,8],[29,2,29,8],[30,2,30,8],[31,2,31,8],[32,2,32,8],[33,1,33,9],[34,2,34,8],[35,2,35,8],[36,2,36,8],[37,1,37,9],[38,2,38,8],[39,2,39,8],[40,1,40,9],[41,2,41,8],[42,2,42,8],[43,2,43,8],[44,2,44,8],[45,2,45,8],[46,1,46,8],[47,1,47,8],[48,2,48,8],[54,4,54,5],[56,1,56,9],[75,1,75,6],[75,7,75,9],[76,1,76,6],[76,7,76,9],[77,1,78,6],[77,7,77,9],[78,7,78,9],[79,7,85,9],[83,1,83,6],[92,4,92,5],[95,1,95,9],[96,1,96,9],[107,4,107,7],[110,2,110,8],[111,2,111,8],[113,2,113,8]]}
[3,"KEMENTERIAN AGAMA KABUPATEN GRESIK",{"$nulls":12},{"$f":"HOME!$U$1","v":1}]
[null,"REKAP HASIL PENILAIAN KINERJA GURU BIMBINGAN KONSELING (KONSELOR)"]
[]
[null,"a.","Nama",null,{"$f":"\": \"&DATA!$C$3","v":": NINA HERLINA, S.Pd"}]
[null,null,"NIP",null,{"$f":"\": \"&DATA!$C$4","v":": -"}]
[null,null,"NUPTK",null,{"$f":"\": \"&DATA!$H$4","v":": 12345678987"}]
[null,null,"Tempat/Tanggal Lahir",null,{"$f":"\": \"&DATA!$C$7&\", \"&DATA!$C$8","v":": SERANG, 32227"}]
[null,null,"Pangkat/Jabatan/Golongan",null,{"$f":"\": \"&DATA!$C$10","v":": Penata, III/c"},{"$nulls":12},"Awal  :",{"$f":"DATA!$C$12&\" \"&DATA!$D$12&\" \"&DATA!$E$12","v":"9 Juli 2021"}]
[null,null,"TMT sebagai guru",null,{"$f":"\": \"&DATA!$C$12&\" \"&DATA!$D$12&\" \"&DATA!$E$12","v":": 9 Juli 2021"},{"$nulls":12},"Akhir  :",{"$f":"DATA!$M$5","v":"16 Oktober 2024"}]
[null,null,"Masa Kerja",null,{"$f":"\": \"&'ID GURU'!$D$12","v":": 3 Tahun 3 Bulan"},{"$nulls":12},"Laporan  :",{"$f":"DATA!$C$15&\" \"&DATA!$D$15&\" \"&DATA!$E$15","v":"23 Oktober 2024"}]
[null,null,"Jenis Kelamin",null,{"$f":"\": \"&DATA!$C$6","v":": Perempuan"},{"$nulls":12},"Pgk/Gol  :",{"$f":"DATA!$C$10","v":"Penata, III/c"}]
[null,null,"Pendidikan Terakhir/Spesialisasi",null,{"$f":"\": \"&DATA!$C$9","v":": S-1"}]
[null,null,"Program Keahlian yang diampu",null,{"$f":"\": \"&DATA!$H$3&\" \"&\"(\"&DATA!$H$5&\")\"","v":": Guru Mapel/Kelas (SKI)"}]
[null,"b.","Nama Instansi/Sekolah",null,{"$f":"\": \"&DATA!$C$17","v":": MTs An-Nawa"}]
[null,null,"Telp/Fax",null,{"$f":"\": \"&DATA!$C$18","v":": 082274788884"}]
[null,null,"Kelurahan",null,{"$f":"\": \"&DATA!$H$18","v":": Mangunreja"}]
[null,null,"Kecamatan",null,{"$f":"\": \"&DATA!$H$19","v":": Pulo Ampel"}]
[null,null,"Kabupaten/Kota",null,{"$f":"\": \"&DATA!$H$20","v":": Serang"}]
[null,null,"Provinsi",null,{"$f":"\": \"&DATA!$H$21","v":": Banten"}]
[]
[null,"Periode Penilaian",{"$nulls":4},"PKG Awal",{"$f":"IF(DATA!$C$1=0,\"\",DATA!$C$1)","v":""},{"$f":"\"Tahun \"&DATA!$H$22","v":"Tahun 2024"}]
[null,{"$f":"DATA!$H$15&\"  s.d.  \"&DATA!$J$15","v":"1 Januari 2024  s.d.  31 Desember 2024"},{"$nulls":4},"PKG",{"$f":"DATA!$F$1","v":"V"}]
[]
[]
[null,"NO","KOMPETENSI",{"$nulls":6},"NILAI"]
[null,"A.   PEDAGOGIK"]
[null,1,"Menguasai teori dan praksis pendidikan",{"$nulls":6},{"$f":"'N-GR'!D3","v":0},{"$nulls":4},{"$f":"VLOOKUP($O$1,INPUTGBK,3)","v":{"$error":"#REF!"}}]
[null,2,"Mengaplikasikan perkembangan fisiologis dan psikologis serta perilaku konseli",{"$nulls":6},{"$f":"'N-GR'!D4","v":0},{"$nulls":4},{"$f":"VLOOKUP($O$1,INPUTGBK,4)","v":{"$error":"#REF!"}}]
[null,3,"Menguasai esensi layanan BK dalam jalur, jenis, dan jenjang satuan pendidikan",{"$nulls":6},{"$f":"'N-GR'!D5","v":0},{"$nulls":4},{"$f":"VLOOKUP($O$1,INPUTGBK,5)","v":{"$error":"#REF!"}}]
[null,4,"Beriman dan bertakwa kepada Tuhan Yang Maha Esa",{"$nulls":6},{"$f":"'N-GR'!D6","v":0},{"$nulls":4},{"$f":"VLOOKUP($O$1,INPUTGBK,6)","v":{"$error":"#REF!"}}]
[null,5,"Menghargai dan menjunjung tinggi nilai-nilai kemanusiaan, individualitas dan kebebasan memilih",{"$nulls":6},{"$f":"'N-GR'!D7","v":0},{"$nulls":4},{"$f":"VLOOKUP($O$1,INPUTGBK,7)","v":{"$error":"#REF!"}}]
[null,6,"Menunjukkan integritas dan stabilitas kepribadian yang kuat",{"$nulls":6},{"$f":"'N-GR'!D8","v":0},{"$nulls":4},{"$f":"VLOOKUP($O$1,INPUTGBK,8)","v":{"$error":"#REF!"}}]
[null,7,"Menampilkan kinerja berkualitas tinggi",{"$nulls":6},{"$f":"'N-GR'!D9","v":0},{"$nulls":4},{"$f":"VLOOKUP($O$1,INPUTGBK,9)","v":{"$error":"#REF!"}}]
[null,"B.   KEPRIBADIAN"]
[null,8,"Mengimplementasikan kolaborasi internal di tempat bekerja",{"$nulls":6},{"$f":"'N-GR'!D10","v":0},{"$nulls":4},{"$f":"VLOOKUP($O$1,INPUTGBK,10)","v":{"$error":"#REF!"}}]
[null,9,"Berperan dalam organisasi dan kegiatan profesi BK",{"$nulls":6},{"$f":"'N-GR'!D11","v":0},{"$nulls":4},{"$f":"VLOOKUP($O$1,INPUTGBK,11)","v":{"$error":"#REF!"}}]
[null,10,"Mengimplementasikan kolaborasi antarprofesi",{"$nulls":6},{"$f":"'N-GR'!D12","v":0},{"$nulls":4},{"$f":"VLOOKUP($O$1,INPUTGBK,12)","v":{"$error":"#REF!"}}]
[null,"C.   SOSIAL"]
[null,11,"Menguasai konsep dan praksis penilaian (assessment) untuk memahami kondisi, kebutuhan, dan masalah konseli",{"$nulls":6},{"$f":"'N-GR'!D13","v":0},{"$nulls":4},{"$f":"VLOOKUP($O$1,INPUTGBK,13)","v":{"$error":"#REF!"}}]
[null,12,"Menguasai kerangka teoretik dan praksis BK",{"$nulls":6},{"$f":"'N-GR'!D14","v":0},{"$nulls":4},{"$f":"VLOOKUP($O$1,INPUTGBK,14)","v":{"$error":"#REF!"}}]
[null,"D.   PROFESIONAL"]
[null,13,"Merancang program BK",{"$nulls":6},{"$f":"'N-GR'!D15","v":0},{"$nulls":4},{"$f":"VLOOKUP($O$1,INPUTGBK,15)","v":{"$error":"#REF!"}}]
[null,14,"Mengimplementasikan program BK yang komprehensif",{"$nulls":6},{"$f":"'N-GR'!D16","v":0},{"$nulls":4},{"$f":"VLOOKUP($O$1,INPUTGBK,16)","v":{"$error":"#REF!"}}]
[null,15,"Menilai proses dan hasil kegiatan BK",{"$nulls":6},{"$f":"'N-GR'!D17","v":0},{"$nulls":4},{"$f":"VLOOKUP($O$1,INPUTGBK,17)","v":{"$error":"#REF!"}}]
[null,16,"Memiliki kesadaran dan komitmen terhadap etika profesional",{"$nulls":6},{"$f":"'N-GR'!D18","v":0},{"$nulls":4},{"$f":"VLOOKUP($O$1,INPUTGBK,18)","v":{"$error":"#REF!"}}]
[null,17,"Menguasai konsep dan praksis penelitian dalam BK",{"$nulls":6},{"$f":"'N-GR'!D19","v":0},{"$nulls":4},{"$f":"VLOOKUP($O$1,INPUTGBK,19)","v":{"$error":"#REF!"}}]
[null,"Jumlah (Hasil Penilaian Kinerja Guru)",{"$nulls":7},{"$f":"SUM(J27:J33,J35:J37,J39:J40,J42:J46)","v":0}]
[null,"Konversi nilai PKG ke dalam skala 0 - 100\nNilai PKG (100) = (Nilai PKG/nilai maksimum PKG x 100)",{"$nulls":7},{"$f":"(J47/68)*100","v":0}]
[{"$nulls":9},{"$f":"(J48/56)*100","v":{"v":0,"d":"0.00"}}]
[{"$nulls":7},{"$f":"DATA!$H$20&\", \"&'REKAP NGR BK'!$S$10","v":"Serang, 23 Oktober 2024"}]
[null,"Guru yang Dinilai",null,null,"Penilai",null,null,"Kepala Madrasah,"]
[]
[]
[]
[null,{"$f":"DATA!$C$3","v":"NINA HERLINA, S.Pd"},null,null,{"$f":"DATA!$H$12","v":"Nasuhi, S.Pd.I"},null,null,{"$f":"DATA!$C$19","v":"NASUHI, S.Pd.I"}]
[null,{"$f":"\"NIP. \"&DATA!$C$4","v":"NIP. -"},null,null,{"$f":"\"NIP. \"&DATA!$H$13","v":"NIP. lake"},null,null,{"$f":"\"NIP. \"&DATA!$C$20","v":"NIP. -"}]
[null,"FORMAT PENGHITUNGAN ANGKA KREDIT GURU BIMBINGAN DAN KONSELING (KONSELOR)"]
[]
[null,"a.","Nama",null,{"$f":"\": \"&DATA!$C$3","v":": NINA HERLINA, S.Pd"}]
[null,null,"NIP",null,{"$f":"\": \"&DATA!$C$4","v":": -"}]
[null,null,"NUPTK",null,{"$f":"\": \"&DATA!$H$4","v":": 12345678987"}]
[null,null,"Tempat/Tanggal Lahir",null,{"$f":"\": \"&DATA!$C$7&\", \"&DATA!$C$8","v":": SERANG, 32227"}]
[null,null,"Pangkat/Jabatan/Golongan",null,{"$f":"\": \"&DATA!$C$10","v":": Penata, III/c"}]
[null,null,"TMT sebagai guru",null,{"$f":"\": \"&DATA!$C$12&\" \"&DATA!$D$12&\" \"&DATA!$E$12","v":": 9 Juli 2021"}]
[null,null,"Masa Kerja",null,{"$f":"\": \"&DATEDIF('REKAP NGR BK'!$S$8,'REKAP NGR BK'!$S$9,\"y\")&\"  Tahun  \"&DATEDIF('REKAP NGR BK'!$S$8,'REKAP NGR BK'!$S$9,\"ym\")&\"  Bulan\"","v":": 3  Tahun  3  Bulan"}]
[null,null,"Jenis Kelamin",null,{"$f":"\": \"&DATA!$C$6","v":": Perempuan"}]
[null,null,"Pendidikan Terakhir/Spesialisasi",null,{"$f":"\": \"&DATA!$C$9","v":": S-1"}]
[null,null,"Program Keahlian yang diampu",null,": Guru Bimbingan Konseling (BK)"]
[null,"b.","Nama Instansi/Sekolah",null,{"$f":"\": \"&DATA!$C$17","v":": MTs An-Nawa"}]
[null,null,"Telp/Fax",null,{"$f":"\": \"&DATA!$C$18","v":": 082274788884"}]
[null,null,"Kelurahan",null,{"$f":"\": \"&DATA!$H$18","v":": Mangunreja"}]
[null,null,"Kecamatan",null,{"$f":"\": \"&DATA!$H$19","v":": Pulo Ampel"}]
[null,null,"Kabupaten/Kota",null,{"$f":"\": \"&DATA!$H$20","v":": Serang"}]
[null,null,"Provinsi",null,{"$f":"\": \"&DATA!$H$21","v":": Banten"}]
[]
[null,"Nilai PK Guru Kelas/ Mata Pelajaran",{"$nulls":5},{"$f":"J47","v":0}]
[null,"Konversi nilai PKG dalam skala 0-100 dengan Rumus :",{"$nulls":5},{"$f":"J48","v":0}]
[null,"Berdasarkan hasil konversi ke dalam skala nilai sesuai dengan Permenneg PAN dan RB No. 16 Tahun 2009, selanjutnya ditetapkan sebutan dan persentase angka kreditnya",{"$nulls":5},{"$f":"IF(H76=0,\"\",IF($H$77<=50,\"Buruk\",IF($H$77<=60,\"Kurang\",IF($H$77<=75,\"Cukup\",IF($H$77<=90,\"Baik\",IF($H$77<=100,\"Amat Baik\",\"\"))))))","v":""}]
[{"$nulls":7},{"$f":"IF($H$77=0,\"\",IF($H$77<=50,\"25%\",IF($H$77<=60,\"50%\",IF($H$77<=75,\"75%\",IF($H$77<=90,\"100%\",IF($H$77<=100,\"125%\",\"\"))))))","v":""}]
[{"$nulls":7},{"$f":"TRUNC(IF(ISERROR(((C82-D82-E82)*1*H79)/4),0,(C82-D82-E82)*1*H79)/4,2)","v":{"v":0,"d":"0.00"}}]
[null,null,"AKK Minimal Golongan","AKPKB Minimal","AKP Minimal"]
[null,null,{"$f":"DATA!$N$8","v":100},{"$f":"IF(ISERROR(DATA!$N$9+DATA!$N$10),0,DATA!$N$9+DATA!$N$10)","v":9},{"$f":"DATA!$N$11","v":10}]
[null,null,{"$f":"IF('REKAP NGR BK'!$S$11=\"Penata Muda, III/a\",\"III/a\",IF('REKAP NGR BK'!$S$11=\"Penata Muda Tk. I, III/b\",\"III/b\",IF('REKAP NGR BK'!$S$11=\"Penata, III/c\",\"III/c\",IF('REKAP NGR BK'!$S$11=\"Penata Tk. I, III/d\",\"III/d\",IF('REKAP NGR BK'!$S$11=\"Pembina, IV/a\",\"IV/a\",IF('REKAP NGR BK'!$S$11=\"Pembina Tk. I, IV/b\",\"IV/b\",IF('REKAP NGR BK'!$S$11=\"Pembina Utama Muda, IV/c\",\"IV/c\",IF('REKAP NGR BK'!$S$11=\"Pembina Utama Madya, IV/d\",\"IV/d\",IF('REKAP NGR BK'!$S$11=\"Pembina Utama, IV/e\",\"IV/e\",\"\")))))))))","v":"III/c"},"Ke",{"$f":"IF($C83=\"III/a\",\"III/b\",IF($C83=\"III/b\",\"III/c\",IF($C83=\"III/c\",\"III/d\",IF($C83=\"III/d\",\"IV/a\",IF($C83=\"IV/a\",\"IV/b\",IF($C83=\"IV/b\",\"IV/c\",IF($C83=\"IV/c\",\"IV/d\",IF($C83=\"IV/d\",\"IV/e\",\"\"))))))))","v":"III/d"}]
[null,"Perolehan angka kredit (untuk pembelajaran) yang dihitung berdasarkan rumus;"]
[]
[]
[]
[{"$nulls":7},{"$f":"DATA!$H$20&\", \"&'REKAP NGR BK'!$S$10","v":"Serang, 23 Oktober 2024"}]
[null,"Guru yang Dinilai",null,null,"Penilai",null,null,"Kepala Madrasah,"]
[]
[]
[]
[null,{"$f":"DATA!$C$3","v":"NINA HERLINA, S.Pd"},null,null,{"$f":"DATA!$H$12","v":"Nasuhi, S.Pd.I"},null,null,{"$f":"DATA!$C$19","v":"NASUHI, S.Pd.I"}]
[null,{"$f":"\"NIP. \"&DATA!$C$4","v":"NIP. -"},null,null,{"$f":"\"NIP. \"&DATA!$H$13","v":"NIP. lake"},null,null,{"$f":"\"NIP. \"&DATA!$C$20","v":"NIP. -"}]
[]
[null,"LAPORAN DAN EVALUASI"]
[null,"PENILAIAN KINERJA GURU BIMBINGAN KONSELING (KONSELOR)"]
[]
[null,null,"Nama Guru",null,{"$f":"\": \"&DATA!$C$3","v":": NINA HERLINA, S.Pd"}]
[null,null,"N I P / No. Seri Karpeg",null,{"$f":"\": \"&DATA!$C$4&\" / \"&DATA!$C$5","v":": - / "}]
[null,null,"Pangkat/Jab./Gol.",null,{"$f":"\": \"&DATA!$C$10","v":": Penata, III/c"}]
[null,null,"Terhitung Mulai Tanggal",null,{"$f":"\": \"&'ID GURU'!$D$9","v":": 9 Juli 2021"}]
[null,null,"NUPTK / NRG",null,{"$f":"\": \"&DATA!$H$4&\" \"","v":": 12345678987 "}]
[]
[null,null,"Nama Sekolah",null,{"$f":"\": \"&DATA!$C$17","v":": MTs An-Nawa"}]
[null,null,"Alamat Sekolah",null,{"$f":"\": \"&DATA!$H$17","v":": Kp. Pengoreng RT.03/02"}]
[null,null,"Tanggal Mulai bekerja",null,{"$f":"\": \"&DATA!$C$12&\" \"&DATA!$D$12&\" \"&DATA!$E$12","v":": 9 Juli 2021"}]
[null,null,"Periode Penilaian",null,{"$f":"\": \"&DATA!$H$15&\"  s.d.  \"&DATA!$J$15","v":": 1 Januari 2024  s.d.  31 Desember 2024"}]
[]
[]
[null,null,"PERSETUJUAN"]
[null,null,"(Persetujuan ini ditandatangani oleh penilai dan guru yang dinilai)"]
[]
[null,null,"Penilai dan guru yang dinilai menyatakan telah membaca dan memahami semua aspek yang ditulis / dilaporkan dalam format ini dan menyatakan setuju."]
[]
[null,null,"Nama Guru",{"$nulls":3},"Nama Penilai"]
[null,null,{"$f":"DATA!$C$3","v":"NINA HERLINA, S.Pd"},{"$nulls":3},{"$f":"DATA!$H$12","v":"Nasuhi, S.Pd.I"}]
[null,null,{"$f":"\"NIP. \"&DATA!$C$4","v":"NIP. -"},{"$nulls":3},{"$f":"\"NIP. \"&DATA!$H$13","v":"NIP. lake"}]
[]
[null,null,"Tanda tangan:",{"$nulls":3},"Tanda tangan:"]
[]
[]
[null,null,"……………………………",{"$nulls":3},"……………………………"]
[]
[{"$nulls":4},{"$f":"\"Tanggal : \"&'REKAP NGR BK'!$S$10","v":"Tanggal : 23 Oktober 2024"}]
[]
[]
[]
[null,null,{"$f":"B54&\"\"","v":""},null,null,{"$f":"E54&\"\"","v":""},null,{"$f":"G54&\"\"","v":""}]
[null,null,{"$f":"B54&\"\"","v":""},null,null,{"$f":"E54&\"\"","v":""},null,{"$f":"G54&\"\"","v":""}]

{"sheet":"REKAP NGR TIK","index":15,"n_rows":124,"n_cols":19,"rows_kept":124,"merged":[[0,1,0,9],[1,1,1,9],[20,1,20,5],[20,8,22,9],[21,1,22,5],[21,6,22,6],[21,7,22,7],[24,2,24,8],[25,1,25,9],[26,2,26,8],[27,2,27,8],[28,2,28,8],[29,1,29,9],[30,2,30,8],[31,2,31,8],[32,1,32,9],[33,2,33,8],[34,2,34,8],[35,1,35,9],[36,2,36,8],[37,2,37,8],[38,2,38,8],[39,2,39,8],[40,2,40,8],[41,1,41,8],[42,1,42,8],[43,2,43,8],[49,4,49,5],[51,1,51,9],[70,1,70,6],[70,7,70,9],[71,1,71,6],[71,7,71,9],[72,1,73,6],[72,7,72,9],[73,7,73,9],[74,7,80,9],[78,1,78,6],[87,4,87,5],[90,1,90,9],[91,1,91,9],[102,4,102,7],[105,2,105,8],[106,2,106,8],[108,2,108,8]]}
[3,"KEMENTERIAN AGAMA KABUPATEN GRESIK"]
[null,"REKAP HASIL PENILAIAN KINERJA GURU TIK"]
[]
[null,"a.","Nama",null,{"$f":"\": \"&DATA!$C$3","v":": NINA HERLINA, S.Pd"}]
[null,null,"NIP",null,{"$f":"\": \"&DATA!$C$4","v":": -"}]
[null,null,"NUPTK",null,{"$f":"\": \"&DATA!$H$4","v":": 12345678987"}]
[null,null,"Tempat/Tanggal Lahir",null,{"$f":"\": \"&DATA!$C$7&\", \"&DATA!$C$8","v":": SERANG, 32227"}]
[null,null,"Pangkat/Jabatan/Golongan",null,{"$f":"\": \"&DATA!$C$10","v":": Penata, III/c"},{"$nulls":12},"Awal  :",{"$f":"DATA!$C$12&\" \"&DATA!$D$12&\" \"&DATA!$E$12","v":"9 Juli 2021"}]
[null,null,"TMT sebagai guru",null,{"$f":"\": \"&DATA!$C$12&\" \"&DATA!$D$12&\" \"&DATA!$E$12","v":": 9 Juli 2021"},{"$nulls":12},"Akhir  :",{"$f":"DATA!$M$5","v":"16 Oktober 2024"}]
[null,null,"Masa Kerja",null,{"$f":"\": \"&'ID GURU'!$D$12","v":": 3 Tahun 3 Bulan"},{"$nulls":12},"Laporan  :",{"$f":"DATA!$C$15&\" \"&DATA!$D$15&\" \"&DATA!$E$15","v":"23 Oktober 2024"}]
[null,null,"Jenis Kelamin",null,{"$f":"\": \"&DATA!$C$6","v":": Perempuan"},{"$nulls":12},"Pgk/Gol  :",{"$f":"DATA!$C$10","v":"Penata, III/c"}]
[null,null,"Pendidikan Terakhir/Spesialisasi",null,{"$f":"\": \"&DATA!$C$9","v":": S-1"}]
[null,null,"Program Keahlian yang diampu",null,{"$f":"\": \"&DATA!$H$3&\" \"&\"(\"&DATA!$H$5&\")\"","v":": Guru Mapel/Kelas (SKI)"}]
[null,"b.","Nama Instansi/Sekolah",null,{"$f":"\": \"&DATA!$C$17","v":": MTs An-Nawa"}]
[null,null,"Telp/Fax",null,{"$f":"\": \"&DATA!$C$18","v":": 082274788884"}]
[null,null,"Kelurahan",null,{"$f":"\": \"&DATA!$H$18","v":": Mangunreja"}]
[null,null,"Kecamatan",null,{"$f":"\": \"&DATA!$H$19","v":": Pulo Ampel"}]
[null,null,"Kabupaten/Kota",null,{"$f":"\": \"&DATA!$H$20","v":": Serang"}]
[null,null,"Provinsi",null,{"$f":"\": \"&DATA!$H$21","v":": Banten"}]
[]
[null,"Periode Penilaian",{"$nulls":4},"PKG Awal",{"$f":"DATA!$C$1","v":0},{"$f":"\"Tahun \"&DATA!$H$22","v":"Tahun 2024"}]
[null,{"$f":"DATA!$H$15&\"  s.d.  \"&DATA!$J$15","v":"1 Januari 2024  s.d.  31 Desember 2024"},{"$nulls":4},"PKG",{"$f":"DATA!$F$1","v":"V"}]
[]
[]
[null,"NO","KOMPETENSI",{"$nulls":6},"NILAI"]
[null,"A.   PEDAGOGIK"]
[null,1,"Mengenal karakteristik peserta didik.",{"$nulls":6},{"$f":"'N-GR'!E3","v":0}]
[null,2,"Merancang program guru TIK.",{"$nulls":6},{"$f":"'N-GR'!E4","v":0}]
[null,3,"Melaksanakan kegiatan pembimbingan TIK",{"$nulls":6},{"$f":"'N-GR'!E5","v":0}]
[null,"B.   KEPRIBADIAN"]
[null,4,"Bertindak sesuai dengan norma agama, hukum, sosial dan kebudayaan nasional",{"$nulls":6},{"$f":"'N-GR'!E6","v":0}]
[null,5,"Memiliki etos kerja, tanggung jawab yang tinggi, rasa bangga menjadi guru",{"$nulls":6},{"$f":"'N-GR'!E7","v":0}]
[null,"C.   SOSIAL"]
[null,6,"Bersikap inklusif, bertindak obyektif, serta tidak diskriminatif.",{"$nulls":6},{"$f":"'N-GR'!E8","v":0}]
[null,7,"Berkomunikasi dan berkolaborasi dengan sesama guru, tenaga kependidikan, orang tua peserta didik dan",{"$nulls":6},{"$f":"'N-GR'!E9","v":0}]
[null,"D.   PROFESIONAL"]
[null,8,"Menguasai konsep, kompetensi, materi TIK dan pembimbingan TIK",{"$nulls":6},{"$f":"'N-GR'!E10","v":0}]
[null,9,"Melaksanakan fasilitasi guru untuk pembelajaran berbasis TIK",{"$nulls":6},{"$f":"'N-GR'!E11","v":0}]
[null,10,"Melaksanakan fasilitasi tenaga kependidikan untuk pengelolaan informasi administrasi madrasah berbasis TIK.",{"$nulls":6},{"$f":"'N-GR'!E12","v":0}]
[null,11,"Melakukan dan melaporkan Evaluasi Program Pembimbingan dan Fasilitasi",{"$nulls":6},{"$f":"'N-GR'!E13","v":0}]
[null,12,"Mengembangkan keprofesionalan secara berkelanjutan dengan melalui kegiatan yang reflektif.",{"$nulls":6},{"$f":"'N-GR'!E14","v":0}]
[null,"Jumlah (Hasil Penilaian Kinerja Guru)",{"$nulls":7},{"$f":"SUM(J39:J41,J37:J38,J34:J35,J31:J32,J27:J29)","v":0}]
[null,"Konversi nilai PKG ke dalam skala 0 - 100\nNilai PKG (100) = (Nilai PKG/nilai maksimum PKG x 100)",{"$nulls":7},{"$f":"(J42/48)*100","v":{"v":0,"d":"0.00"}}]
[{"$nulls":9},{"$f":"(J43/56)*100","v":{"v":0,"d":"0.00"}}]
[{"$nulls":7},{"$f":"DATA!$H$20&\", \"&'REKAP NGR BK'!$S$10","v":"Serang, 23 Oktober 2024"}]
[null,"Guru yang Dinilai",null,null,"Penilai",null,null,"Kepala Madrasah,"]
[]
[]
[]
[null,{"$f":"DATA!$C$3","v":"NINA HERLINA, S.Pd"},null,null,{"$f":"DATA!$H$12","v":"Nasuhi, S.Pd.I"},null,null,{"$f":"DATA!$C$19","v":"NASUHI, S.Pd.I"}]
[null,{"$f":"\"NIP. \"&DATA!$C$4","v":"NIP. -"},null,null,{"$f":"\"NIP. \"&DATA!$H$13","v":"NIP. lake"},null,null,{"$f":"\"NIP. \"&DATA!$C$20","v":"NIP. -"}]
[null,"FORMAT PENGHITUNGAN ANGKA KREDIT GURU TIK"]
[]
[null,"a.","Nama",null,{"$f":"\": \"&DATA!$C$3","v":": NINA HERLINA, S.Pd"}]
[null,null,"NIP",null,{"$f":"\": \"&DATA!$C$4","v":": -"}]
[null,null,"NUPTK",null,{"$f":"\": \"&DATA!$H$4","v":": 12345678987"}]
[null,null,"Tempat/Tanggal Lahir",null,{"$f":"\": \"&DATA!$C$7&\", \"&DATA!$C$8","v":": SERANG, 32227"}]
[null,null,"Pangkat/Jabatan/Golongan",null,{"$f":"\": \"&DATA!$C$10","v":": Penata, III/c"}]
[null,null,"TMT sebagai guru",null,{"$f":"\": \"&DATA!$C$12&\" \"&DATA!$D$12&\" \"&DATA!$E$12","v":": 9 Juli 2021"}]
[null,null,"Masa Kerja",null,{"$f":"\": \"&'ID GURU'!$D$12","v":": 3 Tahun 3 Bulan"}]
[null,null,"Jenis Kelamin",null,{"$f":"\": \"&DATA!$C$6","v":": Perempuan"}]
[null,null,"Pendidikan Terakhir/Spesialisasi",null,{"$f":"\": \"&DATA!$C$9","v":": S-1"}]
[null,null,"Program Keahlian yang diampu",null,": Guru Bimbingan Konseling (BK)"]
[null,"b.","Nama Instansi/Sekolah",null,{"$f":"\": \"&DATA!$C$17","v":": MTs An-Nawa"}]
[null,null,"Telp/Fax",null,{"$f":"\": \"&DATA!$C$18","v":": 082274788884"}]
[null,null,"Kelurahan",null,{"$f":"\": \"&DATA!$H$18","v":": Mangunreja"}]
[null,null,"Kecamatan",null,{"$f":"\": \"&DATA!$H$19","v":": Pulo Ampel"}]
[null,null,"Kabupaten/Kota",null,{"$f":"\": \"&DATA!$H$20","v":": Serang"}]
[null,null,"Provinsi",null,{"$f":"\": \"&DATA!$H$21","v":": Banten"}]
[]
[null,"Nilai PK Guru Kelas/ Mata Pelajaran",{"$nulls":5},{"$f":"J42","v":0}]
[null,"Konversi nilai PKG dalam skala 0-100 dengan Rumus :",{"$nulls":5},{"$f":"J43","v":0}]
[null,"Berdasarkan hasil konversi ke dalam skala nilai sesuai dengan Permenneg PAN dan RB No. 16 Tahun 2009, selanjutnya ditetapkan sebutan dan persentase angka kreditnya",{"$nulls":5},{"$f":"IF(H71=0,\"\",IF($H$72<=50,\"Buruk\",IF($H$72<=60,\"Kurang\",IF($H$72<=75,\"Cukup\",IF($H$72<=90,\"Baik\",IF($H$72<=100,\"Amat Baik\",\"\"))))))","v":""}]
[{"$nulls":7},{"$f":"IF($H$72=0,\"\",IF($H$72<=50,\"25%\",IF($H$72<=60,\"50%\",IF($H$72<=75,\"75%\",IF($H$72<=90,\"100%\",IF($H$72<=100,\"125%\",\"\"))))))","v":""}]
[{"$nulls":7},{"$f":"TRUNC(IF(ISERROR(((C77-D77-E77)*1*$H$74)/4),0,(C77-D77-E77)*1*$H$74)/4,2)","v":{"v":0,"d":"0.00"}}]
[null,null,"AKK Minimal Golongan","AKPKB Minimal","AKP Minimal"]
[null,null,{"$f":"DATA!$N$8","v":100},{"$f":"IF(ISERROR(DATA!$N$9+DATA!$N$10),0,DATA!$N$9+DATA!$N$10)","v":9},{"$f":"DATA!$N$11","v":10}]
[null,null,{"$f":"IF('REKAP NGR TIK'!$S$11=\"Penata Muda, III/a\",\"III/a\",IF('REKAP NGR BK'!$S$11=\"Penata Muda Tk. I, III/b\",\"III/b\",IF('REKAP NGR BK'!$S$11=\"Penata, III/c\",\"III/c\",IF('REKAP NGR BK'!$S$11=\"Penata Tk. I, III/d\",\"III/d\",IF('REKAP NGR BK'!$S$11=\"Pembina, IV/a\",\"IV/a\",IF('REKAP NGR BK'!$S$11=\"Pembina Tk. I, IV/b\",\"IV/b\",IF('REKAP NGR BK'!$S$11=\"Pembina Utama Muda, IV/c\",\"IV/c\",IF('REKAP NGR BK'!$S$11=\"Pembina Utama Madya, IV/d\",\"IV/d\",IF('REKAP NGR BK'!$S$11=\"Pembina Utama, IV/e\",\"IV/e\",\"\")))))))))","v":"III/c"},"Ke",{"$f":"IF($C78=\"III/a\",\"III/b\",IF($C78=\"III/b\",\"III/c\",IF($C78=\"III/c\",\"III/d\",IF($C78=\"III/d\",\"IV/a\",IF($C78=\"IV/a\",\"IV/b\",IF($C78=\"IV/b\",\"IV/c\",IF($C78=\"IV/c\",\"IV/d\",IF($C78=\"IV/d\",\"IV/e\",\"\"))))))))","v":"III/d"}]
[null,"Perolehan angka kredit (untuk pembelajaran) yang dihitung berdasarkan rumus;"]
[]
[]
[]
[{"$nulls":7},{"$f":"DATA!$H$20&\", \"&'REKAP NGR BK'!$S$10","v":"Serang, 23 Oktober 2024"}]
[null,"Guru yang Dinilai",null,null,"Penilai",null,null,"Kepala Madrasah,"]
[]
[]
[]
[null,{"$f":"DATA!$C$3","v":"NINA HERLINA, S.Pd"},null,null,{"$f":"DATA!$H$12","v":"Nasuhi, S.Pd.I"},null,null,{"$f":"DATA!$C$19","v":"NASUHI, S.Pd.I"}]
[null,{"$f":"\"NIP. \"&DATA!$C$4","v":"NIP. -"},null,null,{"$f":"\"NIP. \"&DATA!$H$13","v":"NIP. lake"},null,null,{"$f":"\"NIP. \"&DATA!$C$20","v":"NIP. -"}]
[]
[null,"LAPORAN DAN EVALUASI"]
[null,"PENILAIAN KINERJA GURU TIK"]
[]
[null,null,"Nama Guru",null,{"$f":"\": \"&DATA!$C$3","v":": NINA HERLINA, S.Pd"}]
[null,null,"N I P / No. Seri Karpeg",null,{"$f":"\": \"&DATA!$C$4&\" / \"&DATA!$C$5","v":": - / "}]
[null,null,"Pangkat/Jab./Gol.",null,{"$f":"\": \"&DATA!$C$10","v":": Penata, III/c"}]
[null,null,"Terhitung Mulai Tanggal",null,{"$f":"\": \"&'ID GURU'!$D$9","v":": 9 Juli 2021"}]
[null,null,"NUPTK / NRG",null,{"$f":"\": \"&DATA!$H$4&\" \"","v":": 12345678987 "}]
[]
[null,null,"Nama Sekolah",null,{"$f":"\": \"&DATA!$C$17","v":": MTs An-Nawa"}]
[null,null,"Alamat Sekolah",null,{"$f":"\": \"&DATA!$H$17","v":": Kp. Pengoreng RT.03/02"}]
[null,null,"Tanggal Mulai bekerja",null,{"$f":"\": \"&DATA!$C$12&\" \"&DATA!$D$12&\" \"&DATA!$E$12","v":": 9 Juli 2021"}]
[null,null,"Periode Penilaian",null,{"$f":"\": \"&DATA!$H$15&\"  s.d.  \"&DATA!$J$15","v":": 1 Januari 2024  s.d.  31 Desember 2024"}]
[]
[]
[null,null,"PERSETUJUAN"]
[null,null,"(Persetujuan ini ditandatangani oleh penilai dan guru yang dinilai)"]
[]
[null,null,"Penilai dan guru yang dinilai menyatakan telah membaca dan memahami semua aspek yang ditulis / dilaporkan dalam format ini dan menyatakan setuju."]
[]
[null,null,"Nama Guru",{"$nulls":3},"Nama Penilai"]
[]
[null,null,{"$f":"DATA!$C$3","v":"NINA HERLINA, S.Pd"},{"$nulls":3},{"$f":"DATA!$H$12","v":"Nasuhi, S.Pd.I"}]
[null,null,{"$f":"\"NIP. \"&DATA!$C$4","v":"NIP. -"},{"$nulls":3},{"$f":"\"NIP. \"&DATA!$H$13","v":"NIP. lake"}]
[null,null,"Tanda tangan:",{"$nulls":3},"Tanda tangan:"]
[]
[]
[null,null,"……………………………",{"$nulls":3},"……………………………"]
[]
[{"$nulls":4},"Tanggal : 15 November 2021"]
[]
[]
[]
[null,null,{"$f":"B49&\"\"","v":""},null,null,{"$f":"E49&\"\"","v":""},null,{"$f":"G49&\"\"","v":""}]

{"sheet":"REKWKUR","index":16,"n_rows":116,"n_cols":239,"rows_kept":116,"merged":[[0,1,0,6],[1,1,1,6],[2,1,2,6],[21,2,21,5],[22,2,22,5],[23,2,23,5],[24,2,24,5],[25,2,25,5],[26,2,26,5],[27,1,27,5],[28,1,28,5],[29,1,29,5],[41,1,41,6],[42,1,42,6],[43,1,43,6],[64,1,64,5],[67,1,67,5],[69,1,69,5],[71,1,71,5],[81,1,81,6],[81,8,81,12],[82,1,82,6],[82,8,82,12],[101,1,101,6],[102,1,102,6],[104,1,104,6]]}
[3,"KEMENTERIAN AGAMA KABUPATEN GRESIK",{"$nulls":13},{"$f":"HOME!$U$1","v":1},null,null,{"$f":"UPPER(J1)","v":""}]
[null,"REKAPITULASI HASIL PENILAIAN KINERJA WAKIL KEPALA MADRASAH"]
[null,"BIDANG AKADEMIK/KURIKULUM"]
[null,"a.","Nama",null,{"$f":"\": \"&DATA!$C$3","v":": NINA HERLINA, S.Pd"}]
[null,null,"NIP",null,{"$f":"\": \"&DATA!$C$4","v":": -"}]
[null,null,"NUPTK",null,{"$f":"\": \"&DATA!$H$4","v":": 12345678987"}]
[null,null,"Tempat/Tanggal Lahir",null,{"$f":"\": \"&DATA!$C$7&\", \"&DATA!$C$8","v":": SERANG, 32227"}]
[null,null,"Pangkat/Jabatan/Golongan",null,{"$f":"\": \"&DATA!$C$10","v":": Penata, III/c"}]
[null,null,"TMT sebagai guru",null,{"$f":"\": \"&DATA!$C$12&\" \"&DATA!$D$12&\" \"&DATA!$E$12","v":": 9 Juli 2021"}]
[null,null,"Masa Kerja sebagai guru",null,{"$f":"\": \"&DATEDIF('REKAP NGR BK'!$S$8,'REKAP NGR BK'!$S$9,\"y\")&\"  Tahun  \"&DATEDIF('REKAP NGR BK'!$S$8,'REKAP NGR BK'!$S$9,\"ym\")&\"  Bulan\"","v":": 3  Tahun  3  Bulan"}]
[null,null,"TMT sebagai Waka Kurikulum",null,{"$f":"\": \"&DATA!$C$14&\" \"&DATA!$D$14&\" \"&DATA!$E$14","v":": 17 Juli 2024"}]
[null,null,"Jenis Kelamin",null,{"$f":"\": \"&DATA!$C$6","v":": Perempuan"}]
[null,null,"Pendidikan Terakhir/Spesialisasi",null,{"$f":"\": \"&DATA!$C$9","v":": S-1"}]
[null,null,"Program Keahlian yang diampu",null,{"$f":"\": \"&DATA!$H$3&\" \"&\"(\"&DATA!$H$5&\")\"","v":": Guru Mapel/Kelas (SKI)"}]
[null,"b.","Nama Instansi/Sekolah",null,{"$f":"\": \"&DATA!$C$17","v":": MTs An-Nawa"}]
[null,null,"Telp/Fax",null,{"$f":"\": \"&DATA!$C$18","v":": 082274788884"}]
[null,null,"Kelurahan",null,{"$f":"\": \"&DATA!$H$18","v":": Mangunreja"}]
[null,null,"Kecamatan",null,{"$f":"\": \"&DATA!$H$19","v":": Pulo Ampel"}]
[null,null,"Kabupaten/Kota",null,{"$f":"\": \"&DATA!$H$20","v":": Serang"}]
[null,null,"Provinsi",null,{"$f":"\": \"&DATA!$H$21","v":": Banten"}]
[]
[null,"No","Kompetensi Penilaian",{"$nulls":3},"SKOR\nRATA-RATA"]
[null,1,"Kepribadian dan Sosial",{"$nulls":3},{"$f":"'N-GR'!F3","v":0},null,null,{"$f":"VLOOKUP($P$1,INPUTWK,4)","v":{"$error":"#REF!"}},{"$nulls":228},{"v":1.1428571428571428,"d":"1.14"}]
[null,2,"Kepemimpinan",{"$nulls":3},{"$f":"'N-GR'!F4","v":0},null,null,{"$f":"VLOOKUP($P$1,INPUTWK,5)","v":{"$error":"#REF!"}}]
[null,3,"Pengembangan Sekolah/Madrasah",{"$nulls":3},{"$f":"'N-GR'!F5","v":0},null,null,{"$f":"VLOOKUP($P$1,INPUTWK,6)","v":{"$error":"#REF!"}}]
[null,4,"Kewirausahaan",{"$nulls":3},{"$f":"'N-GR'!F6","v":0},null,null,{"$f":"VLOOKUP($P$1,INPUTWK,7)","v":{"$error":"#REF!"}}]
[null,5,"Wakil Kepala Madrasah Bidang Kurikulum/Akademik",{"$nulls":3},{"$f":"'N-GR'!F7","v":0}]
[null,"Total",{"$nulls":4},{"$f":"SUM(G23:G27)","v":0}]
[null,"NKWKM = Total Skor Rata-rata : 20 x 100",{"$nulls":4},{"$f":"SUM(G23:G27)/20*100","v":0}]
[null,"Kategori Nilai Kinerja Wakil Kepala Madrasah",{"$nulls":4},{"$f":"IF(G28=0,\"\",IF($G$29<=50,\"Buruk\",IF($G$29<=60,\"Kurang\",IF($G$29<=75,\"Cukup\",IF($G$29<=90,\"Baik\",IF($G$29<=100,\"Sangat Baik\",\"\"))))))","v":""}]
[]
[{"$nulls":5},{"$f":"DATA!$H$20&\", \"&'REKAP NGR BK'!$S$10","v":"Serang, 23 Oktober 2024"}]
[null,"Wakil Kepala Madrasah",null,"Penilai,",null,"Kepala Madrasah,"]
[null,"yang dinilai,"]
[]
[]
[]
[]
[null,{"$f":"DATA!$C$3","v":"NINA HERLINA, S.Pd"},null,{"$f":"DATA!$H$12","v":"Nasuhi, S.Pd.I"},null,{"$f":"DATA!$C$19","v":"NASUHI, S.Pd.I"}]
[null,{"$f":"\"NIP. \"&DATA!$C$4","v":"NIP. -"},null,{"$f":"\"NIP. \"&DATA!$H$13","v":"NIP. lake"},null,{"$f":"\"NIP. \"&DATA!$C$20","v":"NIP. -"}]
[]
[null,"FORMAT PENGHITUNGAN ANGKA KREDIT"]
[null,"HASIL PENILAIAN KINERJA GURU YANG BERTUGAS SEBAGAI"]
[null,"WAKIL KEPALA MADRASAH BIDANG KURIKULUM"]
[null,"a","Nama                                                ",null,{"$f":"\": \"&DATA!$C$3","v":": NINA HERLINA, S.Pd"}]
[null,null,"N I P",null,{"$f":"\": \"&DATA!$C$4","v":": -"}]
[null,null,"NUPTK",null,{"$f":"\": \"&DATA!$H$4","v":": 12345678987"}]
[null,null,"Tempat/Tanggal Lahir                    ",null,{"$f":"\": \"&DATA!$C$7&\", \"&DATA!$C$8","v":": SERANG, 32227"}]
[null,null,"Pangkat/Jabatan/Golongan",null,{"$f":"\": \"&DATA!$C$10","v":": Penata, III/c"}]
[null,null,"TMT Sebagai Guru",null,{"$f":"\": \"&DATA!$C$12&\" \"&DATA!$D$12&\" \"&DATA!$E$12","v":": 9 Juli 2021"}]
[null,null,"Masa Kerja                                  ",null,{"$f":"\": \"&DATEDIF('REKAP NGR BK'!$S$8,'REKAP NGR BK'!$S$9,\"y\")&\"  Tahun  \"&DATEDIF('REKAP NGR BK'!$S$8,'REKAP NGR BK'!$S$9,\"ym\")&\"  Bulan\"","v":": 3  Tahun  3  Bulan"}]
[null,null,"Jenis Kelamin                                   ",null,{"$f":"\": \"&DATA!$C$6","v":": Perempuan"}]
[null,null,"Pendidikan Terakhir/Spesialisasi  ",null,{"$f":"\": \"&DATA!$C$9","v":": S-1"}]
[null,null,"Program Keahlian yang diampu          ",null,{"$f":"\": \"&DATA!$H$5","v":": SKI"}]
[null,"b","Nama Instansi/Sekolah",null,{"$f":"\": \"&DATA!$C$17","v":": MTs An-Nawa"}]
[null,null,"Telp / Fax                                           ",null,{"$f":"\": \"&DATA!$C$18","v":": 082274788884"}]
[null,null,"Desa",null,{"$f":"\": \"&DATA!$H$18","v":": Mangunreja"}]
[null,null,"Kecamatan  ",null,{"$f":"\": \"&DATA!$H$19","v":": Pulo Ampel"}]
[null,null,"Kabupaten",null,{"$f":"\": \"&DATA!$H$20","v":": Serang"}]
[null,null,"Provinsi  ",null,{"$f":"\": \"&DATA!$H$21","v":": Banten"}]
[]
[null,"Nilai PK GURU untuk:"]
[null,"•   Pembelajaran/Pembimbingan ",{"$nulls":4},{"$f":"IF(G64=0,\"\",IF(DATA!$N$1=1,'N-GR'!$C$21,IF(DATA!$N$1=2,'N-GR'!$D$21,IF(DATA!$N$1=3,'N-GR'!$E$21,\"\"))))","v":""}]
[null,"•   Tugas Tambahan Sebagai Wakil Kepala Madrasah",{"$nulls":4},{"$f":"(G28/20)*100","v":0}]
[null,"Berdasarkan hasil konversi ke dalam skala nilai sesuai dengan Permenneg PAN dan RB No. 16 Tahun 2009, selanjutnya ditetapkan sebutan dan persentase angka kreditnya"]
[null,"•   Pembelajaran/Pembimbingan ",null,null,"Sebutan :",{"$f":"IF(G63=0,\"\",IF(G63>=91,\"Amat Baik\",IF(G63>=76,\"Baik\",IF(G63>=61,\"Cukup\",IF(G63>=51,\"Sedang\",IF(G63<=50,\"Kurang\"))))))","v":"Amat Baik"},{"$f":"IF($G$63=0,\"\",IF($G$63<=50,\"25%\",IF($G$63<=60,\"50%\",IF($G$63<=75,\"75%\",IF($G$63<=90,\"100%\",IF($G$63<=100,\"125%\",\"\"))))))","v":""}]
[null,"•   Tugas Tambahan sebagai Waka Kurikulum",null,null,"Sebutan :",{"$f":"IF(G64=0,\"\",IF(G64>=91,\"Amat Baik\",IF(G64>=76,\"Baik\",IF(G64>=61,\"Cukup\",IF(G64>=51,\"Sedang\",IF(G64<=50,\"Kurang\"))))))","v":""},{"$f":"IF($G$64=0,\"\",IF($G$64<=50,\"25%\",IF($G$64<=60,\"50%\",IF($G$64<=75,\"75%\",IF($G$64<=90,\"100%\",IF($G$64<=100,\"125%\",\"\"))))))","v":""}]
[null,"Perolehan angka kredit (pembelajaran/pembimbingan) per tahun bagi guru dengan tugas tambahan sebagai Wakil Kepala Madrasah dihitung dengan rumus:"]
[{"$nulls":5}," x 50%",{"$f":"IF(G63=\"\",\"\",IF(DATA!$N$1=1,'N-GR'!$C$24,IF(DATA!$N$1=2,'N-GR'!$D$24,IF(DATA!$N$1=3,'N-GR'!$E$24,\"\"))))","v":""}]
[null,"Perolehan angka kredit tugas tambahan per tahun sebagai Wakil Kepala Madrasah"]
[{"$nulls":5}," x 50%",{"$f":"IF('N-GR'!F24=0,\"\",'N-GR'!F24)","v":""}]
[null,"Total perolehan angka kredit sebagai guru dan tugas tambahan sebagai Wakil Kepala Madrasah",{"$nulls":4},{"$f":"IFERROR(SUM(G69+G71),0)","v":{"v":0,"d":"0.00"}}]
[]
[{"$nulls":5},{"$f":"DATA!$H$20&\", \"&'REKAP NGR BK'!$S$10","v":"Serang, 23 Oktober 2024"}]
[null,"Wakil Kepala Madrasah",null,"Penilai",null,"Kepala Madrasah,"]
[null,"yang dinilai,"]
[]
[]
[null,{"$f":"DATA!$C$3","v":"NINA HERLINA, S.Pd"},null,{"$f":"DATA!$H$12","v":"Nasuhi, S.Pd.I"},null,{"$f":"DATA!$C$19","v":"NASUHI, S.Pd.I"}]
[null,{"$f":"\"NIP. \"&DATA!$C$4","v":"NIP. -"},null,{"$f":"\"NIP. \"&DATA!$H$13","v":"NIP. lake"},null,{"$f":"\"NIP. \"&DATA!$C$20","v":"NIP. -"}]
[]
[null,"FORMAT PERSETUJUAN PENILAIAN KINERJA GURU"]
[null,"DENGAN TUGAS TAMBAHAN SEBAGAI WAKIL KEPALA MADRASAH"]
[]
[null,null,"Nama",null,{"$f":"\": \"&DATA!$C$3","v":": NINA HERLINA, S.Pd"}]
[null,null,"NIP",null,{"$f":"\": \"&DATA!$C$4","v":": -"}]
[null,null,"Tempat Tanggal Lahir",null,{"$f":"\": \"&DATA!$C$7&\", \"&DATA!$C$8","v":": SERANG, 32227"}]
[null,null,"Pangkat /Golongan Ruang",null,{"$f":"\": \"&DATA!$C$10","v":": Penata, III/c"}]
[null,null,"Jenis Kelamin",null,{"$f":"\": \"&DATA!$C$6","v":": Perempuan"}]
[null,null,"Masa Kerja Sebagai Guru",null,{"$f":"\": \"&DATEDIF('REKAP NGR BK'!$S$8,'REKAP NGR BK'!$S$9,\"y\")&\"  Tahun  \"&DATEDIF('REKAP NGR BK'!$S$8,'REKAP NGR BK'!$S$9,\"ym\")&\"  Bulan\"","v":": 3  Tahun  3  Bulan"}]
[null,null,"TMT Sebagai Waka Kurikulum",null,{"$f":"\": \"&DATA!$C$14&\" \"&DATA!$D$14&\" \"&DATA!$E$14","v":": 17 Juli 2024"}]
[null,null,"Pendidikan Terakhir",null,{"$f":"\": \"&DATA!$C$9","v":": S-1"}]
[null,null,"Nama sekolah dan alamat",null,{"$f":"\": \"&DATA!$C$17","v":": MTs An-Nawa"}]
[null,null,"Telp/Fax",null,{"$f":"\": \"&DATA!$C$18","v":": 082274788884"}]
[null,null,"Desa",null,{"$f":"\": \"&DATA!$H$18","v":": Mangunreja"}]
[null,null,"Kecamatan",null,{"$f":"\": \"&DATA!$H$19","v":": Pulo Ampel"}]
[null,null,"Kabupaten",null,{"$f":"\": \"&DATA!$H$20","v":": Serang"}]
[null,null,"Propinsi",null,{"$f":"\": \"&DATA!$H$21","v":": Banten"}]
[null,null,"NUPTK/ NRG",null,{"$f":"\": \"&DATA!$C$4&\" / \"&DATA!$C$5","v":": - / "}]
[null,null,"Periode penilaian",null,{"$f":"\": \"&DATA!$H$15&\"  s.d.  \"&DATA!$J$15","v":": 1 Januari 2024  s.d.  31 Desember 2024"}]
[]
[null,"PERSETUJUAN"]
[null,"(Persetujuan ini ditandatangani oleh penilai dan guru yang dinilai)"]
[{"$nulls":8}," "]
[null,"Penilai dan guru yang dinilai menyatakan telah membaca dan memahami semua aspek\nyang ditulis / dilaporkan dalam format ini dan menyatakan setuju."]
[]
[null,null,"Nama Guru",null,null,"Nama Penilai"]
[null,null,{"$f":"DATA!$C$3","v":"NINA HERLINA, S.Pd"},null,null,{"$f":"DATA!$H$12","v":"Nasuhi, S.Pd.I"}]
[null,null,{"$f":"\"NIP. \"&DATA!$C$4","v":"NIP. -"},null,null,{"$f":"\"NIP. \"&DATA!$H$13","v":"NIP. lake"}]
[]
[null,null,"Tanda tangan:",null,null,"Tanda tangan:"]
[]
[]
[null,null,"……………………………",null,null,"……………………………"]
[]
[{"$nulls":4},{"$f":"\"Tanggal : \"&VLOOKUP($J$1,DATAGR,30)","v":{"$error":"#REF!"}}]

{"sheet":"REKWKSIS","index":17,"n_rows":116,"n_cols":239,"rows_kept":116,"merged":[[0,1,0,6],[1,1,1,6],[2,1,2,6],[20,2,20,5],[21,2,21,5],[22,2,22,5],[23,2,23,5],[24,2,24,5],[25,2,25,5],[26,2,26,5],[28,1,28,5],[40,1,40,6],[41,1,41,6],[42,1,42,6],[63,1,63,5],[66,1,66,5],[68,1,68,5],[70,1,70,5],[80,1,80,6],[80,8,80,12],[81,1,81,6],[81,8,81,12],[101,1,101,6],[102,1,102,6],[104,1,104,6]]}
[3,"KEMENTERIAN AGAMA KABUPATEN GRESIK",{"$nulls":13},{"$f":"HOME!$U$1","v":1},null,null,{"$f":"UPPER(J1)","v":""}]
[null,"REKAPITULASI HASIL PENILAIAN KINERJA WAKIL KEPALA MADRASAH"]
[null,"BIDANG KESISWAAN"]
[null,"a.","Nama",null,{"$f":"\": \"&DATA!$C$3","v":": NINA HERLINA, S.Pd"}]
[null,null,"NIP",null,{"$f":"\": \"&DATA!$C$4","v":": -"}]
[null,null,"Tempat/Tanggal Lahir",null,{"$f":"\": \"&DATA!$C$7&\", \"&DATA!$C$8","v":": SERANG, 32227"}]
[null,null,"Pangkat/Jabatan/Golongan",null,{"$f":"\": \"&DATA!$C$10","v":": Penata, III/c"}]
[null,null,"TMT sebagai guru",null,{"$f":"\": \"&DATA!$C$12&\" \"&DATA!$D$12&\" \"&DATA!$E$12","v":": 9 Juli 2021"}]
[null,null,"Masa Kerja sebagai guru",null,{"$f":"\": \"&DATEDIF('REKAP NGR BK'!$S$8,'REKAP NGR BK'!$S$9,\"y\")&\"  Tahun  \"&DATEDIF('REKAP NGR BK'!$S$8,'REKAP NGR BK'!$S$9,\"ym\")&\"  Bulan\"","v":": 3  Tahun  3  Bulan"}]
[null,null,"TMT sebagai Waka Kesiswaan",null,{"$f":"\": \"&DATA!$C$14&\" \"&DATA!$D$14&\" \"&DATA!$E$14","v":": 17 Juli 2024"}]
[null,null,"Jenis Kelamin",null,{"$f":"\": \"&DATA!$C$6","v":": Perempuan"}]
[null,null,"Pendidikan Terakhir/Spesialisasi",null,{"$f":"\": \"&DATA!$C$9","v":": S-1"}]
[null,null,"Program Keahlian yang diampu",null,{"$f":"\": \"&DATA!$H$3&\" \"&\"(\"&DATA!$H$5&\")\"","v":": Guru Mapel/Kelas (SKI)"}]
[null,"b.","Nama Instansi/Sekolah",null,{"$f":"\": \"&DATA!$C$17","v":": MTs An-Nawa"}]
[null,null,"Telp/Fax",null,{"$f":"\": \"&DATA!$C$18","v":": 082274788884"}]
[null,null,"Kelurahan",null,{"$f":"\": \"&DATA!$H$18","v":": Mangunreja"}]
[null,null,"Kecamatan",null,{"$f":"\": \"&DATA!$H$19","v":": Pulo Ampel"}]
[null,null,"Kabupaten/Kota",null,{"$f":"\": \"&DATA!$H$20","v":": Serang"}]
[null,null,"Provinsi",null,{"$f":"\": \"&DATA!$H$21","v":": Banten"}]
[]
[null,"No","Kompetensi Penilaian",{"$nulls":3},"SKOR\nRATA-RATA"]
[null,1,"Kepribadian dan Sosial",{"$nulls":3},{"$f":"'N-GR'!G3","v":0},null,null,{"$f":"VLOOKUP($P$1,INPUTWK,4)","v":{"$error":"#REF!"}},{"$nulls":228},{"v":1.1428571428571428,"d":"1.14"}]
[null,2,"Kepemimpinan",{"$nulls":3},{"$f":"'N-GR'!G4","v":0},null,null,{"$f":"VLOOKUP($P$1,INPUTWK,5)","v":{"$error":"#REF!"}}]
[null,3,"Pengembangan Sekolah/Madrasah",{"$nulls":3},{"$f":"'N-GR'!G5","v":0},null,null,{"$f":"VLOOKUP($P$1,INPUTWK,6)","v":{"$error":"#REF!"}}]
[null,4,"Kewirausahaan",{"$nulls":3},{"$f":"'N-GR'!G6","v":0},null,null,{"$f":"VLOOKUP($P$1,INPUTWK,7)","v":{"$error":"#REF!"}}]
[null,5,"Wakil Kepala Madrasah Bidang Kesiswaan",{"$nulls":3},{"$f":"'N-GR'!G7","v":0}]
[null,null,"NILAI RATA-RATA",{"$nulls":3},{"$f":"SUM(G22:G26)","v":0}]
[]
[null,"Nilai Kinerja Wakil Kepala Bidang Kesiswaan = Total Skor Rata-rata/20 X 100 adalah  ",{"$nulls":4},{"$f":"G27/20*100","v":{"v":0,"d":"0.00"}}]
[]
[{"$nulls":5},{"$f":"DATA!$H$20&\", \"&'REKAP NGR BK'!$S$10","v":"Serang, 23 Oktober 2024"}]
[null,"Wakil Kepala Madrasah",null,"Penilai,",null,"Kepala Madrasah,"]
[null,"yang dinilai,"]
[]
[]
[]
[]
[null,{"$f":"DATA!$C$3","v":"NINA HERLINA, S.Pd"},null,{"$f":"DATA!$H$12","v":"Nasuhi, S.Pd.I"},null,{"$f":"DATA!$C$19","v":"NASUHI, S.Pd.I"}]
[null,{"$f":"\"NIP. \"&DATA!$C$4","v":"NIP. -"},null,{"$f":"\"NIP. \"&DATA!$H$13","v":"NIP. lake"},null,{"$f":"\"NIP. \"&DATA!$C$20","v":"NIP. -"}]
[]
[null,"FORMAT PENGHITUNGAN ANGKA KREDIT"]
[null,"HASIL PENILAIAN KINERJA GURU YANG BERTUGAS SEBAGAI"]
[null,"WAKIL KEPALA MADRASAH BIDANG KESISWAAN"]
[null,"a","Nama                                                ",null,{"$f":"\": \"&DATA!$C$3","v":": NINA HERLINA, S.Pd"}]
[null,null,"N I P",null,{"$f":"\": \"&DATA!$C$4","v":": -"}]
[null,null,"NUPTK",null,{"$f":"\": \"&DATA!$H$4","v":": 12345678987"}]
[null,null,"Tempat/Tanggal Lahir                    ",null,{"$f":"\": \"&DATA!$C$7&\", \"&DATA!$C$8","v":": SERANG, 32227"}]
[null,null,"Pangkat/Jabatan/Golongan",null,{"$f":"\": \"&DATA!$C$10","v":": Penata, III/c"}]
[null,null,"TMT Sebagai Guru",null,{"$f":"\": \"&DATA!$C$12&\" \"&DATA!$D$12&\" \"&DATA!$E$12","v":": 9 Juli 2021"}]
[null,null,"Masa Kerja                                  ",null,{"$f":"\": \"&DATEDIF('REKAP NGR BK'!$S$8,'REKAP NGR BK'!$S$9,\"y\")&\"  Tahun  \"&DATEDIF('REKAP NGR BK'!$S$8,'REKAP NGR BK'!$S$9,\"ym\")&\"  Bulan\"","v":": 3  Tahun  3  Bulan"}]
[null,null,"Jenis Kelamin                                   ",null,{"$f":"\": \"&DATA!$C$6","v":": Perempuan"}]
[null,null,"Pendidikan Terakhir/Spesialisasi  ",null,{"$f":"\": \"&DATA!$C$9","v":": S-1"}]
[null,null,"Program Keahlian yang diampu          ",null,{"$f":"\": \"&DATA!$H$5","v":": SKI"}]
[null,"b","Nama Instansi/Madrasah",null,{"$f":"\": \"&DATA!$C$17","v":": MTs An-Nawa"}]
[null,null,"Telp / Fax                                           ",null,{"$f":"\": \"&DATA!$C$18","v":": 082274788884"}]
[null,null,"Desa",null,{"$f":"\": \"&DATA!$H$18","v":": Mangunreja"}]
[null,null,"Kecamatan  ",null,{"$f":"\": \"&DATA!$H$19","v":": Pulo Ampel"}]
[null,null,"Kabupaten",null,{"$f":"\": \"&DATA!$H$20","v":": Serang"}]
[null,null,"Provinsi  ",null,{"$f":"\": \"&DATA!$H$21","v":": Banten"}]
[]
[null,"Nilai PK GURU untuk:"]
[null,"•   Pembelajaran/Pembimbingan",{"$nulls":4},{"$f":"IF(G63=0,\"\",IF(DATA!$N$1=1,'N-GR'!$C$21,IF(DATA!$N$1=2,'N-GR'!$D$21,IF(DATA!$N$1=3,'N-GR'!$E$21,\"\"))))","v":""}]
[null,"•   Tugas Tambahan Sebagai Wakil Kepala Madrasah",{"$nulls":4},{"$f":"G29","v":0}]
[null,"Berdasarkan hasil konversi ke dalam skala nilai sesuai dengan Permenneg PAN dan RB No. 16 Tahun 2009, selanjutnya ditetapkan sebutan dan persentase angka kreditnya"]
[null,"•   Pembelajaran/Pembimbingan ",null,null,"Sebutan :",{"$f":"IF(G62=0,\"\",IF(G62>=91,\"Amat Baik\",IF(G62>=76,\"Baik\",IF(G62>=61,\"Cukup\",IF(G62>=51,\"Sedang\",IF(G62<=50,\"Kurang\"))))))","v":"Amat Baik"},{"$f":"IF($G$62=0,\"\",IF($G$62<=50,\"25%\",IF($G$62<=60,\"50%\",IF($G$62<=75,\"75%\",IF($G$62<=90,\"100%\",IF($G$62<=100,\"125%\",\"\"))))))","v":""}]
[null,"•   Tugas Tambahan sebagai Waka Kesiswaan",null,null,"Sebutan :",{"$f":"IF(G63=0,\"\",IF(G63>=91,\"Amat Baik\",IF(G63>=76,\"Baik\",IF(G63>=61,\"Cukup\",IF(G63>=51,\"Sedang\",IF(G63<=50,\"Kurang\"))))))","v":""},{"$f":"IF($G$63=0,\"\",IF($G$63<=50,\"25%\",IF($G$63<=60,\"50%\",IF($G$63<=75,\"75%\",IF($G$63<=90,\"100%\",IF($G$63<=100,\"125%\",\"\"))))))","v":""}]
[null,"Perolehan angka kredit (pembelajaran/pembimbingan) per tahun bagi guru dengan tugas tambahan sebagai Wakil Kepala Madrasah dihitung dengan rumus:"]
[{"$nulls":5}," x 50%",{"$f":"(IF(G62=\"\",\"\",IF(DATA!$N$1=1,'N-GR'!$C$24,IF(DATA!$N$1=2,'N-GR'!$D$24,IF(DATA!$N$1=3,'N-GR'!$E$24,\"\")))))","v":""}]
[null,"Perolehan angka kredit tugas tambahan per tahun sebagai Wakil Kepala Madrasah"]
[{"$nulls":5}," x 50%",{"$f":"IF('N-GR'!G24=0,\"\",'N-GR'!G24)","v":""}]
[null,"Total perolehan angka kredit sebagai guru dan tugas tambahan sebagai Wakil Kepala Madrasah",{"$nulls":4},{"$f":"IFERROR(SUM(G68+G70),0)","v":{"v":0,"d":"0.00"}}]
[]
[{"$nulls":5},{"$f":"DATA!$H$20&\", \"&'REKAP NGR BK'!$S$10","v":"Serang, 23 Oktober 2024"}]
[null,"Wakil Kepala Madrasah",null,"Penilai",null,"Kepala Madrasah,"]
[null,"yang dinilai,"]
[]
[]
[null,{"$f":"DATA!$C$3","v":"NINA HERLINA, S.Pd"},null,{"$f":"DATA!$H$12","v":"Nasuhi, S.Pd.I"},null,{"$f":"DATA!$C$19","v":"NASUHI, S.Pd.I"}]
[null,{"$f":"\"NIP. \"&DATA!$C$4","v":"NIP. -"},null,{"$f":"\"NIP. \"&DATA!$H$13","v":"NIP. lake"},null,{"$f":"\"NIP. \"&DATA!$C$20","v":"NIP. -"}]
[]
[null,"FORMAT PERSETUJUAN PENILAIAN KINERJA GURU"]
[null,"DENGAN TUGAS TAMBAHAN SEBAGAI WAKIL KEPALA MADRASAH"]
[]
[null,null,"Nama",null,{"$f":"\": \"&DATA!$C$3","v":": NINA HERLINA, S.Pd"}]
[null,null,"NIP",null,{"$f":"\": \"&DATA!$C$4","v":": -"}]
[null,null,"NUPTK",null,{"$f":"\": \"&DATA!$H$4","v":": 12345678987"}]
[null,null,"Tempat Tanggal Lahir",null,{"$f":"\": \"&DATA!$C$7&\", \"&DATA!$C$8","v":": SERANG, 32227"}]
[null,null,"Pangkat /Golongan Ruang",null,{"$f":"\": \"&DATA!$C$10","v":": Penata, III/c"}]
[null,null,"Jenis Kelamin",null,{"$f":"\": \"&DATA!$C$6","v":": Perempuan"}]
[null,null,"Masa Kerja Sebagai Guru",null,{"$f":"\": \"&DATEDIF('REKAP NGR BK'!$S$8,'REKAP NGR BK'!$S$9,\"y\")&\"  Tahun  \"&DATEDIF('REKAP NGR BK'!$S$8,'REKAP NGR BK'!$S$9,\"ym\")&\"  Bulan\"","v":": 3  Tahun  3  Bulan"}]
[null,null,"TMT Sebagai Waka Kesiswaan",null,{"$f":"\": \"&DATA!$C$14&\" \"&DATA!$D$14&\" \"&DATA!$E$14","v":": 17 Juli 2024"}]
[null,null,"Pendidikan Terakhir",null,{"$f":"\": \"&DATA!$C$9","v":": S-1"}]
[null,null,"Nama sekolah dan alamat",null,{"$f":"\": \"&DATA!$C$17","v":": MTs An-Nawa"}]
[null,null,"Telp/Fax",null,{"$f":"\": \"&DATA!$C$18","v":": 082274788884"}]
[null,null,"Desa",null,{"$f":"\": \"&DATA!$H$18","v":": Mangunreja"}]
[null,null,"Kecamatan",null,{"$f":"\": \"&DATA!$H$19","v":": Pulo Ampel"}]
[null,null,"Kabupaten",null,{"$f":"\": \"&DATA!$H$20","v":": Serang"}]
[null,null,"Propinsi",null,{"$f":"\": \"&DATA!$H$21","v":": Banten"}]
[null,null,"NUPTK/ NRG",null,{"$f":"\": \"&DATA!$C$4&\" / \"&DATA!$C$5","v":": - / "}]
[null,null,"Periode penilaian",null,{"$f":"\": \"&DATA!$H$15&\"  s.d.  \"&DATA!$J$15","v":": 1 Januari 2024  s.d.  31 Desember 2024"}]
[]
[null,"PERSETUJUAN"]
[null,"(Persetujuan ini ditandatangani oleh penilai dan guru yang dinilai)"]
[{"$nulls":8}," "]
[null,"Penilai dan guru yang dinilai menyatakan telah membaca dan memahami semua aspek\nyang ditulis / dilaporkan dalam format ini dan menyatakan setuju."]
[]
[null,null,"Nama Guru",null,null,"Nama Penilai"]
[null,null,{"$f":"DATA!$C$3","v":"NINA HERLINA, S.Pd"},null,null,{"$f":"DATA!$H$12","v":"Nasuhi, S.Pd.I"}]
[null,null,{"$f":"\"NIP. \"&DATA!$C$4","v":"NIP. -"},null,null,{"$f":"\"NIP. \"&DATA!$H$13","v":"NIP. lake"}]
[]
[null,null,"Tanda tangan:",null,null,"Tanda tangan:"]
[]
[]
[null,null,"……………………………",null,null,"……………………………"]
[]
[{"$nulls":4},{"$f":"\"Tanggal : \"&VLOOKUP($J$1,DATAGR,30)","v":{"$error":"#REF!"}}]

{"sheet":"REKWKSAR","index":18,"n_rows":116,"n_cols":239,"rows_kept":116,"merged":[[0,1,0,6],[1,1,1,6],[2,1,2,6],[21,2,21,5],[22,2,22,5],[23,2,23,5],[24,2,24,5],[25,2,25,5],[26,2,26,5],[27,2,27,5],[29,1,29,5],[41,1,41,6],[42,1,42,6],[43,1,43,6],[64,1,64,5],[67,1,67,5],[69,1,69,5],[71,1,71,5],[81,1,81,6],[81,8,81,12],[82,1,82,6],[82,8,82,12],[101,1,101,6],[102,1,102,6],[104,1,104,6]]}
[3,"KEMENTERIAN AGAMA KABUPATEN GRESIK",{"$nulls":13},{"$f":"HOME!$U$1","v":1},null,null,{"$f":"UPPER(J1)","v":""}]
[null,"REKAPITULASI HASIL PENILAIAN KINERJA WAKIL KEPALA MADRASAH"]
[null,"BIDANG SARANA DAN PRASARANA"]
[null,"a.","Nama",null,{"$f":"\": \"&DATA!$C$3","v":": NINA HERLINA, S.Pd"}]
[null,null,"NIP",null,{"$f":"\": \"&DATA!$C$4","v":": -"}]
[null,null,"NUPTK",null,{"$f":"\": \"&DATA!$H$4","v":": 12345678987"}]
[null,null,"Tempat/Tanggal Lahir",null,{"$f":"\": \"&DATA!$C$7&\", \"&DATA!$C$8","v":": SERANG, 32227"}]
[null,null,"Pangkat/Jabatan/Golongan",null,{"$f":"\": \"&DATA!$C$10","v":": Penata, III/c"}]
[null,null,"TMT sebagai guru",null,{"$f":"\": \"&DATA!$C$12&\" \"&DATA!$D$12&\" \"&DATA!$E$12","v":": 9 Juli 2021"}]
[null,null,"Masa Kerja sebagai guru",null,{"$f":"\": \"&DATEDIF('REKAP NGR BK'!$S$8,'REKAP NGR BK'!$S$9,\"y\")&\"  Tahun  \"&DATEDIF('REKAP NGR BK'!$S$8,'REKAP NGR BK'!$S$9,\"ym\")&\"  Bulan\"","v":": 3  Tahun  3  Bulan"}]
[null,null,"TMT sebagai Waka Sarpras",null,{"$f":"\": \"&DATA!$C$14&\" \"&DATA!$D$14&\" \"&DATA!$E$14","v":": 17 Juli 2024"}]
[null,null,"Jenis Kelamin",null,{"$f":"\": \"&DATA!$C$6","v":": Perempuan"}]
[null,null,"Pendidikan Terakhir/Spesialisasi",null,{"$f":"\": \"&DATA!$C$9","v":": S-1"}]
[null,null,"Program Keahlian yang diampu",null,{"$f":"\": \"&DATA!$H$3&\" \"&\"(\"&DATA!$H$5&\")\"","v":": Guru Mapel/Kelas (SKI)"}]
[null,"b.","Nama Instansi/Sekolah",null,{"$f":"\": \"&DATA!$C$17","v":": MTs An-Nawa"}]
[null,null,"Telp/Fax",null,{"$f":"\": \"&DATA!$C$18","v":": 082274788884"}]
[null,null,"Kelurahan",null,{"$f":"\": \"&DATA!$H$18","v":": Mangunreja"}]
[null,null,"Kecamatan",null,{"$f":"\": \"&DATA!$H$19","v":": Pulo Ampel"}]
[null,null,"Kabupaten/Kota",null,{"$f":"\": \"&DATA!$H$20","v":": Serang"}]
[null,null,"Provinsi",null,{"$f":"\": \"&DATA!$H$21","v":": Banten"}]
[]
[null,"No","Kompetensi Penilaian",{"$nulls":3},"SKOR\nRATA-RATA"]
[null,1,"Kepribadian dan Sosial",{"$nulls":3},{"$f":"'N-GR'!H3","v":0},null,null,{"$f":"VLOOKUP($P$1,INPUTWK,4)","v":{"$error":"#REF!"}},{"$nulls":228},{"v":1.1428571428571428,"d":"1.14"}]
[null,2,"Kepemimpinan",{"$nulls":3},{"$f":"'N-GR'!H4","v":0},null,null,{"$f":"VLOOKUP($P$1,INPUTWK,5)","v":{"$error":"#REF!"}}]
[null,3,"Pengembangan Sekolah/Madrasah",{"$nulls":3},{"$f":"'N-GR'!H5","v":0},null,null,{"$f":"VLOOKUP($P$1,INPUTWK,6)","v":{"$error":"#REF!"}}]
[null,4,"Kewirausahaan",{"$nulls":3},{"$f":"'N-GR'!H6","v":0},null,null,{"$f":"VLOOKUP($P$1,INPUTWK,7)","v":{"$error":"#REF!"}}]
[null,5,"Wakil Kepala Madrasah Bidang Sarana dan Prasarana",{"$nulls":3},{"$f":"'N-GR'!H7","v":0}]
[null,null,"NILAI RATA-RATA",{"$nulls":3},{"$f":"SUM(G23:G27)","v":0}]
[]
[null,"Nilai Kinerja Wakil Kepala Bidang Sarpras = Total Skor Rata-rata/20 X 100 adalah  ",{"$nulls":4},{"$f":"G28/20*100","v":{"v":0,"d":"0.00"}}]
[]
[{"$nulls":5},{"$f":"DATA!$H$20&\", \"&'REKAP NGR BK'!$S$10","v":"Serang, 23 Oktober 2024"}]
[null,"Wakil Kepala Madrasah",null,"Penilai,",null,"Kepala Madrasah,"]
[null,"yang dinilai,"]
[]
[]
[]
[]
[null,{"$f":"DATA!$C$3","v":"NINA HERLINA, S.Pd"},null,{"$f":"DATA!$H$12","v":"Nasuhi, S.Pd.I"},null,{"$f":"DATA!$C$19","v":"NASUHI, S.Pd.I"}]
[null,{"$f":"\"NIP. \"&DATA!$C$4","v":"NIP. -"},null,{"$f":"\"NIP. \"&DATA!$H$13","v":"NIP. lake"},null,{"$f":"\"NIP. \"&DATA!$C$20","v":"NIP. -"}]
[]
[null,"FORMAT PENGHITUNGAN ANGKA KREDIT"]
[null,"HASIL PENILAIAN KINERJA GURU YANG BERTUGAS SEBAGAI"]
[null,"WAKIL KEPALA MADRASAH BIDANG SARANA DAN PRASARANA"]
[null,"a","Nama                                                ",null,{"$f":"\": \"&DATA!$C$3","v":": NINA HERLINA, S.Pd"}]
[null,null,"N I P",null,{"$f":"\": \"&DATA!$C$4","v":": -"}]
[null,null,"NUPTK",null,{"$f":"\": \"&DATA!$H$4","v":": 12345678987"}]
[null,null,"Tempat/Tanggal Lahir                    ",null,{"$f":"\": \"&DATA!$C$7&\", \"&DATA!$C$8","v":": SERANG, 32227"}]
[null,null,"Pangkat/Jabatan/Golongan",null,{"$f":"\": \"&DATA!$C$10","v":": Penata, III/c"}]
[null,null,"TMT Sebagai Guru",null,{"$f":"\": \"&DATA!$C$12&\" \"&DATA!$D$12&\" \"&DATA!$E$12","v":": 9 Juli 2021"}]
[null,null,"Masa Kerja                                  ",null,{"$f":"\": \"&DATEDIF('REKAP NGR BK'!$S$8,'REKAP NGR BK'!$S$9,\"y\")&\"  Tahun  \"&DATEDIF('REKAP NGR BK'!$S$8,'REKAP NGR BK'!$S$9,\"ym\")&\"  Bulan\"","v":": 3  Tahun  3  Bulan"}]
[null,null,"Jenis Kelamin                                   ",null,{"$f":"\": \"&DATA!$C$6","v":": Perempuan"}]
[null,null,"Pendidikan Terakhir/Spesialisasi  ",null,{"$f":"\": \"&DATA!$C$9","v":": S-1"}]
[null,null,"Program Keahlian yang diampu          ",null,{"$f":"\": \"&DATA!$H$5","v":": SKI"}]
[null,"b","Nama Instansi/Sekolah",null,{"$f":"\": \"&DATA!$C$17","v":": MTs An-Nawa"}]
[null,null,"Telp / Fax                                           ",null,{"$f":"\": \"&DATA!$C$18","v":": 082274788884"}]
[null,null,"Desa",null,{"$f":"\": \"&DATA!$H$18","v":": Mangunreja"}]
[null,null,"Kecamatan  ",null,{"$f":"\": \"&DATA!$H$19","v":": Pulo Ampel"}]
[null,null,"Kabupaten",null,{"$f":"\": \"&DATA!$H$20","v":": Serang"}]
[null,null,"Provinsi  ",null,{"$f":"\": \"&DATA!$H$21","v":": Banten"}]
[]
[null,"Nilai PK GURU untuk:"]
[null,"•   Pembelajaran/Pembimbingan ",{"$nulls":4},{"$f":"IF(G64=0,\"\",IF(DATA!$N$1=1,'N-GR'!$C$21,IF(DATA!$N$1=2,'N-GR'!$D$21,IF(DATA!$N$1=3,'N-GR'!$E$21,\"\"))))","v":""}]
[null,"•   Tugas Tambahan Sebagai Wakil Kepala Madrasah ",{"$nulls":4},{"$f":"G30","v":0}]
[null,"Berdasarkan hasil konversi ke dalam skala nilai sesuai dengan Permenneg PAN dan RB No. 16 Tahun 2009, selanjutnya ditetapkan sebutan dan persentase angka kreditnya"]
[null,"•   Pembelajaran/Pembimbingan ",null,null,"Sebutan :",{"$f":"IF(G63=0,\"\",IF(G63>=91,\"Amat Baik\",IF(G63>=76,\"Baik\",IF(G63>=61,\"Cukup\",IF(G63>=51,\"Sedang\",IF(G63<=50,\"Kurang\"))))))","v":"Amat Baik"},{"$f":"IF($G$63=0,\"\",IF($G$63<=50,\"25%\",IF($G$63<=60,\"50%\",IF($G$63<=75,\"75%\",IF($G$63<=90,\"100%\",IF($G$63<=100,\"125%\",\"\"))))))","v":""}]
[null,"•   Tugas Tambahan sebagai Waka Sarpras",null,null,"Sebutan :",{"$f":"IF(G64=0,\"\",IF(G64>=91,\"Amat Baik\",IF(G64>=76,\"Baik\",IF(G64>=61,\"Cukup\",IF(G64>=51,\"Sedang\",IF(G64<=50,\"Kurang\"))))))","v":""},{"$f":"IF($G$64=0,\"\",IF($G$64<=50,\"25%\",IF($G$64<=60,\"50%\",IF($G$64<=75,\"75%\",IF($G$64<=90,\"100%\",IF($G$64<=100,\"125%\",\"\"))))))","v":""}]
[null,"Perolehan angka kredit (pembelajaran/pembimbingan) per tahun bagi guru dengan tugas tambahan sebagai Wakil Kepala Madrasah dihitung dengan rumus:"]
[{"$nulls":5}," x 50%",{"$f":"IF(G63=\"\",\"\",IF(DATA!$N$1=1,'N-GR'!$C$24,IF(DATA!$N$1=2,'N-GR'!$D$24,IF(DATA!$N$1=3,'N-GR'!$E$24,\"\"))))","v":""}]
[null,"Perolehan angka kredit tugas tambahan per tahun sebagai Wakil Kepala Madrasah"]
[{"$nulls":5}," x 50%",{"$f":"IF('N-GR'!$H$24=0,\"\",'N-GR'!$H$24)","v":""}]
[null,"Total perolehan angka kredit sebagai guru dan tugas tambahan sebagai Wakil Kepala Madrasah",{"$nulls":4},{"$f":"IFERROR(SUM(G69+G71),0)","v":{"v":0,"d":"0.00"}}]
[]
[{"$nulls":5},{"$f":"DATA!$H$20&\", \"&'REKAP NGR BK'!$S$10","v":"Serang, 23 Oktober 2024"}]
[null,"Wakil Kepala Madrasah",null,"Penilai",null,"Kepala Madrasah,"]
[null,"yang dinilai,"]
[]
[]
[null,{"$f":"DATA!$C$3","v":"NINA HERLINA, S.Pd"},null,{"$f":"DATA!$H$12","v":"Nasuhi, S.Pd.I"},null,{"$f":"DATA!$C$19","v":"NASUHI, S.Pd.I"}]
[null,{"$f":"\"NIP. \"&DATA!$C$4","v":"NIP. -"},null,{"$f":"\"NIP. \"&DATA!$H$13","v":"NIP. lake"},null,{"$f":"\"NIP. \"&DATA!$C$20","v":"NIP. -"}]
[]
[null,"FORMAT PERSETUJUAN PENILAIAN KINERJA GURU"]
[null,"DENGAN TUGAS TAMBAHAN SEBAGAI WAKIL KEPALA MADRASAH"]
[]
[null,null,"Nama",null,{"$f":"\": \"&DATA!$C$3","v":": NINA HERLINA, S.Pd"}]
[null,null,"NIP",null,{"$f":"\": \"&DATA!$C$4","v":": -"}]
[null,null,"Tempat Tanggal Lahir",null,{"$f":"\": \"&DATA!$C$7&\", \"&DATA!$C$8","v":": SERANG, 32227"}]
[null,null,"Pangkat /Golongan Ruang",null,{"$f":"\": \"&DATA!$C$10","v":": Penata, III/c"}]
[null,null,"Jenis Kelamin",null,{"$f":"\": \"&DATA!$C$6","v":": Perempuan"}]
[null,null,"Masa Kerja Sebagai Guru",null,{"$f":"\": \"&DATEDIF('REKAP NGR BK'!$S$8,'REKAP NGR BK'!$S$9,\"y\")&\"  Tahun  \"&DATEDIF('REKAP NGR BK'!$S$8,'REKAP NGR BK'!$S$9,\"ym\")&\"  Bulan\"","v":": 3  Tahun  3  Bulan"}]
[null,null,"TMT Sebagai Waka Sarpras",null,{"$f":"\": \"&DATA!$C$14&\" \"&DATA!$D$14&\" \"&DATA!$E$14","v":": 17 Juli 2024"}]
[null,null,"Pendidikan Terakhir",null,{"$f":"\": \"&DATA!$C$9","v":": S-1"}]
[null,null,"Nama sekolah dan alamat",null,{"$f":"\": \"&DATA!$C$17","v":": MTs An-Nawa"}]
[null,null,"Telp/Fax",null,{"$f":"\": \"&DATA!$C$18","v":": 082274788884"}]
[null,null,"Desa",null,{"$f":"\": \"&DATA!$H$18","v":": Mangunreja"}]
[null,null,"Kecamatan",null,{"$f":"\": \"&DATA!$H$19","v":": Pulo Ampel"}]
[null,null,"Kabupaten",null,{"$f":"\": \"&DATA!$H$20","v":": Serang"}]
[null,null,"Propinsi",null,{"$f":"\": \"&DATA!$H$21","v":": Banten"}]
[null,null,"NUPTK/ NRG",null,{"$f":"\": \"&DATA!$C$4&\" / \"&DATA!$C$5","v":": - / "}]
[null,null,"Periode penilaian",null,{"$f":"\": \"&DATA!$H$15&\"  s.d.  \"&DATA!$J$15","v":": 1 Januari 2024  s.d.  31 Desember 2024"}]
[]
[null,"PERSETUJUAN"]
[null,"(Persetujuan ini ditandatangani oleh penilai dan guru yang dinilai)"]
[{"$nulls":8}," "]
[null,"Penilai dan guru yang dinilai menyatakan telah membaca dan memahami semua aspek\nyang ditulis / dilaporkan dalam format ini dan menyatakan setuju."]
[]
[null,null,"Nama Guru",null,null,"Nama Penilai"]
[null,null,{"$f":"DATA!$C$3","v":"NINA HERLINA, S.Pd"},null,null,{"$f":"DATA!$H$12","v":"Nasuhi, S.Pd.I"}]
[null,null,{"$f":"\"NIP. \"&DATA!$C$4","v":"NIP. -"},null,null,{"$f":"\"NIP. \"&DATA!$H$13","v":"NIP. lake"}]
[]
[null,null,"Tanda tangan:",null,null,"Tanda tangan:"]
[]
[]
[null,null,"……………………………",null,null,"……………………………"]
[]
[{"$nulls":4},{"$f":"\"Tanggal : \"&VLOOKUP($J$1,DATAGR,30)","v":{"$error":"#REF!"}}]

{"sheet":"REKWKHUM","index":19,"n_rows":116,"n_cols":239,"rows_kept":116,"merged":[[0,1,0,6],[1,1,1,6],[2,1,2,6],[20,2,20,5],[21,2,21,5],[22,2,22,5],[23,2,23,5],[24,2,24,5],[25,2,25,5],[26,2,26,5],[28,1,28,5],[40,1,40,6],[41,1,41,6],[42,1,42,6],[63,1,63,5],[66,1,66,5],[68,1,68,5],[70,1,70,5],[80,1,80,6],[80,8,80,12],[81,1,81,6],[81,8,81,12],[101,1,101,6],[102,1,102,6],[104,1,104,6]]}
[3,"KEMENTERIAN AGAMA KABUPATEN GRESIK",{"$nulls":7},{"$f":"IF(C1=\"WAKA KURIKULUM\",\"Bidang Kurikulum/Akademik\",IF(C1=\"WAKA KESISWAAN\",\"Bidang Kesiswaan\",IF(C1=\"WAKA HUMAS\",\"Bidang Hubungan Masyarakat\",IF(C1=\"WAKA SARPRAS\",\"Bidang Sarana dan Prasarana\",\"\"))))","v":""},{"$nulls":5},{"$f":"HOME!$U$1","v":1},null,null,{"$f":"UPPER(J1)","v":""}]
[null,"REKAPITULASI HASIL PENILAIAN KINERJA WAKIL KEPALA MADRASAH"]
[null,"BIDANG HUBUNGAN MASYARAKAT"]
[null,"a.","Nama",null,{"$f":"\": \"&DATA!$C$3","v":": NINA HERLINA, S.Pd"}]
[null,null,"NIP",null,{"$f":"\": \"&DATA!$C$4","v":": -"}]
[null,null,"Tempat/Tanggal Lahir",null,{"$f":"\": \"&DATA!$C$7&\", \"&DATA!$C$8","v":": SERANG, 32227"}]
[null,null,"Pangkat/Jabatan/Golongan",null,{"$f":"\": \"&DATA!$C$10","v":": Penata, III/c"}]
[null,null,"TMT sebagai guru",null,{"$f":"\": \"&DATA!$C$12&\" \"&DATA!$D$12&\" \"&DATA!$E$12","v":": 9 Juli 2021"}]
[null,null,"Masa Kerja sebagai guru",null,{"$f":"\": \"&DATEDIF('REKAP NGR BK'!$S$8,'REKAP NGR BK'!$S$9,\"y\")&\"  Tahun  \"&DATEDIF('REKAP NGR BK'!$S$8,'REKAP NGR BK'!$S$9,\"ym\")&\"  Bulan\"","v":": 3  Tahun  3  Bulan"}]
[null,null,"TMT sebagai Waka Humas",null,{"$f":"\": \"&DATA!$C$14&\" \"&DATA!$D$14&\" \"&DATA!$E$14","v":": 17 Juli 2024"}]
[null,null,"Jenis Kelamin",null,{"$f":"\": \"&DATA!$C$6","v":": Perempuan"}]
[null,null,"Pendidikan Terakhir/Spesialisasi",null,{"$f":"\": \"&DATA!$C$9","v":": S-1"}]
[null,null,"Program Keahlian yang diampu",null,{"$f":"\": \"&DATA!$H$3&\" \"&\"(\"&DATA!$H$5&\")\"","v":": Guru Mapel/Kelas (SKI)"}]
[null,"b.","Nama Instansi/Sekolah",null,{"$f":"\": \"&DATA!$C$17","v":": MTs An-Nawa"}]
[null,null,"Telp/Fax",null,{"$f":"\": \"&DATA!$C$18","v":": 082274788884"}]
[null,null,"Kelurahan",null,{"$f":"\": \"&DATA!$H$18","v":": Mangunreja"}]
[null,null,"Kecamatan",null,{"$f":"\": \"&DATA!$H$19","v":": Pulo Ampel"}]
[null,null,"Kabupaten/Kota",null,{"$f":"\": \"&DATA!$H$20","v":": Serang"}]
[null,null,"Provinsi",null,{"$f":"\": \"&DATA!$H$21","v":": Banten"}]
[]
[null,"No","Kompetensi Penilaian",{"$nulls":3},"SKOR\nRATA-RATA"]
[null,1,"Kepribadian dan Sosial",{"$nulls":3},{"$f":"'N-GR'!I3","v":0},null,null,{"$f":"VLOOKUP($P$1,INPUTWK,4)","v":{"$error":"#REF!"}},{"$nulls":228},{"v":1.1428571428571428,"d":"1.14"}]
[null,2,"Kepemimpinan",{"$nulls":3},{"$f":"'N-GR'!I4","v":0},null,null,{"$f":"VLOOKUP($P$1,INPUTWK,5)","v":{"$error":"#REF!"}}]
[null,3,"Pengembangan Sekolah/Madrasah",{"$nulls":3},{"$f":"'N-GR'!I5","v":0},null,null,{"$f":"VLOOKUP($P$1,INPUTWK,6)","v":{"$error":"#REF!"}}]
[null,4,"Kewirausahaan",{"$nulls":3},{"$f":"'N-GR'!I6","v":0},null,null,{"$f":"VLOOKUP($P$1,INPUTWK,7)","v":{"$error":"#REF!"}}]
[null,5,"Wakil Kepala Madrasah Bidang Hubungan Masyarakat",{"$nulls":3},{"$f":"'N-GR'!I7","v":0}]
[null,null,"NILAI RATA-RATA",{"$nulls":3},{"$f":"SUM(G22:G26)","v":0}]
[]
[null,"Nilai Kinerja Wakil Kepala Bidang Humas = Total Skor Rata-rata/20 X 100 adalah  ",{"$nulls":4},{"$f":"G27/20*100","v":{"v":0,"d":"0.00"}}]
[]
[{"$nulls":5},{"$f":"DATA!$H$20&\", \"&'REKAP NGR BK'!$S$10","v":"Serang, 23 Oktober 2024"}]
[null,"Wakil Kepala Madrasah",null,"Penilai,",null,"Kepala Madrasah,"]
[null,"yang dinilai,"]
[]
[]
[]
[]
[null,{"$f":"DATA!$C$3","v":"NINA HERLINA, S.Pd"},null,{"$f":"DATA!$H$12","v":"Nasuhi, S.Pd.I"},null,{"$f":"DATA!$C$19","v":"NASUHI, S.Pd.I"}]
[null,{"$f":"\"NIP. \"&DATA!$C$4","v":"NIP. -"},null,{"$f":"\"NIP. \"&DATA!$H$13","v":"NIP. lake"},null,{"$f":"\"NIP. \"&DATA!$C$20","v":"NIP. -"}]
[]
[null,"FORMAT PENGHITUNGAN ANGKA KREDIT"]
[null,"HASIL PENILAIAN KINERJA GURU YANG BERTUGAS SEBAGAI"]
[null,"WAKIL KEPALA MADRASAH BIDANG HUBUNGAN MASYARAKAT"]
[null,"a","Nama                                                ",null,{"$f":"\": \"&DATA!$C$3","v":": NINA HERLINA, S.Pd"}]
[null,null,"N I P",null,{"$f":"\": \"&DATA!$C$4","v":": -"}]
[null,null,"NUPTK",null,{"$f":"\": \"&DATA!$H$4","v":": 12345678987"}]
[null,null,"Tempat/Tanggal Lahir                    ",null,{"$f":"\": \"&DATA!$C$7&\", \"&DATA!$C$8","v":": SERANG, 32227"}]
[null,null,"Pangkat/Jabatan/Golongan",null,{"$f":"\": \"&DATA!$C$10","v":": Penata, III/c"}]
[null,null,"TMT Sebagai Guru",null,{"$f":"\": \"&DATA!$C$12&\" \"&DATA!$D$12&\" \"&DATA!$E$12","v":": 9 Juli 2021"}]
[null,null,"Masa Kerja                                  ",null,{"$f":"\": \"&DATEDIF('REKAP NGR BK'!$S$8,'REKAP NGR BK'!$S$9,\"y\")&\"  Tahun  \"&DATEDIF('REKAP NGR BK'!$S$8,'REKAP NGR BK'!$S$9,\"ym\")&\"  Bulan\"","v":": 3  Tahun  3  Bulan"}]
[null,null,"Jenis Kelamin                                   ",null,{"$f":"\": \"&DATA!$C$6","v":": Perempuan"}]
[null,null,"Pendidikan Terakhir/Spesialisasi  ",null,{"$f":"\": \"&DATA!$C$9","v":": S-1"}]
[null,null,"Program Keahlian yang diampu          ",null,{"$f":"\": \"&DATA!$H$5","v":": SKI"}]
[null,"b","Nama Instansi/Sekolah",null,{"$f":"\": \"&DATA!$C$17","v":": MTs An-Nawa"}]
[null,null,"Telp / Fax                                           ",null,{"$f":"\": \"&DATA!$C$18","v":": 082274788884"}]
[null,null,"Desa",null,{"$f":"\": \"&DATA!$H$18","v":": Mangunreja"}]
[null,null,"Kecamatan  ",null,{"$f":"\": \"&DATA!$H$19","v":": Pulo Ampel"}]
[null,null,"Kabupaten",null,{"$f":"\": \"&DATA!$H$20","v":": Serang"}]
[null,null,"Provinsi  ",null,{"$f":"\": \"&DATA!$H$21","v":": Banten"}]
[]
[null,"Nilai PK GURU untuk:"]
[null,"•   Pembelajaran/Pembimbingan",{"$nulls":4},{"$f":"IF(G63=0,\"\",IF(DATA!$N$1=1,'N-GR'!$C$21,IF(DATA!$N$1=2,'N-GR'!$D$21,IF(DATA!$N$1=3,'N-GR'!$E$21,\"\"))))","v":""}]
[null,"•   Tugas Tambahan Sebagai Wakil Kepala Madrasah",{"$nulls":4},{"$f":"G29","v":0}]
[null,"Berdasarkan hasil konversi ke dalam skala nilai sesuai dengan Permenneg PAN dan RB No. 16 Tahun 2009, selanjutnya ditetapkan sebutan dan persentase angka kreditnya"]
[null,"•   Pembelajaran/Pembimbingan ",null,null,"Sebutan :",{"$f":"IF(G62=0,\"\",IF(G62>=91,\"Amat Baik\",IF(G62>=76,\"Baik\",IF(G62>=61,\"Cukup\",IF(G62>=51,\"Sedang\",IF(G62<=50,\"Kurang\"))))))","v":"Amat Baik"},{"$f":"IF($G$62=0,\"\",IF($G$62<=50,\"25%\",IF($G$62<=60,\"50%\",IF($G$62<=75,\"75%\",IF($G$62<=90,\"100%\",IF($G$62<=100,\"125%\",\"\"))))))","v":""}]
[null,"•   Tugas Tambahan sebagai Waka Humas",null,null,"Sebutan :",{"$f":"IF(G63=0,\"\",IF(G63>=91,\"Amat Baik\",IF(G63>=76,\"Baik\",IF(G63>=61,\"Cukup\",IF(G63>=51,\"Sedang\",IF(G63<=50,\"Kurang\"))))))","v":""},{"$f":"IF($G$63=0,\"\",IF($G$63<=50,\"25%\",IF($G$63<=60,\"50%\",IF($G$63<=75,\"75%\",IF($G$63<=90,\"100%\",IF($G$63<=100,\"125%\",\"\"))))))","v":""}]
[null,"Perolehan angka kredit (pembelajaran/pembimbingan) per tahun bagi guru dengan tugas tambahan sebagai Wakil Kepala Madrasah dihitung dengan rumus:"]
[{"$nulls":5}," x 50%",{"$f":"IF(G62=\"\",\"\",IF(DATA!$N$1=1,'N-GR'!$C$24,IF(DATA!$N$1=2,'N-GR'!$D$24,IF(DATA!$N$1=3,'N-GR'!$E$24,\"\"))))","v":""}]
[null,"Perolehan angka kredit tugas tambahan per tahun sebagai Wakil Kepala Madrasah"]
[{"$nulls":5}," x 50%",{"$f":"IF('N-GR'!$I$24=0,\"\",'N-GR'!$I$24)","v":""}]
[null,"Total perolehan angka kredit sebagai guru dan tugas tambahan sebagai Wakil Kepala Madrasah",{"$nulls":4},{"$f":"IFERROR(SUM(G68+G70),0)","v":{"v":0,"d":"0.00"}}]
[]
[{"$nulls":5},{"$f":"DATA!$H$20&\", \"&'REKAP NGR BK'!$S$10","v":"Serang, 23 Oktober 2024"}]
[null,"Wakil Kepala Madrasah",null,"Penilai",null,"Kepala Madrasah,"]
[null,"yang dinilai,"]
[]
[]
[null,{"$f":"DATA!$C$3","v":"NINA HERLINA, S.Pd"},null,{"$f":"DATA!$H$12","v":"Nasuhi, S.Pd.I"},null,{"$f":"DATA!$C$19","v":"NASUHI, S.Pd.I"}]
[null,{"$f":"\"NIP. \"&DATA!$C$4","v":"NIP. -"},null,{"$f":"\"NIP. \"&DATA!$H$13","v":"NIP. lake"},null,{"$f":"\"NIP. \"&DATA!$C$20","v":"NIP. -"}]
[]
[null,"FORMAT PERSETUJUAN PENILAIAN KINERJA GURU"]
[null,"DENGAN TUGAS TAMBAHAN SEBAGAI WAKIL KEPALA MADRASAH"]
[]
[null,null,"Nama",null,{"$f":"\": \"&DATA!$C$3","v":": NINA HERLINA, S.Pd"}]
[null,null,"NIP",null,{"$f":"\": \"&DATA!$C$4","v":": -"}]
[null,null,"NUPTK",null,{"$f":"\": \"&DATA!$H$4","v":": 12345678987"}]
[null,null,"Tempat Tanggal Lahir",null,{"$f":"\": \"&DATA!$C$7&\", \"&DATA!$C$8","v":": SERANG, 32227"}]
[null,null,"Pangkat /Golongan Ruang",null,{"$f":"\": \"&DATA!$C$10","v":": Penata, III/c"}]
[null,null,"Jenis Kelamin",null,{"$f":"\": \"&DATA!$C$6","v":": Perempuan"}]
[null,null,"Masa Kerja Sebagai Guru",null,{"$f":"\": \"&DATEDIF('REKAP NGR BK'!$S$8,'REKAP NGR BK'!$S$9,\"y\")&\"  Tahun  \"&DATEDIF('REKAP NGR BK'!$S$8,'REKAP NGR BK'!$S$9,\"ym\")&\"  Bulan\"","v":": 3  Tahun  3  Bulan"}]
[null,null,"TMT Sebagai Waka Humas",null,{"$f":"\": \"&DATA!$C$14&\" \"&DATA!$D$14&\" \"&DATA!$E$14","v":": 17 Juli 2024"}]
[null,null,"Pendidikan Terakhir",null,{"$f":"\": \"&DATA!$C$9","v":": S-1"}]
[null,null,"Nama sekolah dan alamat",null,{"$f":"\": \"&DATA!$C$17","v":": MTs An-Nawa"}]
[null,null,"Telp/Fax",null,{"$f":"\": \"&DATA!$C$18","v":": 082274788884"}]
[null,null,"Desa",null,{"$f":"\": \"&DATA!$H$18","v":": Mangunreja"}]
[null,null,"Kecamatan",null,{"$f":"\": \"&DATA!$H$19","v":": Pulo Ampel"}]
[null,null,"Kabupaten",null,{"$f":"\": \"&DATA!$H$20","v":": Serang"}]
[null,null,"Propinsi",null,{"$f":"\": \"&DATA!$H$21","v":": Banten"}]
[null,null,"NUPTK/ NRG",null,{"$f":"\": \"&DATA!$C$4&\" / \"&DATA!$C$5","v":": - / "}]
[null,null,"Periode penilaian",null,{"$f":"\": \"&DATA!$H$15&\"  s.d.  \"&DATA!$J$15","v":": 1 Januari 2024  s.d.  31 Desember 2024"}]
[]
[null,"PERSETUJUAN"]
[null,"(Persetujuan ini ditandatangani oleh penilai dan guru yang dinilai)"]
[{"$nulls":8}," "]
[null,"Penilai dan guru yang dinilai menyatakan telah membaca dan memahami semua aspek\nyang ditulis / dilaporkan dalam format ini dan menyatakan setuju."]
[]
[null,null,"Nama Guru",null,null,"Nama Penilai"]
[null,null,{"$f":"DATA!$C$3","v":"NINA HERLINA, S.Pd"},null,null,{"$f":"DATA!$H$12","v":"Nasuhi, S.Pd.I"}]
[null,null,{"$f":"\"NIP. \"&DATA!$C$4","v":"NIP. -"},null,null,{"$f":"\"NIP. \"&DATA!$H$13","v":"NIP. lake"}]
[]
[null,null,"Tanda tangan:",null,null,"Tanda tangan:"]
[]
[]
[null,null,"……………………………",null,null,"……………………………"]
[]
[{"$nulls":4},{"$f":"\"Tanggal : \"&VLOOKUP($J$1,DATAGR,30)","v":{"$error":"#REF!"}}]

{"sheet":"REKAPLAB","index":20,"n_rows":119,"n_cols":17,"rows_kept":119,"merged":[[0,1,0,6],[1,1,1,6],[2,1,2,6],[21,2,21,5],[22,2,22,5],[23,2,23,5],[24,2,24,5],[25,2,25,5],[26,2,26,5],[27,2,27,5],[28,2,28,5],[29,2,29,5],[31,1,31,5],[43,1,43,6],[44,1,44,6],[45,1,45,6],[66,1,66,5],[69,1,69,5],[71,1,71,5],[73,1,73,5],[83,1,83,6],[83,8,83,12],[84,1,84,6],[84,8,84,12],[104,1,104,6],[105,1,105,6],[107,1,107,6]]}
[3,"KEMENTERIAN AGAMA KABUPATEN GRESIK",{"$nulls":14},{"$f":"HOME!$U$1","v":1}]
[null,"REKAPITULASI HASIL PENILAIAN KINERJA"]
[null,"KEPALA LABORATORIUM"]
[null,"a.","Nama",null,{"$f":"\": \"&DATA!$C$3","v":": NINA HERLINA, S.Pd"}]
[null,null,"NIP",null,{"$f":"\": \"&DATA!$C$4","v":": -"}]
[]
[null,null,"Tempat/Tanggal Lahir",null,{"$f":"\": \"&DATA!$C$7&\", \"&DATA!$C$8","v":": SERANG, 32227"}]
[null,null,"Pangkat/Jabatan/Golongan",null,{"$f":"\": \"&DATA!$C$10","v":": Penata, III/c"}]
[null,null,"TMT sebagai guru",null,{"$f":"\": \"&DATA!$C$12&\" \"&DATA!$D$12&\" \"&DATA!$E$12","v":": 9 Juli 2021"}]
[null,null,"Masa Kerja sebagai guru",null,{"$f":"\": \"&DATEDIF('REKAP NGR BK'!$S$8,'REKAP NGR BK'!$S$9,\"y\")&\"  Tahun  \"&DATEDIF('REKAP NGR BK'!$S$8,'REKAP NGR BK'!$S$9,\"ym\")&\"  Bulan\"","v":": 3  Tahun  3  Bulan"}]
[null,null,"TMT sebagai Kepala Laboratorium",null,{"$f":"\": \"&DATA!$C$14&\" \"&DATA!$D$14&\" \"&DATA!$E$14","v":": 17 Juli 2024"}]
[null,null,"Jenis Kelamin",null,{"$f":"\": \"&DATA!$C$6","v":": Perempuan"}]
[null,null,"Pendidikan Terakhir/Spesialisasi",null,{"$f":"\": \"&DATA!$C$9","v":": S-1"}]
[null,null,"Program Keahlian yang diampu",null,{"$f":"\": \"&DATA!$H$3&\" \"&\"(\"&DATA!$H$5&\")\"","v":": Guru Mapel/Kelas (SKI)"}]
[null,"b.","Nama Instansi/Sekolah",null,{"$f":"\": \"&DATA!$C$17","v":": MTs An-Nawa"}]
[null,null,"Telp/Fax",null,{"$f":"\": \"&DATA!$C$18","v":": 082274788884"}]
[null,null,"Kelurahan",null,{"$f":"\": \"&DATA!$H$18","v":": Mangunreja"}]
[null,null,"Kecamatan",null,{"$f":"\": \"&DATA!$H$19","v":": Pulo Ampel"}]
[null,null,"Kabupaten/Kota",null,{"$f":"\": \"&DATA!$H$20","v":": Serang"}]
[null,null,"Provinsi",null,{"$f":"\": \"&DATA!$H$21","v":": Banten"}]
[]
[null,"No","Kompetensi Penilaian",{"$nulls":3},"SKOR\nRATA-RATA"]
[null,1,"Kepribadian",{"$nulls":3},{"$f":"'N-GR'!J3","v":0},null,null,{"$f":"VLOOKUP($Q$1,INPUTKALAB,4)","v":{"$error":"#REF!"}}]
[null,2,"Sosial",{"$nulls":3},{"$f":"'N-GR'!J4","v":0},null,null,{"$f":"VLOOKUP($Q$1,INPUTKALAB,5)","v":{"$error":"#REF!"}}]
[null,3,"Pengelolaan dan Administrasi",{"$nulls":3},{"$f":"'N-GR'!J5","v":0},null,null,{"$f":"VLOOKUP($Q$1,INPUTKALAB,6)","v":{"$error":"#REF!"}}]
[null,4,"Pengelolaan Pemantauan dan Evaluasi",{"$nulls":3},{"$f":"'N-GR'!J6","v":0},null,null,{"$f":"VLOOKUP($Q$1,INPUTKALAB,7)","v":{"$error":"#REF!"}}]
[null,5,"Pengembangan dan Inovasi",{"$nulls":3},{"$f":"'N-GR'!J7","v":0},null,null,{"$f":"VLOOKUP($Q$1,INPUTKALAB,8)","v":{"$error":"#REF!"}}]
[null,6,"Pengelolaan Lingkungan dan K3",{"$nulls":3},{"$f":"'N-GR'!J8","v":0},null,null,{"$f":"VLOOKUP($Q$1,INPUTKALAB,9)","v":{"$error":"#REF!"}}]
[null,null,"TOTAL SKOR RATA-RATA",{"$nulls":3},{"$f":"SUM(G23:G28)","v":0},null,null,{"$f":"VLOOKUP($Q$1,INPUTKALAB,10)","v":{"$error":"#REF!"}}]
[null,null,"SKOR MAKS",{"$nulls":3},{"$f":"6*4","v":24}]
[]
[null,"Nilai Kinerja Kepala Laboratorium = Total Skor Rata-rata/Skor Maks X 100 adalah  ",{"$nulls":4},{"$f":"G29/G30*100","v":{"v":0,"d":"0.00"}}]
[]
[{"$nulls":5},{"$f":"DATA!$H$20&\", \"&'REKAP NGR BK'!$S$10","v":"Serang, 23 Oktober 2024"}]
[null,"Kepala Laboratorium",null,"Penilai,",null,"Kepala Madrasah,"]
[null,"yang dinilai,"]
[]
[]
[]
[]
[null,{"$f":"DATA!$C$3","v":"NINA HERLINA, S.Pd"},null,{"$f":"DATA!$H$12","v":"Nasuhi, S.Pd.I"},null,{"$f":"DATA!$C$19","v":"NASUHI, S.Pd.I"}]
[null,{"$f":"\"NIP. \"&DATA!$C$4","v":"NIP. -"},null,{"$f":"\"NIP. \"&DATA!$H$13","v":"NIP. lake"},null,{"$f":"\"NIP. \"&DATA!$C$20","v":"NIP. -"}]
[]
[null,"FORMAT PENGHITUNGAN ANGKA KREDIT"]
[null,"HASIL PENILAIAN KINERJA GURU YANG BERTUGAS SEBAGAI"]
[null,"KEPALA LABORATORIUM"]
[null,"a","Nama                                                ",null,{"$f":"\": \"&DATA!$C$3","v":": NINA HERLINA, S.Pd"}]
[null,null,"N I P",null,{"$f":"\": \"&DATA!$C$4","v":": -"}]
[null,null,"NUPTK",null,{"$f":"\": \"&DATA!$H$4","v":": 12345678987"}]
[null,null,"Tempat/Tanggal Lahir                    ",null,{"$f":"\": \"&DATA!$C$7&\", \"&DATA!$C$8","v":": SERANG, 32227"}]
[null,null,"Pangkat/Jabatan/Golongan",null,{"$f":"\": \"&DATA!$C$10","v":": Penata, III/c"}]
[null,null,"TMT Sebagai Guru",null,{"$f":"\": \"&DATA!$C$12&\" \"&DATA!$D$12&\" \"&DATA!$E$12","v":": 9 Juli 2021"}]
[null,null,"Masa Kerja                                  ",null,{"$f":"\": \"&DATEDIF('REKAP NGR BK'!$S$8,'REKAP NGR BK'!$S$9,\"y\")&\"  Tahun  \"&DATEDIF('REKAP NGR BK'!$S$8,'REKAP NGR BK'!$S$9,\"ym\")&\"  Bulan\"","v":": 3  Tahun  3  Bulan"}]
[null,null,"Jenis Kelamin                                   ",null,{"$f":"\": \"&DATA!$C$6","v":": Perempuan"}]
[null,null,"Pendidikan Terakhir/Spesialisasi  ",null,{"$f":"\": \"&DATA!$C$9","v":": S-1"}]
[null,null,"Program Keahlian yang diampu          ",null,{"$f":"\": \"&DATA!$H$5","v":": SKI"}]
[null,"b","Nama Instansi/Sekolah",null,{"$f":"\": \"&DATA!$C$17","v":": MTs An-Nawa"}]
[null,null,"Telp / Fax                                           ",null,{"$f":"\": \"&DATA!$C$18","v":": 082274788884"}]
[null,null,"Desa",null,{"$f":"\": \"&DATA!$H$18","v":": Mangunreja"}]
[null,null,"Kecamatan  ",null,{"$f":"\": \"&DATA!$H$19","v":": Pulo Ampel"}]
[null,null,"Kabupaten",null,{"$f":"\": \"&DATA!$H$20","v":": Serang"}]
[null,null,"Provinsi  ",null,{"$f":"\": \"&DATA!$H$21","v":": Banten"}]
[]
[null,"Nilai PK GURU untuk:"]
[null,"•   Pembelajaran/Pembimbingan",{"$nulls":4},{"$f":"IF(G66=0,\"\",IF(DATA!$N$1=1,'N-GR'!$C$21,IF(DATA!$N$1=2,'N-GR'!$D$21,IF(DATA!$N$1=3,'N-GR'!$E$21,\"\"))))","v":""}]
[null,"•   Tugas Tambahan Sebagai Kepala Laboratorium",{"$nulls":4},{"$f":"G32","v":0}]
[null,"Berdasarkan hasil konversi ke dalam skala nilai sesuai dengan Permenneg PAN dan RB No. 16 Tahun 2009, selanjutnya ditetapkan sebutan dan persentase angka kreditnya"]
[null,"•   Pembelajaran/Pembimbingan",null,null,"Sebutan :",{"$f":"IF(G65=\"\",\"\",IF(G65>=91,\"Amat Baik\",IF(G65>=76,\"Baik\",IF(G65>=61,\"Cukup\",IF(G65>=51,\"Sedang\",IF(G65<=50,\"Kurang\"))))))","v":""},{"$f":"IF($G$65=0,\"\",IF($G$65<=50,\"25%\",IF($G$65<=60,\"50%\",IF($G$65<=75,\"75%\",IF($G$65<=90,\"100%\",IF($G$65<=100,\"125%\",\"\"))))))","v":""}]
[null,"•   Tugas Tambahan sebagai Kepala Lab.",null,null,"Sebutan :",{"$f":"IF(G66=0,\"\",IF(G66>=91,\"Amat Baik\",IF(G66>=76,\"Baik\",IF(G66>=61,\"Cukup\",IF(G66>=51,\"Sedang\",IF(G66<=50,\"Kurang\"))))))","v":""},{"$f":"IF($G$66=0,\"\",IF($G$66<=50,\"25%\",IF($G$66<=60,\"50%\",IF($G$66<=75,\"75%\",IF($G$66<=90,\"100%\",IF($G$66<=100,\"125%\",\"\"))))))","v":""}]
[null,"Perolehan angka kredit (pembelajaran/pembimbingan) per tahun bagi guru dengan tugas tambahan sebagai Kepala Laboratorium dihitung dengan rumus:"]
[{"$nulls":5}," x 50%",{"$f":"IF(G65=\"\",\"\",IF(DATA!$N$1=1,'N-GR'!$C$24,IF(DATA!$N$1=2,'N-GR'!$D$24,IF(DATA!$N$1=3,'N-GR'!$E$24,\"\"))))","v":""}]
[null,"Perolehan angka kredit tugas tambahan per tahun sebagai Kepala Laboratorium"]
[{"$nulls":5}," x 50%",{"$f":"IF('N-GR'!$J$24=0,\"\",'N-GR'!$J$24)","v":""}]
[null,"Total perolehan angka kredit sebagai guru dan tugas tambahan sebagai Kepala Laboratorium",{"$nulls":4},{"$f":"IFERROR(SUM(G71+G73),0)","v":{"v":0,"d":"0.00"}}]
[]
[{"$nulls":5},{"$f":"DATA!$H$20&\", \"&'REKAP NGR BK'!$S$10","v":"Serang, 23 Oktober 2024"}]
[null,"Guru yang dinilai",null,"Penilai",null,"Kepala Madrasah,"]
[]
[]
[]
[null,{"$f":"DATA!$C$3","v":"NINA HERLINA, S.Pd"},null,{"$f":"DATA!$H$12","v":"Nasuhi, S.Pd.I"},null,{"$f":"DATA!$C$19","v":"NASUHI, S.Pd.I"}]
[null,{"$f":"\"NIP. \"&DATA!$C$4","v":"NIP. -"},null,{"$f":"\"NIP. \"&DATA!$H$13","v":"NIP. lake"},null,{"$f":"\"NIP. \"&DATA!$C$20","v":"NIP. -"}]
[]
[null,"FORMAT PERSETUJUAN PENILAIAN KINERJA GURU"]
[null,"DENGAN TUGAS TAMBAHAN SEBAGAI KEPALA LABORATORIUM"]
[]
[null,null,"Nama",null,{"$f":"\": \"&DATA!$C$3","v":": NINA HERLINA, S.Pd"}]
[null,null,"NIP",null,{"$f":"\": \"&DATA!$C$4","v":": -"}]
[null,null,"NUPTK",null,{"$f":"\": \"&DATA!$H$4","v":": 12345678987"}]
[null,null,"Tempat Tanggal Lahir",null,{"$f":"\": \"&DATA!$C$7&\", \"&DATA!$C$8","v":": SERANG, 32227"}]
[null,null,"Pangkat /Golongan Ruang",null,{"$f":"\": \"&DATA!$C$10","v":": Penata, III/c"}]
[null,null,"Jenis Kelamin",null,{"$f":"\": \"&DATA!$C$6","v":": Perempuan"}]
[null,null,"Masa Kerja Sebagai Guru",null,{"$f":"\": \"&DATEDIF('REKAP NGR BK'!$S$8,'REKAP NGR BK'!$S$9,\"y\")&\"  Tahun  \"&DATEDIF('REKAP NGR BK'!$S$8,'REKAP NGR BK'!$S$9,\"ym\")&\"  Bulan\"","v":": 3  Tahun  3  Bulan"}]
[null,null,"TMT Sebagai Kepala Laboratorium",null,{"$f":"\": \"&DATA!$C$14&\" \"&DATA!$D$14&\" \"&DATA!$E$14","v":": 17 Juli 2024"}]
[null,null,"Pendidikan Terakhir",null,{"$f":"\": \"&DATA!$C$9","v":": S-1"}]
[null,null,"Nama sekolah dan alamat",null,{"$f":"\": \"&DATA!$C$17","v":": MTs An-Nawa"}]
[null,null,"Telp/Fax",null,{"$f":"\": \"&DATA!$C$18","v":": 082274788884"}]
[null,null,"Desa",null,{"$f":"\": \"&DATA!$H$18","v":": Mangunreja"}]
[null,null,"Kecamatan",null,{"$f":"\": \"&DATA!$H$19","v":": Pulo Ampel"}]
[null,null,"Kabupaten",null,{"$f":"\": \"&DATA!$H$20","v":": Serang"}]
[null,null,"Propinsi",null,{"$f":"\": \"&DATA!$H$21","v":": Banten"}]
[null,null,"NUPTK/ NRG",null,{"$f":"\": \"&DATA!$C$4&\" / \"&DATA!$C$5","v":": - / "}]
[null,null,"Periode penilaian",null,{"$f":"\": \"&DATA!$H$15&\"  s.d.  \"&DATA!$J$15","v":": 1 Januari 2024  s.d.  31 Desember 2024"}]
[]
[null,"PERSETUJUAN"]
[null,"(Persetujuan ini ditandatangani oleh penilai dan guru yang dinilai)"]
[{"$nulls":8}," "]
[null,"Penilai dan guru yang dinilai menyatakan telah membaca dan memahami semua aspek\nyang ditulis / dilaporkan dalam format ini dan menyatakan setuju."]
[]
[null,null,"Nama Guru",null,null,"Nama Penilai"]
[null,null,{"$f":"DATA!$C$3","v":"NINA HERLINA, S.Pd"},null,null,{"$f":"DATA!$H$12","v":"Nasuhi, S.Pd.I"}]
[null,null,{"$f":"\"NIP. \"&DATA!$C$4","v":"NIP. -"},null,null,{"$f":"\"NIP. \"&DATA!$H$13","v":"NIP. lake"}]
[]
[null,null,"Tanda tangan:",null,null,"Tanda tangan:"]
[]
[]
[null,null,"……………………………",null,null,"……………………………"]
[]
[{"$nulls":4},{"$f":"\"Tanggal : \"&VLOOKUP($J$1,DATAGR,30)","v":{"$error":"#REF!"}}]

{"sheet":"REKAPPUS","index":21,"n_rows":121,"n_cols":17,"rows_kept":121,"merged":[[0,1,0,6],[1,1,1,6],[2,1,2,6],[21,2,21,5],[22,2,22,5],[23,2,23,5],[24,2,24,5],[25,2,25,5],[26,2,26,5],[27,2,27,5],[28,2,28,5],[29,2,29,5],[30,2,30,5],[31,2,31,5],[32,2,32,5],[34,1,34,5],[46,1,46,6],[47,1,47,6],[48,1,48,6],[69,1,69,5],[72,1,72,5],[74,1,74,5],[76,1,76,5],[86,1,86,6],[86,8,86,12],[87,1,87,6],[87,8,87,12],[106,1,106,6],[107,1,107,6],[109,1,109,6]]}
[3,"KEMENTERIAN AGAMA KABUPATEN GRESIK",{"$nulls":14},{"$f":"HOME!$U$1","v":1}]
[null,"REKAPITULASI HASIL PENILAIAN KINERJA"]
[null,"KEPALA PERPUSTAKAAN"]
[null,"a.","Nama",null,{"$f":"\": \"&DATA!$C$3","v":": NINA HERLINA, S.Pd"}]
[null,null,"NIP",null,{"$f":"\": \"&DATA!$C$4","v":": -"}]
[null,null,"NUPTK",null,{"$f":"\": \"&DATA!$H$4","v":": 12345678987"}]
[null,null,"Tempat/Tanggal Lahir",null,{"$f":"\": \"&DATA!$C$7&\", \"&DATA!$C$8","v":": SERANG, 32227"}]
[null,null,"Pangkat/Jabatan/Golongan",null,{"$f":"\": \"&DATA!$C$10","v":": Penata, III/c"}]
[null,null,"TMT sebagai guru",null,{"$f":"\": \"&DATA!$C$12&\" \"&DATA!$D$12&\" \"&DATA!$E$12","v":": 9 Juli 2021"}]
[null,null,"Masa Kerja sebagai guru",null,{"$f":"\": \"&DATEDIF('REKAP NGR BK'!$S$8,'REKAP NGR BK'!$S$9,\"y\")&\"  Tahun  \"&DATEDIF('REKAP NGR BK'!$S$8,'REKAP NGR BK'!$S$9,\"ym\")&\"  Bulan\"","v":": 3  Tahun  3  Bulan"}]
[null,null,"TMT sebagai Kepala Perpustakaan",null,{"$f":"\": \"&DATA!$C$14&\" \"&DATA!$D$14&\" \"&DATA!$E$14","v":": 17 Juli 2024"}]
[null,null,"Jenis Kelamin",null,{"$f":"\": \"&DATA!$C$6","v":": Perempuan"}]
[null,null,"Pendidikan Terakhir/Spesialisasi",null,{"$f":"\": \"&DATA!$C$9","v":": S-1"}]
[null,null,"Program Keahlian yang diampu",null,{"$f":"\": \"&DATA!$H$3&\" \"&\"(\"&DATA!$H$5&\")\"","v":": Guru Mapel/Kelas (SKI)"}]
[null,"b.","Nama Instansi/Sekolah",null,{"$f":"\": \"&DATA!$C$17","v":": MTs An-Nawa"}]
[null,null,"Telp/Fax",null,{"$f":"\": \"&DATA!$C$18","v":": 082274788884"}]
[null,null,"Kelurahan",null,{"$f":"\": \"&DATA!$H$18","v":": Mangunreja"}]
[null,null,"Kecamatan",null,{"$f":"\": \"&DATA!$H$19","v":": Pulo Ampel"}]
[null,null,"Kabupaten/Kota",null,{"$f":"\": \"&DATA!$H$20","v":": Serang"}]
[null,null,"Provinsi",null,{"$f":"\": \"&DATA!$H$21","v":": Banten"}]
[]
[null,"No","Kompetensi Penilaian",{"$nulls":3},"SKOR\nRATA-RATA"]
[null,1,"Pengelolaan Perpustakaan",{"$nulls":3},{"$f":"'N-GR'!K3","v":0},null,null,{"$f":"VLOOKUP($Q$1,INPUTKAPUS,4)","v":{"$error":"#REF!"}}]
[null,2,"Pelayanan Perpustakaan",{"$nulls":3},{"$f":"'N-GR'!K4","v":0},null," ",{"$f":"VLOOKUP($Q$1,INPUTKAPUS,5)","v":{"$error":"#REF!"}}]
[null,3,"Pengembangan Sistem Kepustakawanan",{"$nulls":3},{"$f":"'N-GR'!K5","v":0},null,null,{"$f":"VLOOKUP($Q$1,INPUTKAPUS,6)","v":{"$error":"#REF!"}}]
[null,4,"Perilaku Kerja",{"$nulls":3},{"$f":"'N-GR'!K6","v":0},null,null,{"$f":"VLOOKUP($Q$1,INPUTKAPUS,7)","v":{"$error":"#REF!"}}]
[{"$nulls":9},{"$f":"VLOOKUP($Q$1,INPUTKAPUS,8)","v":{"$error":"#REF!"}}]
[{"$nulls":9},{"$f":"VLOOKUP($Q$1,INPUTKAPUS,9)","v":{"$error":"#REF!"}}]
[{"$nulls":9},{"$f":"VLOOKUP($Q$1,INPUTKAPUS,10)","v":{"$error":"#REF!"}}]
[{"$nulls":9},{"$f":"VLOOKUP($Q$1,INPUTKAPUS,11)","v":{"$error":"#REF!"}}]
[{"$nulls":9},{"$f":"VLOOKUP($Q$1,INPUTKAPUS,12)","v":{"$error":"#REF!"}}]
[{"$nulls":9},{"$f":"VLOOKUP($Q$1,INPUTKAPUS,13)","v":{"$error":"#REF!"}}]
[null,null,"TOTAL SKOR RATA-RATA",{"$nulls":3},{"$f":"SUM(G23:G32)","v":0}]
[]
[null,"Nilai Kinerja Kepala Perpustakaan = Total Skor Rata-rata/40 X 100 adalah  ",{"$nulls":4},{"$f":"G33/16*100","v":{"v":0,"d":"0.00"}}]
[]
[{"$nulls":5},{"$f":"DATA!$H$20&\", \"&'REKAP NGR BK'!$S$10","v":"Serang, 23 Oktober 2024"}]
[null,"Kepala Laboratorium",null,"Penilai,",null,"Kepala Madrasah,"]
[null,"yang dinilai,"]
[]
[]
[]
[]
[null,{"$f":"DATA!$C$3","v":"NINA HERLINA, S.Pd"},null,{"$f":"DATA!$H$12","v":"Nasuhi, S.Pd.I"},null,{"$f":"DATA!$C$19","v":"NASUHI, S.Pd.I"}]
[null,{"$f":"\"NIP. \"&DATA!$C$4","v":"NIP. -"},null,{"$f":"\"NIP. \"&DATA!$H$13","v":"NIP. lake"},null,{"$f":"\"NIP. \"&DATA!$C$20","v":"NIP. -"}]
[]
[null,"FORMAT PENGHITUNGAN ANGKA KREDIT"]
[null,"HASIL PENILAIAN KINERJA GURU YANG BERTUGAS SEBAGAI"]
[null,"KEPALA PERPUSTAKAAN"]
[null,"a","Nama                                                ",null,{"$f":"\": \"&DATA!$C$3","v":": NINA HERLINA, S.Pd"}]
[null,null,"N I P",null,{"$f":"\": \"&DATA!$C$4","v":": -"}]
[null,null,"NUPTK",null,{"$f":"\": \"&DATA!$H$4","v":": 12345678987"}]
[null,null,"Tempat/Tanggal Lahir                    ",null,{"$f":"\": \"&DATA!$C$7&\", \"&DATA!$C$8","v":": SERANG, 32227"}]
[null,null,"Pangkat/Jabatan/Golongan",null,{"$f":"\": \"&DATA!$C$10","v":": Penata, III/c"}]
[null,null,"TMT Sebagai Guru",null,{"$f":"\": \"&DATA!$C$12&\" \"&DATA!$D$12&\" \"&DATA!$E$12","v":": 9 Juli 2021"}]
[null,null,"Masa Kerja                                  ",null,{"$f":"\": \"&DATEDIF('REKAP NGR BK'!$S$8,'REKAP NGR BK'!$S$9,\"y\")&\"  Tahun  \"&DATEDIF('REKAP NGR BK'!$S$8,'REKAP NGR BK'!$S$9,\"ym\")&\"  Bulan\"","v":": 3  Tahun  3  Bulan"}]
[null,null,"Jenis Kelamin                                   ",null,{"$f":"\": \"&DATA!$C$6","v":": Perempuan"}]
[null,null,"Pendidikan Terakhir/Spesialisasi  ",null,{"$f":"\": \"&DATA!$C$9","v":": S-1"}]
[null,null,"Program Keahlian yang diampu          ",null,{"$f":"\": \"&DATA!$H$5","v":": SKI"}]
[null,"b","Nama Instansi/Sekolah",null,{"$f":"\": \"&DATA!$C$17","v":": MTs An-Nawa"}]
[null,null,"Telp / Fax                                           ",null,{"$f":"\": \"&DATA!$C$18","v":": 082274788884"}]
[null,null,"Desa",null,{"$f":"\": \"&DATA!$H$18","v":": Mangunreja"}]
[null,null,"Kecamatan  ",null,{"$f":"\": \"&DATA!$H$19","v":": Pulo Ampel"}]
[null,null,"Kabupaten",null,{"$f":"\": \"&DATA!$H$20","v":": Serang"}]
[null,null,"Provinsi  ",null,{"$f":"\": \"&DATA!$H$21","v":": Banten"}]
[]
[null,"Nilai PK GURU untuk:"]
[null,"•   Pembelajaran/Pembimbingan",{"$nulls":4},{"$f":"IF(G69=0,\"\",IF(DATA!$N$1=1,'N-GR'!$C$21,IF(DATA!$N$1=2,'N-GR'!$D$21,IF(DATA!$N$1=3,'N-GR'!$E$21,\"\"))))","v":""}]
[null,"•   Tugas Tambahan Sebagai Kepala Perpustakaan",{"$nulls":4},{"$f":"G35","v":0}]
[null,"Berdasarkan hasil konversi ke dalam skala nilai sesuai dengan Permenneg PAN dan RB No. 16 Tahun 2009, selanjutnya ditetapkan sebutan dan persentase angka kreditnya"]
[null,"•   Pembelajaran/Pembimbingan",null,null,"Sebutan :",{"$f":"IF(G68=\"\",\"\",IF(G68>=91,\"Amat Baik\",IF(G68>=76,\"Baik\",IF(G68>=61,\"Cukup\",IF(G68>=51,\"Sedang\",IF(G68<=50,\"Kurang\"))))))","v":""},{"$f":"IF($G$68=0,\"\",IF($G$68<=50,\"25%\",IF($G$68<=60,\"50%\",IF($G$68<=75,\"75%\",IF($G$68<=90,\"100%\",IF($G$68<=100,\"125%\",\"\"))))))","v":""}]
[null,"•   Tugas Tambahan sbg. Kepala Perpus",null,null,"Sebutan :",{"$f":"IF(G69=0,\"\",IF(G69>=91,\"Amat Baik\",IF(G69>=76,\"Baik\",IF(G69>=61,\"Cukup\",IF(G69>=51,\"Sedang\",IF(G69<=50,\"Kurang\"))))))","v":""},{"$f":"IF($G$69=0,\"\",IF($G$69<=50,\"25%\",IF($G$69<=60,\"50%\",IF($G$69<=75,\"75%\",IF($G$69<=90,\"100%\",IF($G$69<=100,\"125%\",\"\"))))))","v":""}]
[null,"Perolehan angka kredit (pembelajaran/pembimbingan) per tahun bagi guru dengan tugas tambahan sebagai Kepala Perpustakaan dihitung dengan rumus:"]
[{"$nulls":5}," x 50%",{"$f":"IF(G68=\"\",\"\",IF(DATA!$N$1=1,'N-GR'!$C$24,IF(DATA!$N$1=2,'N-GR'!$D$24,IF(DATA!$N$1=3,'N-GR'!$E$24,\"\"))))","v":""}]
[null,"Perolehan angka kredit tugas tambahan per tahun sebagai Kepala Perpustakaan"]
[{"$nulls":5}," x 50%",{"$f":"IF('N-GR'!K24=0,\"\",'N-GR'!K24)","v":""}]
[null,"Total perolehan angka kredit sebagai guru dan tugas tambahan sebagai Kepala Perpustakaan",{"$nulls":4},{"$f":"IFERROR(SUM(G74+G76),0)","v":{"v":0,"d":"0.00"}}]
[]
[{"$nulls":5},{"$f":"DATA!$H$20&\", \"&'REKAP NGR BK'!$S$10","v":"Serang, 23 Oktober 2024"}]
[null,"Guru yang dinilai",null,"Penilai",null,"Kepala Madrasah,"]
[]
[]
[]
[null,{"$f":"DATA!$C$3","v":"NINA HERLINA, S.Pd"},null,{"$f":"DATA!$H$12","v":"Nasuhi, S.Pd.I"},null,{"$f":"DATA!$C$19","v":"NASUHI, S.Pd.I"}]
[null,{"$f":"\"NIP. \"&DATA!$C$4","v":"NIP. -"},null,{"$f":"\"NIP. \"&DATA!$H$13","v":"NIP. lake"},null,{"$f":"\"NIP. \"&DATA!$C$20","v":"NIP. -"}]
[]
[null,"FORMAT PERSETUJUAN PENILAIAN KINERJA GURU"]
[null,"DENGAN TUGAS TAMBAHAN SEBAGAI KEPALA LABORATORIUM"]
[]
[null,null,"Nama",null,{"$f":"\": \"&DATA!$C$3","v":": NINA HERLINA, S.Pd"}]
[null,null,"NIP",null,{"$f":"\": \"&DATA!$C$4","v":": -"}]
[null,null,"Tempat Tanggal Lahir",null,{"$f":"\": \"&DATA!$C$7&\", \"&DATA!$C$8","v":": SERANG, 32227"}]
[null,null,"Pangkat /Golongan Ruang",null,{"$f":"\": \"&DATA!$C$10","v":": Penata, III/c"}]
[null,null,"Jenis Kelamin",null,{"$f":"\": \"&DATA!$C$6","v":": Perempuan"}]
[null,null,"Masa Kerja Sebagai Guru",null,{"$f":"\": \"&DATEDIF('REKAP NGR BK'!$S$8,'REKAP NGR BK'!$S$9,\"y\")&\"  Tahun  \"&DATEDIF('REKAP NGR BK'!$S$8,'REKAP NGR BK'!$S$9,\"ym\")&\"  Bulan\"","v":": 3  Tahun  3  Bulan"}]
[null,null,"TMT Sebagai Kepala Perpustakaan",null,{"$f":"\": \"&DATA!$C$14&\" \"&DATA!$D$14&\" \"&DATA!$E$14","v":": 17 Juli 2024"}]
[null,null,"Pendidikan Terakhir",null,{"$f":"\": \"&DATA!$C$9","v":": S-1"}]
[null,null,"Nama sekolah dan alamat",null,{"$f":"\": \"&DATA!$C$17","v":": MTs An-Nawa"}]
[null,null,"Telp/Fax",null,{"$f":"\": \"&DATA!$C$18","v":": 082274788884"}]
[null,null,"Desa",null,{"$f":"\": \"&DATA!$H$18","v":": Mangunreja"}]
[null,null,"Kecamatan",null,{"$f":"\": \"&DATA!$H$19","v":": Pulo Ampel"}]
[null,null,"Kabupaten",null,{"$f":"\": \"&DATA!$H$20","v":": Serang"}]
[null,null,"Propinsi",null,{"$f":"\": \"&DATA!$H$21","v":": Banten"}]
[null,null,"NUPTK/ NRG",null,{"$f":"\": \"&DATA!$C$4&\" / \"&DATA!$C$5","v":": - / "}]
[null,null,"Periode penilaian",null,{"$f":"\": \"&DATA!$H$15&\"  s.d.  \"&DATA!$J$15","v":": 1 Januari 2024  s.d.  31 Desember 2024"}]
[]
[null,"PERSETUJUAN"]
[null,"(Persetujuan ini ditandatangani oleh penilai dan guru yang dinilai)"]
[{"$nulls":8}," "]
[null,"Penilai dan guru yang dinilai menyatakan telah membaca dan memahami semua aspek\nyang ditulis / dilaporkan dalam format ini dan menyatakan setuju."]
[]
[null,null,"Nama Guru",null,null,"Nama Penilai"]
[null,null,{"$f":"DATA!$C$3","v":"NINA HERLINA, S.Pd"},null,null,{"$f":"DATA!$H$12","v":"Nasuhi, S.Pd.I"}]
[null,null,{"$f":"\"NIP. \"&DATA!$C$4","v":"NIP. -"},null,null,{"$f":"\"NIP. \"&DATA!$H$13","v":"NIP. lake"}]
[]
[null,null,"Tanda tangan:",null,null,"Tanda tangan:"]
[]
[]
[null,null,"……………………………",null,null,"……………………………"]
[]
[{"$nulls":4},{"$f":"\"Tanggal : \"&VLOOKUP($J$1,DATAGR,30)","v":{"$error":"#REF!"}}]

{"sheet":"N-GR","index":22,"n_rows":32,"n_cols":22,"rows_kept":32,"merged":[[0,1,0,10],[25,2,25,4],[25,5,25,10],[25,13,25,18],[26,2,26,4],[26,13,26,14],[26,15,26,16],[26,17,26,18],[27,2,27,4],[27,13,27,14],[27,15,27,16],[27,17,27,18],[28,2,28,4],[28,13,28,14],[28,15,28,16],[28,17,28,18],[29,2,29,4],[30,2,30,4],[31,2,31,4]]}
[null,"DAFTAR KUMPULAN NILAI DAN ANGKA KREDIT (PERIKSA AKURASI NILAI)"]
[null,"KOMPETENSI","Guru\nMapel","Guru\nBK","Kamad","Waka\nKur","Waka\nKesis","Waka\nSarpras","Waka\nHumas","Kepala\nLab.","Kepala\nPerpus",null,null,"Guru\nMapel","Guru\nBK","Guru TIK","Waka\nKur","Waka\nKesis","Waka\nSarpras","Waka\nHumas","Kepala\nLab.","Kepala\nPerpus"]
[null,"Kompetensi 1",{"$f":"IF(N3<1,0,IF(N3<26,1,IF(N3<51,2,IF(N3<76,3,IF(N3<=100,4,0)))))","v":0},0,0,{"$f":"IF(Q3<1,0,IF(Q3<26,1,IF(Q3<51,2,IF(Q3<76,3,IF(Q3<=100,4,0)))))","v":0},0,0,0,0,0,null,null,{"$f":"PKKM_GMP!$E$18","v":{"v":0,"d":"0.00"}},{"$f":"PKKM_BK!E15","v":{"v":0,"d":"0.00"}},{"$f":"'PKKM-GTIK'!E17","v":{"v":0,"d":"0.00"}},{"$f":"'PKKM-WKKur'!$E$17","v":{"v":0,"d":"0.00"}},{"$f":"'PKKM-WKSis'!$E$17","v":{"v":0,"d":"0.00"}},{"$f":"'PKKM-WKSarpras'!$E$17","v":{"v":0,"d":"0.00"}},{"$f":"'PKKM-WKHumas'!$E$17","v":{"v":0,"d":"0.00"}},{"$f":"'PKKM-LAB'!$E$21","v":{"v":0,"d":"0.00"}},{"$f":"'PKKM-PUS'!O25","v":{"v":0,"d":"0.00"}}]
[null,"Kompetensi 2",0,0,0,0,0,0,0,0,0,null,null,{"$f":"PKKM_GMP!$E$28","v":{"v":0,"d":"0.00"}},{"$f":"PKKM_BK!E22","v":{"v":0,"d":"0.00"}},{"$f":"'PKKM-GTIK'!E25","v":{"v":0,"d":"0.00"}},{"$f":"'PKKM-WKKur'!$E$30","v":{"v":0,"d":"0.00"}},{"$f":"'PKKM-WKSis'!$E$30","v":{"v":0,"d":"0.00"}},{"$f":"'PKKM-WKSarpras'!$E$30","v":{"v":0,"d":"0.00"}},{"$f":"'PKKM-WKHumas'!$E$30","v":{"v":0,"d":"0.00"}},{"$f":"'PKKM-LAB'!$E$27","v":{"v":0,"d":"0.00"}},{"$f":"'PKKM-PUS'!O41","v":{"v":0,"d":"0.00"}}]
[null,"Kompetensi 3",{"$f":"IF(N5<1,0,IF(N5<26,1,IF(N5<51,2,IF(N5<76,3,IF(N5<=100,4,0)))))","v":0},0,0,0,0,0,0,0,0,null,null,{"$f":"PKKM_GMP!$E$37","v":{"v":0,"d":"0.00"}},{"$f":"PKKM_BK!E29","v":{"v":0,"d":"0.00"}},{"$f":"'PKKM-GTIK'!E36","v":{"v":0,"d":"0.00"}},{"$f":"'PKKM-WKKur'!$E$40","v":{"v":0,"d":"0.00"}},{"$f":"'PKKM-WKSis'!$E$40","v":{"v":0,"d":"0.00"}},{"$f":"'PKKM-WKSarpras'!$E$40","v":{"v":0,"d":"0.00"}},{"$f":"'PKKM-WKHumas'!$E$40","v":{"v":0,"d":"0.00"}},{"$f":"'PKKM-LAB'!$E$35","v":{"v":0,"d":"0.00"}},{"$f":"'PKKM-PUS'!O63","v":{"v":0,"d":"0.00"}}]
[null,"Kompetensi 4",0,0,0,0,0,0,0,0,0,null,null,{"$f":"PKKM_GMP!$E$50","v":{"v":0,"d":"0.00"}},{"$f":"PKKM_BK!E37","v":{"v":0,"d":"0.00"}},{"$f":"'PKKM-GTIK'!E47","v":{"v":0,"d":"0.00"}},{"$f":"'PKKM-WKKur'!$E$48","v":{"v":0,"d":"0.00"}},{"$f":"'PKKM-WKSis'!$E$48","v":{"v":0,"d":"0.00"}},{"$f":"'PKKM-WKSarpras'!$E$48","v":{"v":0,"d":"0.00"}},{"$f":"'PKKM-WKHumas'!$E$48","v":{"v":0,"d":"0.00"}},{"$f":"'PKKM-LAB'!$E$43","v":{"v":0,"d":"0.00"}},{"$f":"'PKKM-PUS'!O88","v":{"v":0,"d":"0.00"}}]
[null,"Kompetensi 5",0,0,0,0,0,0,0,0,0,null,null,{"$f":"PKKM_GMP!$E$59","v":{"v":0,"d":"0.00"}},{"$f":"PKKM_BK!E45","v":{"v":0,"d":"0.00"}},{"$f":"'PKKM-GTIK'!E55","v":{"v":0,"d":"0.00"}},{"$f":"'PKKM-WKKur'!$E$56","v":{"v":0,"d":"0.00"}},{"$f":"'PKKM-WKSis'!$E$55","v":{"v":0,"d":"0.00"}},{"$f":"'PKKM-WKSarpras'!$E$54","v":{"v":0,"d":"0.00"}},{"$f":"'PKKM-WKHumas'!$E$54","v":{"v":0,"d":"0.00"}},{"$f":"'PKKM-LAB'!$E$50","v":{"v":0,"d":"0.00"}},{"$f":"'PKKM-PUS'!$E$99","v":{"v":0,"d":"0.00"}}]
[null,"Kompetensi 6",0,0,0,{"$nulls":4},0,0,null,null,{"$f":"PKKM_GMP!$E$68","v":{"v":0,"d":"0.00"}},{"$f":"PKKM_BK!E52","v":{"v":0,"d":"0.00"}},{"$f":"'PKKM-GTIK'!E62","v":{"v":0,"d":"0.00"}},{"$nulls":4},{"$f":"'PKKM-LAB'!$E$58","v":{"v":0,"d":"0.00"}},{"$f":"'PKKM-PUS'!$E$106","v":{"v":0,"d":"0.00"}}]
[null,"Kompetensi 7",0,0,0,{"$nulls":4},0,0,null,null,{"$f":"PKKM_GMP!$E$76","v":{"v":0,"d":"0.00"}},{"$f":"PKKM_BK!E59","v":{"v":0,"d":"0.00"}},{"$f":"'PKKM-GTIK'!E69","v":{"v":0,"d":"0.00"}},{"$nulls":4},{"$f":"'PKKM-LAB'!$E$66","v":{"v":0,"d":"0.00"}},{"$f":"'PKKM-PUS'!$E$113","v":{"v":0,"d":"0.00"}}]
[null,"Kompetensi 8",0,0,0,{"$nulls":5},0,null,null,{"$f":"PKKM_GMP!$E$86","v":{"v":0,"d":"0.00"}},{"$f":"PKKM_BK!E67","v":{"v":0,"d":"0.00"}},{"$f":"'PKKM-GTIK'!E82","v":{"v":0,"d":"0.00"}},{"$nulls":5},{"$f":"'PKKM-PUS'!$E$120","v":{"v":0,"d":"0.00"}}]
[null,"Kompetensi 9",0,0,0,{"$nulls":5},0,null,null,{"$f":"PKKM_GMP!$E$95","v":{"v":0,"d":"0.00"}},{"$f":"PKKM_BK!E73","v":{"v":0,"d":"0.00"}},{"$f":"'PKKM-GTIK'!E93","v":{"v":0,"d":"0.00"}},{"$nulls":5},{"$f":"'PKKM-PUS'!$E$131","v":{"v":0,"d":"0.00"}}]
[null,"Kompetensi 10",0,0,0,{"$nulls":5},0,null,null,{"$f":"PKKM_GMP!$E$108","v":{"v":0,"d":"0.00"}},{"$f":"PKKM_BK!E80","v":{"v":0,"d":"0.00"}},{"$f":"'PKKM-GTIK'!E105","v":{"v":0,"d":"0.00"}},{"$nulls":5},{"$f":"'PKKM-PUS'!$E$138","v":{"v":0,"d":"0.00"}}]
[null,"Kompetensi 11",0,0,0,{"$nulls":8},{"$f":"PKKM_GMP!$E$115","v":{"v":0,"d":"0.00"}},{"$f":"PKKM_BK!E91","v":{"v":0,"d":"0.00"}},{"$f":"'PKKM-GTIK'!E113","v":{"v":0,"d":"0.00"}}]
[null,"Kompetensi 12",0,0,0,{"$nulls":8},{"$f":"PKKM_GMP!$E$121","v":{"v":0,"d":"0.00"}},{"$f":"PKKM_BK!E101","v":{"v":0,"d":"0.00"}},{"$f":"'PKKM-GTIK'!E123","v":{"v":0,"d":"0.00"}}]
[null,"Kompetensi 13",0,0,0,{"$nulls":8},{"$f":"PKKM_GMP!$E$128","v":{"v":0,"d":"0.00"}},{"$f":"PKKM_BK!E109","v":{"v":0,"d":"0.00"}}]
[null,"Kompetensi 14",0,0,0,{"$nulls":8},{"$f":"PKKM_GMP!$E$138","v":{"v":0,"d":"0.00"}},{"$f":"PKKM_BK!E117","v":{"v":0,"d":"0.00"}}]
[null,"Kompetensi 15",null,0,0,{"$nulls":9},{"$f":"PKKM_BK!E125","v":{"v":0,"d":"0.00"}}]
[null,"Kompetensi 16",null,0,{"$nulls":10},{"$f":"PKKM_BK!E136","v":{"v":0,"d":"0.00"}}]
[null,"Kompetensi 17",null,0,{"$nulls":10},{"$f":"PKKM_BK!E144","v":{"v":0,"d":"0.00"}}]
[null,"Jumlah Nilai",{"$f":"SUM(C3:C16)","v":0},{"$f":"SUM(D3:D19)","v":0},{"$f":"SUM(E3:E8)","v":0},{"$f":"SUM(F3:F7)","v":0},{"$f":"SUM(G3:G7)","v":0},{"$f":"SUM(H3:H7)","v":0},{"$f":"SUM(I3:I7)","v":0},{"$f":"SUM(J3:J9)","v":0},{"$f":"SUM(K3:K12)","v":0}]
[null,"Nilai PKG",{"$f":"'REKAP NGR'!$J$48","v":{"v":0,"d":"0.00"}},{"$f":"'REKAP NGR BK'!$J$48","v":{"v":0,"d":"0.00"}},{"$f":"'REKAP NGR TIK'!$J$43","v":{"v":0,"d":"0.00"}},{"$f":"(F20/20)*100","v":{"v":0,"d":"0.00"}},{"$f":"(G20/20)*100","v":{"v":0,"d":"0.00"}},{"$f":"(H20/20)*100","v":{"v":0,"d":"0.00"}},{"$f":"(I20/20)*100","v":{"v":0,"d":"0.00"}},{"$f":"(J20/24)*100","v":{"v":0,"d":"0.00"}},{"$f":"(K20/16)*100","v":{"v":0,"d":"0.00"}}]
[null,"Nilai Persentase Kinerja (NPK)",{"$f":"'REKAP NGR'!H79","v":""},{"$f":"'REKAP NGR BK'!H79","v":""},{"$f":"'REKAP NGR TIK'!H74","v":""},{"$f":"IF(F21=0,\"\",IF(F21<=50,\"25%\",IF(F21<=60,\"50%\",IF(F21<=75,\"75%\",IF(F21<=90,\"100%\",IF(F21<=100,\"125%\",\"\"))))))","v":""},{"$f":"IF(G21=0,\"\",IF(G21<=50,\"25%\",IF(G21<=60,\"50%\",IF(G21<=75,\"75%\",IF(G21<=90,\"100%\",IF(G21<=100,\"125%\",\"\"))))))","v":""},"","","",""]
[null,"AK",{"$f":"TRUNC(IF(ISERROR((($N$28-$P$28-$R$28)*1*C22)/4),0,($N$28-$P$28-$R$28)*1*C22)/4,2)","v":{"v":0,"d":"0.00"}},{"$f":"TRUNC(IF(ISERROR((($N$28-$P$28-$R$28)*1*D22)/4),0,($N$28-$P$28-$R$28)*1*D22)/4,2)","v":{"v":0,"d":"0.00"}},{"v":0,"d":"0.00"},{"$f":"TRUNC(IF(ISERROR((($N$28-$P$28-$R$28)*F22)/4),0,($N$28-$P$28-$R$28)*F22)/4,2)","v":{"v":0,"d":"0.00"}},{"v":0,"d":"0.00"},{"v":0,"d":"0.00"},{"v":0,"d":"0.00"},{"v":0,"d":"0.00"},{"v":0,"d":"0.00"}]
[null,"50 % AK ",{"$f":"C23*50%","v":{"v":0,"d":"0.00"}},{"$f":"D23*50%","v":{"v":0,"d":"0.00"}},{"v":0,"d":"0.00"},{"v":0,"d":"0.00"},{"v":0,"d":"0.00"},{"v":0,"d":"0.00"},{"v":0,"d":"0.00"},{"v":0,"d":"0.00"},{"v":0,"d":"0.00"}]
[null,"AK Guru dg Tugas Tambahan",{"$f":"IF($F$26=0,C23,C24)","v":{"v":0,"d":"0.00"}},{"$f":"IF($F$26=0,D23,D24)","v":{"v":0,"d":"0.00"}},{"$f":"IF($F$26=0,E23,E24)","v":{"v":0,"d":"0.00"}}]
[null,"AK Guru dg Tugas Tambahan",{"$f":"IF(DATA!$N$1=1,C24,IF(DATA!$N$1=2,D24,IF(DATA!$N$1=3,E24,\"\")))","v":{"v":0,"d":"0.00"}},null,null,{"$f":"SUM(F24:K24)","v":{"v":0,"d":"0.00"}},{"$nulls":7},{"$f":"DATA!C10","v":"Penata, III/c"}]
[null,"AK Guru + Tugas Tambahan sbg Waka Kur",{"$f":"IF(F24=0,\"\",SUM(C26+F24))","v":""},{"$nulls":10},"AKK Minimal Golongan",null,"AKPKB Minimal",null,"AKP Minimal"]
[null,"AK Guru + Tugas Tambahan sbg Waka Sis",{"$f":"IF(G24=0,0,SUM(C26+G24))","v":{"v":0,"d":"0.00"}},{"$nulls":10},{"$f":"DATA!$N$8","v":100},null,{"$f":"IF(ISERROR(DATA!$N$9+DATA!$N$10),0,DATA!$N$9+DATA!$N$10)","v":9},null,{"$f":"DATA!$N$11","v":10}]
[null,"AK Guru +  Tugas Tambahan sbg Waka Sarpras",{"$f":"IF(H24=0,,SUM(C26+H24))","v":{"v":0,"d":"0.00"}},{"$nulls":10},{"$f":"IF($N$26=\"Penata Muda, III/a\",\"III/a\",IF($N$26=\"Penata Muda Tk. I, III/b\",\"III/b\",IF($N$26=\"Penata, III/c\",\"III/c\",IF($N$26=\"Penata Tk. I, III/d\",\"III/d\",IF($N$26=\"Pembina, IV/a\",\"IV/a\",IF($N$26=\"Pembina Tk. I, IV/b\",\"IV/b\",IF($N$26=\"Pembina Utama Muda, IV/c\",\"IV/c\",IF($N$26=\"Pembina Utama Madya, IV/d\",\"IV/d\",IF($N$26=\"Pembina Utama, IV/e\",\"IV/e\",\"\")))))))))","v":"III/c"},null,"Ke",null,{"$f":"IF($N$29=\"III/a\",\"III/b\",IF($N$29=\"III/b\",\"III/c\",IF($N$29=\"III/c\",\"III/d\",IF($N$29=\"III/d\",\"IV/a\",IF($N$29=\"IV/a\",\"IV/b\",IF($N$29=\"IV/b\",\"IV/c\",IF($N$29=\"IV/c\",\"IV/d\",IF($N$29=\"IV/d\",\"IV/e\",\"\"))))))))","v":"III/d"}]
[null,"AK Guru + Tugas Tambahan sbg Waka Humas",{"$f":"IF(I24=0,,SUM(C26+I24))","v":{"v":0,"d":"0.00"}}]
[null,"AK Guru + Tugas Tambahan sbg Kepala Lab",{"$f":"IF(J24=0,0,SUM(C26+J24))","v":{"v":0,"d":"0.00"}}]
[null,"AK Guru + Tugas Tambahan sbg Kepala Perpus",{"$f":"IF(K24=0,0,SUM(C26+K24))","v":{"v":0,"d":"0.00"}}]

{"sheet":"PRIORITAS","index":23,"n_rows":219,"n_cols":7,"rows_kept":219,"merged":[[1,0,22,0],[1,2,1,6],[2,2,2,6],[98,0,119,0],[98,2,98,6],[99,2,99,6],[198,0,220,0],[198,2,198,6],[199,2,199,6]]}
[]
[]
[null,null,"PRIORITAS PKB GURU MATA PELAJARAN"]
[{"$nulls":3},"Nama Guru",{"$f":"\": \"&DATA!$C$3","v":": NINA HERLINA, S.Pd"}]
[{"$nulls":3},"N I P",{"$f":"\": \"&DATA!$C$4","v":": -"}]
[{"$nulls":3},"Pangkat/Golongan",{"$f":"\": \"&DATA!$C$10","v":": Penata, III/c"}]
[{"$nulls":3},"Pendidikan Terakhir",{"$f":"\": \"&DATA!$C$9","v":": S-1"}]
[{"$nulls":3},"Unit Kerja",{"$f":"\": \"&DATA!$C$17","v":": MTs An-Nawa"}]
[{"$nulls":3},"Tanggal Penilaian",{"$f":"\": \"&DATA!$C$13&\" \"&DATA!$D$13&\" \"&DATA!$E$13","v":": 16 Oktober 2024"}]
[null,null,"No","Kompetensi\n(Indikator Kompetensi)","Unsur PKB","Jenis PKB","Kegiatan PKB"]
[null,null,1,{"$f":"'INDIKATOR GMP'!I3","v":"Guru dapat memanfaatkan TIK dalam berkomunikasi dan pelaksanaan PKB."},"1. Pengembangan Diri","1.2 Kegiatan lokakarya atau kegiatan kelompok guru",{"$f":"RUN!$C2","v":"1.2 Kegiatan lokakarya atau kegiatan kelompok guru tentang guru dapat memanfaatkan tik dalam berkomunikasi dan pelaksanaan pkb."}]
[null,null,2,{"$f":"'INDIKATOR GMP'!I4","v":"Guru melakukan penelitian, mengembangkan karya inovasi, mengikuti kegiatan ilmiah (misalnya seminar, konferensi), dan aktif dalam melaksanakan PKB."},null,null,{"$f":"RUN!$C3","v":""}]
[null,null,3,{"$f":"'INDIKATOR GMP'!I5","v":"Guru dapat mengaplikasikan pengalaman PKB dalam perencanaan, pelaksanaan, penilaian pembelajaran dan tindak lanjutnya."},null,null,{"$f":"RUN!$C4","v":""}]
[null,null,4,{"$f":"'INDIKATOR GMP'!I6","v":"Guru memanfaatkan bukti gambaran kinerjanya untuk mengembangkan  perencanaan dan pelaksanaan pembelajaran selanjutnya dalam program Pengembangan Keprofesian Berkelanjutan (PKB)."},null,null,{"$f":"RUN!$C5","v":""}]
[null,null,5,{"$f":"'INDIKATOR GMP'!I7","v":"Guru memiliki jurnal pembelajaran, catatan masukan dari kolega atau hasil penilaian proses pembelajaran sebagai bukti yang menggambarkan kinerjanya."},null,null,{"$f":"RUN!$C6","v":""}]
[{"$nulls":6},{"$f":"DATA!$H$20&\", \"&DATA!$C$13&\" \"&DATA!$D$13&\" \"&DATA!$E$13","v":"Serang, 16 Oktober 2024"}]
[{"$nulls":3},"Kepala Madrasah,",null,null,"Guru Yang Dinilai,"]
[]
[]
[{"$nulls":3},{"$f":"DATA!$C$19","v":"NASUHI, S.Pd.I"},null,null,{"$f":"DATA!$C$3","v":"NINA HERLINA, S.Pd"}]
[{"$nulls":3},{"$f":"\"NIP. \"&DATA!$C$20","v":"NIP. -"},null,null,{"$f":"\"NIP. \"&DATA!$C$4","v":"NIP. -"}]
{"$rows_empty":78}
[null,null,"PRIORITAS PKB GURU BIMBINGAN KONSELING"]
[{"$nulls":3},"Nama Guru",{"$f":"\": \"&DATA!$C$3","v":": NINA HERLINA, S.Pd"}]
[{"$nulls":3},"N I P",{"$f":"\": \"&DATA!$C$4","v":": -"}]
[{"$nulls":3},"Pangkat/Golongan",{"$f":"\": \"&DATA!$C$10","v":": Penata, III/c"}]
[{"$nulls":3},"Pendidikan Terakhir",{"$f":"\": \"&DATA!$C$9","v":": S-1"}]
[{"$nulls":3},"Unit Kerja",{"$f":"\": \"&DATA!$C$17","v":": MTs An-Nawa"}]
[{"$nulls":3},"Tanggal Penilaian",{"$f":"\": \"&DATA!$C$13&\" \"&DATA!$D$13&\" \"&DATA!$E$13","v":": 16 Oktober 2024"}]
[null,null,"No","Indikator Kompetensi","Unsur PKB","Jenis PKB","Kegiatan PKB"]
[null,null,1,{"$f":"'INDIKATOR GBK'!J3","v":"Guru BK/Konselor dapat memanfaatkan hasil penelitian dalam BK dengan mengakses jurnal yang relevan."},null,null,{"$f":"RUN!C8","v":""}]
[null,null,2,{"$f":"'INDIKATOR GBK'!J4","v":"Guru BK/Konselor dapat melaksanakan penelitian dalam BK."},null,null,{"$f":"RUN!C9","v":""}]
[null,null,3,{"$f":"'INDIKATOR GBK'!J5","v":"Guru BK/Konselor mampu merancang penelitian dalam BK."},null,null,{"$f":"RUN!C10","v":""}]
[null,null,4,{"$f":"'INDIKATOR GBK'!J6","v":"Guru BK/Konselor dapat mendeskripsikan jenis dan metode penelitian dalam BK."},null,null,{"$f":"RUN!C11","v":""}]
[null,null,5,{"$f":"'INDIKATOR GBK'!J7","v":"Guru BK/Konselor dapat mendahulukan kepentingan peserta didik/konseli daripada kepentingan pribadi guru BK/konselor."},null,null,{"$f":"RUN!C12","v":""}]
[{"$nulls":6},{"$f":"DATA!$H$20&\", \"&DATA!$C$13&\" \"&DATA!$D$13&\" \"&DATA!$E$13","v":"Serang, 16 Oktober 2024"}]
[{"$nulls":3},"Kepala Madrasah,",null,null,"Guru Yang Dinilai,"]
[]
[]
[{"$nulls":3},{"$f":"DATA!$C$19","v":"NASUHI, S.Pd.I"},null,null,{"$f":"DATA!$C$3","v":"NINA HERLINA, S.Pd"}]
[{"$nulls":3},{"$f":"\"NIP. \"&DATA!$C$20","v":"NIP. -"},null,null,{"$f":"\"NIP. \"&DATA!$C$4","v":"NIP. -"}]
{"$rows_empty":81}
[null,null,"PRIORITAS PKB GURU TIK"]
[{"$nulls":3},"Nama Guru",{"$f":"\": \"&DATA!$C$3","v":": NINA HERLINA, S.Pd"}]
[{"$nulls":3},"N I P",{"$f":"\": \"&DATA!$C$4","v":": -"}]
[{"$nulls":3},"Pangkat/Golongan",{"$f":"\": \"&DATA!$C$10","v":": Penata, III/c"}]
[{"$nulls":3},"Pendidikan Terakhir",{"$f":"\": \"&DATA!$C$9","v":": S-1"}]
[{"$nulls":3},"Unit Kerja",{"$f":"\": \"&DATA!$C$17","v":": MTs An-Nawa"}]
[{"$nulls":3},"Tanggal Penilaian",{"$f":"\": \"&DATA!$C$13&\" \"&DATA!$D$13&\" \"&DATA!$E$13","v":": 16 Oktober 2024"}]
[null,null,"No","Indikator Kompetensi","Unsur PKB","Jenis PKB","Kegiatan PKB"]
[null,null,1,{"$f":"'INDIKATOR GTIK'!I3","v":"Guru TIK aktif meningkatkan dan mengembangkan kompetensinya melalui berbagai kegiatan Pengembangan Keprofesian Berkelanjutan."},null,null,{"$f":"RUN!C14","v":""}]
[null,null,2,{"$f":"'INDIKATOR GTIK'!I4","v":"Guru TIK mengaplikasikan pengalaman PKB dalam perencanaan, pelaksanaan, penilaian pembimbingan dan fasilitasi, dan tindak lanjutnya."},null,null,{"$f":"RUN!C15","v":""}]
[null,null,3,{"$f":"'INDIKATOR GTIK'!I5","v":"Guru TI K memanfaatkan hasil penilaian kinerjanya sebagai dasar untuk merencanakan peningkatan mutu proses pembimbingan dan fasilitasi TIK terhadap peserta didik, guru dan tenaga kependidikan."},null,null,{"$f":"RUN!C16","v":""}]
[null,null,4,{"$f":"'INDIKATOR GTIK'!I6","v":"Guru TIK memiliki Catatan Pelaksanaan Fasilitasi bagi guru lain dan tenaga kependidikan."},null,null,{"$f":"RUN!C17","v":""}]
[null,null,5,{"$f":"'INDIKATOR GTIK'!I7","v":"Guru T IK memiliki Catatan Pelaksanaan Pembimbingan TIK bagi peserta didik."},null,null,{"$f":"RUN!C18","v":""}]
[{"$nulls":6},{"$f":"DATA!$H$20&\", \"&DATA!$C$13&\" \"&DATA!$D$13&\" \"&DATA!$E$13","v":"Serang, 16 Oktober 2024"}]
[{"$nulls":3},"Kepala Madrasah,",null,null,"Guru Yang Dinilai,"]
[]
[]
[]
[{"$nulls":3},{"$f":"DATA!$C$19","v":"NASUHI, S.Pd.I"},null,null,{"$f":"DATA!$C$3","v":"NINA HERLINA, S.Pd"}]
[{"$nulls":3},{"$f":"\"NIP. \"&DATA!$C$20","v":"NIP. -"},null,null,{"$f":"\"NIP. \"&DATA!$C$4","v":"NIP. -"}]

{"sheet":"INDIKATOR GMP","index":24,"n_rows":48,"n_cols":12,"rows_kept":48}
[]
["NO","KOMPETENSI","INDIKATOR","INDIKATOR KOMPETENSI","NILAI","RANK",null,"NO","INDIKATOR KOMPETENSI","NILAI","RANK"]
["1.1","Mengenal karakteristik peserta didik","(PEDAGOGIK): 1.1 Mengidentifikasi karakteristik belajar setiap peserta didik di kelasnya.","Guru dapat mengidentifikasi karakteristik belajar setiap peserta didik di kelasnya.",{"$f":"PKKM_GMP!$N$10","v":0},{"$f":"RANK($E$3:$E$56,$D$3:$E$56)+COUNTIF($E$2:E2,E3)","v":1},null,1,{"$f":"INDEX($D$3:$F$56,MATCH(LARGE($F$3:$F$56,ROW()-2),$F$3:$F$56,0),1)","v":"Guru dapat memanfaatkan TIK dalam berkomunikasi dan pelaksanaan PKB."},{"$f":"INDEX($D$3:$F$56,MATCH(LARGE($F$3:$F$56,ROW()-2),$F$3:$F$56,0),2)","v":0},{"$f":"INDEX($D$3:$F$56,MATCH(LARGE($F$3:$F$56,ROW()-2),$F$3:$F$56,0),3)","v":46},1]
["1.2","Mengenal karakteristik peserta didik","(PEDAGOGIK): 1.2 Memastikan bahwa semua peserta didik mendapatkan kesempatan yang sama untuk berpartisipasi aktif dalam kegiatan pembelajaran.","Guru memastikan bahwa semua peserta didik mendapatkan kesempatan yang sama untuk berpartisipasi aktif dalam kegiatan pembelajaran.",{"$f":"PKKM_GMP!$N$11","v":0},{"$f":"RANK($E$3:$E$56,$D$3:$E$56)+COUNTIF($E$2:E3,E4)","v":2},null,2,"Guru melakukan penelitian, mengembangkan karya inovasi, mengikuti kegiatan ilmiah (misalnya seminar, konferensi), dan aktif dalam melaksanakan PKB.",0,45,2]
["1.3","Mengenal karakteristik peserta didik","(PEDAGOGIK): 1.3 Mencoba mengetahui penyebab penyimpangan perilaku peserta didik untuk mencegah agar perilaku tersebut tidak merugikan peserta didik lainnya.","Guru mencoba mengetahui penyebab penyimpangan perilaku peserta didik untuk mencegah agar perilaku tersebut tidak merugikan peserta didik lainnya.",{"$f":"PKKM_GMP!$N$20","v":0},{"$f":"RANK($E$3:$E$56,$D$3:$E$56)+COUNTIF($E$2:E4,E5)","v":3},null,3,"Guru dapat mengaplikasikan pengalaman PKB dalam perencanaan, pelaksanaan, penilaian pembelajaran dan tindak lanjutnya.",0,44,3]
["2.1","Menguasai teori belajar dan prinsip-prinsip pembelajaran","(PEDAGOGIK): 2.1 Memberi kesempatan kepada peserta didik untuk menguasai materi pembelajaran sesuai usia dan kemampuan belajarnya melalui pengaturan proses pembelajaran dan aktivitas yang bervariasi.","Guru memberi kesempatan kepada peserta didik untuk menguasai materi pembelajaran sesuai usia dan kemampuan belajarnya melalui pengaturan proses pembelajaran dan aktivitas yang bervariasi.",{"$f":"PKKM_GMP!$N$21","v":0},{"$f":"RANK($E$3:$E$56,$D$3:$E$56)+COUNTIF($E$2:E5,E6)","v":4},null,4,"Guru memanfaatkan bukti gambaran kinerjanya untuk mengembangkan  perencanaan dan pelaksanaan pembelajaran selanjutnya dalam program Pengembangan Keprofesian Berkelanjutan (PKB).",0,43,4]
["2.2","Menguasai teori belajar dan prinsip-prinsip pembelajaran","(PEDAGOGIK): 2.2 Selalu memastikan tingkat pemahaman peserta didik terhadap materi pembelajaran tertentu dan menyesuaikan aktivitas pembelajaran berikutnya berdasarkan tingkat pemahaman tersebut.","Guru selalu memastikan tingkat pemahaman peserta didik terhadap materi pembelajaran tertentu dan menyesuaikan aktivitas pembelajaran berikutnya berdasarkan tingkat pemahaman tersebut.",{"$f":"PKKM_GMP!$N$22","v":0},{"$f":"RANK($E$3:$E$56,$D$3:$E$56)+COUNTIF($E$2:E6,E7)","v":5},null,5,"Guru memiliki jurnal pembelajaran, catatan masukan dari kolega atau hasil penilaian proses pembelajaran sebagai bukti yang menggambarkan kinerjanya.",0,42,5]
["2.3","Menguasai teori belajar dan prinsip-prinsip pembelajaran","(PEDAGOGIK): 2.3 Menjelaskan alasan pelaksanaan kegiatan/aktivitas yang dilakukannya, baik yang sesuai maupun yang berbeda dengan rencana, terkait keberhasilan pembelajaran.","Guru dapat menjelaskan alasan pelaksanaan kegiatan/aktivitas yang dilakukannya, baik yang sesuai maupun yang berbeda dengan rencana, terkait keberhasilan pembelajaran.",{"$f":"PKKM_GMP!$N$23","v":0},{"$f":"RANK($E$3:$E$56,$D$3:$E$56)+COUNTIF($E$2:E7,E8)","v":6},null,6,"Guru melakukan evaluasi diri secara spesifik, lengkap, dan  didukung dengan contoh pengalaman diri sendiri.",0,41]
["2.4","Menguasai teori belajar dan prinsip-prinsip pembelajaran","(PEDAGOGIK): 2.4 Menggunakan berbagai teknik untuk memotiviasi kemauan belajar peserta didik.","Guru menggunakan berbagai teknik untuk memotiviasi kemauan belajar peserta didik.",{"$f":"PKKM_GMP!$N$24","v":0},{"$f":"RANK($E$3:$E$56,$D$3:$E$56)+COUNTIF($E$2:E8,E9)","v":7},null,7,"Guru menyusun materi, perencanaan dan pelaksanaan pembelajaran yang berisi informasi yang tepat, mutakhir, dan yang membantu peserta didik untuk memahami konsep materi pembelajaran.",0,40]
["2.5","Menguasai teori belajar dan prinsip-prinsip pembelajaran","(PEDAGOGIK): 2.5 Merencanakan kegiatan pembelajaran yang saling terkait satu sama lain, dengan memperhatikan tujuan pembelajaran maupun proses belajar peserta didik.","Guru merencanakan kegiatan pembelajaran yang saling terkait satu sama lain, dengan memperhatikan tujuan pembelajaran maupun proses belajar peserta didik.",{"$f":"PKKM_GMP!$N$25","v":0},{"$f":"RANK($E$3:$E$56,$D$3:$E$56)+COUNTIF($E$2:E9,E10)","v":8},null,8,"Guru melakukan pemetaan standar kompetensi dan kompetensi dasar untuk mata pelajaran yang diampunya, untuk mengidentifikasi materi pembelajaran yang dianggap sulit, melakukan perencanaan dan pelaksanaan pembelajaran, dan memperkirakan alokasi waktu yang diperlukan.",0,39]
["2.6","Menguasai teori belajar dan prinsip-prinsip pembelajaran","(PEDAGOGIK): 2.6 Memperhatikan respon peserta didik yang belum/kurang memahami materi pembelajaran yang diajarkan dan menggunakannya untuk memperbaiki rancangan pembelajaran berikutnya. ","Guru memperhatikan respon peserta didik yang belum/kurang memahami materi pembelajaran yang diajarkan dan menggunakannya untuk memperbaiki rancangan pembelajaran berikutnya. ",{"$f":"PKKM_GMP!$N$30","v":0},{"$f":"RANK($E$3:$E$56,$D$3:$E$56)+COUNTIF($E$2:E10,E11)","v":9},null,9,"Guru mengintegrasikan materi pembelajaran dengan konsep- konsep yang terdapat di dalam Al Qur’an dan Hadits.",0,38]
["3.1","Pengembangan kurikulum","(PEDAGOGIK): 3.1 Menyusun silabus yang sesuai dengan kurikulum.","Guru dapat menyusun silabus yang sesuai dengan kurikulum.",{"$f":"PKKM_GMP!$N$31","v":0},{"$f":"RANK($E$3:$E$56,$D$3:$E$56)+COUNTIF($E$2:E11,E12)","v":10},null,10,"Guru mengintegrasikan materi pembelajaran dengan konsep- konsep yang terdapat di dalam Al Qur’an dan Hadits.",0,37]
["3.2","Pengembangan kurikulum","(PEDAGOGIK): 3.2 Merancang rencana pembelajaran yang sesuai dengan silabus untuk membahas materi ajar tertentu agar peserta didik dapat mencapai kompetensi dasar yang ditetapkan.","Guru merancang rencana pembelajaran yang sesuai dengan silabus untuk membahas materi ajar tertentu agar peserta didik dapat mencapai kompetensi dasar yang ditetapkan.",{"$f":"PKKM_GMP!$N$32","v":0},{"$f":"RANK($E$3:$E$56,$D$3:$E$56)+COUNTIF($E$2:E12,E13)","v":11},null,11,"Guru menganalisis hasil penilaian untuk mengidentifikasi topik/kompetensi dasar yang sulit sehingga diketahui kekuatan dan kelemahan masing-masing peserta didik untuk keperluan remedial dan pengayaan.",0,36]
["3.3","Pengembangan kurikulum","(PEDAGOGIK): 3.3 Mengembangkan materi pembelajaran untuk mencapai kompetensi dasar","Guru mengembangkan materi pembelajaran untuk mencapai kompetensi dasar",{"$f":"PKKM_GMP!$N$33","v":0},{"$f":"RANK($E$3:$E$56,$D$3:$E$56)+COUNTIF($E$2:E13,E14)","v":12},null,12,"Guru melaksanakan penilaian dengan berbagai teknik dan jenis penilaian, selain penilaian formal yang dilaksanakan sekolah, dan mengumumkan hasil serta implikasinya kepada peserta didik, tentang tingkat pemahaman terhadap materi pembelajaran yang telah dan akan dipelajari.",0,35]
["3.4","Pengembangan kurikulum","(PEDAGOGIK): 3.4 Mengikuti urutan materi pembelajaran dengan memperhatikan tujuan pembelajaran.","Guru mengikuti urutan materi pembelajaran dengan memperhatikan tujuan pembelajaran.",{"$f":"PKKM_GMP!$N$34","v":0},{"$f":"RANK($E$3:$E$56,$D$3:$E$56)+COUNTIF($E$2:E14,E15)","v":13},null,13,"Guru menyusun alat penilaian yang sesuai dengan tujuan pembelajaran untuk mencapai kompetensi tertentu seperti yang tertulis dalam RPP.",0,34]
["3.5","Pengembangan kurikulum","(PEDAGOGIK): 3.5 Memilih materi pembelajaran yang: a) sesuai dengan tujuan pembelajaran, b) tepat dan mutakhir, c) sesuai dengan usia dan tingkat kemampuan belajar peserta didik, dan d) dapat dilaksanakan di kelas e) sesuai dengan konteks kehidupan sehari-hari peserta didik.","Guru memilih materi pembelajaran yang: a) sesuai dengan tujuan pembelajaran, b) tepat dan mutakhir, c) sesuai dengan usia dan tingkat kemampuan belajar peserta didik, dan d) dapat dilaksanakan di kelas e) sesuai dengan konteks kehidupan sehari-hari peserta didik.",{"$f":"PKKM_GMP!$N$39","v":0},{"$f":"RANK($E$3:$E$56,$D$3:$E$56)+COUNTIF($E$2:E15,E16)","v":14},null,14,"Guru mendengarkan dan memberikan perhatian terhadap semua jawaban peserta didik ",0,33]
["4.1","Kegiatan Pembelajaran yang Mendidik","(PEDAGOGIK): 4.1 Melaksanakan aktivitas pembelajaran sesuai dengan rancangan yang telah disusun secara lengkap (termasuk pemberian informasi baru) yang mengindikasikan bahwa guru mengerti tentang tujuannya.","Guru melaksanakan aktivitas pembelajaran sesuai dengan rancangan yang telah disusun secara lengkap (termasuk pemberian informasi baru) yang mengindikasikan bahwa guru mengerti tentang tujuannya.",{"$f":"PKKM_GMP!$N$40","v":0},{"$f":"RANK($E$3:$E$56,$D$3:$E$56)+COUNTIF($E$2:E16,E17)","v":15},null,15,"Guru menyajikan kegiatan pembelajaran yang dapat menumbuhkan kerja sama yang baik antar pesertadidik.",0,32]
["4.2","Kegiatan Pembelajaran yang Mendidik","(PEDAGOGIK): 4.2 Melaksanakan aktivitas pembelajaran yang bertujuan untuk membantu proses belajar peserta didik, bukan untuk menguji sehingga membuat peserta didik merasa tertekan.","Guru melaksanakan aktivitas pembelajaran yang bertujuan untuk membantu proses belajar peserta didik, bukan untuk menguji sehingga membuat peserta didik merasa tertekan.",{"$f":"PKKM_GMP!$N$41","v":0},{"$f":"RANK($E$3:$E$56,$D$3:$E$56)+COUNTIF($E$2:E17,E18)","v":16},null,16,"Guru menanggapi pertanyaan peserta didik secara tepat, benar, dan mutakhir, sesuai tujuan pembelajaran dan isi kurikulum, tanpa mempermalukannya.",0,31]
["4.3","Kegiatan Pembelajaran yang Mendidik","(PEDAGOGIK): 4.3 Menyikapi kesalahan yang dilakukan peserta didik sebagai tahapan proses pembelajaran, bukan semata-mata kesalahan yang harus dikoreksi. Misalnya: dengan mengetahui terlebih dahulu peserta didik lain yang setuju/tidak setuju dengan jawaban tersebut, sebelum memberikan penjelasan tentang jawaban yang benar","Guru menyikapi kesalahan yang dilakukan peserta didik sebagai tahapan proses pembelajaran, bukan semata-mata kesalahan yang harus dikoreksi. Misalnya: dengan mengetahui terlebih dahulu peserta didik lain yang setuju/tidak setuju dengan jawaban tersebut, sebelum memberikan penjelasan tentang jawaban yang benar",{"$f":"PKKM_GMP!$N$42","v":0},{"$f":"RANK($E$3:$E$56,$D$3:$E$56)+COUNTIF($E$2:E18,E19)","v":17},null,17,"Guru memberikan perhatian dan mendengarkan semua pertanyaan dan tanggapan peserta didik, tanpa menginterupsi, kecuali jika diperlukan untuk membantu atau mengklarifikasi pertanyaan/tanggapan tersebut.",0,30]
["4.4","Kegiatan Pembelajaran yang Mendidik","(PEDAGOGIK): 4.4 Melaksanakan kegiatan pembelajaran sesuai isi kurikulum dan mengkaitkannya dengan konteks kehidupan sehari-hari peserta didik.","Guru melaksanakan kegiatan pembelajaran sesuai isi kurikulum dan mengkaitkannya dengan konteks kehidupan sehari-hari peserta didik.",{"$f":"PKKM_GMP!$N$43","v":0},{"$f":"RANK($E$3:$E$56,$D$3:$E$56)+COUNTIF($E$2:E19,E20)","v":18},null,18," Guru menggunakan pertanyaan untuk mengetahui pemahaman dan menjaga partisipasi peserta didik, termasuk memberikan pertanyaan terbuka yang menuntut peserta didik untuk menjawab dengan ide dan pengetahuan mereka.",0,29]
["4.5","Kegiatan Pembelajaran yang Mendidik","(PEDAGOGIK): 4.5 Melakukan aktivitas pembelajaran secara bervariasi dengan mempertimbangkan waktu, kondisi kelas, usia dan tingkat kemampuan belajar dan mempertahankan perhatian peserta didik.","Guru melakukan aktivitas pembelajaran secara bervariasi dengan mempertimbangkan waktu, kondisi kelas, usia dan tingkat kemampuan belajar dan mempertahankan perhatian peserta didik.",{"$f":"PKKM_GMP!$N$44","v":0},{"$f":"RANK($E$3:$E$56,$D$3:$E$56)+COUNTIF($E$2:E20,E21)","v":19},null,19,"Guru dapat mengidentifikasi dengan benar tentang bakat, minat, potensi, dan kesulitan belajar",0,28]
["4.6","Kegiatan Pembelajaran yang Mendidik","(PEDAGOGIK): 4.6 Mengelola kelas dengan efektif tanpa mendominasi atau sibuk dengan kegiatannya sendiri agar semua waktu peserta dapat dimanfaatkan secara produktif.","Guru mengelola kelas dengan efektif tanpa mendominasi atau sibuk dengan kegiatannya sendiri agar semua waktu peserta dapat dimanfaatkan secara produktif.",{"$f":"PKKM_GMP!$N$45","v":0},{"$f":"RANK($E$3:$E$56,$D$3:$E$56)+COUNTIF($E$2:E21,E22)","v":20},null,20,"Guru secara aktif membantu peserta didik dalam proses pembelajaran dengan memberikan perhatian kepada setiap individu.",0,27]
["4.7","Kegiatan Pembelajaran yang Mendidik","(PEDAGOGIK): 4.7 Memberikan banyak kesempatan kepada peserta didik untuk bertanya, mempraktikkan dan berinteraksi dengan peserta didik lain","Guru memberikan banyak kesempatan kepada peserta didik untuk bertanya, mempraktikkan dan berinteraksi dengan peserta didik lain",{"$f":"PKKM_GMP!$N$46","v":0},{"$f":"RANK($E$3:$E$56,$D$3:$E$56)+COUNTIF($E$2:E22,E23)","v":21},null,21,"Guru merancang dan melaksanakan aktivitas pembelajaran untuk memunculkan daya kreativitas dan kemampuan berfikir kritis peserta didik.",0,26]
["4.8","Kegiatan Pembelajaran yang Mendidik","(PEDAGOGIK): 4.8 Mengatur pelaksanaan aktivitas pembelajaran secara sistematis untuk membantu proses belajar peserta didik. Sebagai contoh: guru menambah informasi baru setelah mengevaluasi pemahaman peserta didik terhadap materi sebelumnya","Guru mengatur pelaksanaan aktivitas pembelajaran secara sistematis untuk membantu proses belajar peserta didik. Sebagai contoh: guru menambah informasi baru setelah mengevaluasi pemahaman peserta didik terhadap materi sebelumnya",{"$f":"PKKM_GMP!$N$47","v":0},{"$f":"RANK($E$3:$E$56,$D$3:$E$56)+COUNTIF($E$2:E23,E24)","v":22},null,22,"Guru merancang dan melaksanakan aktivitas pembelajaran yang mendorong peserta didik untuk belajar sesuai dengan kecakapan dan pola belajar masing-masing.",0,25]
["4.9","Kegiatan Pembelajaran yang Mendidik","(PEDAGOGIK): 4.9 Menggunakan alat bantu mengajar, dan/atau audio-visual (termasuk TIK) untuk meningkatkan motivasi belajar peserta didik dalam mencapai tujuan pembelajaran.","Guru menggunakan alat bantu mengajar, dan/atau audio-visual (termasuk TIK) untuk meningkatkan motivasi belajar peserta didik dalam mencapai tujuan pembelajaran.",{"$f":"PKKM_GMP!$N$52","v":0},{"$f":"RANK($E$3:$E$56,$D$3:$E$56)+COUNTIF($E$2:E24,E25)","v":23},null,23,"Guru menganalisis hasil belajar berdasarkan segala bentuk penilaian terhadap setiap peserta didik untuk mengetahui tingkat kemajuan masing-masing.",0,24]
["5.1","Memahami dan mengembangkan potensi","(PEDAGOGIK): 5.1 Menganalisis hasil belajar berdasarkan segala bentuk penilaian terhadap setiap peserta didik untuk mengetahui tingkat kemajuan masing-masing.","Guru menganalisis hasil belajar berdasarkan segala bentuk penilaian terhadap setiap peserta didik untuk mengetahui tingkat kemajuan masing-masing.",{"$f":"PKKM_GMP!$N$52","v":0},{"$f":"RANK($E$3:$E$56,$D$3:$E$56)+COUNTIF($E$2:E25,E26)","v":24},null,24,"Guru menggunakan alat bantu mengajar, dan/atau audio-visual (termasuk TIK) untuk meningkatkan motivasi belajar peserta didik dalam mencapai tujuan pembelajaran.",0,23]
["5.2","Memahami dan mengembangkan potensi","(PEDAGOGIK): 5.2 Merancang dan melaksanakan aktivitas pembelajaran yang mendorong peserta didik untuk belajar sesuai dengan kecakapan dan pola belajar masing-masing.","Guru merancang dan melaksanakan aktivitas pembelajaran yang mendorong peserta didik untuk belajar sesuai dengan kecakapan dan pola belajar masing-masing.",{"$f":"PKKM_GMP!$N$53","v":0},{"$f":"RANK($E$3:$E$56,$D$3:$E$56)+COUNTIF($E$2:E26,E27)","v":25},null,25,"Guru mengatur pelaksanaan aktivitas pembelajaran secara sistematis untuk membantu proses belajar peserta didik. Sebagai contoh: guru menambah informasi baru setelah mengevaluasi pemahaman peserta didik terhadap materi sebelumnya",0,22]
["5.3","Memahami dan mengembangkan potensi","(PEDAGOGIK): 5.3 Merancang dan melaksanakan aktivitas pembelajaran untuk memunculkan daya kreativitas dan kemampuan berfikir kritis peserta didik.","Guru merancang dan melaksanakan aktivitas pembelajaran untuk memunculkan daya kreativitas dan kemampuan berfikir kritis peserta didik.",{"$f":"PKKM_GMP!$N$54","v":0},{"$f":"RANK($E$3:$E$56,$D$3:$E$56)+COUNTIF($E$2:E27,E28)","v":26},null,26,"Guru memberikan banyak kesempatan kepada peserta didik untuk bertanya, mempraktikkan dan berinteraksi dengan peserta didik lain",0,21]
["5.4","Memahami dan mengembangkan potensi","(PEDAGOGIK): 5.4 Secara aktif membantu peserta didik dalam proses pembelajaran dengan memberikan perhatian kepada setiap individu.","Guru secara aktif membantu peserta didik dalam proses pembelajaran dengan memberikan perhatian kepada setiap individu.",{"$f":"PKKM_GMP!$N$55","v":0},{"$f":"RANK($E$3:$E$56,$D$3:$E$56)+COUNTIF($E$2:E28,E29)","v":27},null,27,"Guru mengelola kelas dengan efektif tanpa mendominasi atau sibuk dengan kegiatannya sendiri agar semua waktu peserta dapat dimanfaatkan secara produktif.",0,20]
["5.5","Memahami dan mengembangkan potensi","(PEDAGOGIK): 5.5 Mengidentifikasi dengan benar tentang bakat, minat, potensi, dan kesulitan belajar","Guru dapat mengidentifikasi dengan benar tentang bakat, minat, potensi, dan kesulitan belajar",{"$f":"PKKM_GMP!$N$56","v":0},{"$f":"RANK($E$3:$E$56,$D$3:$E$56)+COUNTIF($E$2:E29,E30)","v":28},null,28,"Guru melakukan aktivitas pembelajaran secara bervariasi dengan mempertimbangkan waktu, kondisi kelas, usia dan tingkat kemampuan belajar dan mempertahankan perhatian peserta didik.",0,19]
["6.1","Komunikasi dengan peserta didik ","(PEDAGOGIK): 6.1 Menggunakan pertanyaan untuk mengetahui pemahaman dan menjaga partisipasi peserta didik, termasuk memberikan pertanyaan terbuka yang menuntut peserta didik untuk menjawab dengan ide dan pengetahuan mereka."," Guru menggunakan pertanyaan untuk mengetahui pemahaman dan menjaga partisipasi peserta didik, termasuk memberikan pertanyaan terbuka yang menuntut peserta didik untuk menjawab dengan ide dan pengetahuan mereka.",{"$f":"PKKM_GMP!$N$61","v":0},{"$f":"RANK($E$3:$E$56,$D$3:$E$56)+COUNTIF($E$2:E30,E31)","v":29},null,29,"Guru melaksanakan kegiatan pembelajaran sesuai isi kurikulum dan mengkaitkannya dengan konteks kehidupan sehari-hari peserta didik.",0,18]
["6.2","Komunikasi dengan peserta didik ","(PEDAGOGIK): 6.2 Memberikan perhatian dan mendengarkan semua pertanyaan dan tanggapan peserta didik, tanpa menginterupsi, kecuali jika diperlukan untuk membantu atau mengklarifikasi pertanyaan/tanggapan tersebut.","Guru memberikan perhatian dan mendengarkan semua pertanyaan dan tanggapan peserta didik, tanpa menginterupsi, kecuali jika diperlukan untuk membantu atau mengklarifikasi pertanyaan/tanggapan tersebut.",{"$f":"PKKM_GMP!$N$63","v":0},{"$f":"RANK($E$3:$E$56,$D$3:$E$56)+COUNTIF($E$2:E31,E32)","v":30},null,30,"Guru menyikapi kesalahan yang dilakukan peserta didik sebagai tahapan proses pembelajaran, bukan semata-mata kesalahan yang harus dikoreksi. Misalnya: dengan mengetahui terlebih dahulu peserta didik lain yang setuju/tidak setuju dengan jawaban tersebut, sebelum memberikan penjelasan tentang jawaban yang benar",0,17]
["6.3","Komunikasi dengan peserta didik ","(PEDAGOGIK): 6.3 Menanggapi pertanyaan peserta didik secara tepat, benar, dan mutakhir, sesuai tujuan pembelajaran dan isi kurikulum, tanpa mempermalukannya.","Guru menanggapi pertanyaan peserta didik secara tepat, benar, dan mutakhir, sesuai tujuan pembelajaran dan isi kurikulum, tanpa mempermalukannya.",{"$f":"PKKM_GMP!$N$64","v":0},{"$f":"RANK($E$3:$E$56,$D$3:$E$56)+COUNTIF($E$2:E32,E33)","v":31},null,31,"Guru melaksanakan aktivitas pembelajaran yang bertujuan untuk membantu proses belajar peserta didik, bukan untuk menguji sehingga membuat peserta didik merasa tertekan.",0,16]
["6.4","Komunikasi dengan peserta didik ","(PEDAGOGIK): 6.4 Menyajikan kegiatan pembelajaran yang dapat menumbuhkan kerja sama yang baik antar pesertadidik.","Guru menyajikan kegiatan pembelajaran yang dapat menumbuhkan kerja sama yang baik antar pesertadidik.",{"$f":"PKKM_GMP!$N$65","v":0},{"$f":"RANK($E$3:$E$56,$D$3:$E$56)+COUNTIF($E$2:E33,E34)","v":32},null,32,"Guru melaksanakan aktivitas pembelajaran sesuai dengan rancangan yang telah disusun secara lengkap (termasuk pemberian informasi baru) yang mengindikasikan bahwa guru mengerti tentang tujuannya.",0,15]
["6.5","Komunikasi dengan peserta didik ","(PEDAGOGIK): 6.5 Mendengarkan dan memberikan perhatian terhadap semua jawaban peserta didik ","Guru mendengarkan dan memberikan perhatian terhadap semua jawaban peserta didik ",{"$f":"PKKM_GMP!$N$65","v":0},{"$f":"RANK($E$3:$E$56,$D$3:$E$56)+COUNTIF($E$2:E34,E35)","v":33},null,33,"Guru memilih materi pembelajaran yang: a) sesuai dengan tujuan pembelajaran, b) tepat dan mutakhir, c) sesuai dengan usia dan tingkat kemampuan belajar peserta didik, dan d) dapat dilaksanakan di kelas e) sesuai dengan konteks kehidupan sehari-hari peserta didik.",0,14]
["7.1","Penilaian dan evaluasi","(PEDAGOGIK): 7.1 Menyusun alat penilaian yang sesuai dengan tujuan pembelajaran untuk mencapai kompetensi tertentu seperti yang tertulis dalam RPP.","Guru menyusun alat penilaian yang sesuai dengan tujuan pembelajaran untuk mencapai kompetensi tertentu seperti yang tertulis dalam RPP.",{"$f":"PKKM_GMP!$N$70","v":0},{"$f":"RANK($E$3:$E$56,$D$3:$E$56)+COUNTIF($E$2:E35,E36)","v":34},null,34,"Guru mengikuti urutan materi pembelajaran dengan memperhatikan tujuan pembelajaran.",0,13]
["7.2","Penilaian dan evaluasi","(PEDAGOGIK): 7.2 Melaksanakan penilaian dengan berbagai teknik dan jenis penilaian, selain penilaian formal yang dilaksanakan sekolah, dan mengumumkan hasil serta implikasinya kepada peserta didik, tentang tingkat pemahaman terhadap materi pembelajaran yang telah dan akan dipelajari.","Guru melaksanakan penilaian dengan berbagai teknik dan jenis penilaian, selain penilaian formal yang dilaksanakan sekolah, dan mengumumkan hasil serta implikasinya kepada peserta didik, tentang tingkat pemahaman terhadap materi pembelajaran yang telah dan akan dipelajari.",{"$f":"PKKM_GMP!$N$71","v":0},{"$f":"RANK($E$3:$E$56,$D$3:$E$56)+COUNTIF($E$2:E36,E37)","v":35},null,35,"Guru mengembangkan materi pembelajaran untuk mencapai kompetensi dasar",0,12]
["7.3","Penilaian dan evaluasi","(PEDAGOGIK): 7.3 Menganalisis hasil penilaian untuk mengidentifikasi topik/kompetensi dasar yang sulit sehingga diketahui kekuatan dan kelemahan masing-masing peserta didik untuk keperluan remedial dan pengayaan.","Guru menganalisis hasil penilaian untuk mengidentifikasi topik/kompetensi dasar yang sulit sehingga diketahui kekuatan dan kelemahan masing-masing peserta didik untuk keperluan remedial dan pengayaan.",{"$f":"PKKM_GMP!$N$72","v":0},{"$f":"RANK($E$3:$E$56,$D$3:$E$56)+COUNTIF($E$2:E37,E38)","v":36},null,36,"Guru merancang rencana pembelajaran yang sesuai dengan silabus untuk membahas materi ajar tertentu agar peserta didik dapat mencapai kompetensi dasar yang ditetapkan.",0,11]
["7.4","Penilaian dan evaluasi","(PEDAGOGIK): 7.4 Mengintegrasikan materi pembelajaran dengan konsep- konsep yang terdapat di dalam Al Qur’an dan Hadits.","Guru mengintegrasikan materi pembelajaran dengan konsep- konsep yang terdapat di dalam Al Qur’an dan Hadits.",{"$f":"PKKM_GMP!$N$73","v":0},{"$f":"RANK($E$3:$E$56,$D$3:$E$56)+COUNTIF($E$2:E38,E39)","v":37},null,37,"Guru dapat menyusun silabus yang sesuai dengan kurikulum.",0,10]
["13.1","Penguasaan materi struktur konsep dan pola pikir keilmuan yang  mendukung mata pelajaran yang diampu.","(PROFESIONAL):  13.1 Mengintegrasikan materi pembelajaran dengan konsep- konsep yang terdapat di dalam Al Qur’an dan Hadits.","Guru mengintegrasikan materi pembelajaran dengan konsep- konsep yang terdapat di dalam Al Qur’an dan Hadits.",{"$f":"PKKM_GMP!$N$123","v":0},{"$f":"RANK($E$3:$E$56,$D$3:$E$56)+COUNTIF($E$2:E39,E40)","v":38},null,38,"Guru memperhatikan respon peserta didik yang belum/kurang memahami materi pembelajaran yang diajarkan dan menggunakannya untuk memperbaiki rancangan pembelajaran berikutnya. ",0,9]
["13.2","Penguasaan materi struktur konsep dan pola pikir keilmuan yang  mendukung mata pelajaran yang diampu.","(PROFESIONAL):  13.2 Melakukan pemetaan standar kompetensi dan kompetensi dasar untuk mata pelajaran yang diampunya, untuk mengidentifikasi materi pembelajaran yang dianggap sulit, melakukan perencanaan dan pelaksanaan pembelajaran, dan memperkirakan alokasi waktu yang diperlukan.","Guru melakukan pemetaan standar kompetensi dan kompetensi dasar untuk mata pelajaran yang diampunya, untuk mengidentifikasi materi pembelajaran yang dianggap sulit, melakukan perencanaan dan pelaksanaan pembelajaran, dan memperkirakan alokasi waktu yang diperlukan.",{"$f":"PKKM_GMP!$N$124","v":0},{"$f":"RANK($E$3:$E$56,$D$3:$E$56)+COUNTIF($E$2:E40,E41)","v":39},null,39,"Guru merencanakan kegiatan pembelajaran yang saling terkait satu sama lain, dengan memperhatikan tujuan pembelajaran maupun proses belajar peserta didik.",0,8]
["13.3","Penguasaan materi struktur konsep dan pola pikir keilmuan yang  mendukung mata pelajaran yang diampu.","(PROFESIONAL):  13.3 Menyusun materi, perencanaan dan pelaksanaan pembelajaran yang berisi informasi yang tepat, mutakhir, dan yang membantu peserta didik untuk memahami konsep materi pembelajaran.","Guru menyusun materi, perencanaan dan pelaksanaan pembelajaran yang berisi informasi yang tepat, mutakhir, dan yang membantu peserta didik untuk memahami konsep materi pembelajaran.",{"$f":"PKKM_GMP!$N$125","v":0},{"$f":"RANK($E$3:$E$56,$D$3:$E$56)+COUNTIF($E$2:E41,E42)","v":40},null,40,{"$f":"INDEX($D$3:$F$56,MATCH(LARGE($F$3:$F$56,ROW()-2),$F$3:$F$56,0),1)","v":"Guru menggunakan berbagai teknik untuk memotiviasi kemauan belajar peserta didik."},{"$f":"INDEX($D$3:$F$56,MATCH(LARGE($F$3:$F$56,ROW()-2),$F$3:$F$56,0),2)","v":0},{"$f":"INDEX($D$3:$F$56,MATCH(LARGE($F$3:$F$56,ROW()-2),$F$3:$F$56,0),3)","v":7}]
["14.1","Mengembangkan keprofesian melalui tindakan reflektif","(PROFESIONAL):  14.1 Melakukan evaluasi diri secara spesifik, lengkap, dan  didukung dengan contoh pengalaman diri sendiri.","Guru melakukan evaluasi diri secara spesifik, lengkap, dan  didukung dengan contoh pengalaman diri sendiri.",{"$f":"PKKM_GMP!$N$130","v":0},{"$f":"RANK($E$3:$E$56,$D$3:$E$56)+COUNTIF($E$2:E42,E43)","v":41},null,41,{"$f":"INDEX($D$3:$F$56,MATCH(LARGE($F$3:$F$56,ROW()-2),$F$3:$F$56,0),1)","v":"Guru dapat menjelaskan alasan pelaksanaan kegiatan/aktivitas yang dilakukannya, baik yang sesuai maupun yang berbeda dengan rencana, terkait keberhasilan pembelajaran."},{"$f":"INDEX($D$3:$F$56,MATCH(LARGE($F$3:$F$56,ROW()-2),$F$3:$F$56,0),2)","v":0},{"$f":"INDEX($D$3:$F$56,MATCH(LARGE($F$3:$F$56,ROW()-2),$F$3:$F$56,0),3)","v":6}]
["14.2","Mengembangkan keprofesian melalui tindakan reflektif","(PROFESIONAL):  14.2 Memiliki jurnal pembelajaran, catatan masukan dari kolega atau hasil penilaian proses pembelajaran sebagai bukti yang menggambarkan kinerjanya.","Guru memiliki jurnal pembelajaran, catatan masukan dari kolega atau hasil penilaian proses pembelajaran sebagai bukti yang menggambarkan kinerjanya.",{"$f":"PKKM_GMP!$N$131","v":0},{"$f":"RANK($E$3:$E$56,$D$3:$E$56)+COUNTIF($E$2:E43,E44)","v":42},null,42,"Guru selalu memastikan tingkat pemahaman peserta didik terhadap materi pembelajaran tertentu dan menyesuaikan aktivitas pembelajaran berikutnya berdasarkan tingkat pemahaman tersebut.",0,5]
["14.3","Mengembangkan keprofesian melalui tindakan reflektif","(PROFESIONAL):  14.3 Memanfaatkan bukti gambaran kinerjanya untuk mengembangkan  perencanaan dan pelaksanaan pembelajaran selanjutnya dalam program Pengembangan Keprofesian Berkelanjutan (PKB).","Guru memanfaatkan bukti gambaran kinerjanya untuk mengembangkan  perencanaan dan pelaksanaan pembelajaran selanjutnya dalam program Pengembangan Keprofesian Berkelanjutan (PKB).",{"$f":"PKKM_GMP!$N$132","v":0},{"$f":"RANK($E$3:$E$56,$D$3:$E$56)+COUNTIF($E$2:E44,E45)","v":43},null,43,"Guru memberi kesempatan kepada peserta didik untuk menguasai materi pembelajaran sesuai usia dan kemampuan belajarnya melalui pengaturan proses pembelajaran dan aktivitas yang bervariasi.",0,4]
["14.4","Mengembangkan keprofesian melalui tindakan reflektif","(PROFESIONAL):  14.4 Mengaplikasikan pengalaman PKB dalam perencanaan, pelaksanaan, penilaian pembelajaran dan tindak lanjutnya.","Guru dapat mengaplikasikan pengalaman PKB dalam perencanaan, pelaksanaan, penilaian pembelajaran dan tindak lanjutnya.",{"$f":"PKKM_GMP!$N$133","v":0},{"$f":"RANK($E$3:$E$56,$D$3:$E$56)+COUNTIF($E$2:E45,E46)","v":44},null,44,"Guru mencoba mengetahui penyebab penyimpangan perilaku peserta didik untuk mencegah agar perilaku tersebut tidak merugikan peserta didik lainnya.",0,3]
["14.5","Mengembangkan keprofesian melalui tindakan reflektif","(PROFESIONAL):  14.5 Melakukan penelitian, mengembangkan karya inovasi, mengikuti kegiatan ilmiah (misalnya seminar, konferensi), dan aktif dalam melaksanakan PKB.","Guru melakukan penelitian, mengembangkan karya inovasi, mengikuti kegiatan ilmiah (misalnya seminar, konferensi), dan aktif dalam melaksanakan PKB.",{"$f":"PKKM_GMP!$N$134","v":0},{"$f":"RANK($E$3:$E$56,$D$3:$E$56)+COUNTIF($E$2:E46,E47)","v":45},null,45,"Guru memastikan bahwa semua peserta didik mendapatkan kesempatan yang sama untuk berpartisipasi aktif dalam kegiatan pembelajaran.",0,2]
["14.6","Mengembangkan keprofesian melalui tindakan reflektif","(PROFESIONAL):  14.6 Memanfaatkan TIK dalam berkomunikasi dan pelaksanaan PKB.","Guru dapat memanfaatkan TIK dalam berkomunikasi dan pelaksanaan PKB.",{"$f":"PKKM_GMP!$N$135","v":0},{"$f":"RANK($E$3:$E$56,$D$3:$E$56)+COUNTIF($E$2:E47,E48)","v":46},null,46,"Guru dapat mengidentifikasi karakteristik belajar setiap peserta didik di kelasnya.",0,1]

{"sheet":"INDIKATOR GBK","index":25,"n_rows":47,"n_cols":13,"rows_kept":47}
[]
[{"$nulls":5},"NILAI","RANK",null,"NO","INDIKATOR KOMPETENSI","NILAI","RANK"]
["1.",1,"Guru BK/Konselor dapat menunjukkan dalam perencanaan layanan BK, sesuai dengan landasan dan prinsip-prinsip pendidikan serta pembelajaran yang aktif, kreatif, mandiri, dan berpusat pada peserta didik/konseli.",{"$f":"\"PEDAGOGIK\"&\" : \"&C3","v":"PEDAGOGIK : Guru BK/Konselor dapat menunjukkan dalam perencanaan layanan BK, sesuai dengan landasan dan prinsip-prinsip pendidikan serta pembelajaran yang aktif, kreatif, mandiri, dan berpusat pada peserta didik/konseli."},{"$f":"C3","v":"Guru BK/Konselor dapat menunjukkan dalam perencanaan layanan BK, sesuai dengan landasan dan prinsip-prinsip pendidikan serta pembelajaran yang aktif, kreatif, mandiri, dan berpusat pada peserta didik/konseli."},{"$f":"PKKM_BK!N10","v":0},{"$f":"RANK($F$3:$F$47,$E$3:$F$47)+COUNTIF($F$2:F2,F3)","v":1},null,1,{"$f":"INDEX($E$3:$G$47,MATCH(LARGE($G$3:$G$47,ROW()-2),$G$3:$G$47,0),1)","v":"Guru BK/Konselor dapat memanfaatkan hasil penelitian dalam BK dengan mengakses jurnal yang relevan."},{"$f":"INDEX($E$3:$G$47,MATCH(LARGE($G$3:$G$47,ROW()-2),$G$3:$G$47,0),2)","v":0},{"$f":"INDEX($E$3:$G$47,MATCH(LARGE($G$3:$G$47,ROW()-2),$G$3:$G$47,0),3)","v":45},1]
[null,2,"Guru BK/Konselor dapat menunjukkan dalam perencanaan layanan BK, sesuai dengan usia, tahap perkembangan, dan kebutuhan peserta didik/ konseli.",{"$f":"\"PEDAGOGIK\"&\" : \"&C4","v":"PEDAGOGIK : Guru BK/Konselor dapat menunjukkan dalam perencanaan layanan BK, sesuai dengan usia, tahap perkembangan, dan kebutuhan peserta didik/ konseli."},{"$f":"C4","v":"Guru BK/Konselor dapat menunjukkan dalam perencanaan layanan BK, sesuai dengan usia, tahap perkembangan, dan kebutuhan peserta didik/ konseli."},{"$f":"PKKM_BK!N11","v":0},{"$f":"RANK($F$3:$F$47,$E$3:$F$47)+COUNTIF($F$2:F3,F4)","v":2},null,2,"Guru BK/Konselor dapat melaksanakan penelitian dalam BK.",0,44,2]
[null,3,"Guru BK/Konselor dapat menunjukkan dalam perencanaan layanan BK, sesuai dengan keragaman latar belakang budaya, ekonomi, dan sosial peserta didik/konseli.","PEDAGOGIK : Guru BK/Konselor dapat menunjukkan dalam perencanaan layanan BK, sesuai dengan keragaman latar belakang budaya, ekonomi, dan sosial peserta didik/konseli.","Guru BK/Konselor dapat menunjukkan dalam perencanaan layanan BK, sesuai dengan keragaman latar belakang budaya, ekonomi, dan sosial peserta didik/konseli.",{"$f":"PKKM_BK!N12","v":0},{"$f":"RANK($F$3:$F$47,$E$3:$F$47)+COUNTIF($F$2:F4,F5)","v":3},null,3,"Guru BK/Konselor mampu merancang penelitian dalam BK.",0,43,3]
["2.",1,"Peserta didik/konseli diberi kesempatan dalam memperoleh layanan BK sesuai dengan jalur satuan pendidikan formal di lingkup kementerian agama","PEDAGOGIK : Peserta didik/konseli diberi kesempatan dalam memperoleh layanan BK sesuai dengan jalur satuan pendidikan formal di lingkup kementerian agama","Peserta didik/konseli diberi kesempatan dalam memperoleh layanan BK sesuai dengan jalur satuan pendidikan formal di lingkup kementerian agama",{"$f":"PKKM_BK!N17","v":0},{"$f":"RANK($F$3:$F$47,$E$3:$F$47)+COUNTIF($F$2:F5,F6)","v":4},null,4,"Guru BK/Konselor dapat mendeskripsikan jenis dan metode penelitian dalam BK.",0,42,4]
[null,2,"Peserta didik/konseli diberi kesempatan dalam memperoleh layanan BK sesuai dengan kebutuhan bakat, minat, dan potensi pribadi.","PEDAGOGIK : Peserta didik/konseli diberi kesempatan dalam memperoleh layanan BK sesuai dengan kebutuhan bakat, minat, dan potensi pribadi.","Peserta didik/konseli diberi kesempatan dalam memperoleh layanan BK sesuai dengan kebutuhan bakat, minat, dan potensi pribadi.",{"$f":"PKKM_BK!N18","v":0},{"$f":"RANK($F$3:$F$47,$E$3:$F$47)+COUNTIF($F$2:F6,F7)","v":5},null,5,"Guru BK/Konselor dapat mendahulukan kepentingan peserta didik/konseli daripada kepentingan pribadi guru BK/konselor.",0,41,5]
[null,3,"Peserta didik/konseli diberi kesempatan dalam memperoleh layanan BK sesuai dengan harapan untuk melanjutkan pendidikan dan pilihan karier.","PEDAGOGIK : Peserta didik/konseli diberi kesempatan dalam memperoleh layanan BK sesuai dengan harapan untuk melanjutkan pendidikan dan pilihan karier.","Peserta didik/konseli diberi kesempatan dalam memperoleh layanan BK sesuai dengan harapan untuk melanjutkan pendidikan dan pilihan karier.",{"$f":"PKKM_BK!N19","v":0},{"$f":"RANK($F$3:$F$47,$E$3:$F$47)+COUNTIF($F$2:F7,F8)","v":6},null,6,"Guru BK/Konselor dapat menghargai identitas profesional dan pengembangan profesi.",0,40]
["3.",1,"Layanan BK yang diprogramkan oleh guru BK/ Konselor telah memenuhi esensi layanan pada jalur satuan pendidikan formal, nonformal dan informal.","PEDAGOGIK : Layanan BK yang diprogramkan oleh guru BK/ Konselor telah memenuhi esensi layanan pada jalur satuan pendidikan formal, nonformal dan informal.","Layanan BK yang diprogramkan oleh guru BK/ Konselor telah memenuhi esensi layanan pada jalur satuan pendidikan formal, nonformal dan informal.",{"$f":"PKKM_BK!N24","v":0},{"$f":"RANK($F$3:$F$47,$E$3:$F$47)+COUNTIF($F$2:F8,F9)","v":7},null,7,"Guru BK/Konselor dapat melaksanakan layanan pendukung sesuai kebutuhan peserta didik/konseli (misalnya alih tangan kasus, kunjungan rumah, konferensi kasus, instrumen bimbingan, himpunan data). ",0,39]
[null,2,"Layanan BK yang diprogramkan oleh guru BK/ Konselor telah memenuhi esensi layanan pada jenis satuan pendidikan umum, kejuruan, keagamaan, dan kekhususan","PEDAGOGIK : Layanan BK yang diprogramkan oleh guru BK/ Konselor telah memenuhi esensi layanan pada jenis satuan pendidikan umum, kejuruan, keagamaan, dan kekhususan","Layanan BK yang diprogramkan oleh guru BK/ Konselor telah memenuhi esensi layanan pada jenis satuan pendidikan umum, kejuruan, keagamaan, dan kekhususan",{"$f":"PKKM_BK!N25","v":0},{"$f":"RANK($F$3:$F$47,$E$3:$F$47)+COUNTIF($F$2:F9,F10)","v":8},null,8,"Guru BK/Konselor dapat mempertahankan objektivitas dan menjaga agar tidak larut dengan masalah peserta didik/konseli. ",0,38]
[null,3," Layanan BK yang diprogramkan oleh guru BK/ Konselor telah memenuhi esensi layanan pada jenjang Ibtidaiyah, Tsanawiyah, dan Aliyah","PEDAGOGIK :  Layanan BK yang diprogramkan oleh guru BK/ Konselor telah memenuhi esensi layanan pada jenjang Ibtidaiyah, Tsanawiyah, dan Aliyah"," Layanan BK yang diprogramkan oleh guru BK/ Konselor telah memenuhi esensi layanan pada jenjang Ibtidaiyah, Tsanawiyah, dan Aliyah",{"$f":"PKKM_BK!N26","v":0},{"$f":"RANK($F$3:$F$47,$E$3:$F$47)+COUNTIF($F$2:F10,F11)","v":9},null,9,"Guru BK/Konselor dapat menyelenggarakan pelayanan BK sesuai dengan kewenangan dan kode etik profesional guru BK/konselor. ",0,37]
[11,1,"Guru BK/Konselor dapat mengembangkan instrumen non-tes (pedoman wawancara, angket, inventori, dll) untuk keperluan pelayanan BK.",{"$f":"\"PRPFESIONAL\"&\" : \"&C12","v":"PRPFESIONAL : Guru BK/Konselor dapat mengembangkan instrumen non-tes (pedoman wawancara, angket, inventori, dll) untuk keperluan pelayanan BK."},"Guru BK/Konselor dapat mengembangkan instrumen non-tes (pedoman wawancara, angket, inventori, dll) untuk keperluan pelayanan BK.",{"$f":"PKKM_BK!N31","v":0},{"$f":"RANK($F$3:$F$47,$E$3:$F$47)+COUNTIF($F$2:F11,F12)","v":10},null,10,"Guru BK/Konselor dapat meminimalisir  keterbatasan pribadi dan faktor pendukung pelaksanaan pelayanan BK",0,36]
[null,2,"Guru BK/Konselor dapat mengaplikasikan instrumen non-tes untuk mengungkapkan kondisi aktual peserta didik/konseli berkaitan dengan lingkungan.",{"$f":"\"PRPFESIONAL\"&\" : \"&C13","v":"PRPFESIONAL : Guru BK/Konselor dapat mengaplikasikan instrumen non-tes untuk mengungkapkan kondisi aktual peserta didik/konseli berkaitan dengan lingkungan."},"Guru BK/Konselor dapat mengaplikasikan instrumen non-tes untuk mengungkapkan kondisi aktual peserta didik/konseli berkaitan dengan lingkungan.",{"$f":"PKKM_BK!N32","v":0},{"$f":"RANK($F$3:$F$47,$E$3:$F$47)+COUNTIF($F$2:F12,F13)","v":11},null,11,"Guru BK/Konselor dapat memberdayakan kekuatan pribadi, dan keprofesionalan guru BK/konselor.",0,35]
[null,3,"Guru BK/Konselor dapat mendeskripsikan penilaian yang digunakan dalam pelayanan BK yang sesuai dengan kebutuhan peserta didik/konseli.","PRPFESIONAL : Guru BK/Konselor dapat mendeskripsikan penilaian yang digunakan dalam pelayanan BK yang sesuai dengan kebutuhan peserta didik/konseli.","Guru BK/Konselor dapat mendeskripsikan penilaian yang digunakan dalam pelayanan BK yang sesuai dengan kebutuhan peserta didik/konseli.",{"$f":"PKKM_BK!N33","v":0},{"$f":"RANK($F$3:$F$47,$E$3:$F$47)+COUNTIF($F$2:F13,F14)","v":12},null,12,"Guru BK/Konselor dapat menggunakan hasil pelaksanaan evaluasi untuk merevisi dan mengembangkan program pelayanan BK ",0,34]
[null,4,"Guru BK/Konselor dapat memilih jenis penilaian (Instrumen Tugas Perkembangan/ITP, Alat Ungkap Masalah/AUM, Daftar Cek Masalah/DCM, atau instrumen non-tes lainnya) yang sesuai dengan kebutuhan layanan bimbingan dan konseling.","PRPFESIONAL : Guru BK/Konselor dapat memilih jenis penilaian (Instrumen Tugas Perkembangan/ITP, Alat Ungkap Masalah/AUM, Daftar Cek Masalah/DCM, atau instrumen non-tes lainnya) yang sesuai dengan kebutuhan layanan bimbingan dan konseling.","Guru BK/Konselor dapat memilih jenis penilaian (Instrumen Tugas Perkembangan/ITP, Alat Ungkap Masalah/AUM, Daftar Cek Masalah/DCM, atau instrumen non-tes lainnya) yang sesuai dengan kebutuhan layanan bimbingan dan konseling.",{"$f":"PKKM_BK!N34","v":0},{"$f":"RANK($F$3:$F$47,$E$3:$F$47)+COUNTIF($F$2:F14,F15)","v":13},null,13,"Guru BK/Konselor dapat menginformasikan hasil pelaksanaan evaluasi pelayanan BK kepada pihak terkait. ",0,33]
[null,1,"Guru BK/Konselor dapat mengadministrasikan penilaian (merencanakan, melaksanakan, mengolah data) untuk mengungkapkan kemampuan dasar dan  kecenderungan pribadi peserta didik/konseli.","PRPFESIONAL : Guru BK/Konselor dapat mengadministrasikan penilaian (merencanakan, melaksanakan, mengolah data) untuk mengungkapkan kemampuan dasar dan  kecenderungan pribadi peserta didik/konseli.","Guru BK/Konselor dapat mengadministrasikan penilaian (merencanakan, melaksanakan, mengolah data) untuk mengungkapkan kemampuan dasar dan  kecenderungan pribadi peserta didik/konseli.",{"$f":"PKKM_BK!N39","v":0},{"$f":"RANK($F$3:$F$47,$E$3:$F$47)+COUNTIF($F$2:F15,F16)","v":14},null,14," Guru BK/Konselor dapat melakukan penyesuaian  proses pelayanan BK. ",0,32]
[null,2,"Guru BK/Konselor dapat mengadministrasikan teknik  penilaian (data catatan pribadi, kemampuan akademik, hasil evaluasi belajar, dan hasil psikotes) untuk mengungkap   masalah peserta didik/konseli ","PRPFESIONAL : Guru BK/Konselor dapat mengadministrasikan teknik  penilaian (data catatan pribadi, kemampuan akademik, hasil evaluasi belajar, dan hasil psikotes) untuk mengungkap   masalah peserta didik/konseli ","Guru BK/Konselor dapat mengadministrasikan teknik  penilaian (data catatan pribadi, kemampuan akademik, hasil evaluasi belajar, dan hasil psikotes) untuk mengungkap   masalah peserta didik/konseli ",{"$f":"PKKM_BK!N40","v":0},{"$f":"RANK($F$3:$F$47,$E$3:$F$47)+COUNTIF($F$2:F16,F17)","v":15},null,15,"Guru BK/Konselor dapat melakukan evaluasi proses dan hasil program pelayanan BK. ",0,31]
[null,3,"Guru BK/Konselor dapat menampilkan tanggung jawab profesional sesuai dengan azas BK (misalnya kerahasiaan, keterbukaan, kekinian.) dalam praktik penilaian dan penyampaian hasilnya","PRPFESIONAL : Guru BK/Konselor dapat menampilkan tanggung jawab profesional sesuai dengan azas BK (misalnya kerahasiaan, keterbukaan, kekinian.) dalam praktik penilaian dan penyampaian hasilnya","Guru BK/Konselor dapat menampilkan tanggung jawab profesional sesuai dengan azas BK (misalnya kerahasiaan, keterbukaan, kekinian.) dalam praktik penilaian dan penyampaian hasilnya",{"$f":"PKKM_BK!N41","v":0},{"$f":"RANK($F$3:$F$47,$E$3:$F$47)+COUNTIF($F$2:F17,F18)","v":16},null,16,"Guru BK/Konselor dapat mengelola sarana dan biaya penyelenggaraan program pelayanan BK.",0,30]
[12,1,"Guru BK/Konselor dapat mengaplikasikan hakikat pelayanan BK (tujuan, prinsip, azas, fungsi, dan landasan).","PRPFESIONAL : Guru BK/Konselor dapat mengaplikasikan hakikat pelayanan BK (tujuan, prinsip, azas, fungsi, dan landasan).","Guru BK/Konselor dapat mengaplikasikan hakikat pelayanan BK (tujuan, prinsip, azas, fungsi, dan landasan).",{"$f":"PKKM_BK!N39","v":0},{"$f":"RANK($F$3:$F$47,$E$3:$F$47)+COUNTIF($F$2:F18,F19)","v":17},null,17,"Guru BK/Konselor dapat memfasilitasi perkembangan akademik, karier, personal/ pribadi, dan sosial peserta didik/konseli.",0,29]
[null,2,"Guru BK/Konselor dapat menentukankan arah profesi BK (peran sebagai guru BK/konselor).","PRPFESIONAL : Guru BK/Konselor dapat menentukankan arah profesi BK (peran sebagai guru BK/konselor).","Guru BK/Konselor dapat menentukankan arah profesi BK (peran sebagai guru BK/konselor).",{"$f":"PKKM_BK!N40","v":0},{"$f":"RANK($F$3:$F$47,$E$3:$F$47)+COUNTIF($F$2:F19,F20)","v":18},null,18,"Guru BK/Konselor dapat melaksanakan pendekatan kolaboratif dengan pihak terkait dalam pelayanan BK.",0,28]
[null,3,"Guru BK/Konselor dapat mengaplikasikan dasar-dasar pelayanan BK.","PRPFESIONAL : Guru BK/Konselor dapat mengaplikasikan dasar-dasar pelayanan BK.","Guru BK/Konselor dapat mengaplikasikan dasar-dasar pelayanan BK.",{"$f":"PKKM_BK!N41","v":0},{"$f":"RANK($F$3:$F$47,$E$3:$F$47)+COUNTIF($F$2:F20,F21)","v":19},null,19,"Guru BK/Konselor dapat melaksanakan program pelayanan BK. ",0,27]
[null,4,"Guru BK/Konselor dapat mengaplikasikan pelayanan BK sesuai kondisi dan tuntutan wilayah kerja.","PRPFESIONAL : Guru BK/Konselor dapat mengaplikasikan pelayanan BK sesuai kondisi dan tuntutan wilayah kerja.","Guru BK/Konselor dapat mengaplikasikan pelayanan BK sesuai kondisi dan tuntutan wilayah kerja.",{"$f":"PKKM_BK!N42","v":0},{"$f":"RANK($F$3:$F$47,$E$3:$F$47)+COUNTIF($F$2:F21,F22)","v":20},null,20,"Guru BK/Konselor dapat merencanakan sarana dan biaya penyelenggaraan program  pelayanan BK.",0,26]
[null,5,"Guru BK/Konselor dapat mengaplikasikan pendekatan /model/jenis pelayanan dan kegiatan pendukung bimbingan dan konseling. ","PRPFESIONAL : Guru BK/Konselor dapat mengaplikasikan pendekatan /model/jenis pelayanan dan kegiatan pendukung bimbingan dan konseling. ","Guru BK/Konselor dapat mengaplikasikan pendekatan /model/jenis pelayanan dan kegiatan pendukung bimbingan dan konseling. ",{"$f":"PKKM_BK!N47","v":0},{"$f":"RANK($F$3:$F$47,$E$3:$F$47)+COUNTIF($F$2:F22,F23)","v":21},null,21,"Guru BK/Konselor dapat menyusun rencana pelaksanaan program pelayanan BK. ",0,25]
[null,6,"Guru BK/Konselor dapat mengaplikasikan praktik format  pelayanan BK (klasikal, kelompok dan individual)","PRPFESIONAL : Guru BK/Konselor dapat mengaplikasikan praktik format  pelayanan BK (klasikal, kelompok dan individual)","Guru BK/Konselor dapat mengaplikasikan praktik format  pelayanan BK (klasikal, kelompok dan individual)",{"$f":"PKKM_BK!N48","v":0},{"$f":"RANK($F$3:$F$47,$E$3:$F$47)+COUNTIF($F$2:F23,F24)","v":22},null,22,"Guru BK/Konselor dapat menyusun program pelayanan BK yang berkelanjutan berdasar kebutuhan peserta didik/konseli secara komprehensif dengan pendekatan perkembangan. ",0,24]
[13,1,"Guru BK/Konselor dapat menganalisis kebutuhan peserta didik/konseli.","PRPFESIONAL : Guru BK/Konselor dapat menganalisis kebutuhan peserta didik/konseli.","Guru BK/Konselor dapat menganalisis kebutuhan peserta didik/konseli.",{"$f":"PKKM_BK!N49","v":0},{"$f":"RANK($F$3:$F$47,$E$3:$F$47)+COUNTIF($F$2:F24,F25)","v":23},null,23,"Guru BK/Konselor dapat menganalisis kebutuhan peserta didik/konseli.",0,23]
[null,2,"Guru BK/Konselor dapat menyusun program pelayanan BK yang berkelanjutan berdasar kebutuhan peserta didik/konseli secara komprehensif dengan pendekatan perkembangan. ","PRPFESIONAL : Guru BK/Konselor dapat menyusun program pelayanan BK yang berkelanjutan berdasar kebutuhan peserta didik/konseli secara komprehensif dengan pendekatan perkembangan. ","Guru BK/Konselor dapat menyusun program pelayanan BK yang berkelanjutan berdasar kebutuhan peserta didik/konseli secara komprehensif dengan pendekatan perkembangan. ",{"$f":"PKKM_BK!N103","v":0},{"$f":"RANK($F$3:$F$47,$E$3:$F$47)+COUNTIF($F$2:F25,F26)","v":24},null,24,"Guru BK/Konselor dapat mengaplikasikan praktik format  pelayanan BK (klasikal, kelompok dan individual)",0,22]
[null,3,"Guru BK/Konselor dapat menyusun rencana pelaksanaan program pelayanan BK. ","PRPFESIONAL : Guru BK/Konselor dapat menyusun rencana pelaksanaan program pelayanan BK. ","Guru BK/Konselor dapat menyusun rencana pelaksanaan program pelayanan BK. ",{"$f":"PKKM_BK!N104","v":0},{"$f":"RANK($F$3:$F$47,$E$3:$F$47)+COUNTIF($F$2:F26,F27)","v":25},null,25,"Guru BK/Konselor dapat mengaplikasikan pendekatan /model/jenis pelayanan dan kegiatan pendukung bimbingan dan konseling. ",0,21]
[null,4,"Guru BK/Konselor dapat merencanakan sarana dan biaya penyelenggaraan program  pelayanan BK.","PRPFESIONAL : Guru BK/Konselor dapat merencanakan sarana dan biaya penyelenggaraan program  pelayanan BK.","Guru BK/Konselor dapat merencanakan sarana dan biaya penyelenggaraan program  pelayanan BK.",{"$f":"PKKM_BK!N105","v":0},{"$f":"RANK($F$3:$F$47,$E$3:$F$47)+COUNTIF($F$2:F27,F28)","v":26},null,26,"Guru BK/Konselor dapat mengaplikasikan pelayanan BK sesuai kondisi dan tuntutan wilayah kerja.",0,20]
[14,1,"Guru BK/Konselor dapat melaksanakan program pelayanan BK. ","PRPFESIONAL : Guru BK/Konselor dapat melaksanakan program pelayanan BK. ","Guru BK/Konselor dapat melaksanakan program pelayanan BK. ",{"$f":"PKKM_BK!N106","v":0},{"$f":"RANK($F$3:$F$47,$E$3:$F$47)+COUNTIF($F$2:F28,F29)","v":27},null,27,"Guru BK/Konselor dapat mengaplikasikan dasar-dasar pelayanan BK.",0,19]
[null,2,"Guru BK/Konselor dapat melaksanakan pendekatan kolaboratif dengan pihak terkait dalam pelayanan BK.","PRPFESIONAL : Guru BK/Konselor dapat melaksanakan pendekatan kolaboratif dengan pihak terkait dalam pelayanan BK.","Guru BK/Konselor dapat melaksanakan pendekatan kolaboratif dengan pihak terkait dalam pelayanan BK.",{"$f":"PKKM_BK!N111","v":0},{"$f":"RANK($F$3:$F$47,$E$3:$F$47)+COUNTIF($F$2:F29,F30)","v":28},null,28,"Guru BK/Konselor dapat menentukankan arah profesi BK (peran sebagai guru BK/konselor).",0,18]
[null,3,"Guru BK/Konselor dapat memfasilitasi perkembangan akademik, karier, personal/ pribadi, dan sosial peserta didik/konseli.","PRPFESIONAL : Guru BK/Konselor dapat memfasilitasi perkembangan akademik, karier, personal/ pribadi, dan sosial peserta didik/konseli.","Guru BK/Konselor dapat memfasilitasi perkembangan akademik, karier, personal/ pribadi, dan sosial peserta didik/konseli.",{"$f":"PKKM_BK!N112","v":0},{"$f":"RANK($F$3:$F$47,$E$3:$F$47)+COUNTIF($F$2:F30,F31)","v":29},null,29,"Guru BK/Konselor dapat mengaplikasikan hakikat pelayanan BK (tujuan, prinsip, azas, fungsi, dan landasan).",0,17]
[null,4,"Guru BK/Konselor dapat mengelola sarana dan biaya penyelenggaraan program pelayanan BK.","PRPFESIONAL : Guru BK/Konselor dapat mengelola sarana dan biaya penyelenggaraan program pelayanan BK.","Guru BK/Konselor dapat mengelola sarana dan biaya penyelenggaraan program pelayanan BK.",{"$f":"PKKM_BK!N113","v":0},{"$f":"RANK($F$3:$F$47,$E$3:$F$47)+COUNTIF($F$2:F31,F32)","v":30},null,30,"Guru BK/Konselor dapat menampilkan tanggung jawab profesional sesuai dengan azas BK (misalnya kerahasiaan, keterbukaan, kekinian.) dalam praktik penilaian dan penyampaian hasilnya",0,16]
[15,1,"Guru BK/Konselor dapat melakukan evaluasi proses dan hasil program pelayanan BK. ","PRPFESIONAL : Guru BK/Konselor dapat melakukan evaluasi proses dan hasil program pelayanan BK. ","Guru BK/Konselor dapat melakukan evaluasi proses dan hasil program pelayanan BK. ",{"$f":"PKKM_BK!N114","v":0},{"$f":"RANK($F$3:$F$47,$E$3:$F$47)+COUNTIF($F$2:F32,F33)","v":31},null,31,"Guru BK/Konselor dapat mengadministrasikan teknik  penilaian (data catatan pribadi, kemampuan akademik, hasil evaluasi belajar, dan hasil psikotes) untuk mengungkap   masalah peserta didik/konseli ",0,15]
[null,2," Guru BK/Konselor dapat melakukan penyesuaian  proses pelayanan BK. ","PRPFESIONAL :  Guru BK/Konselor dapat melakukan penyesuaian  proses pelayanan BK. "," Guru BK/Konselor dapat melakukan penyesuaian  proses pelayanan BK. ",{"$f":"PKKM_BK!N119","v":0},{"$f":"RANK($F$3:$F$47,$E$3:$F$47)+COUNTIF($F$2:F33,F34)","v":32},null,32,"Guru BK/Konselor dapat mengadministrasikan penilaian (merencanakan, melaksanakan, mengolah data) untuk mengungkapkan kemampuan dasar dan  kecenderungan pribadi peserta didik/konseli.",0,14]
[null,3,"Guru BK/Konselor dapat menginformasikan hasil pelaksanaan evaluasi pelayanan BK kepada pihak terkait. ","PRPFESIONAL : Guru BK/Konselor dapat menginformasikan hasil pelaksanaan evaluasi pelayanan BK kepada pihak terkait. ","Guru BK/Konselor dapat menginformasikan hasil pelaksanaan evaluasi pelayanan BK kepada pihak terkait. ",{"$f":"PKKM_BK!N120","v":0},{"$f":"RANK($F$3:$F$47,$E$3:$F$47)+COUNTIF($F$2:F34,F35)","v":33},null,33,"Guru BK/Konselor dapat memilih jenis penilaian (Instrumen Tugas Perkembangan/ITP, Alat Ungkap Masalah/AUM, Daftar Cek Masalah/DCM, atau instrumen non-tes lainnya) yang sesuai dengan kebutuhan layanan bimbingan dan konseling.",0,13]
[null,4,"Guru BK/Konselor dapat menggunakan hasil pelaksanaan evaluasi untuk merevisi dan mengembangkan program pelayanan BK ","PRPFESIONAL : Guru BK/Konselor dapat menggunakan hasil pelaksanaan evaluasi untuk merevisi dan mengembangkan program pelayanan BK ","Guru BK/Konselor dapat menggunakan hasil pelaksanaan evaluasi untuk merevisi dan mengembangkan program pelayanan BK ",{"$f":"PKKM_BK!N121","v":0},{"$f":"RANK($F$3:$F$47,$E$3:$F$47)+COUNTIF($F$2:F35,F36)","v":34},null,34,"Guru BK/Konselor dapat mendeskripsikan penilaian yang digunakan dalam pelayanan BK yang sesuai dengan kebutuhan peserta didik/konseli.",0,12]
[16,1,"Guru BK/Konselor dapat memberdayakan kekuatan pribadi, dan keprofesionalan guru BK/konselor.","PRPFESIONAL : Guru BK/Konselor dapat memberdayakan kekuatan pribadi, dan keprofesionalan guru BK/konselor.","Guru BK/Konselor dapat memberdayakan kekuatan pribadi, dan keprofesionalan guru BK/konselor.",{"$f":"PKKM_BK!N122","v":0},{"$f":"RANK($F$3:$F$47,$E$3:$F$47)+COUNTIF($F$2:F36,F37)","v":35},null,35,"Guru BK/Konselor dapat mengaplikasikan instrumen non-tes untuk mengungkapkan kondisi aktual peserta didik/konseli berkaitan dengan lingkungan.",0,11]
[null,2,"Guru BK/Konselor dapat meminimalisir  keterbatasan pribadi dan faktor pendukung pelaksanaan pelayanan BK","PRPFESIONAL : Guru BK/Konselor dapat meminimalisir  keterbatasan pribadi dan faktor pendukung pelaksanaan pelayanan BK","Guru BK/Konselor dapat meminimalisir  keterbatasan pribadi dan faktor pendukung pelaksanaan pelayanan BK",{"$f":"PKKM_BK!N127","v":0},{"$f":"RANK($F$3:$F$47,$E$3:$F$47)+COUNTIF($F$2:F37,F38)","v":36},null,36,"Guru BK/Konselor dapat mengembangkan instrumen non-tes (pedoman wawancara, angket, inventori, dll) untuk keperluan pelayanan BK.",0,10]
[null,3,"Guru BK/Konselor dapat menyelenggarakan pelayanan BK sesuai dengan kewenangan dan kode etik profesional guru BK/konselor. ","PRPFESIONAL : Guru BK/Konselor dapat menyelenggarakan pelayanan BK sesuai dengan kewenangan dan kode etik profesional guru BK/konselor. ","Guru BK/Konselor dapat menyelenggarakan pelayanan BK sesuai dengan kewenangan dan kode etik profesional guru BK/konselor. ",{"$f":"PKKM_BK!N128","v":0},{"$f":"RANK($F$3:$F$47,$E$3:$F$47)+COUNTIF($F$2:F38,F39)","v":37},null,37," Layanan BK yang diprogramkan oleh guru BK/ Konselor telah memenuhi esensi layanan pada jenjang Ibtidaiyah, Tsanawiyah, dan Aliyah",0,9]
[null,4,"Guru BK/Konselor dapat mempertahankan objektivitas dan menjaga agar tidak larut dengan masalah peserta didik/konseli. ","PRPFESIONAL : Guru BK/Konselor dapat mempertahankan objektivitas dan menjaga agar tidak larut dengan masalah peserta didik/konseli. ","Guru BK/Konselor dapat mempertahankan objektivitas dan menjaga agar tidak larut dengan masalah peserta didik/konseli. ",{"$f":"PKKM_BK!N129","v":0},{"$f":"RANK($F$3:$F$47,$E$3:$F$47)+COUNTIF($F$2:F39,F40)","v":38},null,38,"Layanan BK yang diprogramkan oleh guru BK/ Konselor telah memenuhi esensi layanan pada jenis satuan pendidikan umum, kejuruan, keagamaan, dan kekhususan",0,8]
[null,5,"Guru BK/Konselor dapat melaksanakan layanan pendukung sesuai kebutuhan peserta didik/konseli (misalnya alih tangan kasus, kunjungan rumah, konferensi kasus, instrumen bimbingan, himpunan data). ","PRPFESIONAL : Guru BK/Konselor dapat melaksanakan layanan pendukung sesuai kebutuhan peserta didik/konseli (misalnya alih tangan kasus, kunjungan rumah, konferensi kasus, instrumen bimbingan, himpunan data). ","Guru BK/Konselor dapat melaksanakan layanan pendukung sesuai kebutuhan peserta didik/konseli (misalnya alih tangan kasus, kunjungan rumah, konferensi kasus, instrumen bimbingan, himpunan data). ",{"$f":"PKKM_BK!N130","v":0},{"$f":"RANK($F$3:$F$47,$E$3:$F$47)+COUNTIF($F$2:F40,F41)","v":39},null,39,"Layanan BK yang diprogramkan oleh guru BK/ Konselor telah memenuhi esensi layanan pada jalur satuan pendidikan formal, nonformal dan informal.",0,7]
[null,6,"Guru BK/Konselor dapat menghargai identitas profesional dan pengembangan profesi.","PRPFESIONAL : Guru BK/Konselor dapat menghargai identitas profesional dan pengembangan profesi.","Guru BK/Konselor dapat menghargai identitas profesional dan pengembangan profesi.",{"$f":"PKKM_BK!N131","v":0},{"$f":"RANK($F$3:$F$47,$E$3:$F$47)+COUNTIF($F$2:F41,F42)","v":40},null,40,"Peserta didik/konseli diberi kesempatan dalam memperoleh layanan BK sesuai dengan harapan untuk melanjutkan pendidikan dan pilihan karier.",0,6]
[null,7,"Guru BK/Konselor dapat mendahulukan kepentingan peserta didik/konseli daripada kepentingan pribadi guru BK/konselor.","PRPFESIONAL : Guru BK/Konselor dapat mendahulukan kepentingan peserta didik/konseli daripada kepentingan pribadi guru BK/konselor.","Guru BK/Konselor dapat mendahulukan kepentingan peserta didik/konseli daripada kepentingan pribadi guru BK/konselor.",{"$f":"PKKM_BK!N132","v":0},{"$f":"RANK($F$3:$F$47,$E$3:$F$47)+COUNTIF($F$2:F42,F43)","v":41},null,41,"Peserta didik/konseli diberi kesempatan dalam memperoleh layanan BK sesuai dengan kebutuhan bakat, minat, dan potensi pribadi.",0,5]
[17,1,"Guru BK/Konselor dapat mendeskripsikan jenis dan metode penelitian dalam BK.","PRPFESIONAL : Guru BK/Konselor dapat mendeskripsikan jenis dan metode penelitian dalam BK.","Guru BK/Konselor dapat mendeskripsikan jenis dan metode penelitian dalam BK.",{"$f":"PKKM_BK!N133","v":0},{"$f":"RANK($F$3:$F$47,$E$3:$F$47)+COUNTIF($F$2:F43,F44)","v":42},null,42,"Peserta didik/konseli diberi kesempatan dalam memperoleh layanan BK sesuai dengan jalur satuan pendidikan formal di lingkup kementerian agama",0,4]
[null,2,"Guru BK/Konselor mampu merancang penelitian dalam BK.","PRPFESIONAL : Guru BK/Konselor mampu merancang penelitian dalam BK.","Guru BK/Konselor mampu merancang penelitian dalam BK.",{"$f":"PKKM_BK!N138","v":0},{"$f":"RANK($F$3:$F$47,$E$3:$F$47)+COUNTIF($F$2:F44,F45)","v":43},null,43,"Guru BK/Konselor dapat menunjukkan dalam perencanaan layanan BK, sesuai dengan keragaman latar belakang budaya, ekonomi, dan sosial peserta didik/konseli.",0,3]
[null,3,"Guru BK/Konselor dapat melaksanakan penelitian dalam BK.","PRPFESIONAL : Guru BK/Konselor dapat melaksanakan penelitian dalam BK.","Guru BK/Konselor dapat melaksanakan penelitian dalam BK.",{"$f":"PKKM_BK!N139","v":0},{"$f":"RANK($F$3:$F$47,$E$3:$F$47)+COUNTIF($F$2:F45,F46)","v":44},null,44,"Guru BK/Konselor dapat menunjukkan dalam perencanaan layanan BK, sesuai dengan usia, tahap perkembangan, dan kebutuhan peserta didik/ konseli.",0,2]
[null,4,"Guru BK/Konselor dapat memanfaatkan hasil penelitian dalam BK dengan mengakses jurnal yang relevan.","PRPFESIONAL : Guru BK/Konselor dapat memanfaatkan hasil penelitian dalam BK dengan mengakses jurnal yang relevan.","Guru BK/Konselor dapat memanfaatkan hasil penelitian dalam BK dengan mengakses jurnal yang relevan.",{"$f":"PKKM_BK!N140","v":0},{"$f":"RANK($F$3:$F$47,$E$3:$F$47)+COUNTIF($F$2:F46,F47)","v":45},null,45,"Guru BK/Konselor dapat menunjukkan dalam perencanaan layanan BK, sesuai dengan landasan dan prinsip-prinsip pendidikan serta pembelajaran yang aktif, kreatif, mandiri, dan berpusat pada peserta didik/konseli.",0,1]

{"sheet":"PROSES PKB GBK","index":26,"n_rows":19,"n_cols":4,"rows_kept":19,"hidden":true,"merged":[[0,0,0,3]]}
["REKAP HASIL PENILAIAN KINERJA GURU BIMBINGAN KONSELING (BK)"]
["NO",null,"KOMPETENSI","NILAI"]
[1,"Pedagogik","Menguasai teori dan praksis pendidikan",{"$f":"IF(#REF!<=25,1,IF(#REF!<=50,2,IF(#REF!<=75,3,IF(#REF!<=100,4,\"\"))))","v":{"$error":"#REF!"}}]
[2,"Pedagogik","Mengaplikasikan perkembangan fisiologis dan psikologis serta perilaku konseli",{"$f":"IF(#REF!<=25,1,IF(#REF!<=50,2,IF(#REF!<=75,3,IF(#REF!<=100,4,\"\"))))","v":{"$error":"#REF!"}}]
[3,"Pedagogik","Menguasai esensi layanan BK dalam jalur, jenis, dan jenjang satuan pendidikan",{"$f":"IF(#REF!<=25,1,IF(#REF!<=50,2,IF(#REF!<=75,3,IF(#REF!<=100,4,\"\"))))","v":{"$error":"#REF!"}}]
[4,"Pedagogik","Beriman dan bertakwa kepada Tuhan Yang Maha Esa",{"$f":"IF(#REF!<=25,1,IF(#REF!<=50,2,IF(#REF!<=75,3,IF(#REF!<=100,4,\"\"))))","v":{"$error":"#REF!"}}]
[5,"Pedagogik","Menghargai dan menjunjung tinggi nilai-nilai kemanusiaan, individualitas dan kebebasan memilih",{"$f":"IF(#REF!<=25,1,IF(#REF!<=50,2,IF(#REF!<=75,3,IF(#REF!<=100,4,\"\"))))","v":{"$error":"#REF!"}}]
[6,"Pedagogik","Menunjukkan integritas dan stabilitas kepribadian yang kuat",{"$f":"IF(#REF!<=25,1,IF(#REF!<=50,2,IF(#REF!<=75,3,IF(#REF!<=100,4,\"\"))))","v":{"$error":"#REF!"}}]
[7,"Pedagogik","Menampilkan kinerja berkualitas tinggi",{"$f":"IF(#REF!<=25,1,IF(#REF!<=50,2,IF(#REF!<=75,3,IF(#REF!<=100,4,\"\"))))","v":{"$error":"#REF!"}}]
[8,"Kepribadian","Mengimplementasikan kolaborasi internal di tempat bekerja",{"$f":"IF(#REF!<=25,1,IF(#REF!<=50,2,IF(#REF!<=75,3,IF(#REF!<=100,4,\"\"))))","v":{"$error":"#REF!"}}]
[9,"Kepribadian","Berperan dalam organisasi dan kegiatan profesi BK",{"$f":"IF(#REF!<=25,1,IF(#REF!<=50,2,IF(#REF!<=75,3,IF(#REF!<=100,4,\"\"))))","v":{"$error":"#REF!"}}]
[10,"Kepribadian","Mengimplementasikan kolaborasi antarprofesi",{"$f":"IF(#REF!<=25,1,IF(#REF!<=50,2,IF(#REF!<=75,3,IF(#REF!<=100,4,\"\"))))","v":{"$error":"#REF!"}}]
[11,"Sosial","Menguasai konsep dan praksis penilaian (assessment) untuk memahami kondisi, kebutuhan, dan masalah konseli",{"$f":"IF(#REF!<=25,1,IF(#REF!<=50,2,IF(#REF!<=75,3,IF(#REF!<=100,4,\"\"))))","v":{"$error":"#REF!"}}]
[12,"Sosial","Menguasai kerangka teoretik dan praksis BK",{"$f":"IF(#REF!<=25,1,IF(#REF!<=50,2,IF(#REF!<=75,3,IF(#REF!<=100,4,\"\"))))","v":{"$error":"#REF!"}}]
[13,"Profesional","Merancang program BK",{"$f":"IF(#REF!<=25,1,IF(#REF!<=50,2,IF(#REF!<=75,3,IF(#REF!<=100,4,\"\"))))","v":{"$error":"#REF!"}}]
[14,"Profesional","Mengimplementasikan program BK yang komprehensif",{"$f":"IF(#REF!<=25,1,IF(#REF!<=50,2,IF(#REF!<=75,3,IF(#REF!<=100,4,\"\"))))","v":{"$error":"#REF!"}}]
[15,"Profesional","Menilai proses dan hasil kegiatan BK",{"$f":"IF(#REF!<=25,1,IF(#REF!<=50,2,IF(#REF!<=75,3,IF(#REF!<=100,4,\"\"))))","v":{"$error":"#REF!"}}]
[16,"Profesional","Memiliki kesadaran dan komitmen terhadap etika profesional",{"$f":"IF(#REF!<=25,1,IF(#REF!<=50,2,IF(#REF!<=75,3,IF(#REF!<=100,4,\"\"))))","v":{"$error":"#REF!"}}]
[17,"Profesional","Menguasai konsep dan praksis penelitian dalam BK",{"$f":"IF(#REF!<=25,1,IF(#REF!<=50,2,IF(#REF!<=75,3,IF(#REF!<=100,4,\"\"))))","v":{"$error":"#REF!"}}]

{"sheet":"INDIKATOR GTIK","index":27,"n_rows":58,"n_cols":12,"rows_kept":58}
[]
["NO","KOMPETENSI","INDIKATOR","INDIKATOR KOMPETENSI","NILAI","RANK",null,"NO","INDIKATOR KOMPETENSI","NILAI","RANK"]
["1.1","Mengenal karakteristik peserta didik",{"$f":"\"PEDAGOGIK)\"&\" : \"&A3&\". \"&D3","v":"PEDAGOGIK) : 1.1. Guru TIK dapat mengidentifikasi karakteristik belajar setiap peserta didik yang dibimbingnya."},"Guru TIK dapat mengidentifikasi karakteristik belajar setiap peserta didik yang dibimbingnya.",{"$f":"'PKKM-GTIK'!N10","v":0},{"$f":"RANK($E$3:$E$52,$D$3:$E$52)+COUNTIF($E$2:E2,E3)","v":1},null,1,{"$f":"INDEX($D$3:$F$52,MATCH(LARGE($F$3:$F$52,ROW()-2),$F$3:$F$52,0),1)","v":"Guru TIK aktif meningkatkan dan mengembangkan kompetensinya melalui berbagai kegiatan Pengembangan Keprofesian Berkelanjutan."},{"$f":"INDEX($D$3:$F$52,MATCH(LARGE($F$3:$F$52,ROW()-2),$F$3:$F$52,0),2)","v":0},{"$f":"INDEX($D$3:$F$52,MATCH(LARGE($F$3:$F$52,ROW()-2),$F$3:$F$52,0),3)","v":48},1]
["1.2","Mengenal karakteristik peserta didik",{"$f":"\"PEDAGOGIK)\"&\" : \"&A4&\". \"&D4","v":"PEDAGOGIK) : 1.2. Guru TIK dapat mengelola kelas agar semua Siswa mendapatkan kesempatan yang sama untuk berpartisipasi aktif dalam kegiatan bimbingan TIK."},"Guru TIK dapat mengelola kelas agar semua Siswa mendapatkan kesempatan yang sama untuk berpartisipasi aktif dalam kegiatan bimbingan TIK.",{"$f":"'PKKM-GTIK'!N11","v":0},{"$f":"RANK($E$3:$E$52,$D$3:$E$52)+COUNTIF($E$2:E3,E4)","v":2},null,2,"Guru TIK mengaplikasikan pengalaman PKB dalam perencanaan, pelaksanaan, penilaian pembimbingan dan fasilitasi, dan tindak lanjutnya.",0,47,2]
["1.3","Mengenal karakteristik peserta didik","PEDAGOGIK) : 1.3. Guru TIK membantu mengembangkan potensi dan mengatasi kekurangan peserta didik","Guru TIK membantu mengembangkan potensi dan mengatasi kekurangan peserta didik",{"$f":"'PKKM-GTIK'!N12","v":0},{"$f":"RANK($E$3:$E$52,$D$3:$E$52)+COUNTIF($E$2:E4,E5)","v":3},null,3,"Guru TI K memanfaatkan hasil penilaian kinerjanya sebagai dasar untuk merencanakan peningkatan mutu proses pembimbingan dan fasilitasi TIK terhadap peserta didik, guru dan tenaga kependidikan.",0,46,3]
["1.4","Mengenal karakteristik peserta didik","PEDAGOGIK) : 1.4. Guru TIK memperhatikan peserta didik agar dapat mengikuti aktivitas bimbingan, sehingga peserta didik tersebut tidak termarginalkan (tersisihkan/diolok-olok/ minder).","Guru TIK memperhatikan peserta didik agar dapat mengikuti aktivitas bimbingan, sehingga peserta didik tersebut tidak termarginalkan (tersisihkan/diolok-olok/ minder).",{"$f":"'PKKM-GTIK'!N13","v":0},{"$f":"RANK($E$3:$E$52,$D$3:$E$52)+COUNTIF($E$2:E5,E6)","v":4},null,4,"Guru TIK memiliki Catatan Pelaksanaan Fasilitasi bagi guru lain dan tenaga kependidikan.",0,45,4]
["1.5","Mengenal karakteristik peserta didik","PEDAGOGIK) : 1.5. Guru TIK dapat mengidentifikasi karakteristik belajar setiap peserta didik yang dibimbingnya.","Guru TIK dapat mengidentifikasi karakteristik belajar setiap peserta didik yang dibimbingnya.",{"$f":"'PKKM-GTIK'!N14","v":0},{"$f":"RANK($E$3:$E$52,$D$3:$E$52)+COUNTIF($E$2:E6,E7)","v":5},null,5,"Guru T IK memiliki Catatan Pelaksanaan Pembimbingan TIK bagi peserta didik.",0,44,5]
["2.1","Merancang Program Guru TIK","PEDAGOGIK) : 2.1. Guru TIK merancang program bimbingan TIK (analisis kebutuhan, program tahunan, program semester, silabus, dan rencana pelaksanaan bimbingan TIK, rancangan evaluasi)","Guru TIK merancang program bimbingan TIK (analisis kebutuhan, program tahunan, program semester, silabus, dan rencana pelaksanaan bimbingan TIK, rancangan evaluasi)",{"$f":"'PKKM-GTIK'!N19","v":0},{"$f":"RANK($E$3:$E$52,$D$3:$E$52)+COUNTIF($E$2:E7,E8)","v":6},null,6,"Guru TIK melakukan evaluasi diri di awal tahun pelajaran.",0,43]
["2.2","Merancang Program Guru TIK","PEDAGOGIK) : 2.2. Guru TIK merancang program fasilitasi TIK untuk guru (analisis kebutuhan guru, penjadwalan, bentuk kegiatan)","Guru TIK merancang program fasilitasi TIK untuk guru (analisis kebutuhan guru, penjadwalan, bentuk kegiatan)",{"$f":"'PKKM-GTIK'!N20","v":0},{"$f":"RANK($E$3:$E$52,$D$3:$E$52)+COUNTIF($E$2:E8,E9)","v":7},null,7,"Guru TIK menyusun program tindak lanjut berdasarkan hasil evaluasi",0,42]
["2.3","Merancang Program Guru TIK","PEDAGOGIK) : 2.3. Guru TIK merancang program fasilitasi TIK untuk tenaga kependidikan (analisis kebutuhan guru, penjadwalan, bentuk kegiatan)","Guru TIK merancang program fasilitasi TIK untuk tenaga kependidikan (analisis kebutuhan guru, penjadwalan, bentuk kegiatan)",{"$f":"'PKKM-GTIK'!N21","v":0},{"$f":"RANK($E$3:$E$52,$D$3:$E$52)+COUNTIF($E$2:E9,E10)","v":8},null,8,"Guru TIK melakukan evaluasi dan membuat laporan kegiatan fasilitasi tenaga kependidikan",0,41]
["2.4","Merancang Program Guru TIK","PEDAGOGIK) : 2.4. Guru TIK merancang program fasilitasi TIK untuk Madrasah mengenai pembelajaran, penilaian, dan Ujian Berbasis Komputer dalam Jaringan","Guru TIK merancang program fasilitasi TIK untuk Madrasah mengenai pembelajaran, penilaian, dan Ujian Berbasis Komputer dalam Jaringan",{"$f":"'PKKM-GTIK'!N22","v":0},{"$f":"RANK($E$3:$E$52,$D$3:$E$52)+COUNTIF($E$2:E10,E11)","v":9},null,9,"Guru TIK melakukan evaluasi dan membuat laporan kegiatan fasilitasi TIK bagi guru lain",0,40]
["3.1","Melaksanakan Kegiatan Pembimbingan TIK","PEDAGOGIK) : 3.1. Guru TIK melaksanakan pembimbingan dengan menyenangkan peserta didik","Guru TIK melaksanakan pembimbingan dengan menyenangkan peserta didik",{"$f":"'PKKM-GTIK'!N27","v":0},{"$f":"RANK($E$3:$E$52,$D$3:$E$52)+COUNTIF($E$2:E11,E12)","v":10},null,10,"Guru TIK melakukan evaluasi dan membuat laporan kegiatan pembimbingan TIK bagi peserta didik.",0,39]
["3.2","Melaksanakan Kegiatan Pembimbingan TIK","PEDAGOGIK) : 3.2. Guru TIK melaksanakan pembimbingan yang menantang keingintahuan peserta didik.","Guru TIK melaksanakan pembimbingan yang menantang keingintahuan peserta didik.",{"$f":"'PKKM-GTIK'!N28","v":0},{"$f":"RANK($E$3:$E$52,$D$3:$E$52)+COUNTIF($E$2:E12,E13)","v":11},null,11,"Guru TIK mengecek tingkat penguasaan materi oleh peserta fasilitasi sebelum melanjutkan ke pokok materi berikutnya.",0,38]
["3.3","Melaksanakan Kegiatan Pembimbingan TIK","PEDAGOGIK) : 3.3. Guru TIK melaksanakan pembimbingan TIK secara klasikal/kelompok atau individu.","Guru TIK melaksanakan pembimbingan TIK secara klasikal/kelompok atau individu.",{"$f":"'PKKM-GTIK'!N29","v":0},{"$f":"RANK($E$3:$E$52,$D$3:$E$52)+COUNTIF($E$2:E13,E14)","v":12},null,12,"Guru TIK melaksanakan fasilitasi secara individu atau kelompok",0,37]
["3.4","Melaksanakan Kegiatan Pembimbingan TIK","PEDAGOGIK) : 3.4. Guru TIK mengecek kemajuan pemahaman dan keterampilan peserta didik terhadap materi pembimbingan TIK sebelum melanjutkan ke tahap/topik berikutnya.","Guru TIK mengecek kemajuan pemahaman dan keterampilan peserta didik terhadap materi pembimbingan TIK sebelum melanjutkan ke tahap/topik berikutnya.",{"$f":"'PKKM-GTIK'!N30","v":0},{"$f":"RANK($E$3:$E$52,$D$3:$E$52)+COUNTIF($E$2:E14,E15)","v":13},null,13,"Guru TIK menggunakan pendekatan pembelajaran orang dewasa selama proses fasilitasi",0,36]
["3.5","Melaksanakan Kegiatan Pembimbingan TIK","PEDAGOGIK) : 3.5. Guru TIK melaksanakan pembimbingan untuk mencari, mengolah, menyimpan, menyajikan, serta menyebarkan data dan informasi dalam berbagai cara untuk mendukung kelancaran proses belajar Siswa.","Guru TIK melaksanakan pembimbingan untuk mencari, mengolah, menyimpan, menyajikan, serta menyebarkan data dan informasi dalam berbagai cara untuk mendukung kelancaran proses belajar Siswa.",{"$f":"'PKKM-GTIK'!N31","v":0},{"$f":"RANK($E$3:$E$52,$D$3:$E$52)+COUNTIF($E$2:E15,E16)","v":14},null,14,"Guru TIK menggunakan kegiatan belajar yang bervariasi selama proses fasilitasi",0,35]
["3.6","Melaksanakan Kegiatan Pembimbingan TIK","PEDAGOGIK) : 3.6. Guru TIK memperhatikan setiap pertanyaan /jawaban peserta didik serta mengarahkannya untuk memaksimalkan pemahaman materi bimbingan.","Guru TIK memperhatikan setiap pertanyaan /jawaban peserta didik serta mengarahkannya untuk memaksimalkan pemahaman materi bimbingan.",{"$f":"'PKKM-GTIK'!N32","v":0},{"$f":"RANK($E$3:$E$52,$D$3:$E$52)+COUNTIF($E$2:E16,E17)","v":15},null,15,"Guru TIK memberikan fasilitasi sesuai dengan sistematika keilmuan (konkret ke abstrak, sederhana ke kompleks, mudah ke sulit).",0,34]
["3.7","Melaksanakan Kegiatan Pembimbingan TIK","PEDAGOGIK) : 3.7. Guru TIK melaksanakan penilaian proses dan/atau penilaian hasil pembimbingan TIK.","Guru TIK melaksanakan penilaian proses dan/atau penilaian hasil pembimbingan TIK.",{"$f":"'PKKM-GTIK'!N33","v":0},{"$f":"RANK($E$3:$E$52,$D$3:$E$52)+COUNTIF($E$2:E17,E18)","v":16},null,16,"Guru TIK menyajikan materi TIK yang memenuhi kebutuhan guru lainnya dalam perencanaan pembelajaran, dalam penggunaan media pembelajaran dan sumber belajar, atau pengelolaan data dan laporan penilaian berbasis TIK.",0,33]
["8.1","Menguasai konsep, kompetensi, materi TIK, dan pembimbingan TIK.","PEDAGOGIK) : 8.1. Guru TIK melakukan analisis/pemetaan kompetensi TIK untuk mengidentifikasi materi TIK sesuai kebutuhan peserta didik","Guru TIK melakukan analisis/pemetaan kompetensi TIK untuk mengidentifikasi materi TIK sesuai kebutuhan peserta didik",{"$f":"'PKKM-GTIK'!N72","v":0},{"$f":"RANK($E$3:$E$52,$D$3:$E$52)+COUNTIF($E$2:E18,E19)","v":17},null,17,"Guru TIK melaksanakan fasilitasi terhadap guru sesuai dengan kebutuhan atau tujuan fasilitasi yang direncanakan.",0,32]
["8.2","Menguasai konsep, kompetensi, materi TIK, dan pembimbingan TIK.","PEDAGOGIK) : 8.2. Guru mengembangkan kerjasama dan membina kebersamaan dengan teman sejawat tanpa memperhatikan perbedaan yang ada (misalnya: suku, agama, dan gender).","Guru mengembangkan kerjasama dan membina kebersamaan dengan teman sejawat tanpa memperhatikan perbedaan yang ada (misalnya: suku, agama, dan gender).",{"$f":"'PKKM-GTIK'!N73","v":0},{"$f":"RANK($E$3:$E$52,$D$3:$E$52)+COUNTIF($E$2:E19,E20)","v":18},null,18,"Guru TIK mengecek tingkat penguasaan materi oleh peserta fasilitasi sebelum melanjutkan ke pokok materi berikutnya",0,31]
["8.3","Menguasai konsep, kompetensi, materi TIK, dan pembimbingan TIK.","PEDAGOGIK) : 8.3. Guru TIK memberikan materi bimbingan sesuai dengan sistematika keilmuan yang benar (konkret ke abstrak, sederhana ke kompleks, mudah ke sulit).","Guru TIK memberikan materi bimbingan sesuai dengan sistematika keilmuan yang benar (konkret ke abstrak, sederhana ke kompleks, mudah ke sulit).",{"$f":"'PKKM-GTIK'!N74","v":0},{"$f":"RANK($E$3:$E$52,$D$3:$E$52)+COUNTIF($E$2:E20,E21)","v":19},null,19,"Guru TIK melaksanakan fasilitasi secara individu atau kelompok",0,30]
["8.4","Menguasai konsep, kompetensi, materi TIK, dan pembimbingan TIK.","PEDAGOGIK) : 8.4. Guru TIK mengembangkan dan menyajikan materi pembimbingan untuk mencari, mengolah, menyimpan, menyajikan, serta menyebarkan data dan informasi dalam berbagai cara untuk mendukung kelancaran proses belajar peserta didik.","Guru TIK mengembangkan dan menyajikan materi pembimbingan untuk mencari, mengolah, menyimpan, menyajikan, serta menyebarkan data dan informasi dalam berbagai cara untuk mendukung kelancaran proses belajar peserta didik.",{"$f":"'PKKM-GTIK'!N75","v":0},{"$f":"RANK($E$3:$E$52,$D$3:$E$52)+COUNTIF($E$2:E21,E22)","v":20},null,20,"Guru TIK menggunakan pendekatan pembelajaran orang dewasa selama proses fasilitasi.",0,29]
["8.5","Menguasai konsep, kompetensi, materi TIK, dan pembimbingan TIK.","PEDAGOGIK) : 8.5. Guru TIK menjawab atau merespons pertanyaan secara tepat dan benar sesuai dengan konsep keilmuan TIK","Guru TIK menjawab atau merespons pertanyaan secara tepat dan benar sesuai dengan konsep keilmuan TIK",{"$f":"'PKKM-GTIK'!N76","v":0},{"$f":"RANK($E$3:$E$52,$D$3:$E$52)+COUNTIF($E$2:E22,E23)","v":21},null,21,"Guru TIK menggunakan kegiatan belajar yang bervariasi selama proses fasilitasi.",0,28]
["8.6","Menguasai konsep, kompetensi, materi TIK, dan pembimbingan TIK.","PEDAGOGIK) : 8.6. Guru TIK mengaitkan materi bimbingan TIK dengan lingkungan dan kehidupan sehari-hari peserta didik serta kecakapan abad 21.","Guru TIK mengaitkan materi bimbingan TIK dengan lingkungan dan kehidupan sehari-hari peserta didik serta kecakapan abad 21.",{"$f":"'PKKM-GTIK'!N77","v":0},{"$f":"RANK($E$3:$E$52,$D$3:$E$52)+COUNTIF($E$2:E23,E24)","v":22},null,22,"Guru TIK memberikan fasilitasi sesuai dengan sistematika keilmuan (konkret ke abstrak, sederhana ke kompleks, mudah ke sulit).",0,27]
["8.7","Menguasai konsep, kompetensi, materi TIK, dan pembimbingan TIK.","PEDAGOGIK) : 8.7. Guru TIK menyertakan informasi yang tepat dan mutakhir di dalam perencanaan dan pelaksanaan bimbingan TIK.","Guru TIK menyertakan informasi yang tepat dan mutakhir di dalam perencanaan dan pelaksanaan bimbingan TIK.",{"$f":"'PKKM-GTIK'!N78","v":0},{"$f":"RANK($E$3:$E$52,$D$3:$E$52)+COUNTIF($E$2:E24,E25)","v":23},null,23,"Guru TIK menyajikan materi TIK yang memenuhi kebutuhan guru lainnya dalam perencanaan pembelajaran, dalam penggunaan media pembelajaran dan sumber belajar, atau pengelolaan data dan laporan penilaian berbasis TIK.",0,26]
["8.8","Menguasai konsep, kompetensi, materi TIK, dan pembimbingan TIK.","PEDAGOGIK) : 8.8. Guru TIK menguasai teknologi dan literasi digital, pendalaman pengetahuan dan kreasi pengetahuan TIK.","Guru TIK menguasai teknologi dan literasi digital, pendalaman pengetahuan dan kreasi pengetahuan TIK.",{"$f":"'PKKM-GTIK'!N79","v":0},{"$f":"RANK($E$3:$E$52,$D$3:$E$52)+COUNTIF($E$2:E25,E26)","v":24},null,24,"Guru TIK melaksanakan fasilitasi terhadap guru sesuai dengan kebutuhan atau tujuan fasilitasi yang direncanakan.",0,25]
["9.1"," Fasilitas guru untuk pembelajaran berbasis TIK","PEDAGOGIK) : 9.1. Guru TIK melaksanakan fasilitasi terhadap guru sesuai dengan kebutuhan atau tujuan fasilitasi yang direncanakan.","Guru TIK melaksanakan fasilitasi terhadap guru sesuai dengan kebutuhan atau tujuan fasilitasi yang direncanakan.",{"$f":"'PKKM-GTIK'!N84","v":0},{"$f":"RANK($E$3:$E$52,$D$3:$E$52)+COUNTIF($E$2:E26,E27)","v":25},null,25,"Guru TIK menguasai teknologi dan literasi digital, pendalaman pengetahuan dan kreasi pengetahuan TIK.",0,24]
["9.2"," Fasilitas guru untuk pembelajaran berbasis TIK","PEDAGOGIK) : 9.2. Guru TIK menyajikan materi TIK yang memenuhi kebutuhan guru lainnya dalam perencanaan pembelajaran, dalam penggunaan media pembelajaran dan sumber belajar, atau pengelolaan data dan laporan penilaian berbasis TIK.","Guru TIK menyajikan materi TIK yang memenuhi kebutuhan guru lainnya dalam perencanaan pembelajaran, dalam penggunaan media pembelajaran dan sumber belajar, atau pengelolaan data dan laporan penilaian berbasis TIK.",{"$f":"'PKKM-GTIK'!N85","v":0},{"$f":"RANK($E$3:$E$52,$D$3:$E$52)+COUNTIF($E$2:E27,E28)","v":26},null,26,"Guru TIK menyertakan informasi yang tepat dan mutakhir di dalam perencanaan dan pelaksanaan bimbingan TIK.",0,23]
["9.3"," Fasilitas guru untuk pembelajaran berbasis TIK","PEDAGOGIK) : 9.3. Guru TIK memberikan fasilitasi sesuai dengan sistematika keilmuan (konkret ke abstrak, sederhana ke kompleks, mudah ke sulit).","Guru TIK memberikan fasilitasi sesuai dengan sistematika keilmuan (konkret ke abstrak, sederhana ke kompleks, mudah ke sulit).",{"$f":"'PKKM-GTIK'!N86","v":0},{"$f":"RANK($E$3:$E$52,$D$3:$E$52)+COUNTIF($E$2:E28,E29)","v":27},null,27,"Guru TIK mengaitkan materi bimbingan TIK dengan lingkungan dan kehidupan sehari-hari peserta didik serta kecakapan abad 21.",0,22]
["9.4"," Fasilitas guru untuk pembelajaran berbasis TIK","PEDAGOGIK) : 9.4. Guru TIK menggunakan kegiatan belajar yang bervariasi selama proses fasilitasi.","Guru TIK menggunakan kegiatan belajar yang bervariasi selama proses fasilitasi.",{"$f":"'PKKM-GTIK'!N87","v":0},{"$f":"RANK($E$3:$E$52,$D$3:$E$52)+COUNTIF($E$2:E29,E30)","v":28},null,28,"Guru TIK menjawab atau merespons pertanyaan secara tepat dan benar sesuai dengan konsep keilmuan TIK",0,21]
["9.5"," Fasilitas guru untuk pembelajaran berbasis TIK","PEDAGOGIK) : 9.5. Guru TIK menggunakan pendekatan pembelajaran orang dewasa selama proses fasilitasi.","Guru TIK menggunakan pendekatan pembelajaran orang dewasa selama proses fasilitasi.",{"$f":"'PKKM-GTIK'!N88","v":0},{"$f":"RANK($E$3:$E$52,$D$3:$E$52)+COUNTIF($E$2:E30,E31)","v":29},null,29,"Guru TIK mengembangkan dan menyajikan materi pembimbingan untuk mencari, mengolah, menyimpan, menyajikan, serta menyebarkan data dan informasi dalam berbagai cara untuk mendukung kelancaran proses belajar peserta didik.",0,20]
["9.6"," Fasilitas guru untuk pembelajaran berbasis TIK","PEDAGOGIK) : 9.6. Guru TIK melaksanakan fasilitasi secara individu atau kelompok","Guru TIK melaksanakan fasilitasi secara individu atau kelompok",{"$f":"'PKKM-GTIK'!N89","v":0},{"$f":"RANK($E$3:$E$52,$D$3:$E$52)+COUNTIF($E$2:E31,E32)","v":30},null,30,"Guru TIK memberikan materi bimbingan sesuai dengan sistematika keilmuan yang benar (konkret ke abstrak, sederhana ke kompleks, mudah ke sulit).",0,19]
["9.7"," Fasilitas guru untuk pembelajaran berbasis TIK","PEDAGOGIK) : 9.7. Guru TIK mengecek tingkat penguasaan materi oleh peserta fasilitasi sebelum melanjutkan ke pokok materi berikutnya","Guru TIK mengecek tingkat penguasaan materi oleh peserta fasilitasi sebelum melanjutkan ke pokok materi berikutnya",{"$f":"'PKKM-GTIK'!N90","v":0},{"$f":"RANK($E$3:$E$52,$D$3:$E$52)+COUNTIF($E$2:E32,E33)","v":31},null,31,"Guru mengembangkan kerjasama dan membina kebersamaan dengan teman sejawat tanpa memperhatikan perbedaan yang ada (misalnya: suku, agama, dan gender).",0,18]
["10.1","Fasilitasi tenaga kependidikan untuk pengelolaan informasi","PEDAGOGIK) : 10.1. Guru TIK melaksanakan fasilitasi terhadap guru sesuai dengan kebutuhan atau tujuan fasilitasi yang direncanakan.","Guru TIK melaksanakan fasilitasi terhadap guru sesuai dengan kebutuhan atau tujuan fasilitasi yang direncanakan.",{"$f":"'PKKM-GTIK'!N96","v":0},{"$f":"RANK($E$3:$E$52,$D$3:$E$52)+COUNTIF($E$2:E33,E34)","v":32},null,32,"Guru TIK melakukan analisis/pemetaan kompetensi TIK untuk mengidentifikasi materi TIK sesuai kebutuhan peserta didik",0,17]
["10.2","Fasilitasi tenaga kependidikan untuk pengelolaan informasi","PEDAGOGIK) : 10.2. Guru TIK menyajikan materi TIK yang memenuhi kebutuhan guru lainnya dalam perencanaan pembelajaran, dalam penggunaan media pembelajaran dan sumber belajar, atau pengelolaan data dan laporan penilaian berbasis TIK.","Guru TIK menyajikan materi TIK yang memenuhi kebutuhan guru lainnya dalam perencanaan pembelajaran, dalam penggunaan media pembelajaran dan sumber belajar, atau pengelolaan data dan laporan penilaian berbasis TIK.",{"$f":"'PKKM-GTIK'!N97","v":0},{"$f":"RANK($E$3:$E$52,$D$3:$E$52)+COUNTIF($E$2:E34,E35)","v":33},null,33,"Guru TIK melaksanakan penilaian proses dan/atau penilaian hasil pembimbingan TIK.",0,16]
["10.3","Fasilitasi tenaga kependidikan untuk pengelolaan informasi","PEDAGOGIK) : 10.3. Guru TIK memberikan fasilitasi sesuai dengan sistematika keilmuan (konkret ke abstrak, sederhana ke kompleks, mudah ke sulit).","Guru TIK memberikan fasilitasi sesuai dengan sistematika keilmuan (konkret ke abstrak, sederhana ke kompleks, mudah ke sulit).",{"$f":"'PKKM-GTIK'!N98","v":0},{"$f":"RANK($E$3:$E$52,$D$3:$E$52)+COUNTIF($E$2:E35,E36)","v":34},null,34,"Guru TIK memperhatikan setiap pertanyaan /jawaban peserta didik serta mengarahkannya untuk memaksimalkan pemahaman materi bimbingan.",0,15]
["10.4","Fasilitasi tenaga kependidikan untuk pengelolaan informasi","PEDAGOGIK) : 10.4. Guru TIK menggunakan kegiatan belajar yang bervariasi selama proses fasilitasi","Guru TIK menggunakan kegiatan belajar yang bervariasi selama proses fasilitasi",{"$f":"'PKKM-GTIK'!N99","v":0},{"$f":"RANK($E$3:$E$52,$D$3:$E$52)+COUNTIF($E$2:E36,E37)","v":35},null,35,"Guru TIK melaksanakan pembimbingan untuk mencari, mengolah, menyimpan, menyajikan, serta menyebarkan data dan informasi dalam berbagai cara untuk mendukung kelancaran proses belajar Siswa.",0,14]
["10.5","Fasilitasi tenaga kependidikan untuk pengelolaan informasi","PEDAGOGIK) : 10.5. Guru TIK menggunakan pendekatan pembelajaran orang dewasa selama proses fasilitasi","Guru TIK menggunakan pendekatan pembelajaran orang dewasa selama proses fasilitasi",{"$f":"'PKKM-GTIK'!N100","v":0},{"$f":"RANK($E$3:$E$52,$D$3:$E$52)+COUNTIF($E$2:E37,E38)","v":36},null,36,"Guru TIK mengecek kemajuan pemahaman dan keterampilan peserta didik terhadap materi pembimbingan TIK sebelum melanjutkan ke tahap/topik berikutnya.",0,13]
["10.6","Fasilitasi tenaga kependidikan untuk pengelolaan informasi","PEDAGOGIK) : 10.6. Guru TIK melaksanakan fasilitasi secara individu atau kelompok","Guru TIK melaksanakan fasilitasi secara individu atau kelompok",{"$f":"'PKKM-GTIK'!N101","v":0},{"$f":"RANK($E$3:$E$52,$D$3:$E$52)+COUNTIF($E$2:E38,E39)","v":37},null,37,"Guru TIK melaksanakan pembimbingan TIK secara klasikal/kelompok atau individu.",0,12]
["10.7","Fasilitasi tenaga kependidikan untuk pengelolaan informasi","PEDAGOGIK) : 10.7. Guru TIK mengecek tingkat penguasaan materi oleh peserta fasilitasi sebelum melanjutkan ke pokok materi berikutnya.","Guru TIK mengecek tingkat penguasaan materi oleh peserta fasilitasi sebelum melanjutkan ke pokok materi berikutnya.",{"$f":"'PKKM-GTIK'!N102","v":0},{"$f":"RANK($E$3:$E$52,$D$3:$E$52)+COUNTIF($E$2:E39,E40)","v":38},null,38,"Guru TIK melaksanakan pembimbingan yang menantang keingintahuan peserta didik.",0,11]
["10.8","Fasilitasi tenaga kependidikan untuk pengelolaan informasi","PEDAGOGIK) : 10.8. Guru TIK melakukan evaluasi dan membuat laporan kegiatan pembimbingan TIK bagi peserta didik.","Guru TIK melakukan evaluasi dan membuat laporan kegiatan pembimbingan TIK bagi peserta didik.",{"$f":"'PKKM-GTIK'!N107","v":0},{"$f":"RANK($E$3:$E$52,$D$3:$E$52)+COUNTIF($E$2:E40,E41)","v":39},null,39,"Guru TIK melaksanakan pembimbingan dengan menyenangkan peserta didik",0,10]
["10.9","Fasilitasi tenaga kependidikan untuk pengelolaan informasi","PEDAGOGIK) : 10.9. Guru TIK melakukan evaluasi dan membuat laporan kegiatan fasilitasi TIK bagi guru lain","Guru TIK melakukan evaluasi dan membuat laporan kegiatan fasilitasi TIK bagi guru lain",{"$f":"'PKKM-GTIK'!N108","v":0},{"$f":"RANK($E$3:$E$52,$D$3:$E$52)+COUNTIF($E$2:E41,E42)","v":40},null,40,"Guru TIK merancang program fasilitasi TIK untuk Madrasah mengenai pembelajaran, penilaian, dan Ujian Berbasis Komputer dalam Jaringan",0,9]
["10.10","Fasilitasi tenaga kependidikan untuk pengelolaan informasi","PEDAGOGIK) : 10.10. Guru TIK melakukan evaluasi dan membuat laporan kegiatan fasilitasi tenaga kependidikan","Guru TIK melakukan evaluasi dan membuat laporan kegiatan fasilitasi tenaga kependidikan",{"$f":"'PKKM-GTIK'!N109","v":0},{"$f":"RANK($E$3:$E$52,$D$3:$E$52)+COUNTIF($E$2:E42,E43)","v":41},null,41,"Guru TIK merancang program fasilitasi TIK untuk tenaga kependidikan (analisis kebutuhan guru, penjadwalan, bentuk kegiatan)",0,8]
["10.11","Fasilitasi tenaga kependidikan untuk pengelolaan informasi","PEDAGOGIK) : 10.11. Guru TIK menyusun program tindak lanjut berdasarkan hasil evaluasi","Guru TIK menyusun program tindak lanjut berdasarkan hasil evaluasi",{"$f":"'PKKM-GTIK'!N110","v":0},{"$f":"RANK($E$3:$E$52,$D$3:$E$52)+COUNTIF($E$2:E43,E44)","v":42},null,42,"Guru TIK merancang program fasilitasi TIK untuk guru (analisis kebutuhan guru, penjadwalan, bentuk kegiatan)",0,7]
["12.1","Mengembangkan keprofesionalan secara berkelanjutan dengan melakukan kegiatan yang refleksi","PEDAGOGIK) : 12.1. Guru TIK melakukan evaluasi diri di awal tahun pelajaran.","Guru TIK melakukan evaluasi diri di awal tahun pelajaran.",{"$f":"'PKKM-GTIK'!N115","v":0},{"$f":"RANK($E$3:$E$52,$D$3:$E$52)+COUNTIF($E$2:E44,E45)","v":43},null,47,"Guru TIK merancang program bimbingan TIK (analisis kebutuhan, program tahunan, program semester, silabus, dan rencana pelaksanaan bimbingan TIK, rancangan evaluasi)",0,6]
["12.2","Mengembangkan keprofesionalan secara berkelanjutan dengan melakukan kegiatan yang refleksi","PEDAGOGIK) : 12.2. Guru T IK memiliki Catatan Pelaksanaan Pembimbingan TIK bagi peserta didik.","Guru T IK memiliki Catatan Pelaksanaan Pembimbingan TIK bagi peserta didik.",{"$f":"'PKKM-GTIK'!N116","v":0},{"$f":"RANK($E$3:$E$52,$D$3:$E$52)+COUNTIF($E$2:E45,E46)","v":44},null,48,"Guru TIK dapat mengidentifikasi karakteristik belajar setiap peserta didik yang dibimbingnya.",0,5]
["12.3","Mengembangkan keprofesionalan secara berkelanjutan dengan melakukan kegiatan yang refleksi","PEDAGOGIK) : 12.3. Guru TIK memiliki Catatan Pelaksanaan Fasilitasi bagi guru lain dan tenaga kependidikan.","Guru TIK memiliki Catatan Pelaksanaan Fasilitasi bagi guru lain dan tenaga kependidikan.",{"$f":"'PKKM-GTIK'!N117","v":0},{"$f":"RANK($E$3:$E$52,$D$3:$E$52)+COUNTIF($E$2:E46,E47)","v":45},null,49,"Guru TIK memperhatikan peserta didik agar dapat mengikuti aktivitas bimbingan, sehingga peserta didik tersebut tidak termarginalkan (tersisihkan/diolok-olok/ minder).",0,4]
["12.4","Mengembangkan keprofesionalan secara berkelanjutan dengan melakukan kegiatan yang refleksi","PEDAGOGIK) : 12.4. Guru TI K memanfaatkan hasil penilaian kinerjanya sebagai dasar untuk merencanakan peningkatan mutu proses pembimbingan dan fasilitasi TIK terhadap peserta didik, guru dan tenaga kependidikan.","Guru TI K memanfaatkan hasil penilaian kinerjanya sebagai dasar untuk merencanakan peningkatan mutu proses pembimbingan dan fasilitasi TIK terhadap peserta didik, guru dan tenaga kependidikan.",{"$f":"'PKKM-GTIK'!N118","v":0},{"$f":"RANK($E$3:$E$52,$D$3:$E$52)+COUNTIF($E$2:E47,E48)","v":46},null,50,"Guru TIK membantu mengembangkan potensi dan mengatasi kekurangan peserta didik",0,3]
["12.5","Mengembangkan keprofesionalan secara berkelanjutan dengan melakukan kegiatan yang refleksi","PEDAGOGIK) : 12.5. Guru TIK mengaplikasikan pengalaman PKB dalam perencanaan, pelaksanaan, penilaian pembimbingan dan fasilitasi, dan tindak lanjutnya.","Guru TIK mengaplikasikan pengalaman PKB dalam perencanaan, pelaksanaan, penilaian pembimbingan dan fasilitasi, dan tindak lanjutnya.",{"$f":"'PKKM-GTIK'!N119","v":0},{"$f":"RANK($E$3:$E$52,$D$3:$E$52)+COUNTIF($E$2:E48,E49)","v":47},null,51,"Guru TIK dapat mengelola kelas agar semua Siswa mendapatkan kesempatan yang sama untuk berpartisipasi aktif dalam kegiatan bimbingan TIK.",0,2]
["12.6","Mengembangkan keprofesionalan secara berkelanjutan dengan melakukan kegiatan yang refleksi","PEDAGOGIK) : 12.6. Guru TIK aktif meningkatkan dan mengembangkan kompetensinya melalui berbagai kegiatan Pengembangan Keprofesian Berkelanjutan.","Guru TIK aktif meningkatkan dan mengembangkan kompetensinya melalui berbagai kegiatan Pengembangan Keprofesian Berkelanjutan.",{"$f":"'PKKM-GTIK'!N120","v":0},{"$f":"RANK($E$3:$E$52,$D$3:$E$52)+COUNTIF($E$2:E49,E50)","v":48},null,52,"Guru TIK dapat mengidentifikasi karakteristik belajar setiap peserta didik yang dibimbingnya.",0,1]
{"$rows_empty":7}
[{"$nulls":8},"Guru TIK melakukan evaluasi dan membuat laporan kegiatan fasilitasi tenaga kependidikan"]

{"sheet":"KH","index":28,"n_rows":32,"n_cols":14,"rows_kept":32,"hidden":true,"merged":[[0,1,0,4],[0,5,0,11],[2,1,2,10],[3,1,3,2],[4,1,4,2],[5,1,5,2],[7,1,9,1],[7,2,9,2],[7,3,7,8],[7,9,7,10],[8,8,9,8],[8,10,9,10],[23,1,23,2],[24,1,24,9],[26,7,26,10],[30,1,30,3],[30,4,30,6],[30,7,30,10],[31,1,31,3],[31,4,31,6],[31,7,31,10]]}
[null,"Isilah data ketidakhadiran guru terlambat,\npulang cepat, dan alpa pada setiap bulan",{"$nulls":3},"Untuk terlambat dan pulang cepat diisi  jumlah menitnya sedangkan pada Tanpa Keterangan ditulis jumlah harinya sel yang lain terisi secara otomatis"]
[]
[null,"REKAPITULASI KETIDAKHADIRAN GURU"]
[null,"Nama Guru                         ",null,{"$f":"\": \"&DATA!$C$3","v":": NINA HERLINA, S.Pd"}]
[null,"NIP                                       ",null,{"$f":"\": \"&DATA!$C$4","v":": -"}]
[null,"Tugas Tambahan                     ",null,{"$f":"\": \"&DATA!$H$7","v":": "}]
[]
[null,"No","Bulan","Tidak Hadir",{"$nulls":5},"Skor Persentase"]
[{"$nulls":3},"Terlambat","Pulang Lbh Cepat","Jumlah","Konversi","Tanpa Keterangan","Jumlah  Td Hdr","Tidak Hadir","Hadir"]
[{"$nulls":3},"(menit)","(menit)","menit","(hari )","(hari)",null,"Hadir"]
[null,"(1)","(2)","(6)","(7)","(8)","(9)","(10)","(11)","(12)","(13)"]
[null,1,"Januari",null,null,{"$f":"D12+E12","v":0},{"$f":"F12/450","v":{"v":0,"d":"0.00"}},null,{"$f":"G12+H12","v":{"v":0,"d":"0.00"}},{"$f":"IF(C12=0,0,I12/46)","v":{"v":0,"d":"0.00%"}},{"$f":"IF(C12=0,0,1-J12)","v":{"v":1,"d":"100.00%"}},null,null,45.99]
[null,2,"Februari",null,null,0,{"v":0,"d":"0.00"},null,{"v":0,"d":"0.00"},{"v":0,"d":"0.00%"},{"v":1,"d":"100.00%"}]
[null,3,"Maret",null,null,0,{"v":0,"d":"0.00"},null,{"v":0,"d":"0.00"},{"v":0,"d":"0.00%"},{"v":1,"d":"100.00%"}]
[null,4,"April",null,null,0,{"v":0,"d":"0.00"},null,{"v":0,"d":"0.00"},{"v":0,"d":"0.00%"},{"v":1,"d":"100.00%"}]
[null,5,"Mei",null,null,0,{"v":0,"d":"0.00"},null,{"v":0,"d":"0.00"},{"v":0,"d":"0.00%"},{"v":1,"d":"100.00%"}]
[null,6,"Juni",null,null,0,{"v":0,"d":"0.00"},null,{"v":0,"d":"0.00"},{"v":0,"d":"0.00%"},{"v":1,"d":"100.00%"}]
[null,7,"Juli",null,null,0,{"v":0,"d":"0.00"},null,{"v":0,"d":"0.00"},{"v":0,"d":"0.00%"},{"v":1,"d":"100.00%"}]
[null,8,"Agustus",null,null,0,{"v":0,"d":"0.00"},null,{"v":0,"d":"0.00"},{"v":0,"d":"0.00%"},{"v":1,"d":"100.00%"}]
[null,9,"September",null,null,0,{"v":0,"d":"0.00"},null,{"v":0,"d":"0.00"},{"v":0,"d":"0.00%"},{"v":1,"d":"100.00%"}]
[null,10,"Oktober",null,null,0,{"v":0,"d":"0.00"},null,{"v":0,"d":"0.00"},{"v":0,"d":"0.00%"},{"v":1,"d":"100.00%"}]
[null,11,"November",null,null,0,{"v":0,"d":"0.00"},null,{"v":0,"d":"0.00"},{"v":0,"d":"0.00%"},{"v":1,"d":"100.00%"}]
[null,12,"Desember",null,null,0,{"v":0,"d":"0.00"},null,{"v":0,"d":"0.00"},{"v":0,"d":"0.00%"},{"v":1,"d":"100.00%"}]
[null,"JUMLAH",null,{"$f":"SUM(D12:D23)","v":0},{"$f":"SUM(E12:E23)","v":0},{"$f":"SUM(F12:F23)","v":0},{"v":0,"d":"0.00"},{"$f":"SUM(H12:H23)","v":0},{"v":0,"d":"0.00"},{"$f":"IF(B24=0,0,I24/46)","v":{"v":0,"d":"0.00%"}}]
[null,"PROSENTASE KEHADIRAN",{"$nulls":8},{"$f":"IF($B$24=0,0,1-$J$24)","v":{"v":1,"d":"100.00%"}}]
[]
[null,"Guru yang Dinilai",null,null,"Penilai,",null,null,"Kepala Madrasah,"]
[]
[]
[]
[null,{"$f":"DATA!$C$3","v":"NINA HERLINA, S.Pd"},null,null,{"$f":"DATA!$H$12","v":"Nasuhi, S.Pd.I"},null,null,{"$f":"DATA!$C$19","v":"NASUHI, S.Pd.I"}]
[null,{"$f":"\"NIP. \"&DATA!$C$4","v":"NIP. -"},null,null,{"$f":"\"NIP. \"&DATA!$H$13","v":"NIP. lake"},null,null,{"$f":"\"NIP. \"&DATA!$C$20","v":"NIP. -"}]

{"sheet":"REKAP_RES","index":29,"n_rows":12,"n_cols":26,"rows_kept":12,"hidden":true,"merged":[[0,0,1,0],[0,1,1,1],[0,2,0,11],[0,12,1,12],[0,13,1,13],[7,0,8,0],[7,1,8,1],[7,2,7,11],[7,12,8,12],[7,13,8,13]]}
["No","JENIS RESPONDEN","NILAI KINERJA RESPONDEN GURU MAPEL KE-",{"$nulls":9},"JUMLAH","RATA-RATA"]
[null,null,1,2,3,4,5,6,7,8,9,10,{"$nulls":3},1,2,3,4,5,6,7,8,9,10,"JML"]
[1,"Teman Sebaya",{"$f":"#REF!","v":{"$error":"#REF!"}},{"$f":"#REF!","v":{"$error":"#REF!"}},{"$f":"#REF!","v":{"$error":"#REF!"}},{"$f":"#REF!","v":{"$error":"#REF!"}},{"$f":"#REF!","v":{"$error":"#REF!"}},{"$f":"#REF!","v":{"$error":"#REF!"}},{"$f":"#REF!","v":{"$error":"#REF!"}},{"$f":"#REF!","v":{"$error":"#REF!"}},{"$f":"#REF!","v":{"$error":"#REF!"}},{"$f":"#REF!","v":{"$error":"#REF!"}},{"$f":"SUM(C3:L3)","v":{"$error":"#REF!"}},{"$f":"IF(ISERROR(M3/Z3),0,M3/Z3)","v":{"v":0,"d":"0.00"}},null,{"$f":"IF(C3>0,1,0)","v":{"$error":"#REF!"}},{"$f":"IF(D3>0,1,0)","v":{"$error":"#REF!"}},{"$error":"#REF!"},{"$error":"#REF!"},{"$error":"#REF!"},{"$error":"#REF!"},{"$error":"#REF!"},{"$error":"#REF!"},{"$error":"#REF!"},{"$error":"#REF!"},{"$f":"SUM(P3:Y3)","v":{"$error":"#REF!"}}]
[2,"Peserta Didik",{"$f":"#REF!","v":{"$error":"#REF!"}},{"$f":"#REF!","v":{"$error":"#REF!"}},{"$f":"#REF!","v":{"$error":"#REF!"}},{"$f":"#REF!","v":{"$error":"#REF!"}},{"$f":"#REF!","v":{"$error":"#REF!"}},{"$f":"#REF!","v":{"$error":"#REF!"}},{"$f":"#REF!","v":{"$error":"#REF!"}},{"$f":"#REF!","v":{"$error":"#REF!"}},{"$f":"#REF!","v":{"$error":"#REF!"}},{"$f":"#REF!","v":{"$error":"#REF!"}},{"$f":"SUM(C4:L4)","v":{"$error":"#REF!"}},{"$f":"IF(ISERROR(M4/Z4),0,M4/Z4)","v":{"v":0,"d":"0.00"}},null,{"$f":"IF(C4>0,1,0)","v":{"$error":"#REF!"}},{"$f":"IF(D4>0,1,0)","v":{"$error":"#REF!"}},{"$error":"#REF!"},{"$error":"#REF!"},{"$error":"#REF!"},{"$error":"#REF!"},{"$error":"#REF!"},{"$error":"#REF!"},{"$error":"#REF!"},{"$error":"#REF!"},{"$f":"SUM(P4:Y4)","v":{"$error":"#REF!"}}]
[3,"Orang Tua Peserta Didik",{"$f":"#REF!","v":{"$error":"#REF!"}},{"$f":"#REF!","v":{"$error":"#REF!"}},{"$f":"#REF!","v":{"$error":"#REF!"}},{"$nulls":7},{"$f":"SUM(C5:E5)","v":{"$error":"#REF!"}},{"$f":"IF(ISERROR(M5/Z5),0,M5/Z5)","v":{"v":0,"d":"0.00"}},null,{"$f":"IF(C5>0,1,0)","v":{"$error":"#REF!"}},{"$f":"IF(D5>0,1,0)","v":{"$error":"#REF!"}},{"$f":"IF(E5>0,1,0)","v":{"$error":"#REF!"}},{"$nulls":7},{"$f":"SUM(P5:R5)","v":{"$error":"#REF!"}}]
[]
[]
["No","JENIS RESPONDEN","NILAI KINERJA RESPONDEN GURU BK KE-",{"$nulls":9},"JUMLAH","RATA-RATA"]
[null,null,1,2,3,4,5,6,7,8,9,10,{"$nulls":3},1,2,3,4,5,6,7,8,9,10,"JML"]
[1,"Teman Sebaya",{"$f":"#REF!","v":{"$error":"#REF!"}},{"$f":"#REF!","v":{"$error":"#REF!"}},{"$f":"#REF!","v":{"$error":"#REF!"}},{"$f":"#REF!","v":{"$error":"#REF!"}},{"$f":"#REF!","v":{"$error":"#REF!"}},{"$f":"#REF!","v":{"$error":"#REF!"}},{"$f":"#REF!","v":{"$error":"#REF!"}},{"$f":"#REF!","v":{"$error":"#REF!"}},{"$f":"#REF!","v":{"$error":"#REF!"}},{"$f":"#REF!","v":{"$error":"#REF!"}},{"$f":"SUM(C10:L10)","v":{"$error":"#REF!"}},{"$f":"IF(ISERROR(M10/Z10),0,M10/Z10)","v":{"v":0,"d":"0.00"}},null,{"$f":"IF(C10>0,1,0)","v":{"$error":"#REF!"}},{"$error":"#REF!"},{"$error":"#REF!"},{"$error":"#REF!"},{"$error":"#REF!"},{"$error":"#REF!"},{"$error":"#REF!"},{"$error":"#REF!"},{"$error":"#REF!"},{"$error":"#REF!"},{"$f":"SUM(P10:Y10)","v":{"$error":"#REF!"}}]
[2,"Peserta Didik",{"$f":"#REF!","v":{"$error":"#REF!"}},{"$f":"#REF!","v":{"$error":"#REF!"}},{"$f":"#REF!","v":{"$error":"#REF!"}},{"$f":"#REF!","v":{"$error":"#REF!"}},{"$f":"#REF!","v":{"$error":"#REF!"}},{"$f":"#REF!","v":{"$error":"#REF!"}},{"$f":"#REF!","v":{"$error":"#REF!"}},{"$f":"#REF!","v":{"$error":"#REF!"}},{"$f":"#REF!","v":{"$error":"#REF!"}},{"$f":"#REF!","v":{"$error":"#REF!"}},{"$f":"SUM(C11:L11)","v":{"$error":"#REF!"}},{"$f":"IF(ISERROR(M11/Z11),0,M11/Z11)","v":{"v":0,"d":"0.00"}},null,{"$error":"#REF!"},{"$error":"#REF!"},{"$error":"#REF!"},{"$error":"#REF!"},{"$error":"#REF!"},{"$error":"#REF!"},{"$error":"#REF!"},{"$error":"#REF!"},{"$error":"#REF!"},{"$error":"#REF!"},{"$f":"SUM(P11:Y11)","v":{"$error":"#REF!"}}]
[3,"Orang Tua Peserta Didik",{"$f":"#REF!","v":{"$error":"#REF!"}},{"$f":"#REF!","v":{"$error":"#REF!"}},{"$f":"#REF!","v":{"$error":"#REF!"}},{"$nulls":7},{"$f":"SUM(C12:E12)","v":{"$error":"#REF!"}},{"$f":"IF(ISERROR(M12/Z12),0,M12/Z12)","v":{"v":0,"d":"0.00"}},null,{"$f":"IF(C12>0,1,0)","v":{"$error":"#REF!"}},{"$f":"IF(D12>0,1,0)","v":{"$error":"#REF!"}},{"$f":"IF(E12>0,1,0)","v":{"$error":"#REF!"}},{"$nulls":7},{"$f":"SUM(P12:R12)","v":{"$error":"#REF!"}}]

{"sheet":"RUN","index":30,"n_rows":18,"n_cols":3,"rows_kept":18,"hidden":true}
["GURU MATA PELAJARAN"]
[{"$f":"PRIORITAS!D11","v":"Guru dapat memanfaatkan TIK dalam berkomunikasi dan pelaksanaan PKB."},{"$f":"PRIORITAS!F11","v":"1.2 Kegiatan lokakarya atau kegiatan kelompok guru"},{"$f":"IF(B2>0,B2&\" tentang \"&LOWER(A2),\"\")","v":"1.2 Kegiatan lokakarya atau kegiatan kelompok guru tentang guru dapat memanfaatkan tik dalam berkomunikasi dan pelaksanaan pkb."}]
[{"$f":"PRIORITAS!D12","v":"Guru melakukan penelitian, mengembangkan karya inovasi, mengikuti kegiatan ilmiah (misalnya seminar, konferensi), dan aktif dalam melaksanakan PKB."},{"$f":"PRIORITAS!F12","v":0},{"$f":"IF(B3>0,B3&\" tentang \"&LOWER(A3),\"\")","v":""}]
[{"$f":"PRIORITAS!D13","v":"Guru dapat mengaplikasikan pengalaman PKB dalam perencanaan, pelaksanaan, penilaian pembelajaran dan tindak lanjutnya."},{"$f":"PRIORITAS!F13","v":0},""]
[{"$f":"PRIORITAS!D14","v":"Guru memanfaatkan bukti gambaran kinerjanya untuk mengembangkan  perencanaan dan pelaksanaan pembelajaran selanjutnya dalam program Pengembangan Keprofesian Berkelanjutan (PKB)."},{"$f":"PRIORITAS!F14","v":0},""]
[{"$f":"PRIORITAS!D15","v":"Guru memiliki jurnal pembelajaran, catatan masukan dari kolega atau hasil penilaian proses pembelajaran sebagai bukti yang menggambarkan kinerjanya."},{"$f":"PRIORITAS!F15","v":0},""]
["GURU BIMBINGAN DAN KONSELING"]
[{"$f":"PRIORITAS!D108","v":"Guru BK/Konselor dapat memanfaatkan hasil penelitian dalam BK dengan mengakses jurnal yang relevan."},{"$f":"PRIORITAS!F108","v":0},""]
[{"$f":"PRIORITAS!D109","v":"Guru BK/Konselor dapat melaksanakan penelitian dalam BK."},{"$f":"PRIORITAS!F109","v":0},""]
[{"$f":"PRIORITAS!D110","v":"Guru BK/Konselor mampu merancang penelitian dalam BK."},{"$f":"PRIORITAS!F110","v":0},""]
[{"$f":"PRIORITAS!D111","v":"Guru BK/Konselor dapat mendeskripsikan jenis dan metode penelitian dalam BK."},{"$f":"PRIORITAS!F111","v":0},""]
[{"$f":"PRIORITAS!D112","v":"Guru BK/Konselor dapat mendahulukan kepentingan peserta didik/konseli daripada kepentingan pribadi guru BK/konselor."},{"$f":"PRIORITAS!F112","v":0},""]
["GURU TIK"]
[{"$f":"PRIORITAS!D208","v":"Guru TIK aktif meningkatkan dan mengembangkan kompetensinya melalui berbagai kegiatan Pengembangan Keprofesian Berkelanjutan."},{"$f":"PRIORITAS!F208","v":0},""]
[{"$f":"PRIORITAS!D209","v":"Guru TIK mengaplikasikan pengalaman PKB dalam perencanaan, pelaksanaan, penilaian pembimbingan dan fasilitasi, dan tindak lanjutnya."},{"$f":"PRIORITAS!F209","v":0},""]
[{"$f":"PRIORITAS!D210","v":"Guru TI K memanfaatkan hasil penilaian kinerjanya sebagai dasar untuk merencanakan peningkatan mutu proses pembimbingan dan fasilitasi TIK terhadap peserta didik, guru dan tenaga kependidikan."},{"$f":"PRIORITAS!F210","v":0},""]
[{"$f":"PRIORITAS!D211","v":"Guru TIK memiliki Catatan Pelaksanaan Fasilitasi bagi guru lain dan tenaga kependidikan."},{"$f":"PRIORITAS!F211","v":0},""]
[{"$f":"PRIORITAS!D212","v":"Guru T IK memiliki Catatan Pelaksanaan Pembimbingan TIK bagi peserta didik."},{"$f":"PRIORITAS!F212","v":0},""]

{"sheet":"PKB","index":31,"n_rows":11,"n_cols":2,"rows_kept":11,"hidden":true}
["1.1","Diklat fungsional"]
["1.2","Kegiatan lokakarya atau kegiatan kelompok guru"]
["1.3","Pembahas atau peserta pada seminar, koloqium, atau diskusi pannel"]
["1.4","Kegiatan kolektif guru (MGMP/MGBK/KKG)"]
["2.1","Presentasi pada forum ilmiah"]
["2.2","Sebagai pemrasaran/nara sumber pada seminar,  lokakarya ilmiah, koloqium atau diskusi ilmiah"]
["2.3","Publikasi ilmiah hasil penelitian atau gagasan inovatif pada bidang pendidikan formal"]
["3.1","Penemuan teknologi tepat guna"]
["3.2","Penemuan/peciptaan/pengembangan karya seni"]
["3.3","Pembuatan/pemodifikasian alat pelajaran/peraga/praktikum"]
["3.4","Penyusunan standar, pedoman, soal dan sejenisnya"]

{"sheet":"IdentImport","index":32,"n_rows":5,"n_cols":16,"rows_kept":5,"merged":[[2,1,2,15],[3,12,3,14]]}
[]
[]
[null,"REKAP DATA IDENTITAS"]
[null,"No","Nama Guru","NIP/ No Seri Karpeg","Tempat/Tanggal Lahir","Jenis Kelamin","Pend.\nTerakhir","Pangkat/Jabatan/ Golongan","TMT Golongan","TMT Sebagai \nGuru","Masa Kerja","Mapel yang diampu","Tugas Tambahan",null,null,"Total Jam"]
[null,">",{"$f":"'ID GURU'!$D$5","v":"NINA HERLINA, S.Pd"},{"$f":"'ID GURU'!$D$6","v":"- / "},{"$f":"'ID GURU'!$D$7","v":"Serang, 32227"},{"$f":"'ID GURU'!$D$13","v":"Perempuan"},{"$f":"'ID GURU'!$D$14","v":"S-1"},{"$f":"'ID GURU'!$D$8","v":"Penata, III/c"},{"$f":"'ID GURU'!$D$9","v":"9 Juli 2021"},{"$f":"'ID GURU'!$D$10","v":"9 Juli 2021"},{"$f":"'ID GURU'!$D$12","v":"3 Tahun 3 Bulan"},{"$f":"'ID GURU'!$D$15","v":"SKI"},{"$f":"'ID GURU'!$D$19","v":0},{"$f":"DATA!$H$8","v":"-"},{"$f":"DATA!$H$9","v":"-"},{"$f":"'ID GURU'!$D$16","v":"24 Jam Tatap Muka"}]

{"sheet":"NilaiImport","index":33,"n_rows":5,"n_cols":13,"rows_kept":5}
[]
[]
[]
[null,"No","Nama Guru","Nama Madrasah","Nilai PKG Guru Mata Pelajaran","Nilai PKG Guru Bimbingan Konseling","Nilai PKG Guru TIK","Nilai PKG Waka Kurikulum","Nilai PKG Waka Kesiswaan","Nilai PKG Waka Sarana dan Prasarana","Nilai PKG Waka Hubungan Masyarakat","Nilai PKG Kepala Laboratorium","Nilai PKG Kepala Perpustakaan"]
[null,">",{"$f":"'ID GURU'!$D$5","v":"NINA HERLINA, S.Pd"},{"$f":"'ID GURU'!$D$24","v":"MTs An-Nawa"},{"$f":"'N-GR'!$C$21","v":{"v":0,"d":"0.000"}},{"$f":"'N-GR'!$D$21","v":{"v":0,"d":"0.00"}},{"$f":"'N-GR'!$E$21","v":{"v":0,"d":"0.00"}},{"$f":"'N-GR'!$F$21","v":{"v":0,"d":"0.00"}},{"$f":"'N-GR'!$G$21","v":{"v":0,"d":"0.00"}},{"$f":"'N-GR'!$H$21","v":{"v":0,"d":"0.00"}},{"$f":"'N-GR'!$I$21","v":{"v":0,"d":"0.00"}},{"$f":"'N-GR'!$J$21","v":{"v":0,"d":"0.00"}},{"$f":"'N-GR'!$K$21","v":{"v":0,"d":"0.00"}}]

{"sheet":"PKBImport","index":34,"n_rows":6,"n_cols":19,"rows_kept":6}
[]
[]
[]
[{"$nulls":4},"PRIORITAS PKB GURU MAPEL/ KELAS",{"$nulls":4},"PRIORITAS PKB GURU BK",{"$nulls":4},"PRIORITAS PKB GURU TIK"]
[null,"No.","Nama Guru","Nama Madrasah","Kegiatan PKB 1","Kegiatan PKB 2","Kegiatan PKB 3","Kegiatan PKB 4","Kegiatan PKB 5"]
[null,">",{"$f":"'ID GURU'!$D$5","v":"NINA HERLINA, S.Pd"},{"$f":"'ID GURU'!$D$24","v":"MTs An-Nawa"},{"$f":"PRIORITAS!$G$11","v":"1.2 Kegiatan lokakarya atau kegiatan kelompok guru tentang guru dapat memanfaatkan tik dalam berkomunikasi dan pelaksanaan pkb."},{"$f":"PRIORITAS!$G$12","v":""},{"$f":"PRIORITAS!$G$13","v":""},{"$f":"PRIORITAS!$G$14","v":""},{"$f":"PRIORITAS!$G$15","v":""},{"$f":"PRIORITAS!$G$108","v":""},{"$f":"PRIORITAS!$G$109","v":""},{"$f":"PRIORITAS!$G$110","v":""},{"$f":"PRIORITAS!$G$111","v":""},{"$f":"PRIORITAS!$G$112","v":""},{"$f":"PRIORITAS!$G$208","v":""},{"$f":"PRIORITAS!$G$209","v":""},{"$f":"PRIORITAS!$G$210","v":""},{"$f":"PRIORITAS!$G$211","v":""},{"$f":"PRIORITAS!$G$212","v":""}]

{"sheet":"AKKImport","index":35,"n_rows":5,"n_cols":14,"rows_kept":5}
[]
[]
[]
[null,"No.","Nama Guru","Nama Madrasah","AK Tugas Utama (tanpa Tugas Tambahan)","AK Tugas Guru BK","AK Tugas Guru TIK","AK Guru dg Tgs Tamb Waka Kurikulum","AK Guru dg Tgs Tamb Waka Kesiswaan","AK Guru dg Tgs Tamb Waka Sarpras","AK Guru dg Tgs Tamb Waka Humas","AK Guru dg Tgs Tamb Ka. Lab","AK Guru dg Tgs Tamb Ka. Perpus","JUMLAH AK "]
[null,">",{"$f":"'ID GURU'!$D$5","v":"NINA HERLINA, S.Pd"},{"$f":"'ID GURU'!$D$24","v":"MTs An-Nawa"},{"$f":"'N-GR'!$C$25","v":{"v":0,"d":"0.00"}},{"$f":"'N-GR'!$D$25","v":{"v":0,"d":"0.00"}},{"$f":"'N-GR'!$E$25","v":{"v":0,"d":"0.00"}},{"$f":"'N-GR'!$F$24","v":{"v":0,"d":"0.00"}},{"$f":"'N-GR'!$G$24","v":{"v":0,"d":"0.00"}},{"$f":"'N-GR'!$H$24","v":{"v":0,"d":"0.00"}},{"$f":"'N-GR'!$I$24","v":{"v":0,"d":"0.00"}},{"$f":"'N-GR'!$J$24","v":{"v":0,"d":"0.00"}},{"$f":"'N-GR'!$K$24","v":{"v":0,"d":"0.00"}},{"$f":"IFERROR(SUM(E5:M5),0)","v":{"v":0,"d":"0.00"}}]

{"sheet":"Sheet1","index":36,"n_rows":63,"n_cols":5,"rows_kept":63}
["GURU MAPEL"]
[{"$f":"PRIORITAS!$E$11","v":"1. Pengembangan Diri"},{"$f":"IF($A$2=\"1. Pengembangan Diri\",$C$2,IF($A$2=\"2. Publikasi Ilmiah\",$D$2,IF($A$2=\"3. Karya Inovatif\",$E$2,\"\")))","v":"1.1 Diklat fungsional"},"1.1 Diklat fungsional","2.1 Presentasi pada forum ilmiah","3.1 Penemuan teknologi tepat guna"]
[null,{"$f":"IF($A$2=\"1. Pengembangan Diri\",$C$3,IF($A$2=\"2. Publikasi Ilmiah\",$D$3,IF($A$2=\"3. Karya Inovatif\",$E$3,\"\")))","v":"1.2 Kegiatan lokakarya atau kegiatan kelompok guru"},"1.2 Kegiatan lokakarya atau kegiatan kelompok guru","2.2 Sebagai pemrasaran/nara sumber pada seminar,  lokakarya ilmiah, koloqium atau diskusi ilmiah","3.2 Penemuan/peciptaan atau pengembangan karya seni"]
[null,{"$f":"IF($A$2=\"1. Pengembangan Diri\",$C$4,IF($A$2=\"2. Publikasi Ilmiah\",$D$4,IF($A$2=\"3. Karya Inovatif\",$E$4,\"\")))","v":"1.3 Pembahas atau peserta pada seminar, koloqium, atau diskusi pannel"},"1.3 Pembahas atau peserta pada seminar, koloqium, atau diskusi pannel","2.3 Publikasi ilmiah hasil penelitian atau gagasan inovatif pada bidang pendidikan formal","3.3 Pembuatan/pemodifikasian alat pelajaran/peraga/praktikum"]
[null,{"$f":"IF($A$2=\"1. Pengembangan Diri\",$C$5,IF($A$2=\"2. Publikasi Ilmiah\",$D$5,IF($A$2=\"3. Karya Inovatif\",$E$5,\"\")))","v":"1.4 Kegiatan kolektif guru (MGMP/MGBK/KKG)"},"1.4 Kegiatan kolektif guru (MGMP/MGBK/KKG)",null,"3.4 Penyusunan standar, pedoman, soal dan sejenisnya"]
[{"$f":"PRIORITAS!$E$12","v":0},{"$f":"IF($A$6=\"1. Pengembangan Diri\",$C$2,IF($A$6=\"2. Publikasi Ilmiah\",$D$2,IF($A$6=\"3. Karya Inovatif\",$E$2,\"\")))","v":""}]
[null,{"$f":"IF($A$6=\"1. Pengembangan Diri\",$C$3,IF($A$6=\"2. Publikasi Ilmiah\",$D$3,IF($A$6=\"3. Karya Inovatif\",$E$3,\"\")))","v":""}]
[null,{"$f":"IF($A$6=\"1. Pengembangan Diri\",$C$4,IF($A$6=\"2. Publikasi Ilmiah\",$D$4,IF($A$6=\"3. Karya Inovatif\",$E$4,\"\")))","v":""}]
[null,{"$f":"IF($A$6=\"1. Pengembangan Diri\",$C$5,IF($A$6=\"2. Publikasi Ilmiah\",$D$5,IF($A$6=\"3. Karya Inovatif\",$E$5,\"\")))","v":""}]
[{"$f":"PRIORITAS!$E$13","v":0},{"$f":"IF($A$10=\"1. Pengembangan Diri\",$C$2,IF($A$10=\"2. Publikasi Ilmiah\",$D$2,IF($A$10=\"3. Karya Inovatif\",$E$2,\"\")))","v":""}]
[null,{"$f":"IF($A$10=\"1. Pengembangan Diri\",$C$3,IF($A$10=\"2. Publikasi Ilmiah\",$D$3,IF($A$10=\"3. Karya Inovatif\",$E$3,\"\")))","v":""}]
[null,{"$f":"IF($A$10=\"1. Pengembangan Diri\",$C$4,IF($A$10=\"2. Publikasi Ilmiah\",$D$4,IF($A$10=\"3. Karya Inovatif\",$E$4,\"\")))","v":""}]
[null,{"$f":"IF($A$10=\"1. Pengembangan Diri\",$C$5,IF($A$10=\"2. Publikasi Ilmiah\",$D$5,IF($A$10=\"3. Karya Inovatif\",$E$5,\"\")))","v":""}]
[{"$f":"PRIORITAS!$E$14","v":0},{"$f":"IF($A$14=\"1. Pengembangan Diri\",$C$2,IF($A$14=\"2. Publikasi Ilmiah\",$D$2,IF($A$14=\"3. Karya Inovatif\",$E$2,\"\")))","v":""}]
[null,{"$f":"IF($A$14=\"1. Pengembangan Diri\",$C$3,IF($A$14=\"2. Publikasi Ilmiah\",$D$3,IF($A$14=\"3. Karya Inovatif\",$E$3,\"\")))","v":""}]
[null,{"$f":"IF($A$14=\"1. Pengembangan Diri\",$C$4,IF($A$14=\"2. Publikasi Ilmiah\",$D$4,IF($A$14=\"3. Karya Inovatif\",$E$4,\"\")))","v":""}]
[null,{"$f":"IF($A$14=\"1. Pengembangan Diri\",$C$5,IF($A$14=\"2. Publikasi Ilmiah\",$D$5,IF($A$14=\"3. Karya Inovatif\",$E$5,\"\")))","v":""}]
[{"$f":"PRIORITAS!$E$15","v":0},{"$f":"IF($A$18=\"1. Pengembangan Diri\",$C$2,IF($A$18=\"2. Publikasi Ilmiah\",$D$2,IF($A$18=\"3. Karya Inovatif\",$E$2,\"\")))","v":""}]
[null,{"$f":"IF($A$18=\"1. Pengembangan Diri\",$C$3,IF($A$18=\"2. Publikasi Ilmiah\",$D$3,IF($A$18=\"3. Karya Inovatif\",$E$3,\"\")))","v":""}]
[null,{"$f":"IF($A$18=\"1. Pengembangan Diri\",$C$4,IF($A$18=\"2. Publikasi Ilmiah\",$D$4,IF($A$18=\"3. Karya Inovatif\",$E$4,\"\")))","v":""}]
[null,{"$f":"IF($A$18=\"1. Pengembangan Diri\",$C$5,IF($A$18=\"2. Publikasi Ilmiah\",$D$5,IF($A$18=\"3. Karya Inovatif\",$E$5,\"\")))","v":""}]
["GURU BK"]
[{"$f":"PRIORITAS!$E$108","v":0},{"$f":"IF($A$23=\"1. Pengembangan Diri\",$C$2,IF($A$23=\"2. Publikasi Ilmiah\",$D$2,IF($A$23=\"3. Karya Inovatif\",$E$2,\"\")))","v":""}]
[null,{"$f":"IF($A$23=\"1. Pengembangan Diri\",$C$3,IF($A$23=\"2. Publikasi Ilmiah\",$D$3,IF($A$23=\"3. Karya Inovatif\",$E$3,\"\")))","v":""}]
[null,{"$f":"IF($A$23=\"1. Pengembangan Diri\",$C$4,IF($A$23=\"2. Publikasi Ilmiah\",$D$4,IF($A$23=\"3. Karya Inovatif\",$E$4,\"\")))","v":""}]
[null,{"$f":"IF($A$23=\"1. Pengembangan Diri\",$C$5,IF($A$23=\"2. Publikasi Ilmiah\",$D$5,IF($A$23=\"3. Karya Inovatif\",$E$5,\"\")))","v":""}]
[{"$f":"PRIORITAS!$E$109","v":0},{"$f":"IF($A$27=\"1. Pengembangan Diri\",$C$2,IF($A$27=\"2. Publikasi Ilmiah\",$D$2,IF($A$27=\"3. Karya Inovatif\",$E$2,\"\")))","v":""}]
[null,{"$f":"IF($A$27=\"1. Pengembangan Diri\",$C$3,IF($A$27=\"2. Publikasi Ilmiah\",$D$3,IF($A$27=\"3. Karya Inovatif\",$E$3,\"\")))","v":""}]
[null,{"$f":"IF($A$27=\"1. Pengembangan Diri\",$C$4,IF($A$27=\"2. Publikasi Ilmiah\",$D$4,IF($A$27=\"3. Karya Inovatif\",$E$4,\"\")))","v":""}]
[null,{"$f":"IF($A$27=\"1. Pengembangan Diri\",$C$5,IF($A$27=\"2. Publikasi Ilmiah\",$D$5,IF($A$27=\"3. Karya Inovatif\",$E$5,\"\")))","v":""}]
[{"$f":"PRIORITAS!$E$110","v":0},{"$f":"IF($A$31=\"1. Pengembangan Diri\",$C$2,IF($A$31=\"2. Publikasi Ilmiah\",$D$2,IF($A$31=\"3. Karya Inovatif\",$E$2,\"\")))","v":""}]
[null,{"$f":"IF($A$31=\"1. Pengembangan Diri\",$C$3,IF($A$31=\"2. Publikasi Ilmiah\",$D$3,IF($A$31=\"3. Karya Inovatif\",$E$3,\"\")))","v":""}]
[null,{"$f":"IF($A$31=\"1. Pengembangan Diri\",$C$4,IF($A$31=\"2. Publikasi Ilmiah\",$D$4,IF($A$31=\"3. Karya Inovatif\",$E$4,\"\")))","v":""}]
[null,{"$f":"IF($A$31=\"1. Pengembangan Diri\",$C$5,IF($A$31=\"2. Publikasi Ilmiah\",$D$5,IF($A$31=\"3. Karya Inovatif\",$E$5,\"\")))","v":""}]
[{"$f":"PRIORITAS!$E$111","v":0},{"$f":"IF($A$35=\"1. Pengembangan Diri\",$C$2,IF($A$35=\"2. Publikasi Ilmiah\",$D$2,IF($A$35=\"3. Karya Inovatif\",$E$2,\"\")))","v":""}]
[null,{"$f":"IF($A$35=\"1. Pengembangan Diri\",$C$3,IF($A$35=\"2. Publikasi Ilmiah\",$D$3,IF($A$35=\"3. Karya Inovatif\",$E$3,\"\")))","v":""}]
[null,{"$f":"IF($A$35=\"1. Pengembangan Diri\",$C$4,IF($A$35=\"2. Publikasi Ilmiah\",$D$4,IF($A$35=\"3. Karya Inovatif\",$E$4,\"\")))","v":""}]
[null,{"$f":"IF($A$35=\"1. Pengembangan Diri\",$C$5,IF($A$35=\"2. Publikasi Ilmiah\",$D$5,IF($A$35=\"3. Karya Inovatif\",$E$5,\"\")))","v":""}]
[{"$f":"PRIORITAS!$E$112","v":0},{"$f":"IF($A$39=\"1. Pengembangan Diri\",$C$2,IF($A$39=\"2. Publikasi Ilmiah\",$D$2,IF($A$39=\"3. Karya Inovatif\",$E$2,\"\")))","v":""}]
[null,{"$f":"IF($A$39=\"1. Pengembangan Diri\",$C$3,IF($A$39=\"2. Publikasi Ilmiah\",$D$3,IF($A$39=\"3. Karya Inovatif\",$E$3,\"\")))","v":""}]
[null,{"$f":"IF($A$39=\"1. Pengembangan Diri\",$C$4,IF($A$39=\"2. Publikasi Ilmiah\",$D$4,IF($A$39=\"3. Karya Inovatif\",$E$4,\"\")))","v":""}]
[null,{"$f":"IF($A$39=\"1. Pengembangan Diri\",$C$5,IF($A$39=\"2. Publikasi Ilmiah\",$D$5,IF($A$39=\"3. Karya Inovatif\",$E$5,\"\")))","v":""}]
["GURU TIK"]
[{"$f":"PRIORITAS!$E$208","v":0},{"$f":"IF($A$44=\"1. Pengembangan Diri\",$C$2,IF($A$44=\"2. Publikasi Ilmiah\",$D$2,IF($A$44=\"3. Karya Inovatif\",$E$2,\"\")))","v":""}]
[null,{"$f":"IF(A44=\"1. Pengembangan Diri\",$C$3,IF(A44=\"2. Publikasi Ilmiah\",$D$3,IF(A44=\"3. Karya Inovatif\",$E$3,\"\")))","v":""}]
[null,{"$f":"IF($A$44=\"1. Pengembangan Diri\",$C$4,IF($A$44=\"2. Publikasi Ilmiah\",$D$4,IF($A$44=\"3. Karya Inovatif\",$E$4,\"\")))","v":""}]
[null,{"$f":"IF($A$44=\"1. Pengembangan Diri\",$C$5,IF($A$44=\"2. Publikasi Ilmiah\",$D$5,IF(A44=\"3. Karya Inovatif\",$E$5,\"\")))","v":""}]
[{"$f":"PRIORITAS!$E$209","v":0},{"$f":"IF(A48=\"1. Pengembangan Diri\",$C$2,IF(A48=\"2. Publikasi Ilmiah\",$D$2,IF(A48=\"3. Karya Inovatif\",$E$2,\"\")))","v":""}]
[null,{"$f":"IF(A48=\"1. Pengembangan Diri\",$C$3,IF(A48=\"2. Publikasi Ilmiah\",$D$3,IF(A48=\"3. Karya Inovatif\",$E$3,\"\")))","v":""}]
[null,{"$f":"IF(A48=\"1. Pengembangan Diri\",$C$4,IF(A48=\"2. Publikasi Ilmiah\",$D$4,IF(A48=\"3. Karya Inovatif\",$E$4,\"\")))","v":""}]
[null,{"$f":"IF(A48=\"1. Pengembangan Diri\",$C$5,IF(A48=\"2. Publikasi Ilmiah\",$D$5,IF(A48=\"3. Karya Inovatif\",$E$5,\"\")))","v":""}]
[{"$f":"PRIORITAS!$E$210","v":0},{"$f":"IF(A52=\"1. Pengembangan Diri\",$C$2,IF(A52=\"2. Publikasi Ilmiah\",$D$2,IF(A52=\"3. Karya Inovatif\",$E$2,\"\")))","v":""}]
[null,{"$f":"IF(A52=\"1. Pengembangan Diri\",$C$3,IF(A52=\"2. Publikasi Ilmiah\",$D$3,IF(A52=\"3. Karya Inovatif\",$E$3,\"\")))","v":""}]
[null,{"$f":"IF(A52=\"1. Pengembangan Diri\",$C$4,IF(A52=\"2. Publikasi Ilmiah\",$D$4,IF(A52=\"3. Karya Inovatif\",$E$4,\"\")))","v":""}]
[null,{"$f":"IF(A52=\"1. Pengembangan Diri\",$C$5,IF(A52=\"2. Publikasi Ilmiah\",$D$5,IF(A52=\"3. Karya Inovatif\",$E$5,\"\")))","v":""}]
[{"$f":"PRIORITAS!$E$211","v":0},{"$f":"IF(A56=\"1. Pengembangan Diri\",$C$2,IF(A56=\"2. Publikasi Ilmiah\",$D$2,IF(A56=\"3. Karya Inovatif\",$E$2,\"\")))","v":""}]
[null,{"$f":"IF(A56=\"1. Pengembangan Diri\",$C$3,IF(A56=\"2. Publikasi Ilmiah\",$D$3,IF(A56=\"3. Karya Inovatif\",$E$3,\"\")))","v":""}]
[null,{"$f":"IF(A56=\"1. Pengembangan Diri\",$C$4,IF(A56=\"2. Publikasi Ilmiah\",$D$4,IF(A56=\"3. Karya Inovatif\",$E$4,\"\")))","v":""}]
[null,{"$f":"IF(A56=\"1. Pengembangan Diri\",$C$5,IF(A56=\"2. Publikasi Ilmiah\",$D$5,IF(A56=\"3. Karya Inovatif\",$E$5,\"\")))","v":""}]
[{"$f":"PRIORITAS!$E$212","v":0},{"$f":"IF(A60=\"1. Pengembangan Diri\",$C$2,IF(A60=\"2. Publikasi Ilmiah\",$D$2,IF(A60=\"3. Karya Inovatif\",$E$2,\"\")))","v":""}]
[null,{"$f":"IF(A60=\"1. Pengembangan Diri\",$C$3,IF(A60=\"2. Publikasi Ilmiah\",$D$3,IF(A60=\"3. Karya Inovatif\",$E$3,\"\")))","v":""}]
[null,{"$f":"IF(A60=\"1. Pengembangan Diri\",$C$4,IF(A60=\"2. Publikasi Ilmiah\",$D$4,IF(A60=\"3. Karya Inovatif\",$E$4,\"\")))","v":""}]
[null,{"$f":"IF(A60=\"1. Pengembangan Diri\",$C$5,IF(A60=\"2. Publikasi Ilmiah\",$D$5,IF(A60=\"3. Karya Inovatif\",$E$5,\"\")))","v":""}]